{"text_format":"1","workbook":"xlsx","n_sheets":3,"sheets":["Resume","Explanations","Database"],"not_rendered":{"charts":2,"images":2,"macros":1,"external_links":0,"defined_names":2,"comments":0,"pivot_tables":1},"unopened":[],"bounds":{"document_bytes":16777216,"sheet_cells":100000,"rows_first":2000,"rows_last":500,"rows_between":2000,"halvings":0,"cell_chars":16384,"cell_head_chars":4096},"cells_cut":0,"cells_raw":0,"read":"row_number_cap","date_system":"1900"}

{"sheet":"Resume","index":0,"n_rows":112,"n_cols":6,"rows_kept":112,"cut":false,"hidden":false,"merged":[[6,2,7,5]]}
[]
[null,null,"Guillaume KOCH"]
[null,null,"guillaume.koch@myicn.fr"]
[null,null," + 33 6 04 13 87 21"]
[]
[]
[null,null,"Looking for a job of Business Analyst/Financial Controller"]
[]
[]
[]
[]
[]
[]
[]
[]
[]
[]
[]
[]
[]
[null,"Analysis axis"]
[null,"Duration"]
[]
[]
[]
[]
[]
[]
[]
[null,"Organization","Duration (in months)","Skill 1","Skill 2","Skill 3"]
[null,"Eastern Michigan University",4.5,{"$f":"IF(IFERROR(IFERROR(IFERROR(IFERROR(VLOOKUP($B30&$B31,Database!$F:$I,2,FALSE),VLOOKUP($B29&$B31,Database!$F:$I,2,FALSE)),VLOOKUP($B28&$B31,Database!$F:$I,2,FALSE)),VLOOKUP($B27&$B31,Database!$F:$I,2,FALSE)),\"\")=0,\"\",IFERROR(IFERROR(IFERROR(IFERROR(VLOOKUP($B30&$B31,Database!$F:$I,2,FALSE),VLOOKUP($B29&$B31,Database!$F:$I,2,FALSE)),VLOOKUP($B28&$B31,Database!$F:$I,2,FALSE)),VLOOKUP($B27&$B31,Database!$F:$I,2,FALSE)),\"\"))","v":""},{"$f":"IF(IFERROR(IFERROR(IFERROR(IFERROR(VLOOKUP($B30&$B31,Database!$F:$I,3,FALSE),VLOOKUP($B29&$B31,Database!$F:$I,3,FALSE)),VLOOKUP($B28&$B31,Database!$F:$I,3,FALSE)),VLOOKUP($B27&$B31,Database!$F:$I,3,FALSE)),\"\")=0,\"\",IFERROR(IFERROR(IFERROR(IFERROR(VLOOKUP($B30&$B31,Database!$F:$I,3,FALSE),VLOOKUP($B29&$B31,Database!$F:$I,3,FALSE)),VLOOKUP($B28&$B31,Database!$F:$I,3,FALSE)),VLOOKUP($B27&$B31,Database!$F:$I,3,FALSE)),\"\"))","v":""},{"$f":"IF(IFERROR(IFERROR(IFERROR(IFERROR(VLOOKUP($B30&$B31,Database!$F:$I,4,FALSE),VLOOKUP($B29&$B31,Database!$F:$I,4,FALSE)),VLOOKUP($B28&$B31,Database!$F:$I,4,FALSE)),VLOOKUP($B27&$B31,Database!$F:$I,4,FALSE)),\"\")=0,\"\",IFERROR(IFERROR(IFERROR(IFERROR(VLOOKUP($B30&$B31,Database!$F:$I,4,FALSE),VLOOKUP($B29&$B31,Database!$F:$I,4,FALSE)),VLOOKUP($B28&$B31,Database!$F:$I,4,FALSE)),VLOOKUP($B27&$B31,Database!$F:$I,4,FALSE)),\"\"))","v":""}]
[null,"General management courses",4.5,{"$f":"IF(IFERROR(IFERROR(IFERROR(IFERROR(VLOOKUP($B31&$B32,Database!$F:$I,2,FALSE),VLOOKUP($B30&$B32,Database!$F:$I,2,FALSE)),VLOOKUP($B29&$B32,Database!$F:$I,2,FALSE)),VLOOKUP($B28&$B32,Database!$F:$I,2,FALSE)),\"\")=0,\"\",IFERROR(IFERROR(IFERROR(IFERROR(VLOOKUP($B31&$B32,Database!$F:$I,2,FALSE),VLOOKUP($B30&$B32,Database!$F:$I,2,FALSE)),VLOOKUP($B29&$B32,Database!$F:$I,2,FALSE)),VLOOKUP($B28&$B32,Database!$F:$I,2,FALSE)),\"\"))","v":"Management"},{"$f":"IF(IFERROR(IFERROR(IFERROR(IFERROR(VLOOKUP($B31&$B32,Database!$F:$I,3,FALSE),VLOOKUP($B30&$B32,Database!$F:$I,3,FALSE)),VLOOKUP($B29&$B32,Database!$F:$I,3,FALSE)),VLOOKUP($B28&$B32,Database!$F:$I,3,FALSE)),\"\")=0,\"\",IFERROR(IFERROR(IFERROR(IFERROR(VLOOKUP($B31&$B32,Database!$F:$I,3,FALSE),VLOOKUP($B30&$B32,Database!$F:$I,3,FALSE)),VLOOKUP($B29&$B32,Database!$F:$I,3,FALSE)),VLOOKUP($B28&$B32,Database!$F:$I,3,FALSE)),\"\"))","v":"Languages"},{"$f":"IF(IFERROR(IFERROR(IFERROR(IFERROR(VLOOKUP($B31&$B32,Database!$F:$I,4,FALSE),VLOOKUP($B30&$B32,Database!$F:$I,4,FALSE)),VLOOKUP($B29&$B32,Database!$F:$I,4,FALSE)),VLOOKUP($B28&$B32,Database!$F:$I,4,FALSE)),\"\")=0,\"\",IFERROR(IFERROR(IFERROR(IFERROR(VLOOKUP($B31&$B32,Database!$F:$I,4,FALSE),VLOOKUP($B30&$B32,Database!$F:$I,4,FALSE)),VLOOKUP($B29&$B32,Database!$F:$I,4,FALSE)),VLOOKUP($B28&$B32,Database!$F:$I,4,FALSE)),\"\"))","v":"Adaptation to a new culture"}]
[null,"Radio Campus Lorraine",26,{"$f":"IF(IFERROR(IFERROR(IFERROR(IFERROR(VLOOKUP($B32&$B33,Database!$F:$I,2,FALSE),VLOOKUP($B31&$B33,Database!$F:$I,2,FALSE)),VLOOKUP($B30&$B33,Database!$F:$I,2,FALSE)),VLOOKUP($B29&$B33,Database!$F:$I,2,FALSE)),\"\")=0,\"\",IFERROR(IFERROR(IFERROR(IFERROR(VLOOKUP($B32&$B33,Database!$F:$I,2,FALSE),VLOOKUP($B31&$B33,Database!$F:$I,2,FALSE)),VLOOKUP($B30&$B33,Database!$F:$I,2,FALSE)),VLOOKUP($B29&$B33,Database!$F:$I,2,FALSE)),\"\"))","v":""},{"$f":"IF(IFERROR(IFERROR(IFERROR(IFERROR(VLOOKUP($B32&$B33,Database!$F:$I,3,FALSE),VLOOKUP($B31&$B33,Database!$F:$I,3,FALSE)),VLOOKUP($B30&$B33,Database!$F:$I,3,FALSE)),VLOOKUP($B29&$B33,Database!$F:$I,3,FALSE)),\"\")=0,\"\",IFERROR(IFERROR(IFERROR(IFERROR(VLOOKUP($B32&$B33,Database!$F:$I,3,FALSE),VLOOKUP($B31&$B33,Database!$F:$I,3,FALSE)),VLOOKUP($B30&$B33,Database!$F:$I,3,FALSE)),VLOOKUP($B29&$B33,Database!$F:$I,3,FALSE)),\"\"))","v":""},{"$f":"IF(IFERROR(IFERROR(IFERROR(IFERROR(VLOOKUP($B32&$B33,Database!$F:$I,4,FALSE),VLOOKUP($B31&$B33,Database!$F:$I,4,FALSE)),VLOOKUP($B30&$B33,Database!$F:$I,4,FALSE)),VLOOKUP($B29&$B33,Database!$F:$I,4,FALSE)),\"\")=0,\"\",IFERROR(IFERROR(IFERROR(IFERROR(VLOOKUP($B32&$B33,Database!$F:$I,4,FALSE),VLOOKUP($B31&$B33,Database!$F:$I,4,FALSE)),VLOOKUP($B30&$B33,Database!$F:$I,4,FALSE)),VLOOKUP($B29&$B33,Database!$F:$I,4,FALSE)),\"\"))","v":""}]
[null,"Presenting Radio shows",26,{"$f":"IF(IFERROR(IFERROR(IFERROR(IFERROR(VLOOKUP($B33&$B34,Database!$F:$I,2,FALSE),VLOOKUP($B32&$B34,Database!$F:$I,2,FALSE)),VLOOKUP($B31&$B34,Database!$F:$I,2,FALSE)),VLOOKUP($B30&$B34,Database!$F:$I,2,FALSE)),\"\")=0,\"\",IFERROR(IFERROR(IFERROR(IFERROR(VLOOKUP($B33&$B34,Database!$F:$I,2,FALSE),VLOOKUP($B32&$B34,Database!$F:$I,2,FALSE)),VLOOKUP($B31&$B34,Database!$F:$I,2,FALSE)),VLOOKUP($B30&$B34,Database!$F:$I,2,FALSE)),\"\"))","v":"Management"},{"$f":"IF(IFERROR(IFERROR(IFERROR(IFERROR(VLOOKUP($B33&$B34,Database!$F:$I,3,FALSE),VLOOKUP($B32&$B34,Database!$F:$I,3,FALSE)),VLOOKUP($B31&$B34,Database!$F:$I,3,FALSE)),VLOOKUP($B30&$B34,Database!$F:$I,3,FALSE)),\"\")=0,\"\",IFERROR(IFERROR(IFERROR(IFERROR(VLOOKUP($B33&$B34,Database!$F:$I,3,FALSE),VLOOKUP($B32&$B34,Database!$F:$I,3,FALSE)),VLOOKUP($B31&$B34,Database!$F:$I,3,FALSE)),VLOOKUP($B30&$B34,Database!$F:$I,3,FALSE)),\"\"))","v":"Seeking information"},{"$f":"IF(IFERROR(IFERROR(IFERROR(IFERROR(VLOOKUP($B33&$B34,Database!$F:$I,4,FALSE),VLOOKUP($B32&$B34,Database!$F:$I,4,FALSE)),VLOOKUP($B31&$B34,Database!$F:$I,4,FALSE)),VLOOKUP($B30&$B34,Database!$F:$I,4,FALSE)),\"\")=0,\"\",IFERROR(IFERROR(IFERROR(IFERROR(VLOOKUP($B33&$B34,Database!$F:$I,4,FALSE),VLOOKUP($B32&$B34,Database!$F:$I,4,FALSE)),VLOOKUP($B31&$B34,Database!$F:$I,4,FALSE)),VLOOKUP($B30&$B34,Database!$F:$I,4,FALSE)),\"\"))","v":"Speaking to a large audiance"}]
[null,"Solis-Bioone",5,{"$f":"IF(IFERROR(IFERROR(IFERROR(IFERROR(VLOOKUP($B34&$B35,Database!$F:$I,2,FALSE),VLOOKUP($B33&$B35,Database!$F:$I,2,FALSE)),VLOOKUP($B32&$B35,Database!$F:$I,2,FALSE)),VLOOKUP($B31&$B35,Database!$F:$I,2,FALSE)),\"\")=0,\"\",IFERROR(IFERROR(IFERROR(IFERROR(VLOOKUP($B34&$B35,Database!$F:$I,2,FALSE),VLOOKUP($B33&$B35,Database!$F:$I,2,FALSE)),VLOOKUP($B32&$B35,Database!$F:$I,2,FALSE)),VLOOKUP($B31&$B35,Database!$F:$I,2,FALSE)),\"\"))","v":""},{"$f":"IF(IFERROR(IFERROR(IFERROR(IFERROR(VLOOKUP($B34&$B35,Database!$F:$I,3,FALSE),VLOOKUP($B33&$B35,Database!$F:$I,3,FALSE)),VLOOKUP($B32&$B35,Database!$F:$I,3,FALSE)),VLOOKUP($B31&$B35,Database!$F:$I,3,FALSE)),\"\")=0,\"\",IFERROR(IFERROR(IFERROR(IFERROR(VLOOKUP($B34&$B35,Database!$F:$I,3,FALSE),VLOOKUP($B33&$B35,Database!$F:$I,3,FALSE)),VLOOKUP($B32&$B35,Database!$F:$I,3,FALSE)),VLOOKUP($B31&$B35,Database!$F:$I,3,FALSE)),\"\"))","v":""},{"$f":"IF(IFERROR(IFERROR(IFERROR(IFERROR(VLOOKUP($B34&$B35,Database!$F:$I,4,FALSE),VLOOKUP($B33&$B35,Database!$F:$I,4,FALSE)),VLOOKUP($B32&$B35,Database!$F:$I,4,FALSE)),VLOOKUP($B31&$B35,Database!$F:$I,4,FALSE)),\"\")=0,\"\",IFERROR(IFERROR(IFERROR(IFERROR(VLOOKUP($B34&$B35,Database!$F:$I,4,FALSE),VLOOKUP($B33&$B35,Database!$F:$I,4,FALSE)),VLOOKUP($B32&$B35,Database!$F:$I,4,FALSE)),VLOOKUP($B31&$B35,Database!$F:$I,4,FALSE)),\"\"))","v":""}]
[null,"Change Management",3,{"$f":"IF(IFERROR(IFERROR(IFERROR(IFERROR(VLOOKUP($B35&$B36,Database!$F:$I,2,FALSE),VLOOKUP($B34&$B36,Database!$F:$I,2,FALSE)),VLOOKUP($B33&$B36,Database!$F:$I,2,FALSE)),VLOOKUP($B32&$B36,Database!$F:$I,2,FALSE)),\"\")=0,\"\",IFERROR(IFERROR(IFERROR(IFERROR(VLOOKUP($B35&$B36,Database!$F:$I,2,FALSE),VLOOKUP($B34&$B36,Database!$F:$I,2,FALSE)),VLOOKUP($B33&$B36,Database!$F:$I,2,FALSE)),VLOOKUP($B32&$B36,Database!$F:$I,2,FALSE)),\"\"))","v":"Human relationships"},{"$f":"IF(IFERROR(IFERROR(IFERROR(IFERROR(VLOOKUP($B35&$B36,Database!$F:$I,3,FALSE),VLOOKUP($B34&$B36,Database!$F:$I,3,FALSE)),VLOOKUP($B33&$B36,Database!$F:$I,3,FALSE)),VLOOKUP($B32&$B36,Database!$F:$I,3,FALSE)),\"\")=0,\"\",IFERROR(IFERROR(IFERROR(IFERROR(VLOOKUP($B35&$B36,Database!$F:$I,3,FALSE),VLOOKUP($B34&$B36,Database!$F:$I,3,FALSE)),VLOOKUP($B33&$B36,Database!$F:$I,3,FALSE)),VLOOKUP($B32&$B36,Database!$F:$I,3,FALSE)),\"\"))","v":"Training"},{"$f":"IF(IFERROR(IFERROR(IFERROR(IFERROR(VLOOKUP($B35&$B36,Database!$F:$I,4,FALSE),VLOOKUP($B34&$B36,Database!$F:$I,4,FALSE)),VLOOKUP($B33&$B36,Database!$F:$I,4,FALSE)),VLOOKUP($B32&$B36,Database!$F:$I,4,FALSE)),\"\")=0,\"\",IFERROR(IFERROR(IFERROR(IFERROR(VLOOKUP($B35&$B36,Database!$F:$I,4,FALSE),VLOOKUP($B34&$B36,Database!$F:$I,4,FALSE)),VLOOKUP($B33&$B36,Database!$F:$I,4,FALSE)),VLOOKUP($B32&$B36,Database!$F:$I,4,FALSE)),\"\"))","v":"Project Management"}]
[null,"Implementing CRM",1,{"$f":"IF(IFERROR(IFERROR(IFERROR(IFERROR(VLOOKUP($B36&$B37,Database!$F:$I,2,FALSE),VLOOKUP($B35&$B37,Database!$F:$I,2,FALSE)),VLOOKUP($B34&$B37,Database!$F:$I,2,FALSE)),VLOOKUP($B33&$B37,Database!$F:$I,2,FALSE)),\"\")=0,\"\",IFERROR(IFERROR(IFERROR(IFERROR(VLOOKUP($B36&$B37,Database!$F:$I,2,FALSE),VLOOKUP($B35&$B37,Database!$F:$I,2,FALSE)),VLOOKUP($B34&$B37,Database!$F:$I,2,FALSE)),VLOOKUP($B33&$B37,Database!$F:$I,2,FALSE)),\"\"))","v":"Information System"},{"$f":"IF(IFERROR(IFERROR(IFERROR(IFERROR(VLOOKUP($B36&$B37,Database!$F:$I,3,FALSE),VLOOKUP($B35&$B37,Database!$F:$I,3,FALSE)),VLOOKUP($B34&$B37,Database!$F:$I,3,FALSE)),VLOOKUP($B33&$B37,Database!$F:$I,3,FALSE)),\"\")=0,\"\",IFERROR(IFERROR(IFERROR(IFERROR(VLOOKUP($B36&$B37,Database!$F:$I,3,FALSE),VLOOKUP($B35&$B37,Database!$F:$I,3,FALSE)),VLOOKUP($B34&$B37,Database!$F:$I,3,FALSE)),VLOOKUP($B33&$B37,Database!$F:$I,3,FALSE)),\"\"))","v":"Project Management"},{"$f":"IF(IFERROR(IFERROR(IFERROR(IFERROR(VLOOKUP($B36&$B37,Database!$F:$I,4,FALSE),VLOOKUP($B35&$B37,Database!$F:$I,4,FALSE)),VLOOKUP($B34&$B37,Database!$F:$I,4,FALSE)),VLOOKUP($B33&$B37,Database!$F:$I,4,FALSE)),\"\")=0,\"\",IFERROR(IFERROR(IFERROR(IFERROR(VLOOKUP($B36&$B37,Database!$F:$I,4,FALSE),VLOOKUP($B35&$B37,Database!$F:$I,4,FALSE)),VLOOKUP($B34&$B37,Database!$F:$I,4,FALSE)),VLOOKUP($B33&$B37,Database!$F:$I,4,FALSE)),\"\"))","v":"Web IT languages"}]
[null,"Reporting tool creation",1,{"$f":"IF(IFERROR(IFERROR(IFERROR(IFERROR(VLOOKUP($B37&$B38,Database!$F:$I,2,FALSE),VLOOKUP($B36&$B38,Database!$F:$I,2,FALSE)),VLOOKUP($B35&$B38,Database!$F:$I,2,FALSE)),VLOOKUP($B34&$B38,Database!$F:$I,2,FALSE)),\"\")=0,\"\",IFERROR(IFERROR(IFERROR(IFERROR(VLOOKUP($B37&$B38,Database!$F:$I,2,FALSE),VLOOKUP($B36&$B38,Database!$F:$I,2,FALSE)),VLOOKUP($B35&$B38,Database!$F:$I,2,FALSE)),VLOOKUP($B34&$B38,Database!$F:$I,2,FALSE)),\"\"))","v":"Management Control"},{"$f":"IF(IFERROR(IFERROR(IFERROR(IFERROR(VLOOKUP($B37&$B38,Database!$F:$I,3,FALSE),VLOOKUP($B36&$B38,Database!$F:$I,3,FALSE)),VLOOKUP($B35&$B38,Database!$F:$I,3,FALSE)),VLOOKUP($B34&$B38,Database!$F:$I,3,FALSE)),\"\")=0,\"\",IFERROR(IFERROR(IFERROR(IFERROR(VLOOKUP($B37&$B38,Database!$F:$I,3,FALSE),VLOOKUP($B36&$B38,Database!$F:$I,3,FALSE)),VLOOKUP($B35&$B38,Database!$F:$I,3,FALSE)),VLOOKUP($B34&$B38,Database!$F:$I,3,FALSE)),\"\"))","v":"CMS"},{"$f":"IF(IFERROR(IFERROR(IFERROR(IFERROR(VLOOKUP($B37&$B38,Database!$F:$I,4,FALSE),VLOOKUP($B36&$B38,Database!$F:$I,4,FALSE)),VLOOKUP($B35&$B38,Database!$F:$I,4,FALSE)),VLOOKUP($B34&$B38,Database!$F:$I,4,FALSE)),\"\")=0,\"\",IFERROR(IFERROR(IFERROR(IFERROR(VLOOKUP($B37&$B38,Database!$F:$I,4,FALSE),VLOOKUP($B36&$B38,Database!$F:$I,4,FALSE)),VLOOKUP($B35&$B38,Database!$F:$I,4,FALSE)),VLOOKUP($B34&$B38,Database!$F:$I,4,FALSE)),\"\"))","v":"Project Management"}]
[null,"ICN Business School",28,{"$f":"IF(IFERROR(IFERROR(IFERROR(IFERROR(VLOOKUP($B38&$B39,Database!$F:$I,2,FALSE),VLOOKUP($B37&$B39,Database!$F:$I,2,FALSE)),VLOOKUP($B36&$B39,Database!$F:$I,2,FALSE)),VLOOKUP($B35&$B39,Database!$F:$I,2,FALSE)),\"\")=0,\"\",IFERROR(IFERROR(IFERROR(IFERROR(VLOOKUP($B38&$B39,Database!$F:$I,2,FALSE),VLOOKUP($B37&$B39,Database!$F:$I,2,FALSE)),VLOOKUP($B36&$B39,Database!$F:$I,2,FALSE)),VLOOKUP($B35&$B39,Database!$F:$I,2,FALSE)),\"\"))","v":""},{"$f":"IF(IFERROR(IFERROR(IFERROR(IFERROR(VLOOKUP($B38&$B39,Database!$F:$I,3,FALSE),VLOOKUP($B37&$B39,Database!$F:$I,3,FALSE)),VLOOKUP($B36&$B39,Database!$F:$I,3,FALSE)),VLOOKUP($B35&$B39,Database!$F:$I,3,FALSE)),\"\")=0,\"\",IFERROR(IFERROR(IFERROR(IFERROR(VLOOKUP($B38&$B39,Database!$F:$I,3,FALSE),VLOOKUP($B37&$B39,Database!$F:$I,3,FALSE)),VLOOKUP($B36&$B39,Database!$F:$I,3,FALSE)),VLOOKUP($B35&$B39,Database!$F:$I,3,FALSE)),\"\"))","v":""},{"$f":"IF(IFERROR(IFERROR(IFERROR(IFERROR(VLOOKUP($B38&$B39,Database!$F:$I,4,FALSE),VLOOKUP($B37&$B39,Database!$F:$I,4,FALSE)),VLOOKUP($B36&$B39,Database!$F:$I,4,FALSE)),VLOOKUP($B35&$B39,Database!$F:$I,4,FALSE)),\"\")=0,\"\",IFERROR(IFERROR(IFERROR(IFERROR(VLOOKUP($B38&$B39,Database!$F:$I,4,FALSE),VLOOKUP($B37&$B39,Database!$F:$I,4,FALSE)),VLOOKUP($B36&$B39,Database!$F:$I,4,FALSE)),VLOOKUP($B35&$B39,Database!$F:$I,4,FALSE)),\"\"))","v":""}]
[null,"General management courses",12,{"$f":"IF(IFERROR(IFERROR(IFERROR(IFERROR(VLOOKUP($B39&$B40,Database!$F:$I,2,FALSE),VLOOKUP($B38&$B40,Database!$F:$I,2,FALSE)),VLOOKUP($B37&$B40,Database!$F:$I,2,FALSE)),VLOOKUP($B36&$B40,Database!$F:$I,2,FALSE)),\"\")=0,\"\",IFERROR(IFERROR(IFERROR(IFERROR(VLOOKUP($B39&$B40,Database!$F:$I,2,FALSE),VLOOKUP($B38&$B40,Database!$F:$I,2,FALSE)),VLOOKUP($B37&$B40,Database!$F:$I,2,FALSE)),VLOOKUP($B36&$B40,Database!$F:$I,2,FALSE)),\"\"))","v":"Management"},{"$f":"IF(IFERROR(IFERROR(IFERROR(IFERROR(VLOOKUP($B39&$B40,Database!$F:$I,3,FALSE),VLOOKUP($B38&$B40,Database!$F:$I,3,FALSE)),VLOOKUP($B37&$B40,Database!$F:$I,3,FALSE)),VLOOKUP($B36&$B40,Database!$F:$I,3,FALSE)),\"\")=0,\"\",IFERROR(IFERROR(IFERROR(IFERROR(VLOOKUP($B39&$B40,Database!$F:$I,3,FALSE),VLOOKUP($B38&$B40,Database!$F:$I,3,FALSE)),VLOOKUP($B37&$B40,Database!$F:$I,3,FALSE)),VLOOKUP($B36&$B40,Database!$F:$I,3,FALSE)),\"\"))","v":"Accounting"},{"$f":"IF(IFERROR(IFERROR(IFERROR(IFERROR(VLOOKUP($B39&$B40,Database!$F:$I,4,FALSE),VLOOKUP($B38&$B40,Database!$F:$I,4,FALSE)),VLOOKUP($B37&$B40,Database!$F:$I,4,FALSE)),VLOOKUP($B36&$B40,Database!$F:$I,4,FALSE)),\"\")=0,\"\",IFERROR(IFERROR(IFERROR(IFERROR(VLOOKUP($B39&$B40,Database!$F:$I,4,FALSE),VLOOKUP($B38&$B40,Database!$F:$I,4,FALSE)),VLOOKUP($B37&$B40,Database!$F:$I,4,FALSE)),VLOOKUP($B36&$B40,Database!$F:$I,4,FALSE)),\"\"))","v":"Management Control"}]
[null,"Specialization Finance/Management Control",16,{"$f":"IF(IFERROR(IFERROR(IFERROR(IFERROR(VLOOKUP($B40&$B41,Database!$F:$I,2,FALSE),VLOOKUP($B39&$B41,Database!$F:$I,2,FALSE)),VLOOKUP($B38&$B41,Database!$F:$I,2,FALSE)),VLOOKUP($B37&$B41,Database!$F:$I,2,FALSE)),\"\")=0,\"\",IFERROR(IFERROR(IFERROR(IFERROR(VLOOKUP($B40&$B41,Database!$F:$I,2,FALSE),VLOOKUP($B39&$B41,Database!$F:$I,2,FALSE)),VLOOKUP($B38&$B41,Database!$F:$I,2,FALSE)),VLOOKUP($B37&$B41,Database!$F:$I,2,FALSE)),\"\"))","v":"Management Control"},{"$f":"IF(IFERROR(IFERROR(IFERROR(IFERROR(VLOOKUP($B40&$B41,Database!$F:$I,3,FALSE),VLOOKUP($B39&$B41,Database!$F:$I,3,FALSE)),VLOOKUP($B38&$B41,Database!$F:$I,3,FALSE)),VLOOKUP($B37&$B41,Database!$F:$I,3,FALSE)),\"\")=0,\"\",IFERROR(IFERROR(IFERROR(IFERROR(VLOOKUP($B40&$B41,Database!$F:$I,3,FALSE),VLOOKUP($B39&$B41,Database!$F:$I,3,FALSE)),VLOOKUP($B38&$B41,Database!$F:$I,3,FALSE)),VLOOKUP($B37&$B41,Database!$F:$I,3,FALSE)),\"\"))","v":"Accounting"},{"$f":"IF(IFERROR(IFERROR(IFERROR(IFERROR(VLOOKUP($B40&$B41,Database!$F:$I,4,FALSE),VLOOKUP($B39&$B41,Database!$F:$I,4,FALSE)),VLOOKUP($B38&$B41,Database!$F:$I,4,FALSE)),VLOOKUP($B37&$B41,Database!$F:$I,4,FALSE)),\"\")=0,\"\",IFERROR(IFERROR(IFERROR(IFERROR(VLOOKUP($B40&$B41,Database!$F:$I,4,FALSE),VLOOKUP($B39&$B41,Database!$F:$I,4,FALSE)),VLOOKUP($B38&$B41,Database!$F:$I,4,FALSE)),VLOOKUP($B37&$B41,Database!$F:$I,4,FALSE)),\"\"))","v":"Management"}]
[null,"Classes préparatoires ECE",24,{"$f":"IF(IFERROR(IFERROR(IFERROR(IFERROR(VLOOKUP($B41&$B42,Database!$F:$I,2,FALSE),VLOOKUP($B40&$B42,Database!$F:$I,2,FALSE)),VLOOKUP($B39&$B42,Database!$F:$I,2,FALSE)),VLOOKUP($B38&$B42,Database!$F:$I,2,FALSE)),\"\")=0,\"\",IFERROR(IFERROR(IFERROR(IFERROR(VLOOKUP($B41&$B42,Database!$F:$I,2,FALSE),VLOOKUP($B40&$B42,Database!$F:$I,2,FALSE)),VLOOKUP($B39&$B42,Database!$F:$I,2,FALSE)),VLOOKUP($B38&$B42,Database!$F:$I,2,FALSE)),\"\"))","v":""},{"$f":"IF(IFERROR(IFERROR(IFERROR(IFERROR(VLOOKUP($B41&$B42,Database!$F:$I,3,FALSE),VLOOKUP($B40&$B42,Database!$F:$I,3,FALSE)),VLOOKUP($B39&$B42,Database!$F:$I,3,FALSE)),VLOOKUP($B38&$B42,Database!$F:$I,3,FALSE)),\"\")=0,\"\",IFERROR(IFERROR(IFERROR(IFERROR(VLOOKUP($B41&$B42,Database!$F:$I,3,FALSE),VLOOKUP($B40&$B42,Database!$F:$I,3,FALSE)),VLOOKUP($B39&$B42,Database!$F:$I,3,FALSE)),VLOOKUP($B38&$B42,Database!$F:$I,3,FALSE)),\"\"))","v":""},{"$f":"IF(IFERROR(IFERROR(IFERROR(IFERROR(VLOOKUP($B41&$B42,Database!$F:$I,4,FALSE),VLOOKUP($B40&$B42,Database!$F:$I,4,FALSE)),VLOOKUP($B39&$B42,Database!$F:$I,4,FALSE)),VLOOKUP($B38&$B42,Database!$F:$I,4,FALSE)),\"\")=0,\"\",IFERROR(IFERROR(IFERROR(IFERROR(VLOOKUP($B41&$B42,Database!$F:$I,4,FALSE),VLOOKUP($B40&$B42,Database!$F:$I,4,FALSE)),VLOOKUP($B39&$B42,Database!$F:$I,4,FALSE)),VLOOKUP($B38&$B42,Database!$F:$I,4,FALSE)),\"\"))","v":""}]
[null,"General courses",24,{"$f":"IF(IFERROR(IFERROR(IFERROR(IFERROR(VLOOKUP($B42&$B43,Database!$F:$I,2,FALSE),VLOOKUP($B41&$B43,Database!$F:$I,2,FALSE)),VLOOKUP($B40&$B43,Database!$F:$I,2,FALSE)),VLOOKUP($B39&$B43,Database!$F:$I,2,FALSE)),\"\")=0,\"\",IFERROR(IFERROR(IFERROR(IFERROR(VLOOKUP($B42&$B43,Database!$F:$I,2,FALSE),VLOOKUP($B41&$B43,Database!$F:$I,2,FALSE)),VLOOKUP($B40&$B43,Database!$F:$I,2,FALSE)),VLOOKUP($B39&$B43,Database!$F:$I,2,FALSE)),\"\"))","v":"Maths"},{"$f":"IF(IFERROR(IFERROR(IFERROR(IFERROR(VLOOKUP($B42&$B43,Database!$F:$I,3,FALSE),VLOOKUP($B41&$B43,Database!$F:$I,3,FALSE)),VLOOKUP($B40&$B43,Database!$F:$I,3,FALSE)),VLOOKUP($B39&$B43,Database!$F:$I,3,FALSE)),\"\")=0,\"\",IFERROR(IFERROR(IFERROR(IFERROR(VLOOKUP($B42&$B43,Database!$F:$I,3,FALSE),VLOOKUP($B41&$B43,Database!$F:$I,3,FALSE)),VLOOKUP($B40&$B43,Database!$F:$I,3,FALSE)),VLOOKUP($B39&$B43,Database!$F:$I,3,FALSE)),\"\"))","v":"Economic sciences"},{"$f":"IF(IFERROR(IFERROR(IFERROR(IFERROR(VLOOKUP($B42&$B43,Database!$F:$I,4,FALSE),VLOOKUP($B41&$B43,Database!$F:$I,4,FALSE)),VLOOKUP($B40&$B43,Database!$F:$I,4,FALSE)),VLOOKUP($B39&$B43,Database!$F:$I,4,FALSE)),\"\")=0,\"\",IFERROR(IFERROR(IFERROR(IFERROR(VLOOKUP($B42&$B43,Database!$F:$I,4,FALSE),VLOOKUP($B41&$B43,Database!$F:$I,4,FALSE)),VLOOKUP($B40&$B43,Database!$F:$I,4,FALSE)),VLOOKUP($B39&$B43,Database!$F:$I,4,FALSE)),\"\"))","v":"Languages"}]
[null,"Improdisiaque",36,{"$f":"IF(IFERROR(IFERROR(IFERROR(IFERROR(VLOOKUP($B43&$B44,Database!$F:$I,2,FALSE),VLOOKUP($B42&$B44,Database!$F:$I,2,FALSE)),VLOOKUP($B41&$B44,Database!$F:$I,2,FALSE)),VLOOKUP($B40&$B44,Database!$F:$I,2,FALSE)),\"\")=0,\"\",IFERROR(IFERROR(IFERROR(IFERROR(VLOOKUP($B43&$B44,Database!$F:$I,2,FALSE),VLOOKUP($B42&$B44,Database!$F:$I,2,FALSE)),VLOOKUP($B41&$B44,Database!$F:$I,2,FALSE)),VLOOKUP($B40&$B44,Database!$F:$I,2,FALSE)),\"\"))","v":""},{"$f":"IF(IFERROR(IFERROR(IFERROR(IFERROR(VLOOKUP($B43&$B44,Database!$F:$I,3,FALSE),VLOOKUP($B42&$B44,Database!$F:$I,3,FALSE)),VLOOKUP($B41&$B44,Database!$F:$I,3,FALSE)),VLOOKUP($B40&$B44,Database!$F:$I,3,FALSE)),\"\")=0,\"\",IFERROR(IFERROR(IFERROR(IFERROR(VLOOKUP($B43&$B44,Database!$F:$I,3,FALSE),VLOOKUP($B42&$B44,Database!$F:$I,3,FALSE)),VLOOKUP($B41&$B44,Database!$F:$I,3,FALSE)),VLOOKUP($B40&$B44,Database!$F:$I,3,FALSE)),\"\"))","v":""},{"$f":"IF(IFERROR(IFERROR(IFERROR(IFERROR(VLOOKUP($B43&$B44,Database!$F:$I,4,FALSE),VLOOKUP($B42&$B44,Database!$F:$I,4,FALSE)),VLOOKUP($B41&$B44,Database!$F:$I,4,FALSE)),VLOOKUP($B40&$B44,Database!$F:$I,4,FALSE)),\"\")=0,\"\",IFERROR(IFERROR(IFERROR(IFERROR(VLOOKUP($B43&$B44,Database!$F:$I,4,FALSE),VLOOKUP($B42&$B44,Database!$F:$I,4,FALSE)),VLOOKUP($B41&$B44,Database!$F:$I,4,FALSE)),VLOOKUP($B40&$B44,Database!$F:$I,4,FALSE)),\"\"))","v":""}]
[null,"Player",36,{"$f":"IF(IFERROR(IFERROR(IFERROR(IFERROR(VLOOKUP($B44&$B45,Database!$F:$I,2,FALSE),VLOOKUP($B43&$B45,Database!$F:$I,2,FALSE)),VLOOKUP($B42&$B45,Database!$F:$I,2,FALSE)),VLOOKUP($B41&$B45,Database!$F:$I,2,FALSE)),\"\")=0,\"\",IFERROR(IFERROR(IFERROR(IFERROR(VLOOKUP($B44&$B45,Database!$F:$I,2,FALSE),VLOOKUP($B43&$B45,Database!$F:$I,2,FALSE)),VLOOKUP($B42&$B45,Database!$F:$I,2,FALSE)),VLOOKUP($B41&$B45,Database!$F:$I,2,FALSE)),\"\"))","v":"Speaking to a large audiance"},{"$f":"IF(IFERROR(IFERROR(IFERROR(IFERROR(VLOOKUP($B44&$B45,Database!$F:$I,3,FALSE),VLOOKUP($B43&$B45,Database!$F:$I,3,FALSE)),VLOOKUP($B42&$B45,Database!$F:$I,3,FALSE)),VLOOKUP($B41&$B45,Database!$F:$I,3,FALSE)),\"\")=0,\"\",IFERROR(IFERROR(IFERROR(IFERROR(VLOOKUP($B44&$B45,Database!$F:$I,3,FALSE),VLOOKUP($B43&$B45,Database!$F:$I,3,FALSE)),VLOOKUP($B42&$B45,Database!$F:$I,3,FALSE)),VLOOKUP($B41&$B45,Database!$F:$I,3,FALSE)),\"\"))","v":"Management"},{"$f":"IF(IFERROR(IFERROR(IFERROR(IFERROR(VLOOKUP($B44&$B45,Database!$F:$I,4,FALSE),VLOOKUP($B43&$B45,Database!$F:$I,4,FALSE)),VLOOKUP($B42&$B45,Database!$F:$I,4,FALSE)),VLOOKUP($B41&$B45,Database!$F:$I,4,FALSE)),\"\")=0,\"\",IFERROR(IFERROR(IFERROR(IFERROR(VLOOKUP($B44&$B45,Database!$F:$I,4,FALSE),VLOOKUP($B43&$B45,Database!$F:$I,4,FALSE)),VLOOKUP($B42&$B45,Database!$F:$I,4,FALSE)),VLOOKUP($B41&$B45,Database!$F:$I,4,FALSE)),\"\"))","v":"Communication"}]
[null,"Walliks",18,{"$f":"IF(IFERROR(IFERROR(IFERROR(IFERROR(VLOOKUP($B45&$B46,Database!$F:$I,2,FALSE),VLOOKUP($B44&$B46,Database!$F:$I,2,FALSE)),VLOOKUP($B43&$B46,Database!$F:$I,2,FALSE)),VLOOKUP($B42&$B46,Database!$F:$I,2,FALSE)),\"\")=0,\"\",IFERROR(IFERROR(IFERROR(IFERROR(VLOOKUP($B45&$B46,Database!$F:$I,2,FALSE),VLOOKUP($B44&$B46,Database!$F:$I,2,FALSE)),VLOOKUP($B43&$B46,Database!$F:$I,2,FALSE)),VLOOKUP($B42&$B46,Database!$F:$I,2,FALSE)),\"\"))","v":""},{"$f":"IF(IFERROR(IFERROR(IFERROR(IFERROR(VLOOKUP($B45&$B46,Database!$F:$I,3,FALSE),VLOOKUP($B44&$B46,Database!$F:$I,3,FALSE)),VLOOKUP($B43&$B46,Database!$F:$I,3,FALSE)),VLOOKUP($B42&$B46,Database!$F:$I,3,FALSE)),\"\")=0,\"\",IFERROR(IFERROR(IFERROR(IFERROR(VLOOKUP($B45&$B46,Database!$F:$I,3,FALSE),VLOOKUP($B44&$B46,Database!$F:$I,3,FALSE)),VLOOKUP($B43&$B46,Database!$F:$I,3,FALSE)),VLOOKUP($B42&$B46,Database!$F:$I,3,FALSE)),\"\"))","v":""},{"$f":"IF(IFERROR(IFERROR(IFERROR(IFERROR(VLOOKUP($B45&$B46,Database!$F:$I,4,FALSE),VLOOKUP($B44&$B46,Database!$F:$I,4,FALSE)),VLOOKUP($B43&$B46,Database!$F:$I,4,FALSE)),VLOOKUP($B42&$B46,Database!$F:$I,4,FALSE)),\"\")=0,\"\",IFERROR(IFERROR(IFERROR(IFERROR(VLOOKUP($B45&$B46,Database!$F:$I,4,FALSE),VLOOKUP($B44&$B46,Database!$F:$I,4,FALSE)),VLOOKUP($B43&$B46,Database!$F:$I,4,FALSE)),VLOOKUP($B42&$B46,Database!$F:$I,4,FALSE)),\"\"))","v":""}]
[null,"Administrative creation",1,{"$f":"IF(IFERROR(IFERROR(IFERROR(IFERROR(VLOOKUP($B46&$B47,Database!$F:$I,2,FALSE),VLOOKUP($B45&$B47,Database!$F:$I,2,FALSE)),VLOOKUP($B44&$B47,Database!$F:$I,2,FALSE)),VLOOKUP($B43&$B47,Database!$F:$I,2,FALSE)),\"\")=0,\"\",IFERROR(IFERROR(IFERROR(IFERROR(VLOOKUP($B46&$B47,Database!$F:$I,2,FALSE),VLOOKUP($B45&$B47,Database!$F:$I,2,FALSE)),VLOOKUP($B44&$B47,Database!$F:$I,2,FALSE)),VLOOKUP($B43&$B47,Database!$F:$I,2,FALSE)),\"\"))","v":"Human relationships"},{"$f":"IF(IFERROR(IFERROR(IFERROR(IFERROR(VLOOKUP($B46&$B47,Database!$F:$I,3,FALSE),VLOOKUP($B45&$B47,Database!$F:$I,3,FALSE)),VLOOKUP($B44&$B47,Database!$F:$I,3,FALSE)),VLOOKUP($B43&$B47,Database!$F:$I,3,FALSE)),\"\")=0,\"\",IFERROR(IFERROR(IFERROR(IFERROR(VLOOKUP($B46&$B47,Database!$F:$I,3,FALSE),VLOOKUP($B45&$B47,Database!$F:$I,3,FALSE)),VLOOKUP($B44&$B47,Database!$F:$I,3,FALSE)),VLOOKUP($B43&$B47,Database!$F:$I,3,FALSE)),\"\"))","v":"Management"},{"$f":"IF(IFERROR(IFERROR(IFERROR(IFERROR(VLOOKUP($B46&$B47,Database!$F:$I,4,FALSE),VLOOKUP($B45&$B47,Database!$F:$I,4,FALSE)),VLOOKUP($B44&$B47,Database!$F:$I,4,FALSE)),VLOOKUP($B43&$B47,Database!$F:$I,4,FALSE)),\"\")=0,\"\",IFERROR(IFERROR(IFERROR(IFERROR(VLOOKUP($B46&$B47,Database!$F:$I,4,FALSE),VLOOKUP($B45&$B47,Database!$F:$I,4,FALSE)),VLOOKUP($B44&$B47,Database!$F:$I,4,FALSE)),VLOOKUP($B43&$B47,Database!$F:$I,4,FALSE)),\"\"))","v":""}]
[null,"Business Model creation",2,{"$f":"IF(IFERROR(IFERROR(IFERROR(IFERROR(VLOOKUP($B47&$B48,Database!$F:$I,2,FALSE),VLOOKUP($B46&$B48,Database!$F:$I,2,FALSE)),VLOOKUP($B45&$B48,Database!$F:$I,2,FALSE)),VLOOKUP($B44&$B48,Database!$F:$I,2,FALSE)),\"\")=0,\"\",IFERROR(IFERROR(IFERROR(IFERROR(VLOOKUP($B47&$B48,Database!$F:$I,2,FALSE),VLOOKUP($B46&$B48,Database!$F:$I,2,FALSE)),VLOOKUP($B45&$B48,Database!$F:$I,2,FALSE)),VLOOKUP($B44&$B48,Database!$F:$I,2,FALSE)),\"\"))","v":"Management"},{"$f":"IF(IFERROR(IFERROR(IFERROR(IFERROR(VLOOKUP($B47&$B48,Database!$F:$I,3,FALSE),VLOOKUP($B46&$B48,Database!$F:$I,3,FALSE)),VLOOKUP($B45&$B48,Database!$F:$I,3,FALSE)),VLOOKUP($B44&$B48,Database!$F:$I,3,FALSE)),\"\")=0,\"\",IFERROR(IFERROR(IFERROR(IFERROR(VLOOKUP($B47&$B48,Database!$F:$I,3,FALSE),VLOOKUP($B46&$B48,Database!$F:$I,3,FALSE)),VLOOKUP($B45&$B48,Database!$F:$I,3,FALSE)),VLOOKUP($B44&$B48,Database!$F:$I,3,FALSE)),\"\"))","v":"Human relationships"},{"$f":"IF(IFERROR(IFERROR(IFERROR(IFERROR(VLOOKUP($B47&$B48,Database!$F:$I,4,FALSE),VLOOKUP($B46&$B48,Database!$F:$I,4,FALSE)),VLOOKUP($B45&$B48,Database!$F:$I,4,FALSE)),VLOOKUP($B44&$B48,Database!$F:$I,4,FALSE)),\"\")=0,\"\",IFERROR(IFERROR(IFERROR(IFERROR(VLOOKUP($B47&$B48,Database!$F:$I,4,FALSE),VLOOKUP($B46&$B48,Database!$F:$I,4,FALSE)),VLOOKUP($B45&$B48,Database!$F:$I,4,FALSE)),VLOOKUP($B44&$B48,Database!$F:$I,4,FALSE)),\"\"))","v":""}]
[null,"Creating the web plateform",6,{"$f":"IF(IFERROR(IFERROR(IFERROR(IFERROR(VLOOKUP($B48&$B49,Database!$F:$I,2,FALSE),VLOOKUP($B47&$B49,Database!$F:$I,2,FALSE)),VLOOKUP($B46&$B49,Database!$F:$I,2,FALSE)),VLOOKUP($B45&$B49,Database!$F:$I,2,FALSE)),\"\")=0,\"\",IFERROR(IFERROR(IFERROR(IFERROR(VLOOKUP($B48&$B49,Database!$F:$I,2,FALSE),VLOOKUP($B47&$B49,Database!$F:$I,2,FALSE)),VLOOKUP($B46&$B49,Database!$F:$I,2,FALSE)),VLOOKUP($B45&$B49,Database!$F:$I,2,FALSE)),\"\"))","v":"Web IT languages"},{"$f":"IF(IFERROR(IFERROR(IFERROR(IFERROR(VLOOKUP($B48&$B49,Database!$F:$I,3,FALSE),VLOOKUP($B47&$B49,Database!$F:$I,3,FALSE)),VLOOKUP($B46&$B49,Database!$F:$I,3,FALSE)),VLOOKUP($B45&$B49,Database!$F:$I,3,FALSE)),\"\")=0,\"\",IFERROR(IFERROR(IFERROR(IFERROR(VLOOKUP($B48&$B49,Database!$F:$I,3,FALSE),VLOOKUP($B47&$B49,Database!$F:$I,3,FALSE)),VLOOKUP($B46&$B49,Database!$F:$I,3,FALSE)),VLOOKUP($B45&$B49,Database!$F:$I,3,FALSE)),\"\"))","v":"Project Management"},{"$f":"IF(IFERROR(IFERROR(IFERROR(IFERROR(VLOOKUP($B48&$B49,Database!$F:$I,4,FALSE),VLOOKUP($B47&$B49,Database!$F:$I,4,FALSE)),VLOOKUP($B46&$B49,Database!$F:$I,4,FALSE)),VLOOKUP($B45&$B49,Database!$F:$I,4,FALSE)),\"\")=0,\"\",IFERROR(IFERROR(IFERROR(IFERROR(VLOOKUP($B48&$B49,Database!$F:$I,4,FALSE),VLOOKUP($B47&$B49,Database!$F:$I,4,FALSE)),VLOOKUP($B46&$B49,Database!$F:$I,4,FALSE)),VLOOKUP($B45&$B49,Database!$F:$I,4,FALSE)),\"\"))","v":""}]
[null,"Running business",9,{"$f":"IF(IFERROR(IFERROR(IFERROR(IFERROR(VLOOKUP($B49&$B50,Database!$F:$I,2,FALSE),VLOOKUP($B48&$B50,Database!$F:$I,2,FALSE)),VLOOKUP($B47&$B50,Database!$F:$I,2,FALSE)),VLOOKUP($B46&$B50,Database!$F:$I,2,FALSE)),\"\")=0,\"\",IFERROR(IFERROR(IFERROR(IFERROR(VLOOKUP($B49&$B50,Database!$F:$I,2,FALSE),VLOOKUP($B48&$B50,Database!$F:$I,2,FALSE)),VLOOKUP($B47&$B50,Database!$F:$I,2,FALSE)),VLOOKUP($B46&$B50,Database!$F:$I,2,FALSE)),\"\"))","v":"Management"},{"$f":"IF(IFERROR(IFERROR(IFERROR(IFERROR(VLOOKUP($B49&$B50,Database!$F:$I,3,FALSE),VLOOKUP($B48&$B50,Database!$F:$I,3,FALSE)),VLOOKUP($B47&$B50,Database!$F:$I,3,FALSE)),VLOOKUP($B46&$B50,Database!$F:$I,3,FALSE)),\"\")=0,\"\",IFERROR(IFERROR(IFERROR(IFERROR(VLOOKUP($B49&$B50,Database!$F:$I,3,FALSE),VLOOKUP($B48&$B50,Database!$F:$I,3,FALSE)),VLOOKUP($B47&$B50,Database!$F:$I,3,FALSE)),VLOOKUP($B46&$B50,Database!$F:$I,3,FALSE)),\"\"))","v":"Web marketing"},{"$f":"IF(IFERROR(IFERROR(IFERROR(IFERROR(VLOOKUP($B49&$B50,Database!$F:$I,4,FALSE),VLOOKUP($B48&$B50,Database!$F:$I,4,FALSE)),VLOOKUP($B47&$B50,Database!$F:$I,4,FALSE)),VLOOKUP($B46&$B50,Database!$F:$I,4,FALSE)),\"\")=0,\"\",IFERROR(IFERROR(IFERROR(IFERROR(VLOOKUP($B49&$B50,Database!$F:$I,4,FALSE),VLOOKUP($B48&$B50,Database!$F:$I,4,FALSE)),VLOOKUP($B47&$B50,Database!$F:$I,4,FALSE)),VLOOKUP($B46&$B50,Database!$F:$I,4,FALSE)),\"\"))","v":"Management Control"}]
[null,"CHRU Nancy",6,{"$f":"IF(IFERROR(IFERROR(IFERROR(IFERROR(VLOOKUP($B50&$B51,Database!$F:$I,2,FALSE),VLOOKUP($B49&$B51,Database!$F:$I,2,FALSE)),VLOOKUP($B48&$B51,Database!$F:$I,2,FALSE)),VLOOKUP($B47&$B51,Database!$F:$I,2,FALSE)),\"\")=0,\"\",IFERROR(IFERROR(IFERROR(IFERROR(VLOOKUP($B50&$B51,Database!$F:$I,2,FALSE),VLOOKUP($B49&$B51,Database!$F:$I,2,FALSE)),VLOOKUP($B48&$B51,Database!$F:$I,2,FALSE)),VLOOKUP($B47&$B51,Database!$F:$I,2,FALSE)),\"\"))","v":""},{"$f":"IF(IFERROR(IFERROR(IFERROR(IFERROR(VLOOKUP($B50&$B51,Database!$F:$I,3,FALSE),VLOOKUP($B49&$B51,Database!$F:$I,3,FALSE)),VLOOKUP($B48&$B51,Database!$F:$I,3,FALSE)),VLOOKUP($B47&$B51,Database!$F:$I,3,FALSE)),\"\")=0,\"\",IFERROR(IFERROR(IFERROR(IFERROR(VLOOKUP($B50&$B51,Database!$F:$I,3,FALSE),VLOOKUP($B49&$B51,Database!$F:$I,3,FALSE)),VLOOKUP($B48&$B51,Database!$F:$I,3,FALSE)),VLOOKUP($B47&$B51,Database!$F:$I,3,FALSE)),\"\"))","v":""},{"$f":"IF(IFERROR(IFERROR(IFERROR(IFERROR(VLOOKUP($B50&$B51,Database!$F:$I,4,FALSE),VLOOKUP($B49&$B51,Database!$F:$I,4,FALSE)),VLOOKUP($B48&$B51,Database!$F:$I,4,FALSE)),VLOOKUP($B47&$B51,Database!$F:$I,4,FALSE)),\"\")=0,\"\",IFERROR(IFERROR(IFERROR(IFERROR(VLOOKUP($B50&$B51,Database!$F:$I,4,FALSE),VLOOKUP($B49&$B51,Database!$F:$I,4,FALSE)),VLOOKUP($B48&$B51,Database!$F:$I,4,FALSE)),VLOOKUP($B47&$B51,Database!$F:$I,4,FALSE)),\"\"))","v":""}]
[null,"Audit of needs for a new BI solution",2,{"$f":"IF(IFERROR(IFERROR(IFERROR(IFERROR(VLOOKUP($B51&$B52,Database!$F:$I,2,FALSE),VLOOKUP($B50&$B52,Database!$F:$I,2,FALSE)),VLOOKUP($B49&$B52,Database!$F:$I,2,FALSE)),VLOOKUP($B48&$B52,Database!$F:$I,2,FALSE)),\"\")=0,\"\",IFERROR(IFERROR(IFERROR(IFERROR(VLOOKUP($B51&$B52,Database!$F:$I,2,FALSE),VLOOKUP($B50&$B52,Database!$F:$I,2,FALSE)),VLOOKUP($B49&$B52,Database!$F:$I,2,FALSE)),VLOOKUP($B48&$B52,Database!$F:$I,2,FALSE)),\"\"))","v":"Information System"},{"$f":"IF(IFERROR(IFERROR(IFERROR(IFERROR(VLOOKUP($B51&$B52,Database!$F:$I,3,FALSE),VLOOKUP($B50&$B52,Database!$F:$I,3,FALSE)),VLOOKUP($B49&$B52,Database!$F:$I,3,FALSE)),VLOOKUP($B48&$B52,Database!$F:$I,3,FALSE)),\"\")=0,\"\",IFERROR(IFERROR(IFERROR(IFERROR(VLOOKUP($B51&$B52,Database!$F:$I,3,FALSE),VLOOKUP($B50&$B52,Database!$F:$I,3,FALSE)),VLOOKUP($B49&$B52,Database!$F:$I,3,FALSE)),VLOOKUP($B48&$B52,Database!$F:$I,3,FALSE)),\"\"))","v":"Human relationships"},{"$f":"IF(IFERROR(IFERROR(IFERROR(IFERROR(VLOOKUP($B51&$B52,Database!$F:$I,4,FALSE),VLOOKUP($B50&$B52,Database!$F:$I,4,FALSE)),VLOOKUP($B49&$B52,Database!$F:$I,4,FALSE)),VLOOKUP($B48&$B52,Database!$F:$I,4,FALSE)),\"\")=0,\"\",IFERROR(IFERROR(IFERROR(IFERROR(VLOOKUP($B51&$B52,Database!$F:$I,4,FALSE),VLOOKUP($B50&$B52,Database!$F:$I,4,FALSE)),VLOOKUP($B49&$B52,Database!$F:$I,4,FALSE)),VLOOKUP($B48&$B52,Database!$F:$I,4,FALSE)),\"\"))","v":"Management Control"}]
[null,"Reporting tool creation",1.5,{"$f":"IF(IFERROR(IFERROR(IFERROR(IFERROR(VLOOKUP($B52&$B53,Database!$F:$I,2,FALSE),VLOOKUP($B51&$B53,Database!$F:$I,2,FALSE)),VLOOKUP($B50&$B53,Database!$F:$I,2,FALSE)),VLOOKUP($B49&$B53,Database!$F:$I,2,FALSE)),\"\")=0,\"\",IFERROR(IFERROR(IFERROR(IFERROR(VLOOKUP($B52&$B53,Database!$F:$I,2,FALSE),VLOOKUP($B51&$B53,Database!$F:$I,2,FALSE)),VLOOKUP($B50&$B53,Database!$F:$I,2,FALSE)),VLOOKUP($B49&$B53,Database!$F:$I,2,FALSE)),\"\"))","v":"Management Control"},{"$f":"IF(IFERROR(IFERROR(IFERROR(IFERROR(VLOOKUP($B52&$B53,Database!$F:$I,3,FALSE),VLOOKUP($B51&$B53,Database!$F:$I,3,FALSE)),VLOOKUP($B50&$B53,Database!$F:$I,3,FALSE)),VLOOKUP($B49&$B53,Database!$F:$I,3,FALSE)),\"\")=0,\"\",IFERROR(IFERROR(IFERROR(IFERROR(VLOOKUP($B52&$B53,Database!$F:$I,3,FALSE),VLOOKUP($B51&$B53,Database!$F:$I,3,FALSE)),VLOOKUP($B50&$B53,Database!$F:$I,3,FALSE)),VLOOKUP($B49&$B53,Database!$F:$I,3,FALSE)),\"\"))","v":"Web IT languages"},{"$f":"IF(IFERROR(IFERROR(IFERROR(IFERROR(VLOOKUP($B52&$B53,Database!$F:$I,4,FALSE),VLOOKUP($B51&$B53,Database!$F:$I,4,FALSE)),VLOOKUP($B50&$B53,Database!$F:$I,4,FALSE)),VLOOKUP($B49&$B53,Database!$F:$I,4,FALSE)),\"\")=0,\"\",IFERROR(IFERROR(IFERROR(IFERROR(VLOOKUP($B52&$B53,Database!$F:$I,4,FALSE),VLOOKUP($B51&$B53,Database!$F:$I,4,FALSE)),VLOOKUP($B50&$B53,Database!$F:$I,4,FALSE)),VLOOKUP($B49&$B53,Database!$F:$I,4,FALSE)),\"\"))","v":"Project Management"}]
[null,"Analyses ad hoc and reporting",2.5,{"$f":"IF(IFERROR(IFERROR(IFERROR(IFERROR(VLOOKUP($B53&$B54,Database!$F:$I,2,FALSE),VLOOKUP($B52&$B54,Database!$F:$I,2,FALSE)),VLOOKUP($B51&$B54,Database!$F:$I,2,FALSE)),VLOOKUP($B50&$B54,Database!$F:$I,2,FALSE)),\"\")=0,\"\",IFERROR(IFERROR(IFERROR(IFERROR(VLOOKUP($B53&$B54,Database!$F:$I,2,FALSE),VLOOKUP($B52&$B54,Database!$F:$I,2,FALSE)),VLOOKUP($B51&$B54,Database!$F:$I,2,FALSE)),VLOOKUP($B50&$B54,Database!$F:$I,2,FALSE)),\"\"))","v":"Management Control"},{"$f":"IF(IFERROR(IFERROR(IFERROR(IFERROR(VLOOKUP($B53&$B54,Database!$F:$I,3,FALSE),VLOOKUP($B52&$B54,Database!$F:$I,3,FALSE)),VLOOKUP($B51&$B54,Database!$F:$I,3,FALSE)),VLOOKUP($B50&$B54,Database!$F:$I,3,FALSE)),\"\")=0,\"\",IFERROR(IFERROR(IFERROR(IFERROR(VLOOKUP($B53&$B54,Database!$F:$I,3,FALSE),VLOOKUP($B52&$B54,Database!$F:$I,3,FALSE)),VLOOKUP($B51&$B54,Database!$F:$I,3,FALSE)),VLOOKUP($B50&$B54,Database!$F:$I,3,FALSE)),\"\"))","v":"Accounting"},{"$f":"IF(IFERROR(IFERROR(IFERROR(IFERROR(VLOOKUP($B53&$B54,Database!$F:$I,4,FALSE),VLOOKUP($B52&$B54,Database!$F:$I,4,FALSE)),VLOOKUP($B51&$B54,Database!$F:$I,4,FALSE)),VLOOKUP($B50&$B54,Database!$F:$I,4,FALSE)),\"\")=0,\"\",IFERROR(IFERROR(IFERROR(IFERROR(VLOOKUP($B53&$B54,Database!$F:$I,4,FALSE),VLOOKUP($B52&$B54,Database!$F:$I,4,FALSE)),VLOOKUP($B51&$B54,Database!$F:$I,4,FALSE)),VLOOKUP($B50&$B54,Database!$F:$I,4,FALSE)),\"\"))","v":"Information System"}]
[null,"Audition Santé",12,{"$f":"IF(IFERROR(IFERROR(IFERROR(IFERROR(VLOOKUP($B54&$B55,Database!$F:$I,2,FALSE),VLOOKUP($B53&$B55,Database!$F:$I,2,FALSE)),VLOOKUP($B52&$B55,Database!$F:$I,2,FALSE)),VLOOKUP($B51&$B55,Database!$F:$I,2,FALSE)),\"\")=0,\"\",IFERROR(IFERROR(IFERROR(IFERROR(VLOOKUP($B54&$B55,Database!$F:$I,2,FALSE),VLOOKUP($B53&$B55,Database!$F:$I,2,FALSE)),VLOOKUP($B52&$B55,Database!$F:$I,2,FALSE)),VLOOKUP($B51&$B55,Database!$F:$I,2,FALSE)),\"\"))","v":""},{"$f":"IF(IFERROR(IFERROR(IFERROR(IFERROR(VLOOKUP($B54&$B55,Database!$F:$I,3,FALSE),VLOOKUP($B53&$B55,Database!$F:$I,3,FALSE)),VLOOKUP($B52&$B55,Database!$F:$I,3,FALSE)),VLOOKUP($B51&$B55,Database!$F:$I,3,FALSE)),\"\")=0,\"\",IFERROR(IFERROR(IFERROR(IFERROR(VLOOKUP($B54&$B55,Database!$F:$I,3,FALSE),VLOOKUP($B53&$B55,Database!$F:$I,3,FALSE)),VLOOKUP($B52&$B55,Database!$F:$I,3,FALSE)),VLOOKUP($B51&$B55,Database!$F:$I,3,FALSE)),\"\"))","v":""},{"$f":"IF(IFERROR(IFERROR(IFERROR(IFERROR(VLOOKUP($B54&$B55,Database!$F:$I,4,FALSE),VLOOKUP($B53&$B55,Database!$F:$I,4,FALSE)),VLOOKUP($B52&$B55,Database!$F:$I,4,FALSE)),VLOOKUP($B51&$B55,Database!$F:$I,4,FALSE)),\"\")=0,\"\",IFERROR(IFERROR(IFERROR(IFERROR(VLOOKUP($B54&$B55,Database!$F:$I,4,FALSE),VLOOKUP($B53&$B55,Database!$F:$I,4,FALSE)),VLOOKUP($B52&$B55,Database!$F:$I,4,FALSE)),VLOOKUP($B51&$B55,Database!$F:$I,4,FALSE)),\"\"))","v":""}]
[null,"Reporting tool creation",3,{"$f":"IF(IFERROR(IFERROR(IFERROR(IFERROR(VLOOKUP($B55&$B56,Database!$F:$I,2,FALSE),VLOOKUP($B54&$B56,Database!$F:$I,2,FALSE)),VLOOKUP($B53&$B56,Database!$F:$I,2,FALSE)),VLOOKUP($B52&$B56,Database!$F:$I,2,FALSE)),\"\")=0,\"\",IFERROR(IFERROR(IFERROR(IFERROR(VLOOKUP($B55&$B56,Database!$F:$I,2,FALSE),VLOOKUP($B54&$B56,Database!$F:$I,2,FALSE)),VLOOKUP($B53&$B56,Database!$F:$I,2,FALSE)),VLOOKUP($B52&$B56,Database!$F:$I,2,FALSE)),\"\"))","v":"Project Management"},{"$f":"IF(IFERROR(IFERROR(IFERROR(IFERROR(VLOOKUP($B55&$B56,Database!$F:$I,3,FALSE),VLOOKUP($B54&$B56,Database!$F:$I,3,FALSE)),VLOOKUP($B53&$B56,Database!$F:$I,3,FALSE)),VLOOKUP($B52&$B56,Database!$F:$I,3,FALSE)),\"\")=0,\"\",IFERROR(IFERROR(IFERROR(IFERROR(VLOOKUP($B55&$B56,Database!$F:$I,3,FALSE),VLOOKUP($B54&$B56,Database!$F:$I,3,FALSE)),VLOOKUP($B53&$B56,Database!$F:$I,3,FALSE)),VLOOKUP($B52&$B56,Database!$F:$I,3,FALSE)),\"\"))","v":"Information System"},{"$f":"IF(IFERROR(IFERROR(IFERROR(IFERROR(VLOOKUP($B55&$B56,Database!$F:$I,4,FALSE),VLOOKUP($B54&$B56,Database!$F:$I,4,FALSE)),VLOOKUP($B53&$B56,Database!$F:$I,4,FALSE)),VLOOKUP($B52&$B56,Database!$F:$I,4,FALSE)),\"\")=0,\"\",IFERROR(IFERROR(IFERROR(IFERROR(VLOOKUP($B55&$B56,Database!$F:$I,4,FALSE),VLOOKUP($B54&$B56,Database!$F:$I,4,FALSE)),VLOOKUP($B53&$B56,Database!$F:$I,4,FALSE)),VLOOKUP($B52&$B56,Database!$F:$I,4,FALSE)),\"\"))","v":"Web IT languages"}]
[null,"Analyses ad hoc and reporting",9,{"$f":"IF(IFERROR(IFERROR(IFERROR(IFERROR(VLOOKUP($B56&$B57,Database!$F:$I,2,FALSE),VLOOKUP($B55&$B57,Database!$F:$I,2,FALSE)),VLOOKUP($B54&$B57,Database!$F:$I,2,FALSE)),VLOOKUP($B53&$B57,Database!$F:$I,2,FALSE)),\"\")=0,\"\",IFERROR(IFERROR(IFERROR(IFERROR(VLOOKUP($B56&$B57,Database!$F:$I,2,FALSE),VLOOKUP($B55&$B57,Database!$F:$I,2,FALSE)),VLOOKUP($B54&$B57,Database!$F:$I,2,FALSE)),VLOOKUP($B53&$B57,Database!$F:$I,2,FALSE)),\"\"))","v":"Management Control"},{"$f":"IF(IFERROR(IFERROR(IFERROR(IFERROR(VLOOKUP($B56&$B57,Database!$F:$I,3,FALSE),VLOOKUP($B55&$B57,Database!$F:$I,3,FALSE)),VLOOKUP($B54&$B57,Database!$F:$I,3,FALSE)),VLOOKUP($B53&$B57,Database!$F:$I,3,FALSE)),\"\")=0,\"\",IFERROR(IFERROR(IFERROR(IFERROR(VLOOKUP($B56&$B57,Database!$F:$I,3,FALSE),VLOOKUP($B55&$B57,Database!$F:$I,3,FALSE)),VLOOKUP($B54&$B57,Database!$F:$I,3,FALSE)),VLOOKUP($B53&$B57,Database!$F:$I,3,FALSE)),\"\"))","v":"Accounting"},{"$f":"IF(IFERROR(IFERROR(IFERROR(IFERROR(VLOOKUP($B56&$B57,Database!$F:$I,4,FALSE),VLOOKUP($B55&$B57,Database!$F:$I,4,FALSE)),VLOOKUP($B54&$B57,Database!$F:$I,4,FALSE)),VLOOKUP($B53&$B57,Database!$F:$I,4,FALSE)),\"\")=0,\"\",IFERROR(IFERROR(IFERROR(IFERROR(VLOOKUP($B56&$B57,Database!$F:$I,4,FALSE),VLOOKUP($B55&$B57,Database!$F:$I,4,FALSE)),VLOOKUP($B54&$B57,Database!$F:$I,4,FALSE)),VLOOKUP($B53&$B57,Database!$F:$I,4,FALSE)),\"\"))","v":""}]
[null,null,null,{"$f":"IF(IFERROR(IFERROR(IFERROR(IFERROR(VLOOKUP($B57&$B58,Database!$F:$I,2,FALSE),VLOOKUP($B56&$B58,Database!$F:$I,2,FALSE)),VLOOKUP($B55&$B58,Database!$F:$I,2,FALSE)),VLOOKUP($B54&$B58,Database!$F:$I,2,FALSE)),\"\")=0,\"\",IFERROR(IFERROR(IFERROR(IFERROR(VLOOKUP($B57&$B58,Database!$F:$I,2,FALSE),VLOOKUP($B56&$B58,Database!$F:$I,2,FALSE)),VLOOKUP($B55&$B58,Database!$F:$I,2,FALSE)),VLOOKUP($B54&$B58,Database!$F:$I,2,FALSE)),\"\"))","v":""},{"$f":"IF(IFERROR(IFERROR(IFERROR(IFERROR(VLOOKUP($B57&$B58,Database!$F:$I,3,FALSE),VLOOKUP($B56&$B58,Database!$F:$I,3,FALSE)),VLOOKUP($B55&$B58,Database!$F:$I,3,FALSE)),VLOOKUP($B54&$B58,Database!$F:$I,3,FALSE)),\"\")=0,\"\",IFERROR(IFERROR(IFERROR(IFERROR(VLOOKUP($B57&$B58,Database!$F:$I,3,FALSE),VLOOKUP($B56&$B58,Database!$F:$I,3,FALSE)),VLOOKUP($B55&$B58,Database!$F:$I,3,FALSE)),VLOOKUP($B54&$B58,Database!$F:$I,3,FALSE)),\"\"))","v":""},{"$f":"IF(IFERROR(IFERROR(IFERROR(IFERROR(VLOOKUP($B57&$B58,Database!$F:$I,4,FALSE),VLOOKUP($B56&$B58,Database!$F:$I,4,FALSE)),VLOOKUP($B55&$B58,Database!$F:$I,4,FALSE)),VLOOKUP($B54&$B58,Database!$F:$I,4,FALSE)),\"\")=0,\"\",IFERROR(IFERROR(IFERROR(IFERROR(VLOOKUP($B57&$B58,Database!$F:$I,4,FALSE),VLOOKUP($B56&$B58,Database!$F:$I,4,FALSE)),VLOOKUP($B55&$B58,Database!$F:$I,4,FALSE)),VLOOKUP($B54&$B58,Database!$F:$I,4,FALSE)),\"\"))","v":""}]
[null,null,null,{"$f":"IF(IFERROR(IFERROR(IFERROR(IFERROR(VLOOKUP($B58&$B59,Database!$F:$I,2,FALSE),VLOOKUP($B57&$B59,Database!$F:$I,2,FALSE)),VLOOKUP($B56&$B59,Database!$F:$I,2,FALSE)),VLOOKUP($B55&$B59,Database!$F:$I,2,FALSE)),\"\")=0,\"\",IFERROR(IFERROR(IFERROR(IFERROR(VLOOKUP($B58&$B59,Database!$F:$I,2,FALSE),VLOOKUP($B57&$B59,Database!$F:$I,2,FALSE)),VLOOKUP($B56&$B59,Database!$F:$I,2,FALSE)),VLOOKUP($B55&$B59,Database!$F:$I,2,FALSE)),\"\"))","v":""},{"$f":"IF(IFERROR(IFERROR(IFERROR(IFERROR(VLOOKUP($B58&$B59,Database!$F:$I,3,FALSE),VLOOKUP($B57&$B59,Database!$F:$I,3,FALSE)),VLOOKUP($B56&$B59,Database!$F:$I,3,FALSE)),VLOOKUP($B55&$B59,Database!$F:$I,3,FALSE)),\"\")=0,\"\",IFERROR(IFERROR(IFERROR(IFERROR(VLOOKUP($B58&$B59,Database!$F:$I,3,FALSE),VLOOKUP($B57&$B59,Database!$F:$I,3,FALSE)),VLOOKUP($B56&$B59,Database!$F:$I,3,FALSE)),VLOOKUP($B55&$B59,Database!$F:$I,3,FALSE)),\"\"))","v":""},{"$f":"IF(IFERROR(IFERROR(IFERROR(IFERROR(VLOOKUP($B58&$B59,Database!$F:$I,4,FALSE),VLOOKUP($B57&$B59,Database!$F:$I,4,FALSE)),VLOOKUP($B56&$B59,Database!$F:$I,4,FALSE)),VLOOKUP($B55&$B59,Database!$F:$I,4,FALSE)),\"\")=0,\"\",IFERROR(IFERROR(IFERROR(IFERROR(VLOOKUP($B58&$B59,Database!$F:$I,4,FALSE),VLOOKUP($B57&$B59,Database!$F:$I,4,FALSE)),VLOOKUP($B56&$B59,Database!$F:$I,4,FALSE)),VLOOKUP($B55&$B59,Database!$F:$I,4,FALSE)),\"\"))","v":""}]
[null,null,null,{"$f":"IF(IFERROR(IFERROR(IFERROR(IFERROR(VLOOKUP($B59&$B60,Database!$F:$I,2,FALSE),VLOOKUP($B58&$B60,Database!$F:$I,2,FALSE)),VLOOKUP($B57&$B60,Database!$F:$I,2,FALSE)),VLOOKUP($B56&$B60,Database!$F:$I,2,FALSE)),\"\")=0,\"\",IFERROR(IFERROR(IFERROR(IFERROR(VLOOKUP($B59&$B60,Database!$F:$I,2,FALSE),VLOOKUP($B58&$B60,Database!$F:$I,2,FALSE)),VLOOKUP($B57&$B60,Database!$F:$I,2,FALSE)),VLOOKUP($B56&$B60,Database!$F:$I,2,FALSE)),\"\"))","v":""},{"$f":"IF(IFERROR(IFERROR(IFERROR(IFERROR(VLOOKUP($B59&$B60,Database!$F:$I,3,FALSE),VLOOKUP($B58&$B60,Database!$F:$I,3,FALSE)),VLOOKUP($B57&$B60,Database!$F:$I,3,FALSE)),VLOOKUP($B56&$B60,Database!$F:$I,3,FALSE)),\"\")=0,\"\",IFERROR(IFERROR(IFERROR(IFERROR(VLOOKUP($B59&$B60,Database!$F:$I,3,FALSE),VLOOKUP($B58&$B60,Database!$F:$I,3,FALSE)),VLOOKUP($B57&$B60,Database!$F:$I,3,FALSE)),VLOOKUP($B56&$B60,Database!$F:$I,3,FALSE)),\"\"))","v":""},{"$f":"IF(IFERROR(IFERROR(IFERROR(IFERROR(VLOOKUP($B59&$B60,Database!$F:$I,4,FALSE),VLOOKUP($B58&$B60,Database!$F:$I,4,FALSE)),VLOOKUP($B57&$B60,Database!$F:$I,4,FALSE)),VLOOKUP($B56&$B60,Database!$F:$I,4,FALSE)),\"\")=0,\"\",IFERROR(IFERROR(IFERROR(IFERROR(VLOOKUP($B59&$B60,Database!$F:$I,4,FALSE),VLOOKUP($B58&$B60,Database!$F:$I,4,FALSE)),VLOOKUP($B57&$B60,Database!$F:$I,4,FALSE)),VLOOKUP($B56&$B60,Database!$F:$I,4,FALSE)),\"\"))","v":""}]
[null,null,null,{"$f":"IF(IFERROR(IFERROR(IFERROR(IFERROR(VLOOKUP($B60&$B61,Database!$F:$I,2,FALSE),VLOOKUP($B59&$B61,Database!$F:$I,2,FALSE)),VLOOKUP($B58&$B61,Database!$F:$I,2,FALSE)),VLOOKUP($B57&$B61,Database!$F:$I,2,FALSE)),\"\")=0,\"\",IFERROR(IFERROR(IFERROR(IFERROR(VLOOKUP($B60&$B61,Database!$F:$I,2,FALSE),VLOOKUP($B59&$B61,Database!$F:$I,2,FALSE)),VLOOKUP($B58&$B61,Database!$F:$I,2,FALSE)),VLOOKUP($B57&$B61,Database!$F:$I,2,FALSE)),\"\"))","v":""},{"$f":"IF(IFERROR(IFERROR(IFERROR(IFERROR(VLOOKUP($B60&$B61,Database!$F:$I,3,FALSE),VLOOKUP($B59&$B61,Database!$F:$I,3,FALSE)),VLOOKUP($B58&$B61,Database!$F:$I,3,FALSE)),VLOOKUP($B57&$B61,Database!$F:$I,3,FALSE)),\"\")=0,\"\",IFERROR(IFERROR(IFERROR(IFERROR(VLOOKUP($B60&$B61,Database!$F:$I,3,FALSE),VLOOKUP($B59&$B61,Database!$F:$I,3,FALSE)),VLOOKUP($B58&$B61,Database!$F:$I,3,FALSE)),VLOOKUP($B57&$B61,Database!$F:$I,3,FALSE)),\"\"))","v":""},{"$f":"IF(IFERROR(IFERROR(IFERROR(IFERROR(VLOOKUP($B60&$B61,Database!$F:$I,4,FALSE),VLOOKUP($B59&$B61,Database!$F:$I,4,FALSE)),VLOOKUP($B58&$B61,Database!$F:$I,4,FALSE)),VLOOKUP($B57&$B61,Database!$F:$I,4,FALSE)),\"\")=0,\"\",IFERROR(IFERROR(IFERROR(IFERROR(VLOOKUP($B60&$B61,Database!$F:$I,4,FALSE),VLOOKUP($B59&$B61,Database!$F:$I,4,FALSE)),VLOOKUP($B58&$B61,Database!$F:$I,4,FALSE)),VLOOKUP($B57&$B61,Database!$F:$I,4,FALSE)),\"\"))","v":""}]
[null,null,null,{"$f":"IF(IFERROR(IFERROR(IFERROR(IFERROR(VLOOKUP($B61&$B62,Database!$F:$I,2,FALSE),VLOOKUP($B60&$B62,Database!$F:$I,2,FALSE)),VLOOKUP($B59&$B62,Database!$F:$I,2,FALSE)),VLOOKUP($B58&$B62,Database!$F:$I,2,FALSE)),\"\")=0,\"\",IFERROR(IFERROR(IFERROR(IFERROR(VLOOKUP($B61&$B62,Database!$F:$I,2,FALSE),VLOOKUP($B60&$B62,Database!$F:$I,2,FALSE)),VLOOKUP($B59&$B62,Database!$F:$I,2,FALSE)),VLOOKUP($B58&$B62,Database!$F:$I,2,FALSE)),\"\"))","v":""},{"$f":"IF(IFERROR(IFERROR(IFERROR(IFERROR(VLOOKUP($B61&$B62,Database!$F:$I,3,FALSE),VLOOKUP($B60&$B62,Database!$F:$I,3,FALSE)),VLOOKUP($B59&$B62,Database!$F:$I,3,FALSE)),VLOOKUP($B58&$B62,Database!$F:$I,3,FALSE)),\"\")=0,\"\",IFERROR(IFERROR(IFERROR(IFERROR(VLOOKUP($B61&$B62,Database!$F:$I,3,FALSE),VLOOKUP($B60&$B62,Database!$F:$I,3,FALSE)),VLOOKUP($B59&$B62,Database!$F:$I,3,FALSE)),VLOOKUP($B58&$B62,Database!$F:$I,3,FALSE)),\"\"))","v":""},{"$f":"IF(IFERROR(IFERROR(IFERROR(IFERROR(VLOOKUP($B61&$B62,Database!$F:$I,4,FALSE),VLOOKUP($B60&$B62,Database!$F:$I,4,FALSE)),VLOOKUP($B59&$B62,Database!$F:$I,4,FALSE)),VLOOKUP($B58&$B62,Database!$F:$I,4,FALSE)),\"\")=0,\"\",IFERROR(IFERROR(IFERROR(IFERROR(VLOOKUP($B61&$B62,Database!$F:$I,4,FALSE),VLOOKUP($B60&$B62,Database!$F:$I,4,FALSE)),VLOOKUP($B59&$B62,Database!$F:$I,4,FALSE)),VLOOKUP($B58&$B62,Database!$F:$I,4,FALSE)),\"\"))","v":""}]
[null,null,null,{"$f":"IF(IFERROR(IFERROR(IFERROR(IFERROR(VLOOKUP($B62&$B63,Database!$F:$I,2,FALSE),VLOOKUP($B61&$B63,Database!$F:$I,2,FALSE)),VLOOKUP($B60&$B63,Database!$F:$I,2,FALSE)),VLOOKUP($B59&$B63,Database!$F:$I,2,FALSE)),\"\")=0,\"\",IFERROR(IFERROR(IFERROR(IFERROR(VLOOKUP($B62&$B63,Database!$F:$I,2,FALSE),VLOOKUP($B61&$B63,Database!$F:$I,2,FALSE)),VLOOKUP($B60&$B63,Database!$F:$I,2,FALSE)),VLOOKUP($B59&$B63,Database!$F:$I,2,FALSE)),\"\"))","v":""},{"$f":"IF(IFERROR(IFERROR(IFERROR(IFERROR(VLOOKUP($B62&$B63,Database!$F:$I,3,FALSE),VLOOKUP($B61&$B63,Database!$F:$I,3,FALSE)),VLOOKUP($B60&$B63,Database!$F:$I,3,FALSE)),VLOOKUP($B59&$B63,Database!$F:$I,3,FALSE)),\"\")=0,\"\",IFERROR(IFERROR(IFERROR(IFERROR(VLOOKUP($B62&$B63,Database!$F:$I,3,FALSE),VLOOKUP($B61&$B63,Database!$F:$I,3,FALSE)),VLOOKUP($B60&$B63,Database!$F:$I,3,FALSE)),VLOOKUP($B59&$B63,Database!$F:$I,3,FALSE)),\"\"))","v":""},{"$f":"IF(IFERROR(IFERROR(IFERROR(IFERROR(VLOOKUP($B62&$B63,Database!$F:$I,4,FALSE),VLOOKUP($B61&$B63,Database!$F:$I,4,FALSE)),VLOOKUP($B60&$B63,Database!$F:$I,4,FALSE)),VLOOKUP($B59&$B63,Database!$F:$I,4,FALSE)),\"\")=0,\"\",IFERROR(IFERROR(IFERROR(IFERROR(VLOOKUP($B62&$B63,Database!$F:$I,4,FALSE),VLOOKUP($B61&$B63,Database!$F:$I,4,FALSE)),VLOOKUP($B60&$B63,Database!$F:$I,4,FALSE)),VLOOKUP($B59&$B63,Database!$F:$I,4,FALSE)),\"\"))","v":""}]
[null,null,null,{"$f":"IF(IFERROR(IFERROR(IFERROR(IFERROR(VLOOKUP($B63&$B64,Database!$F:$I,2,FALSE),VLOOKUP($B62&$B64,Database!$F:$I,2,FALSE)),VLOOKUP($B61&$B64,Database!$F:$I,2,FALSE)),VLOOKUP($B60&$B64,Database!$F:$I,2,FALSE)),\"\")=0,\"\",IFERROR(IFERROR(IFERROR(IFERROR(VLOOKUP($B63&$B64,Database!$F:$I,2,FALSE),VLOOKUP($B62&$B64,Database!$F:$I,2,FALSE)),VLOOKUP($B61&$B64,Database!$F:$I,2,FALSE)),VLOOKUP($B60&$B64,Database!$F:$I,2,FALSE)),\"\"))","v":""},{"$f":"IF(IFERROR(IFERROR(IFERROR(IFERROR(VLOOKUP($B63&$B64,Database!$F:$I,3,FALSE),VLOOKUP($B62&$B64,Database!$F:$I,3,FALSE)),VLOOKUP($B61&$B64,Database!$F:$I,3,FALSE)),VLOOKUP($B60&$B64,Database!$F:$I,3,FALSE)),\"\")=0,\"\",IFERROR(IFERROR(IFERROR(IFERROR(VLOOKUP($B63&$B64,Database!$F:$I,3,FALSE),VLOOKUP($B62&$B64,Database!$F:$I,3,FALSE)),VLOOKUP($B61&$B64,Database!$F:$I,3,FALSE)),VLOOKUP($B60&$B64,Database!$F:$I,3,FALSE)),\"\"))","v":""},{"$f":"IF(IFERROR(IFERROR(IFERROR(IFERROR(VLOOKUP($B63&$B64,Database!$F:$I,4,FALSE),VLOOKUP($B62&$B64,Database!$F:$I,4,FALSE)),VLOOKUP($B61&$B64,Database!$F:$I,4,FALSE)),VLOOKUP($B60&$B64,Database!$F:$I,4,FALSE)),\"\")=0,\"\",IFERROR(IFERROR(IFERROR(IFERROR(VLOOKUP($B63&$B64,Database!$F:$I,4,FALSE),VLOOKUP($B62&$B64,Database!$F:$I,4,FALSE)),VLOOKUP($B61&$B64,Database!$F:$I,4,FALSE)),VLOOKUP($B60&$B64,Database!$F:$I,4,FALSE)),\"\"))","v":""}]
[null,null,null,{"$f":"IF(IFERROR(IFERROR(IFERROR(IFERROR(VLOOKUP($B64&$B65,Database!$F:$I,2,FALSE),VLOOKUP($B63&$B65,Database!$F:$I,2,FALSE)),VLOOKUP($B62&$B65,Database!$F:$I,2,FALSE)),VLOOKUP($B61&$B65,Database!$F:$I,2,FALSE)),\"\")=0,\"\",IFERROR(IFERROR(IFERROR(IFERROR(VLOOKUP($B64&$B65,Database!$F:$I,2,FALSE),VLOOKUP($B63&$B65,Database!$F:$I,2,FALSE)),VLOOKUP($B62&$B65,Database!$F:$I,2,FALSE)),VLOOKUP($B61&$B65,Database!$F:$I,2,FALSE)),\"\"))","v":""},{"$f":"IF(IFERROR(IFERROR(IFERROR(IFERROR(VLOOKUP($B64&$B65,Database!$F:$I,3,FALSE),VLOOKUP($B63&$B65,Database!$F:$I,3,FALSE)),VLOOKUP($B62&$B65,Database!$F:$I,3,FALSE)),VLOOKUP($B61&$B65,Database!$F:$I,3,FALSE)),\"\")=0,\"\",IFERROR(IFERROR(IFERROR(IFERROR(VLOOKUP($B64&$B65,Database!$F:$I,3,FALSE),VLOOKUP($B63&$B65,Database!$F:$I,3,FALSE)),VLOOKUP($B62&$B65,Database!$F:$I,3,FALSE)),VLOOKUP($B61&$B65,Database!$F:$I,3,FALSE)),\"\"))","v":""},{"$f":"IF(IFERROR(IFERROR(IFERROR(IFERROR(VLOOKUP($B64&$B65,Database!$F:$I,4,FALSE),VLOOKUP($B63&$B65,Database!$F:$I,4,FALSE)),VLOOKUP($B62&$B65,Database!$F:$I,4,FALSE)),VLOOKUP($B61&$B65,Database!$F:$I,4,FALSE)),\"\")=0,\"\",IFERROR(IFERROR(IFERROR(IFERROR(VLOOKUP($B64&$B65,Database!$F:$I,4,FALSE),VLOOKUP($B63&$B65,Database!$F:$I,4,FALSE)),VLOOKUP($B62&$B65,Database!$F:$I,4,FALSE)),VLOOKUP($B61&$B65,Database!$F:$I,4,FALSE)),\"\"))","v":""}]
[null,null,null,{"$f":"IF(IFERROR(IFERROR(IFERROR(IFERROR(VLOOKUP($B65&$B66,Database!$F:$I,2,FALSE),VLOOKUP($B64&$B66,Database!$F:$I,2,FALSE)),VLOOKUP($B63&$B66,Database!$F:$I,2,FALSE)),VLOOKUP($B62&$B66,Database!$F:$I,2,FALSE)),\"\")=0,\"\",IFERROR(IFERROR(IFERROR(IFERROR(VLOOKUP($B65&$B66,Database!$F:$I,2,FALSE),VLOOKUP($B64&$B66,Database!$F:$I,2,FALSE)),VLOOKUP($B63&$B66,Database!$F:$I,2,FALSE)),VLOOKUP($B62&$B66,Database!$F:$I,2,FALSE)),\"\"))","v":""},{"$f":"IF(IFERROR(IFERROR(IFERROR(IFERROR(VLOOKUP($B65&$B66,Database!$F:$I,3,FALSE),VLOOKUP($B64&$B66,Database!$F:$I,3,FALSE)),VLOOKUP($B63&$B66,Database!$F:$I,3,FALSE)),VLOOKUP($B62&$B66,Database!$F:$I,3,FALSE)),\"\")=0,\"\",IFERROR(IFERROR(IFERROR(IFERROR(VLOOKUP($B65&$B66,Database!$F:$I,3,FALSE),VLOOKUP($B64&$B66,Database!$F:$I,3,FALSE)),VLOOKUP($B63&$B66,Database!$F:$I,3,FALSE)),VLOOKUP($B62&$B66,Database!$F:$I,3,FALSE)),\"\"))","v":""},{"$f":"IF(IFERROR(IFERROR(IFERROR(IFERROR(VLOOKUP($B65&$B66,Database!$F:$I,4,FALSE),VLOOKUP($B64&$B66,Database!$F:$I,4,FALSE)),VLOOKUP($B63&$B66,Database!$F:$I,4,FALSE)),VLOOKUP($B62&$B66,Database!$F:$I,4,FALSE)),\"\")=0,\"\",IFERROR(IFERROR(IFERROR(IFERROR(VLOOKUP($B65&$B66,Database!$F:$I,4,FALSE),VLOOKUP($B64&$B66,Database!$F:$I,4,FALSE)),VLOOKUP($B63&$B66,Database!$F:$I,4,FALSE)),VLOOKUP($B62&$B66,Database!$F:$I,4,FALSE)),\"\"))","v":""}]
[null,null,null,{"$f":"IF(IFERROR(IFERROR(IFERROR(IFERROR(VLOOKUP($B66&$B67,Database!$F:$I,2,FALSE),VLOOKUP($B65&$B67,Database!$F:$I,2,FALSE)),VLOOKUP($B64&$B67,Database!$F:$I,2,FALSE)),VLOOKUP($B63&$B67,Database!$F:$I,2,FALSE)),\"\")=0,\"\",IFERROR(IFERROR(IFERROR(IFERROR(VLOOKUP($B66&$B67,Database!$F:$I,2,FALSE),VLOOKUP($B65&$B67,Database!$F:$I,2,FALSE)),VLOOKUP($B64&$B67,Database!$F:$I,2,FALSE)),VLOOKUP($B63&$B67,Database!$F:$I,2,FALSE)),\"\"))","v":""},{"$f":"IF(IFERROR(IFERROR(IFERROR(IFERROR(VLOOKUP($B66&$B67,Database!$F:$I,3,FALSE),VLOOKUP($B65&$B67,Database!$F:$I,3,FALSE)),VLOOKUP($B64&$B67,Database!$F:$I,3,FALSE)),VLOOKUP($B63&$B67,Database!$F:$I,3,FALSE)),\"\")=0,\"\",IFERROR(IFERROR(IFERROR(IFERROR(VLOOKUP($B66&$B67,Database!$F:$I,3,FALSE),VLOOKUP($B65&$B67,Database!$F:$I,3,FALSE)),VLOOKUP($B64&$B67,Database!$F:$I,3,FALSE)),VLOOKUP($B63&$B67,Database!$F:$I,3,FALSE)),\"\"))","v":""},{"$f":"IF(IFERROR(IFERROR(IFERROR(IFERROR(VLOOKUP($B66&$B67,Database!$F:$I,4,FALSE),VLOOKUP($B65&$B67,Database!$F:$I,4,FALSE)),VLOOKUP($B64&$B67,Database!$F:$I,4,FALSE)),VLOOKUP($B63&$B67,Database!$F:$I,4,FALSE)),\"\")=0,\"\",IFERROR(IFERROR(IFERROR(IFERROR(VLOOKUP($B66&$B67,Database!$F:$I,4,FALSE),VLOOKUP($B65&$B67,Database!$F:$I,4,FALSE)),VLOOKUP($B64&$B67,Database!$F:$I,4,FALSE)),VLOOKUP($B63&$B67,Database!$F:$I,4,FALSE)),\"\"))","v":""}]
[null,null,null,{"$f":"IF(IFERROR(IFERROR(IFERROR(IFERROR(VLOOKUP($B67&$B68,Database!$F:$I,2,FALSE),VLOOKUP($B66&$B68,Database!$F:$I,2,FALSE)),VLOOKUP($B65&$B68,Database!$F:$I,2,FALSE)),VLOOKUP($B64&$B68,Database!$F:$I,2,FALSE)),\"\")=0,\"\",IFERROR(IFERROR(IFERROR(IFERROR(VLOOKUP($B67&$B68,Database!$F:$I,2,FALSE),VLOOKUP($B66&$B68,Database!$F:$I,2,FALSE)),VLOOKUP($B65&$B68,Database!$F:$I,2,FALSE)),VLOOKUP($B64&$B68,Database!$F:$I,2,FALSE)),\"\"))","v":""},{"$f":"IF(IFERROR(IFERROR(IFERROR(IFERROR(VLOOKUP($B67&$B68,Database!$F:$I,3,FALSE),VLOOKUP($B66&$B68,Database!$F:$I,3,FALSE)),VLOOKUP($B65&$B68,Database!$F:$I,3,FALSE)),VLOOKUP($B64&$B68,Database!$F:$I,3,FALSE)),\"\")=0,\"\",IFERROR(IFERROR(IFERROR(IFERROR(VLOOKUP($B67&$B68,Database!$F:$I,3,FALSE),VLOOKUP($B66&$B68,Database!$F:$I,3,FALSE)),VLOOKUP($B65&$B68,Database!$F:$I,3,FALSE)),VLOOKUP($B64&$B68,Database!$F:$I,3,FALSE)),\"\"))","v":""},{"$f":"IF(IFERROR(IFERROR(IFERROR(IFERROR(VLOOKUP($B67&$B68,Database!$F:$I,4,FALSE),VLOOKUP($B66&$B68,Database!$F:$I,4,FALSE)),VLOOKUP($B65&$B68,Database!$F:$I,4,FALSE)),VLOOKUP($B64&$B68,Database!$F:$I,4,FALSE)),\"\")=0,\"\",IFERROR(IFERROR(IFERROR(IFERROR(VLOOKUP($B67&$B68,Database!$F:$I,4,FALSE),VLOOKUP($B66&$B68,Database!$F:$I,4,FALSE)),VLOOKUP($B65&$B68,Database!$F:$I,4,FALSE)),VLOOKUP($B64&$B68,Database!$F:$I,4,FALSE)),\"\"))","v":""}]
[null,null,null,{"$f":"IF(IFERROR(IFERROR(IFERROR(IFERROR(VLOOKUP($B68&$B69,Database!$F:$I,2,FALSE),VLOOKUP($B67&$B69,Database!$F:$I,2,FALSE)),VLOOKUP($B66&$B69,Database!$F:$I,2,FALSE)),VLOOKUP($B65&$B69,Database!$F:$I,2,FALSE)),\"\")=0,\"\",IFERROR(IFERROR(IFERROR(IFERROR(VLOOKUP($B68&$B69,Database!$F:$I,2,FALSE),VLOOKUP($B67&$B69,Database!$F:$I,2,FALSE)),VLOOKUP($B66&$B69,Database!$F:$I,2,FALSE)),VLOOKUP($B65&$B69,Database!$F:$I,2,FALSE)),\"\"))","v":""},{"$f":"IF(IFERROR(IFERROR(IFERROR(IFERROR(VLOOKUP($B68&$B69,Database!$F:$I,3,FALSE),VLOOKUP($B67&$B69,Database!$F:$I,3,FALSE)),VLOOKUP($B66&$B69,Database!$F:$I,3,FALSE)),VLOOKUP($B65&$B69,Database!$F:$I,3,FALSE)),\"\")=0,\"\",IFERROR(IFERROR(IFERROR(IFERROR(VLOOKUP($B68&$B69,Database!$F:$I,3,FALSE),VLOOKUP($B67&$B69,Database!$F:$I,3,FALSE)),VLOOKUP($B66&$B69,Database!$F:$I,3,FALSE)),VLOOKUP($B65&$B69,Database!$F:$I,3,FALSE)),\"\"))","v":""},{"$f":"IF(IFERROR(IFERROR(IFERROR(IFERROR(VLOOKUP($B68&$B69,Database!$F:$I,4,FALSE),VLOOKUP($B67&$B69,Database!$F:$I,4,FALSE)),VLOOKUP($B66&$B69,Database!$F:$I,4,FALSE)),VLOOKUP($B65&$B69,Database!$F:$I,4,FALSE)),\"\")=0,\"\",IFERROR(IFERROR(IFERROR(IFERROR(VLOOKUP($B68&$B69,Database!$F:$I,4,FALSE),VLOOKUP($B67&$B69,Database!$F:$I,4,FALSE)),VLOOKUP($B66&$B69,Database!$F:$I,4,FALSE)),VLOOKUP($B65&$B69,Database!$F:$I,4,FALSE)),\"\"))","v":""}]
[null,null,null,{"$f":"IF(IFERROR(IFERROR(IFERROR(IFERROR(VLOOKUP($B69&$B70,Database!$F:$I,2,FALSE),VLOOKUP($B68&$B70,Database!$F:$I,2,FALSE)),VLOOKUP($B67&$B70,Database!$F:$I,2,FALSE)),VLOOKUP($B66&$B70,Database!$F:$I,2,FALSE)),\"\")=0,\"\",IFERROR(IFERROR(IFERROR(IFERROR(VLOOKUP($B69&$B70,Database!$F:$I,2,FALSE),VLOOKUP($B68&$B70,Database!$F:$I,2,FALSE)),VLOOKUP($B67&$B70,Database!$F:$I,2,FALSE)),VLOOKUP($B66&$B70,Database!$F:$I,2,FALSE)),\"\"))","v":""},{"$f":"IF(IFERROR(IFERROR(IFERROR(IFERROR(VLOOKUP($B69&$B70,Database!$F:$I,3,FALSE),VLOOKUP($B68&$B70,Database!$F:$I,3,FALSE)),VLOOKUP($B67&$B70,Database!$F:$I,3,FALSE)),VLOOKUP($B66&$B70,Database!$F:$I,3,FALSE)),\"\")=0,\"\",IFERROR(IFERROR(IFERROR(IFERROR(VLOOKUP($B69&$B70,Database!$F:$I,3,FALSE),VLOOKUP($B68&$B70,Database!$F:$I,3,FALSE)),VLOOKUP($B67&$B70,Database!$F:$I,3,FALSE)),VLOOKUP($B66&$B70,Database!$F:$I,3,FALSE)),\"\"))","v":""},{"$f":"IF(IFERROR(IFERROR(IFERROR(IFERROR(VLOOKUP($B69&$B70,Database!$F:$I,4,FALSE),VLOOKUP($B68&$B70,Database!$F:$I,4,FALSE)),VLOOKUP($B67&$B70,Database!$F:$I,4,FALSE)),VLOOKUP($B66&$B70,Database!$F:$I,4,FALSE)),\"\")=0,\"\",IFERROR(IFERROR(IFERROR(IFERROR(VLOOKUP($B69&$B70,Database!$F:$I,4,FALSE),VLOOKUP($B68&$B70,Database!$F:$I,4,FALSE)),VLOOKUP($B67&$B70,Database!$F:$I,4,FALSE)),VLOOKUP($B66&$B70,Database!$F:$I,4,FALSE)),\"\"))","v":""}]
[null,null,null,{"$f":"IF(IFERROR(IFERROR(IFERROR(IFERROR(VLOOKUP($B70&$B71,Database!$F:$I,2,FALSE),VLOOKUP($B69&$B71,Database!$F:$I,2,FALSE)),VLOOKUP($B68&$B71,Database!$F:$I,2,FALSE)),VLOOKUP($B67&$B71,Database!$F:$I,2,FALSE)),\"\")=0,\"\",IFERROR(IFERROR(IFERROR(IFERROR(VLOOKUP($B70&$B71,Database!$F:$I,2,FALSE),VLOOKUP($B69&$B71,Database!$F:$I,2,FALSE)),VLOOKUP($B68&$B71,Database!$F:$I,2,FALSE)),VLOOKUP($B67&$B71,Database!$F:$I,2,FALSE)),\"\"))","v":""},{"$f":"IF(IFERROR(IFERROR(IFERROR(IFERROR(VLOOKUP($B70&$B71,Database!$F:$I,3,FALSE),VLOOKUP($B69&$B71,Database!$F:$I,3,FALSE)),VLOOKUP($B68&$B71,Database!$F:$I,3,FALSE)),VLOOKUP($B67&$B71,Database!$F:$I,3,FALSE)),\"\")=0,\"\",IFERROR(IFERROR(IFERROR(IFERROR(VLOOKUP($B70&$B71,Database!$F:$I,3,FALSE),VLOOKUP($B69&$B71,Database!$F:$I,3,FALSE)),VLOOKUP($B68&$B71,Database!$F:$I,3,FALSE)),VLOOKUP($B67&$B71,Database!$F:$I,3,FALSE)),\"\"))","v":""},{"$f":"IF(IFERROR(IFERROR(IFERROR(IFERROR(VLOOKUP($B70&$B71,Database!$F:$I,4,FALSE),VLOOKUP($B69&$B71,Database!$F:$I,4,FALSE)),VLOOKUP($B68&$B71,Database!$F:$I,4,FALSE)),VLOOKUP($B67&$B71,Database!$F:$I,4,FALSE)),\"\")=0,\"\",IFERROR(IFERROR(IFERROR(IFERROR(VLOOKUP($B70&$B71,Database!$F:$I,4,FALSE),VLOOKUP($B69&$B71,Database!$F:$I,4,FALSE)),VLOOKUP($B68&$B71,Database!$F:$I,4,FALSE)),VLOOKUP($B67&$B71,Database!$F:$I,4,FALSE)),\"\"))","v":""}]
[null,null,null,{"$f":"IF(IFERROR(IFERROR(IFERROR(IFERROR(VLOOKUP($B71&$B72,Database!$F:$I,2,FALSE),VLOOKUP($B70&$B72,Database!$F:$I,2,FALSE)),VLOOKUP($B69&$B72,Database!$F:$I,2,FALSE)),VLOOKUP($B68&$B72,Database!$F:$I,2,FALSE)),\"\")=0,\"\",IFERROR(IFERROR(IFERROR(IFERROR(VLOOKUP($B71&$B72,Database!$F:$I,2,FALSE),VLOOKUP($B70&$B72,Database!$F:$I,2,FALSE)),VLOOKUP($B69&$B72,Database!$F:$I,2,FALSE)),VLOOKUP($B68&$B72,Database!$F:$I,2,FALSE)),\"\"))","v":""},{"$f":"IF(IFERROR(IFERROR(IFERROR(IFERROR(VLOOKUP($B71&$B72,Database!$F:$I,3,FALSE),VLOOKUP($B70&$B72,Database!$F:$I,3,FALSE)),VLOOKUP($B69&$B72,Database!$F:$I,3,FALSE)),VLOOKUP($B68&$B72,Database!$F:$I,3,FALSE)),\"\")=0,\"\",IFERROR(IFERROR(IFERROR(IFERROR(VLOOKUP($B71&$B72,Database!$F:$I,3,FALSE),VLOOKUP($B70&$B72,Database!$F:$I,3,FALSE)),VLOOKUP($B69&$B72,Database!$F:$I,3,FALSE)),VLOOKUP($B68&$B72,Database!$F:$I,3,FALSE)),\"\"))","v":""},{"$f":"IF(IFERROR(IFERROR(IFERROR(IFERROR(VLOOKUP($B71&$B72,Database!$F:$I,4,FALSE),VLOOKUP($B70&$B72,Database!$F:$I,4,FALSE)),VLOOKUP($B69&$B72,Database!$F:$I,4,FALSE)),VLOOKUP($B68&$B72,Database!$F:$I,4,FALSE)),\"\")=0,\"\",IFERROR(IFERROR(IFERROR(IFERROR(VLOOKUP($B71&$B72,Database!$F:$I,4,FALSE),VLOOKUP($B70&$B72,Database!$F:$I,4,FALSE)),VLOOKUP($B69&$B72,Database!$F:$I,4,FALSE)),VLOOKUP($B68&$B72,Database!$F:$I,4,FALSE)),\"\"))","v":""}]
[null,null,null,{"$f":"IF(IFERROR(IFERROR(IFERROR(IFERROR(VLOOKUP($B72&$B73,Database!$F:$I,2,FALSE),VLOOKUP($B71&$B73,Database!$F:$I,2,FALSE)),VLOOKUP($B70&$B73,Database!$F:$I,2,FALSE)),VLOOKUP($B69&$B73,Database!$F:$I,2,FALSE)),\"\")=0,\"\",IFERROR(IFERROR(IFERROR(IFERROR(VLOOKUP($B72&$B73,Database!$F:$I,2,FALSE),VLOOKUP($B71&$B73,Database!$F:$I,2,FALSE)),VLOOKUP($B70&$B73,Database!$F:$I,2,FALSE)),VLOOKUP($B69&$B73,Database!$F:$I,2,FALSE)),\"\"))","v":""},{"$f":"IF(IFERROR(IFERROR(IFERROR(IFERROR(VLOOKUP($B72&$B73,Database!$F:$I,3,FALSE),VLOOKUP($B71&$B73,Database!$F:$I,3,FALSE)),VLOOKUP($B70&$B73,Database!$F:$I,3,FALSE)),VLOOKUP($B69&$B73,Database!$F:$I,3,FALSE)),\"\")=0,\"\",IFERROR(IFERROR(IFERROR(IFERROR(VLOOKUP($B72&$B73,Database!$F:$I,3,FALSE),VLOOKUP($B71&$B73,Database!$F:$I,3,FALSE)),VLOOKUP($B70&$B73,Database!$F:$I,3,FALSE)),VLOOKUP($B69&$B73,Database!$F:$I,3,FALSE)),\"\"))","v":""},{"$f":"IF(IFERROR(IFERROR(IFERROR(IFERROR(VLOOKUP($B72&$B73,Database!$F:$I,4,FALSE),VLOOKUP($B71&$B73,Database!$F:$I,4,FALSE)),VLOOKUP($B70&$B73,Database!$F:$I,4,FALSE)),VLOOKUP($B69&$B73,Database!$F:$I,4,FALSE)),\"\")=0,\"\",IFERROR(IFERROR(IFERROR(IFERROR(VLOOKUP($B72&$B73,Database!$F:$I,4,FALSE),VLOOKUP($B71&$B73,Database!$F:$I,4,FALSE)),VLOOKUP($B70&$B73,Database!$F:$I,4,FALSE)),VLOOKUP($B69&$B73,Database!$F:$I,4,FALSE)),\"\"))","v":""}]
[null,null,null,{"$f":"IF(IFERROR(IFERROR(IFERROR(IFERROR(VLOOKUP($B73&$B74,Database!$F:$I,2,FALSE),VLOOKUP($B72&$B74,Database!$F:$I,2,FALSE)),VLOOKUP($B71&$B74,Database!$F:$I,2,FALSE)),VLOOKUP($B70&$B74,Database!$F:$I,2,FALSE)),\"\")=0,\"\",IFERROR(IFERROR(IFERROR(IFERROR(VLOOKUP($B73&$B74,Database!$F:$I,2,FALSE),VLOOKUP($B72&$B74,Database!$F:$I,2,FALSE)),VLOOKUP($B71&$B74,Database!$F:$I,2,FALSE)),VLOOKUP($B70&$B74,Database!$F:$I,2,FALSE)),\"\"))","v":""},{"$f":"IF(IFERROR(IFERROR(IFERROR(IFERROR(VLOOKUP($B73&$B74,Database!$F:$I,3,FALSE),VLOOKUP($B72&$B74,Database!$F:$I,3,FALSE)),VLOOKUP($B71&$B74,Database!$F:$I,3,FALSE)),VLOOKUP($B70&$B74,Database!$F:$I,3,FALSE)),\"\")=0,\"\",IFERROR(IFERROR(IFERROR(IFERROR(VLOOKUP($B73&$B74,Database!$F:$I,3,FALSE),VLOOKUP($B72&$B74,Database!$F:$I,3,FALSE)),VLOOKUP($B71&$B74,Database!$F:$I,3,FALSE)),VLOOKUP($B70&$B74,Database!$F:$I,3,FALSE)),\"\"))","v":""},{"$f":"IF(IFERROR(IFERROR(IFERROR(IFERROR(VLOOKUP($B73&$B74,Database!$F:$I,4,FALSE),VLOOKUP($B72&$B74,Database!$F:$I,4,FALSE)),VLOOKUP($B71&$B74,Database!$F:$I,4,FALSE)),VLOOKUP($B70&$B74,Database!$F:$I,4,FALSE)),\"\")=0,\"\",IFERROR(IFERROR(IFERROR(IFERROR(VLOOKUP($B73&$B74,Database!$F:$I,4,FALSE),VLOOKUP($B72&$B74,Database!$F:$I,4,FALSE)),VLOOKUP($B71&$B74,Database!$F:$I,4,FALSE)),VLOOKUP($B70&$B74,Database!$F:$I,4,FALSE)),\"\"))","v":""}]
[null,null,null,{"$f":"IF(IFERROR(IFERROR(IFERROR(IFERROR(VLOOKUP($B74&$B75,Database!$F:$I,2,FALSE),VLOOKUP($B73&$B75,Database!$F:$I,2,FALSE)),VLOOKUP($B72&$B75,Database!$F:$I,2,FALSE)),VLOOKUP($B71&$B75,Database!$F:$I,2,FALSE)),\"\")=0,\"\",IFERROR(IFERROR(IFERROR(IFERROR(VLOOKUP($B74&$B75,Database!$F:$I,2,FALSE),VLOOKUP($B73&$B75,Database!$F:$I,2,FALSE)),VLOOKUP($B72&$B75,Database!$F:$I,2,FALSE)),VLOOKUP($B71&$B75,Database!$F:$I,2,FALSE)),\"\"))","v":""},{"$f":"IF(IFERROR(IFERROR(IFERROR(IFERROR(VLOOKUP($B74&$B75,Database!$F:$I,3,FALSE),VLOOKUP($B73&$B75,Database!$F:$I,3,FALSE)),VLOOKUP($B72&$B75,Database!$F:$I,3,FALSE)),VLOOKUP($B71&$B75,Database!$F:$I,3,FALSE)),\"\")=0,\"\",IFERROR(IFERROR(IFERROR(IFERROR(VLOOKUP($B74&$B75,Database!$F:$I,3,FALSE),VLOOKUP($B73&$B75,Database!$F:$I,3,FALSE)),VLOOKUP($B72&$B75,Database!$F:$I,3,FALSE)),VLOOKUP($B71&$B75,Database!$F:$I,3,FALSE)),\"\"))","v":""},{"$f":"IF(IFERROR(IFERROR(IFERROR(IFERROR(VLOOKUP($B74&$B75,Database!$F:$I,4,FALSE),VLOOKUP($B73&$B75,Database!$F:$I,4,FALSE)),VLOOKUP($B72&$B75,Database!$F:$I,4,FALSE)),VLOOKUP($B71&$B75,Database!$F:$I,4,FALSE)),\"\")=0,\"\",IFERROR(IFERROR(IFERROR(IFERROR(VLOOKUP($B74&$B75,Database!$F:$I,4,FALSE),VLOOKUP($B73&$B75,Database!$F:$I,4,FALSE)),VLOOKUP($B72&$B75,Database!$F:$I,4,FALSE)),VLOOKUP($B71&$B75,Database!$F:$I,4,FALSE)),\"\"))","v":""}]
[null,null,null,{"$f":"IF(IFERROR(IFERROR(IFERROR(IFERROR(VLOOKUP($B75&$B76,Database!$F:$I,2,FALSE),VLOOKUP($B74&$B76,Database!$F:$I,2,FALSE)),VLOOKUP($B73&$B76,Database!$F:$I,2,FALSE)),VLOOKUP($B72&$B76,Database!$F:$I,2,FALSE)),\"\")=0,\"\",IFERROR(IFERROR(IFERROR(IFERROR(VLOOKUP($B75&$B76,Database!$F:$I,2,FALSE),VLOOKUP($B74&$B76,Database!$F:$I,2,FALSE)),VLOOKUP($B73&$B76,Database!$F:$I,2,FALSE)),VLOOKUP($B72&$B76,Database!$F:$I,2,FALSE)),\"\"))","v":""},{"$f":"IF(IFERROR(IFERROR(IFERROR(IFERROR(VLOOKUP($B75&$B76,Database!$F:$I,3,FALSE),VLOOKUP($B74&$B76,Database!$F:$I,3,FALSE)),VLOOKUP($B73&$B76,Database!$F:$I,3,FALSE)),VLOOKUP($B72&$B76,Database!$F:$I,3,FALSE)),\"\")=0,\"\",IFERROR(IFERROR(IFERROR(IFERROR(VLOOKUP($B75&$B76,Database!$F:$I,3,FALSE),VLOOKUP($B74&$B76,Database!$F:$I,3,FALSE)),VLOOKUP($B73&$B76,Database!$F:$I,3,FALSE)),VLOOKUP($B72&$B76,Database!$F:$I,3,FALSE)),\"\"))","v":""},{"$f":"IF(IFERROR(IFERROR(IFERROR(IFERROR(VLOOKUP($B75&$B76,Database!$F:$I,4,FALSE),VLOOKUP($B74&$B76,Database!$F:$I,4,FALSE)),VLOOKUP($B73&$B76,Database!$F:$I,4,FALSE)),VLOOKUP($B72&$B76,Database!$F:$I,4,FALSE)),\"\")=0,\"\",IFERROR(IFERROR(IFERROR(IFERROR(VLOOKUP($B75&$B76,Database!$F:$I,4,FALSE),VLOOKUP($B74&$B76,Database!$F:$I,4,FALSE)),VLOOKUP($B73&$B76,Database!$F:$I,4,FALSE)),VLOOKUP($B72&$B76,Database!$F:$I,4,FALSE)),\"\"))","v":""}]
[null,null,null,{"$f":"IF(IFERROR(IFERROR(IFERROR(IFERROR(VLOOKUP($B76&$B77,Database!$F:$I,2,FALSE),VLOOKUP($B75&$B77,Database!$F:$I,2,FALSE)),VLOOKUP($B74&$B77,Database!$F:$I,2,FALSE)),VLOOKUP($B73&$B77,Database!$F:$I,2,FALSE)),\"\")=0,\"\",IFERROR(IFERROR(IFERROR(IFERROR(VLOOKUP($B76&$B77,Database!$F:$I,2,FALSE),VLOOKUP($B75&$B77,Database!$F:$I,2,FALSE)),VLOOKUP($B74&$B77,Database!$F:$I,2,FALSE)),VLOOKUP($B73&$B77,Database!$F:$I,2,FALSE)),\"\"))","v":""},{"$f":"IF(IFERROR(IFERROR(IFERROR(IFERROR(VLOOKUP($B76&$B77,Database!$F:$I,3,FALSE),VLOOKUP($B75&$B77,Database!$F:$I,3,FALSE)),VLOOKUP($B74&$B77,Database!$F:$I,3,FALSE)),VLOOKUP($B73&$B77,Database!$F:$I,3,FALSE)),\"\")=0,\"\",IFERROR(IFERROR(IFERROR(IFERROR(VLOOKUP($B76&$B77,Database!$F:$I,3,FALSE),VLOOKUP($B75&$B77,Database!$F:$I,3,FALSE)),VLOOKUP($B74&$B77,Database!$F:$I,3,FALSE)),VLOOKUP($B73&$B77,Database!$F:$I,3,FALSE)),\"\"))","v":""},{"$f":"IF(IFERROR(IFERROR(IFERROR(IFERROR(VLOOKUP($B76&$B77,Database!$F:$I,4,FALSE),VLOOKUP($B75&$B77,Database!$F:$I,4,FALSE)),VLOOKUP($B74&$B77,Database!$F:$I,4,FALSE)),VLOOKUP($B73&$B77,Database!$F:$I,4,FALSE)),\"\")=0,\"\",IFERROR(IFERROR(IFERROR(IFERROR(VLOOKUP($B76&$B77,Database!$F:$I,4,FALSE),VLOOKUP($B75&$B77,Database!$F:$I,4,FALSE)),VLOOKUP($B74&$B77,Database!$F:$I,4,FALSE)),VLOOKUP($B73&$B77,Database!$F:$I,4,FALSE)),\"\"))","v":""}]
[null,null,null,{"$f":"IF(IFERROR(IFERROR(IFERROR(IFERROR(VLOOKUP($B77&$B78,Database!$F:$I,2,FALSE),VLOOKUP($B76&$B78,Database!$F:$I,2,FALSE)),VLOOKUP($B75&$B78,Database!$F:$I,2,FALSE)),VLOOKUP($B74&$B78,Database!$F:$I,2,FALSE)),\"\")=0,\"\",IFERROR(IFERROR(IFERROR(IFERROR(VLOOKUP($B77&$B78,Database!$F:$I,2,FALSE),VLOOKUP($B76&$B78,Database!$F:$I,2,FALSE)),VLOOKUP($B75&$B78,Database!$F:$I,2,FALSE)),VLOOKUP($B74&$B78,Database!$F:$I,2,FALSE)),\"\"))","v":""},{"$f":"IF(IFERROR(IFERROR(IFERROR(IFERROR(VLOOKUP($B77&$B78,Database!$F:$I,3,FALSE),VLOOKUP($B76&$B78,Database!$F:$I,3,FALSE)),VLOOKUP($B75&$B78,Database!$F:$I,3,FALSE)),VLOOKUP($B74&$B78,Database!$F:$I,3,FALSE)),\"\")=0,\"\",IFERROR(IFERROR(IFERROR(IFERROR(VLOOKUP($B77&$B78,Database!$F:$I,3,FALSE),VLOOKUP($B76&$B78,Database!$F:$I,3,FALSE)),VLOOKUP($B75&$B78,Database!$F:$I,3,FALSE)),VLOOKUP($B74&$B78,Database!$F:$I,3,FALSE)),\"\"))","v":""},{"$f":"IF(IFERROR(IFERROR(IFERROR(IFERROR(VLOOKUP($B77&$B78,Database!$F:$I,4,FALSE),VLOOKUP($B76&$B78,Database!$F:$I,4,FALSE)),VLOOKUP($B75&$B78,Database!$F:$I,4,FALSE)),VLOOKUP($B74&$B78,Database!$F:$I,4,FALSE)),\"\")=0,\"\",IFERROR(IFERROR(IFERROR(IFERROR(VLOOKUP($B77&$B78,Database!$F:$I,4,FALSE),VLOOKUP($B76&$B78,Database!$F:$I,4,FALSE)),VLOOKUP($B75&$B78,Database!$F:$I,4,FALSE)),VLOOKUP($B74&$B78,Database!$F:$I,4,FALSE)),\"\"))","v":""}]
[null,null,null,{"$f":"IF(IFERROR(IFERROR(IFERROR(IFERROR(VLOOKUP($B78&$B79,Database!$F:$I,2,FALSE),VLOOKUP($B77&$B79,Database!$F:$I,2,FALSE)),VLOOKUP($B76&$B79,Database!$F:$I,2,FALSE)),VLOOKUP($B75&$B79,Database!$F:$I,2,FALSE)),\"\")=0,\"\",IFERROR(IFERROR(IFERROR(IFERROR(VLOOKUP($B78&$B79,Database!$F:$I,2,FALSE),VLOOKUP($B77&$B79,Database!$F:$I,2,FALSE)),VLOOKUP($B76&$B79,Database!$F:$I,2,FALSE)),VLOOKUP($B75&$B79,Database!$F:$I,2,FALSE)),\"\"))","v":""},{"$f":"IF(IFERROR(IFERROR(IFERROR(IFERROR(VLOOKUP($B78&$B79,Database!$F:$I,3,FALSE),VLOOKUP($B77&$B79,Database!$F:$I,3,FALSE)),VLOOKUP($B76&$B79,Database!$F:$I,3,FALSE)),VLOOKUP($B75&$B79,Database!$F:$I,3,FALSE)),\"\")=0,\"\",IFERROR(IFERROR(IFERROR(IFERROR(VLOOKUP($B78&$B79,Database!$F:$I,3,FALSE),VLOOKUP($B77&$B79,Database!$F:$I,3,FALSE)),VLOOKUP($B76&$B79,Database!$F:$I,3,FALSE)),VLOOKUP($B75&$B79,Database!$F:$I,3,FALSE)),\"\"))","v":""},{"$f":"IF(IFERROR(IFERROR(IFERROR(IFERROR(VLOOKUP($B78&$B79,Database!$F:$I,4,FALSE),VLOOKUP($B77&$B79,Database!$F:$I,4,FALSE)),VLOOKUP($B76&$B79,Database!$F:$I,4,FALSE)),VLOOKUP($B75&$B79,Database!$F:$I,4,FALSE)),\"\")=0,\"\",IFERROR(IFERROR(IFERROR(IFERROR(VLOOKUP($B78&$B79,Database!$F:$I,4,FALSE),VLOOKUP($B77&$B79,Database!$F:$I,4,FALSE)),VLOOKUP($B76&$B79,Database!$F:$I,4,FALSE)),VLOOKUP($B75&$B79,Database!$F:$I,4,FALSE)),\"\"))","v":""}]
[null,null,null,{"$f":"IF(IFERROR(IFERROR(IFERROR(IFERROR(VLOOKUP($B79&$B80,Database!$F:$I,2,FALSE),VLOOKUP($B78&$B80,Database!$F:$I,2,FALSE)),VLOOKUP($B77&$B80,Database!$F:$I,2,FALSE)),VLOOKUP($B76&$B80,Database!$F:$I,2,FALSE)),\"\")=0,\"\",IFERROR(IFERROR(IFERROR(IFERROR(VLOOKUP($B79&$B80,Database!$F:$I,2,FALSE),VLOOKUP($B78&$B80,Database!$F:$I,2,FALSE)),VLOOKUP($B77&$B80,Database!$F:$I,2,FALSE)),VLOOKUP($B76&$B80,Database!$F:$I,2,FALSE)),\"\"))","v":""},{"$f":"IF(IFERROR(IFERROR(IFERROR(IFERROR(VLOOKUP($B79&$B80,Database!$F:$I,3,FALSE),VLOOKUP($B78&$B80,Database!$F:$I,3,FALSE)),VLOOKUP($B77&$B80,Database!$F:$I,3,FALSE)),VLOOKUP($B76&$B80,Database!$F:$I,3,FALSE)),\"\")=0,\"\",IFERROR(IFERROR(IFERROR(IFERROR(VLOOKUP($B79&$B80,Database!$F:$I,3,FALSE),VLOOKUP($B78&$B80,Database!$F:$I,3,FALSE)),VLOOKUP($B77&$B80,Database!$F:$I,3,FALSE)),VLOOKUP($B76&$B80,Database!$F:$I,3,FALSE)),\"\"))","v":""},{"$f":"IF(IFERROR(IFERROR(IFERROR(IFERROR(VLOOKUP($B79&$B80,Database!$F:$I,4,FALSE),VLOOKUP($B78&$B80,Database!$F:$I,4,FALSE)),VLOOKUP($B77&$B80,Database!$F:$I,4,FALSE)),VLOOKUP($B76&$B80,Database!$F:$I,4,FALSE)),\"\")=0,\"\",IFERROR(IFERROR(IFERROR(IFERROR(VLOOKUP($B79&$B80,Database!$F:$I,4,FALSE),VLOOKUP($B78&$B80,Database!$F:$I,4,FALSE)),VLOOKUP($B77&$B80,Database!$F:$I,4,FALSE)),VLOOKUP($B76&$B80,Database!$F:$I,4,FALSE)),\"\"))","v":""}]
[null,null,null,{"$f":"IF(IFERROR(IFERROR(IFERROR(IFERROR(VLOOKUP($B80&$B81,Database!$F:$I,2,FALSE),VLOOKUP($B79&$B81,Database!$F:$I,2,FALSE)),VLOOKUP($B78&$B81,Database!$F:$I,2,FALSE)),VLOOKUP($B77&$B81,Database!$F:$I,2,FALSE)),\"\")=0,\"\",IFERROR(IFERROR(IFERROR(IFERROR(VLOOKUP($B80&$B81,Database!$F:$I,2,FALSE),VLOOKUP($B79&$B81,Database!$F:$I,2,FALSE)),VLOOKUP($B78&$B81,Database!$F:$I,2,FALSE)),VLOOKUP($B77&$B81,Database!$F:$I,2,FALSE)),\"\"))","v":""},{"$f":"IF(IFERROR(IFERROR(IFERROR(IFERROR(VLOOKUP($B80&$B81,Database!$F:$I,3,FALSE),VLOOKUP($B79&$B81,Database!$F:$I,3,FALSE)),VLOOKUP($B78&$B81,Database!$F:$I,3,FALSE)),VLOOKUP($B77&$B81,Database!$F:$I,3,FALSE)),\"\")=0,\"\",IFERROR(IFERROR(IFERROR(IFERROR(VLOOKUP($B80&$B81,Database!$F:$I,3,FALSE),VLOOKUP($B79&$B81,Database!$F:$I,3,FALSE)),VLOOKUP($B78&$B81,Database!$F:$I,3,FALSE)),VLOOKUP($B77&$B81,Database!$F:$I,3,FALSE)),\"\"))","v":""},{"$f":"IF(IFERROR(IFERROR(IFERROR(IFERROR(VLOOKUP($B80&$B81,Database!$F:$I,4,FALSE),VLOOKUP($B79&$B81,Database!$F:$I,4,FALSE)),VLOOKUP($B78&$B81,Database!$F:$I,4,FALSE)),VLOOKUP($B77&$B81,Database!$F:$I,4,FALSE)),\"\")=0,\"\",IFERROR(IFERROR(IFERROR(IFERROR(VLOOKUP($B80&$B81,Database!$F:$I,4,FALSE),VLOOKUP($B79&$B81,Database!$F:$I,4,FALSE)),VLOOKUP($B78&$B81,Database!$F:$I,4,FALSE)),VLOOKUP($B77&$B81,Database!$F:$I,4,FALSE)),\"\"))","v":""}]
[null,null,null,{"$f":"IF(IFERROR(IFERROR(IFERROR(IFERROR(VLOOKUP($B81&$B82,Database!$F:$I,2,FALSE),VLOOKUP($B80&$B82,Database!$F:$I,2,FALSE)),VLOOKUP($B79&$B82,Database!$F:$I,2,FALSE)),VLOOKUP($B78&$B82,Database!$F:$I,2,FALSE)),\"\")=0,\"\",IFERROR(IFERROR(IFERROR(IFERROR(VLOOKUP($B81&$B82,Database!$F:$I,2,FALSE),VLOOKUP($B80&$B82,Database!$F:$I,2,FALSE)),VLOOKUP($B79&$B82,Database!$F:$I,2,FALSE)),VLOOKUP($B78&$B82,Database!$F:$I,2,FALSE)),\"\"))","v":""},{"$f":"IF(IFERROR(IFERROR(IFERROR(IFERROR(VLOOKUP($B81&$B82,Database!$F:$I,3,FALSE),VLOOKUP($B80&$B82,Database!$F:$I,3,FALSE)),VLOOKUP($B79&$B82,Database!$F:$I,3,FALSE)),VLOOKUP($B78&$B82,Database!$F:$I,3,FALSE)),\"\")=0,\"\",IFERROR(IFERROR(IFERROR(IFERROR(VLOOKUP($B81&$B82,Database!$F:$I,3,FALSE),VLOOKUP($B80&$B82,Database!$F:$I,3,FALSE)),VLOOKUP($B79&$B82,Database!$F:$I,3,FALSE)),VLOOKUP($B78&$B82,Database!$F:$I,3,FALSE)),\"\"))","v":""},{"$f":"IF(IFERROR(IFERROR(IFERROR(IFERROR(VLOOKUP($B81&$B82,Database!$F:$I,4,FALSE),VLOOKUP($B80&$B82,Database!$F:$I,4,FALSE)),VLOOKUP($B79&$B82,Database!$F:$I,4,FALSE)),VLOOKUP($B78&$B82,Database!$F:$I,4,FALSE)),\"\")=0,\"\",IFERROR(IFERROR(IFERROR(IFERROR(VLOOKUP($B81&$B82,Database!$F:$I,4,FALSE),VLOOKUP($B80&$B82,Database!$F:$I,4,FALSE)),VLOOKUP($B79&$B82,Database!$F:$I,4,FALSE)),VLOOKUP($B78&$B82,Database!$F:$I,4,FALSE)),\"\"))","v":""}]
[null,null,null,{"$f":"IF(IFERROR(IFERROR(IFERROR(IFERROR(VLOOKUP($B82&$B83,Database!$F:$I,2,FALSE),VLOOKUP($B81&$B83,Database!$F:$I,2,FALSE)),VLOOKUP($B80&$B83,Database!$F:$I,2,FALSE)),VLOOKUP($B79&$B83,Database!$F:$I,2,FALSE)),\"\")=0,\"\",IFERROR(IFERROR(IFERROR(IFERROR(VLOOKUP($B82&$B83,Database!$F:$I,2,FALSE),VLOOKUP($B81&$B83,Database!$F:$I,2,FALSE)),VLOOKUP($B80&$B83,Database!$F:$I,2,FALSE)),VLOOKUP($B79&$B83,Database!$F:$I,2,FALSE)),\"\"))","v":""},{"$f":"IF(IFERROR(IFERROR(IFERROR(IFERROR(VLOOKUP($B82&$B83,Database!$F:$I,3,FALSE),VLOOKUP($B81&$B83,Database!$F:$I,3,FALSE)),VLOOKUP($B80&$B83,Database!$F:$I,3,FALSE)),VLOOKUP($B79&$B83,Database!$F:$I,3,FALSE)),\"\")=0,\"\",IFERROR(IFERROR(IFERROR(IFERROR(VLOOKUP($B82&$B83,Database!$F:$I,3,FALSE),VLOOKUP($B81&$B83,Database!$F:$I,3,FALSE)),VLOOKUP($B80&$B83,Database!$F:$I,3,FALSE)),VLOOKUP($B79&$B83,Database!$F:$I,3,FALSE)),\"\"))","v":""},{"$f":"IF(IFERROR(IFERROR(IFERROR(IFERROR(VLOOKUP($B82&$B83,Database!$F:$I,4,FALSE),VLOOKUP($B81&$B83,Database!$F:$I,4,FALSE)),VLOOKUP($B80&$B83,Database!$F:$I,4,FALSE)),VLOOKUP($B79&$B83,Database!$F:$I,4,FALSE)),\"\")=0,\"\",IFERROR(IFERROR(IFERROR(IFERROR(VLOOKUP($B82&$B83,Database!$F:$I,4,FALSE),VLOOKUP($B81&$B83,Database!$F:$I,4,FALSE)),VLOOKUP($B80&$B83,Database!$F:$I,4,FALSE)),VLOOKUP($B79&$B83,Database!$F:$I,4,FALSE)),\"\"))","v":""}]
[null,null,null,{"$f":"IF(IFERROR(IFERROR(IFERROR(IFERROR(VLOOKUP($B83&$B84,Database!$F:$I,2,FALSE),VLOOKUP($B82&$B84,Database!$F:$I,2,FALSE)),VLOOKUP($B81&$B84,Database!$F:$I,2,FALSE)),VLOOKUP($B80&$B84,Database!$F:$I,2,FALSE)),\"\")=0,\"\",IFERROR(IFERROR(IFERROR(IFERROR(VLOOKUP($B83&$B84,Database!$F:$I,2,FALSE),VLOOKUP($B82&$B84,Database!$F:$I,2,FALSE)),VLOOKUP($B81&$B84,Database!$F:$I,2,FALSE)),VLOOKUP($B80&$B84,Database!$F:$I,2,FALSE)),\"\"))","v":""},{"$f":"IF(IFERROR(IFERROR(IFERROR(IFERROR(VLOOKUP($B83&$B84,Database!$F:$I,3,FALSE),VLOOKUP($B82&$B84,Database!$F:$I,3,FALSE)),VLOOKUP($B81&$B84,Database!$F:$I,3,FALSE)),VLOOKUP($B80&$B84,Database!$F:$I,3,FALSE)),\"\")=0,\"\",IFERROR(IFERROR(IFERROR(IFERROR(VLOOKUP($B83&$B84,Database!$F:$I,3,FALSE),VLOOKUP($B82&$B84,Database!$F:$I,3,FALSE)),VLOOKUP($B81&$B84,Database!$F:$I,3,FALSE)),VLOOKUP($B80&$B84,Database!$F:$I,3,FALSE)),\"\"))","v":""},{"$f":"IF(IFERROR(IFERROR(IFERROR(IFERROR(VLOOKUP($B83&$B84,Database!$F:$I,4,FALSE),VLOOKUP($B82&$B84,Database!$F:$I,4,FALSE)),VLOOKUP($B81&$B84,Database!$F:$I,4,FALSE)),VLOOKUP($B80&$B84,Database!$F:$I,4,FALSE)),\"\")=0,\"\",IFERROR(IFERROR(IFERROR(IFERROR(VLOOKUP($B83&$B84,Database!$F:$I,4,FALSE),VLOOKUP($B82&$B84,Database!$F:$I,4,FALSE)),VLOOKUP($B81&$B84,Database!$F:$I,4,FALSE)),VLOOKUP($B80&$B84,Database!$F:$I,4,FALSE)),\"\"))","v":""}]
[null,null,null,{"$f":"IF(IFERROR(IFERROR(IFERROR(IFERROR(VLOOKUP($B84&$B85,Database!$F:$I,2,FALSE),VLOOKUP($B83&$B85,Database!$F:$I,2,FALSE)),VLOOKUP($B82&$B85,Database!$F:$I,2,FALSE)),VLOOKUP($B81&$B85,Database!$F:$I,2,FALSE)),\"\")=0,\"\",IFERROR(IFERROR(IFERROR(IFERROR(VLOOKUP($B84&$B85,Database!$F:$I,2,FALSE),VLOOKUP($B83&$B85,Database!$F:$I,2,FALSE)),VLOOKUP($B82&$B85,Database!$F:$I,2,FALSE)),VLOOKUP($B81&$B85,Database!$F:$I,2,FALSE)),\"\"))","v":""},{"$f":"IF(IFERROR(IFERROR(IFERROR(IFERROR(VLOOKUP($B84&$B85,Database!$F:$I,3,FALSE),VLOOKUP($B83&$B85,Database!$F:$I,3,FALSE)),VLOOKUP($B82&$B85,Database!$F:$I,3,FALSE)),VLOOKUP($B81&$B85,Database!$F:$I,3,FALSE)),\"\")=0,\"\",IFERROR(IFERROR(IFERROR(IFERROR(VLOOKUP($B84&$B85,Database!$F:$I,3,FALSE),VLOOKUP($B83&$B85,Database!$F:$I,3,FALSE)),VLOOKUP($B82&$B85,Database!$F:$I,3,FALSE)),VLOOKUP($B81&$B85,Database!$F:$I,3,FALSE)),\"\"))","v":""},{"$f":"IF(IFERROR(IFERROR(IFERROR(IFERROR(VLOOKUP($B84&$B85,Database!$F:$I,4,FALSE),VLOOKUP($B83&$B85,Database!$F:$I,4,FALSE)),VLOOKUP($B82&$B85,Database!$F:$I,4,FALSE)),VLOOKUP($B81&$B85,Database!$F:$I,4,FALSE)),\"\")=0,\"\",IFERROR(IFERROR(IFERROR(IFERROR(VLOOKUP($B84&$B85,Database!$F:$I,4,FALSE),VLOOKUP($B83&$B85,Database!$F:$I,4,FALSE)),VLOOKUP($B82&$B85,Database!$F:$I,4,FALSE)),VLOOKUP($B81&$B85,Database!$F:$I,4,FALSE)),\"\"))","v":""}]
[null,null,null,{"$f":"IF(IFERROR(IFERROR(IFERROR(IFERROR(VLOOKUP($B85&$B86,Database!$F:$I,2,FALSE),VLOOKUP($B84&$B86,Database!$F:$I,2,FALSE)),VLOOKUP($B83&$B86,Database!$F:$I,2,FALSE)),VLOOKUP($B82&$B86,Database!$F:$I,2,FALSE)),\"\")=0,\"\",IFERROR(IFERROR(IFERROR(IFERROR(VLOOKUP($B85&$B86,Database!$F:$I,2,FALSE),VLOOKUP($B84&$B86,Database!$F:$I,2,FALSE)),VLOOKUP($B83&$B86,Database!$F:$I,2,FALSE)),VLOOKUP($B82&$B86,Database!$F:$I,2,FALSE)),\"\"))","v":""},{"$f":"IF(IFERROR(IFERROR(IFERROR(IFERROR(VLOOKUP($B85&$B86,Database!$F:$I,3,FALSE),VLOOKUP($B84&$B86,Database!$F:$I,3,FALSE)),VLOOKUP($B83&$B86,Database!$F:$I,3,FALSE)),VLOOKUP($B82&$B86,Database!$F:$I,3,FALSE)),\"\")=0,\"\",IFERROR(IFERROR(IFERROR(IFERROR(VLOOKUP($B85&$B86,Database!$F:$I,3,FALSE),VLOOKUP($B84&$B86,Database!$F:$I,3,FALSE)),VLOOKUP($B83&$B86,Database!$F:$I,3,FALSE)),VLOOKUP($B82&$B86,Database!$F:$I,3,FALSE)),\"\"))","v":""},{"$f":"IF(IFERROR(IFERROR(IFERROR(IFERROR(VLOOKUP($B85&$B86,Database!$F:$I,4,FALSE),VLOOKUP($B84&$B86,Database!$F:$I,4,FALSE)),VLOOKUP($B83&$B86,Database!$F:$I,4,FALSE)),VLOOKUP($B82&$B86,Database!$F:$I,4,FALSE)),\"\")=0,\"\",IFERROR(IFERROR(IFERROR(IFERROR(VLOOKUP($B85&$B86,Database!$F:$I,4,FALSE),VLOOKUP($B84&$B86,Database!$F:$I,4,FALSE)),VLOOKUP($B83&$B86,Database!$F:$I,4,FALSE)),VLOOKUP($B82&$B86,Database!$F:$I,4,FALSE)),\"\"))","v":""}]
[null,null,null,{"$f":"IF(IFERROR(IFERROR(IFERROR(IFERROR(VLOOKUP($B86&$B87,Database!$F:$I,2,FALSE),VLOOKUP($B85&$B87,Database!$F:$I,2,FALSE)),VLOOKUP($B84&$B87,Database!$F:$I,2,FALSE)),VLOOKUP($B83&$B87,Database!$F:$I,2,FALSE)),\"\")=0,\"\",IFERROR(IFERROR(IFERROR(IFERROR(VLOOKUP($B86&$B87,Database!$F:$I,2,FALSE),VLOOKUP($B85&$B87,Database!$F:$I,2,FALSE)),VLOOKUP($B84&$B87,Database!$F:$I,2,FALSE)),VLOOKUP($B83&$B87,Database!$F:$I,2,FALSE)),\"\"))","v":""},{"$f":"IF(IFERROR(IFERROR(IFERROR(IFERROR(VLOOKUP($B86&$B87,Database!$F:$I,3,FALSE),VLOOKUP($B85&$B87,Database!$F:$I,3,FALSE)),VLOOKUP($B84&$B87,Database!$F:$I,3,FALSE)),VLOOKUP($B83&$B87,Database!$F:$I,3,FALSE)),\"\")=0,\"\",IFERROR(IFERROR(IFERROR(IFERROR(VLOOKUP($B86&$B87,Database!$F:$I,3,FALSE),VLOOKUP($B85&$B87,Database!$F:$I,3,FALSE)),VLOOKUP($B84&$B87,Database!$F:$I,3,FALSE)),VLOOKUP($B83&$B87,Database!$F:$I,3,FALSE)),\"\"))","v":""},{"$f":"IF(IFERROR(IFERROR(IFERROR(IFERROR(VLOOKUP($B86&$B87,Database!$F:$I,4,FALSE),VLOOKUP($B85&$B87,Database!$F:$I,4,FALSE)),VLOOKUP($B84&$B87,Database!$F:$I,4,FALSE)),VLOOKUP($B83&$B87,Database!$F:$I,4,FALSE)),\"\")=0,\"\",IFERROR(IFERROR(IFERROR(IFERROR(VLOOKUP($B86&$B87,Database!$F:$I,4,FALSE),VLOOKUP($B85&$B87,Database!$F:$I,4,FALSE)),VLOOKUP($B84&$B87,Database!$F:$I,4,FALSE)),VLOOKUP($B83&$B87,Database!$F:$I,4,FALSE)),\"\"))","v":""}]
[null,null,null,{"$f":"IF(IFERROR(IFERROR(IFERROR(IFERROR(VLOOKUP($B87&$B88,Database!$F:$I,2,FALSE),VLOOKUP($B86&$B88,Database!$F:$I,2,FALSE)),VLOOKUP($B85&$B88,Database!$F:$I,2,FALSE)),VLOOKUP($B84&$B88,Database!$F:$I,2,FALSE)),\"\")=0,\"\",IFERROR(IFERROR(IFERROR(IFERROR(VLOOKUP($B87&$B88,Database!$F:$I,2,FALSE),VLOOKUP($B86&$B88,Database!$F:$I,2,FALSE)),VLOOKUP($B85&$B88,Database!$F:$I,2,FALSE)),VLOOKUP($B84&$B88,Database!$F:$I,2,FALSE)),\"\"))","v":""},{"$f":"IF(IFERROR(IFERROR(IFERROR(IFERROR(VLOOKUP($B87&$B88,Database!$F:$I,3,FALSE),VLOOKUP($B86&$B88,Database!$F:$I,3,FALSE)),VLOOKUP($B85&$B88,Database!$F:$I,3,FALSE)),VLOOKUP($B84&$B88,Database!$F:$I,3,FALSE)),\"\")=0,\"\",IFERROR(IFERROR(IFERROR(IFERROR(VLOOKUP($B87&$B88,Database!$F:$I,3,FALSE),VLOOKUP($B86&$B88,Database!$F:$I,3,FALSE)),VLOOKUP($B85&$B88,Database!$F:$I,3,FALSE)),VLOOKUP($B84&$B88,Database!$F:$I,3,FALSE)),\"\"))","v":""},{"$f":"IF(IFERROR(IFERROR(IFERROR(IFERROR(VLOOKUP($B87&$B88,Database!$F:$I,4,FALSE),VLOOKUP($B86&$B88,Database!$F:$I,4,FALSE)),VLOOKUP($B85&$B88,Database!$F:$I,4,FALSE)),VLOOKUP($B84&$B88,Database!$F:$I,4,FALSE)),\"\")=0,\"\",IFERROR(IFERROR(IFERROR(IFERROR(VLOOKUP($B87&$B88,Database!$F:$I,4,FALSE),VLOOKUP($B86&$B88,Database!$F:$I,4,FALSE)),VLOOKUP($B85&$B88,Database!$F:$I,4,FALSE)),VLOOKUP($B84&$B88,Database!$F:$I,4,FALSE)),\"\"))","v":""}]
[null,null,null,{"$f":"IF(IFERROR(IFERROR(IFERROR(IFERROR(VLOOKUP($B88&$B89,Database!$F:$I,2,FALSE),VLOOKUP($B87&$B89,Database!$F:$I,2,FALSE)),VLOOKUP($B86&$B89,Database!$F:$I,2,FALSE)),VLOOKUP($B85&$B89,Database!$F:$I,2,FALSE)),\"\")=0,\"\",IFERROR(IFERROR(IFERROR(IFERROR(VLOOKUP($B88&$B89,Database!$F:$I,2,FALSE),VLOOKUP($B87&$B89,Database!$F:$I,2,FALSE)),VLOOKUP($B86&$B89,Database!$F:$I,2,FALSE)),VLOOKUP($B85&$B89,Database!$F:$I,2,FALSE)),\"\"))","v":""},{"$f":"IF(IFERROR(IFERROR(IFERROR(IFERROR(VLOOKUP($B88&$B89,Database!$F:$I,3,FALSE),VLOOKUP($B87&$B89,Database!$F:$I,3,FALSE)),VLOOKUP($B86&$B89,Database!$F:$I,3,FALSE)),VLOOKUP($B85&$B89,Database!$F:$I,3,FALSE)),\"\")=0,\"\",IFERROR(IFERROR(IFERROR(IFERROR(VLOOKUP($B88&$B89,Database!$F:$I,3,FALSE),VLOOKUP($B87&$B89,Database!$F:$I,3,FALSE)),VLOOKUP($B86&$B89,Database!$F:$I,3,FALSE)),VLOOKUP($B85&$B89,Database!$F:$I,3,FALSE)),\"\"))","v":""},{"$f":"IF(IFERROR(IFERROR(IFERROR(IFERROR(VLOOKUP($B88&$B89,Database!$F:$I,4,FALSE),VLOOKUP($B87&$B89,Database!$F:$I,4,FALSE)),VLOOKUP($B86&$B89,Database!$F:$I,4,FALSE)),VLOOKUP($B85&$B89,Database!$F:$I,4,FALSE)),\"\")=0,\"\",IFERROR(IFERROR(IFERROR(IFERROR(VLOOKUP($B88&$B89,Database!$F:$I,4,FALSE),VLOOKUP($B87&$B89,Database!$F:$I,4,FALSE)),VLOOKUP($B86&$B89,Database!$F:$I,4,FALSE)),VLOOKUP($B85&$B89,Database!$F:$I,4,FALSE)),\"\"))","v":""}]
[null,null,null,{"$f":"IF(IFERROR(IFERROR(IFERROR(IFERROR(VLOOKUP($B89&$B90,Database!$F:$I,2,FALSE),VLOOKUP($B88&$B90,Database!$F:$I,2,FALSE)),VLOOKUP($B87&$B90,Database!$F:$I,2,FALSE)),VLOOKUP($B86&$B90,Database!$F:$I,2,FALSE)),\"\")=0,\"\",IFERROR(IFERROR(IFERROR(IFERROR(VLOOKUP($B89&$B90,Database!$F:$I,2,FALSE),VLOOKUP($B88&$B90,Database!$F:$I,2,FALSE)),VLOOKUP($B87&$B90,Database!$F:$I,2,FALSE)),VLOOKUP($B86&$B90,Database!$F:$I,2,FALSE)),\"\"))","v":""},{"$f":"IF(IFERROR(IFERROR(IFERROR(IFERROR(VLOOKUP($B89&$B90,Database!$F:$I,3,FALSE),VLOOKUP($B88&$B90,Database!$F:$I,3,FALSE)),VLOOKUP($B87&$B90,Database!$F:$I,3,FALSE)),VLOOKUP($B86&$B90,Database!$F:$I,3,FALSE)),\"\")=0,\"\",IFERROR(IFERROR(IFERROR(IFERROR(VLOOKUP($B89&$B90,Database!$F:$I,3,FALSE),VLOOKUP($B88&$B90,Database!$F:$I,3,FALSE)),VLOOKUP($B87&$B90,Database!$F:$I,3,FALSE)),VLOOKUP($B86&$B90,Database!$F:$I,3,FALSE)),\"\"))","v":""},{"$f":"IF(IFERROR(IFERROR(IFERROR(IFERROR(VLOOKUP($B89&$B90,Database!$F:$I,4,FALSE),VLOOKUP($B88&$B90,Database!$F:$I,4,FALSE)),VLOOKUP($B87&$B90,Database!$F:$I,4,FALSE)),VLOOKUP($B86&$B90,Database!$F:$I,4,FALSE)),\"\")=0,\"\",IFERROR(IFERROR(IFERROR(IFERROR(VLOOKUP($B89&$B90,Database!$F:$I,4,FALSE),VLOOKUP($B88&$B90,Database!$F:$I,4,FALSE)),VLOOKUP($B87&$B90,Database!$F:$I,4,FALSE)),VLOOKUP($B86&$B90,Database!$F:$I,4,FALSE)),\"\"))","v":""}]
[null,null,null,{"$f":"IF(IFERROR(IFERROR(IFERROR(IFERROR(VLOOKUP($B90&$B91,Database!$F:$I,2,FALSE),VLOOKUP($B89&$B91,Database!$F:$I,2,FALSE)),VLOOKUP($B88&$B91,Database!$F:$I,2,FALSE)),VLOOKUP($B87&$B91,Database!$F:$I,2,FALSE)),\"\")=0,\"\",IFERROR(IFERROR(IFERROR(IFERROR(VLOOKUP($B90&$B91,Database!$F:$I,2,FALSE),VLOOKUP($B89&$B91,Database!$F:$I,2,FALSE)),VLOOKUP($B88&$B91,Database!$F:$I,2,FALSE)),VLOOKUP($B87&$B91,Database!$F:$I,2,FALSE)),\"\"))","v":""},{"$f":"IF(IFERROR(IFERROR(IFERROR(IFERROR(VLOOKUP($B90&$B91,Database!$F:$I,3,FALSE),VLOOKUP($B89&$B91,Database!$F:$I,3,FALSE)),VLOOKUP($B88&$B91,Database!$F:$I,3,FALSE)),VLOOKUP($B87&$B91,Database!$F:$I,3,FALSE)),\"\")=0,\"\",IFERROR(IFERROR(IFERROR(IFERROR(VLOOKUP($B90&$B91,Database!$F:$I,3,FALSE),VLOOKUP($B89&$B91,Database!$F:$I,3,FALSE)),VLOOKUP($B88&$B91,Database!$F:$I,3,FALSE)),VLOOKUP($B87&$B91,Database!$F:$I,3,FALSE)),\"\"))","v":""},{"$f":"IF(IFERROR(IFERROR(IFERROR(IFERROR(VLOOKUP($B90&$B91,Database!$F:$I,4,FALSE),VLOOKUP($B89&$B91,Database!$F:$I,4,FALSE)),VLOOKUP($B88&$B91,Database!$F:$I,4,FALSE)),VLOOKUP($B87&$B91,Database!$F:$I,4,FALSE)),\"\")=0,\"\",IFERROR(IFERROR(IFERROR(IFERROR(VLOOKUP($B90&$B91,Database!$F:$I,4,FALSE),VLOOKUP($B89&$B91,Database!$F:$I,4,FALSE)),VLOOKUP($B88&$B91,Database!$F:$I,4,FALSE)),VLOOKUP($B87&$B91,Database!$F:$I,4,FALSE)),\"\"))","v":""}]
[null,null,null,{"$f":"IF(IFERROR(IFERROR(IFERROR(IFERROR(VLOOKUP($B91&$B92,Database!$F:$I,2,FALSE),VLOOKUP($B90&$B92,Database!$F:$I,2,FALSE)),VLOOKUP($B89&$B92,Database!$F:$I,2,FALSE)),VLOOKUP($B88&$B92,Database!$F:$I,2,FALSE)),\"\")=0,\"\",IFERROR(IFERROR(IFERROR(IFERROR(VLOOKUP($B91&$B92,Database!$F:$I,2,FALSE),VLOOKUP($B90&$B92,Database!$F:$I,2,FALSE)),VLOOKUP($B89&$B92,Database!$F:$I,2,FALSE)),VLOOKUP($B88&$B92,Database!$F:$I,2,FALSE)),\"\"))","v":""},{"$f":"IF(IFERROR(IFERROR(IFERROR(IFERROR(VLOOKUP($B91&$B92,Database!$F:$I,3,FALSE),VLOOKUP($B90&$B92,Database!$F:$I,3,FALSE)),VLOOKUP($B89&$B92,Database!$F:$I,3,FALSE)),VLOOKUP($B88&$B92,Database!$F:$I,3,FALSE)),\"\")=0,\"\",IFERROR(IFERROR(IFERROR(IFERROR(VLOOKUP($B91&$B92,Database!$F:$I,3,FALSE),VLOOKUP($B90&$B92,Database!$F:$I,3,FALSE)),VLOOKUP($B89&$B92,Database!$F:$I,3,FALSE)),VLOOKUP($B88&$B92,Database!$F:$I,3,FALSE)),\"\"))","v":""},{"$f":"IF(IFERROR(IFERROR(IFERROR(IFERROR(VLOOKUP($B91&$B92,Database!$F:$I,4,FALSE),VLOOKUP($B90&$B92,Database!$F:$I,4,FALSE)),VLOOKUP($B89&$B92,Database!$F:$I,4,FALSE)),VLOOKUP($B88&$B92,Database!$F:$I,4,FALSE)),\"\")=0,\"\",IFERROR(IFERROR(IFERROR(IFERROR(VLOOKUP($B91&$B92,Database!$F:$I,4,FALSE),VLOOKUP($B90&$B92,Database!$F:$I,4,FALSE)),VLOOKUP($B89&$B92,Database!$F:$I,4,FALSE)),VLOOKUP($B88&$B92,Database!$F:$I,4,FALSE)),\"\"))","v":""}]
[null,null,null,{"$f":"IF(IFERROR(IFERROR(IFERROR(IFERROR(VLOOKUP($B92&$B93,Database!$F:$I,2,FALSE),VLOOKUP($B91&$B93,Database!$F:$I,2,FALSE)),VLOOKUP($B90&$B93,Database!$F:$I,2,FALSE)),VLOOKUP($B89&$B93,Database!$F:$I,2,FALSE)),\"\")=0,\"\",IFERROR(IFERROR(IFERROR(IFERROR(VLOOKUP($B92&$B93,Database!$F:$I,2,FALSE),VLOOKUP($B91&$B93,Database!$F:$I,2,FALSE)),VLOOKUP($B90&$B93,Database!$F:$I,2,FALSE)),VLOOKUP($B89&$B93,Database!$F:$I,2,FALSE)),\"\"))","v":""},{"$f":"IF(IFERROR(IFERROR(IFERROR(IFERROR(VLOOKUP($B92&$B93,Database!$F:$I,3,FALSE),VLOOKUP($B91&$B93,Database!$F:$I,3,FALSE)),VLOOKUP($B90&$B93,Database!$F:$I,3,FALSE)),VLOOKUP($B89&$B93,Database!$F:$I,3,FALSE)),\"\")=0,\"\",IFERROR(IFERROR(IFERROR(IFERROR(VLOOKUP($B92&$B93,Database!$F:$I,3,FALSE),VLOOKUP($B91&$B93,Database!$F:$I,3,FALSE)),VLOOKUP($B90&$B93,Database!$F:$I,3,FALSE)),VLOOKUP($B89&$B93,Database!$F:$I,3,FALSE)),\"\"))","v":""},{"$f":"IF(IFERROR(IFERROR(IFERROR(IFERROR(VLOOKUP($B92&$B93,Database!$F:$I,4,FALSE),VLOOKUP($B91&$B93,Database!$F:$I,4,FALSE)),VLOOKUP($B90&$B93,Database!$F:$I,4,FALSE)),VLOOKUP($B89&$B93,Database!$F:$I,4,FALSE)),\"\")=0,\"\",IFERROR(IFERROR(IFERROR(IFERROR(VLOOKUP($B92&$B93,Database!$F:$I,4,FALSE),VLOOKUP($B91&$B93,Database!$F:$I,4,FALSE)),VLOOKUP($B90&$B93,Database!$F:$I,4,FALSE)),VLOOKUP($B89&$B93,Database!$F:$I,4,FALSE)),\"\"))","v":""}]
[null,null,null,{"$f":"IF(IFERROR(IFERROR(IFERROR(IFERROR(VLOOKUP($B93&$B94,Database!$F:$I,2,FALSE),VLOOKUP($B92&$B94,Database!$F:$I,2,FALSE)),VLOOKUP($B91&$B94,Database!$F:$I,2,FALSE)),VLOOKUP($B90&$B94,Database!$F:$I,2,FALSE)),\"\")=0,\"\",IFERROR(IFERROR(IFERROR(IFERROR(VLOOKUP($B93&$B94,Database!$F:$I,2,FALSE),VLOOKUP($B92&$B94,Database!$F:$I,2,FALSE)),VLOOKUP($B91&$B94,Database!$F:$I,2,FALSE)),VLOOKUP($B90&$B94,Database!$F:$I,2,FALSE)),\"\"))","v":""},{"$f":"IF(IFERROR(IFERROR(IFERROR(IFERROR(VLOOKUP($B93&$B94,Database!$F:$I,3,FALSE),VLOOKUP($B92&$B94,Database!$F:$I,3,FALSE)),VLOOKUP($B91&$B94,Database!$F:$I,3,FALSE)),VLOOKUP($B90&$B94,Database!$F:$I,3,FALSE)),\"\")=0,\"\",IFERROR(IFERROR(IFERROR(IFERROR(VLOOKUP($B93&$B94,Database!$F:$I,3,FALSE),VLOOKUP($B92&$B94,Database!$F:$I,3,FALSE)),VLOOKUP($B91&$B94,Database!$F:$I,3,FALSE)),VLOOKUP($B90&$B94,Database!$F:$I,3,FALSE)),\"\"))","v":""},{"$f":"IF(IFERROR(IFERROR(IFERROR(IFERROR(VLOOKUP($B93&$B94,Database!$F:$I,4,FALSE),VLOOKUP($B92&$B94,Database!$F:$I,4,FALSE)),VLOOKUP($B91&$B94,Database!$F:$I,4,FALSE)),VLOOKUP($B90&$B94,Database!$F:$I,4,FALSE)),\"\")=0,\"\",IFERROR(IFERROR(IFERROR(IFERROR(VLOOKUP($B93&$B94,Database!$F:$I,4,FALSE),VLOOKUP($B92&$B94,Database!$F:$I,4,FALSE)),VLOOKUP($B91&$B94,Database!$F:$I,4,FALSE)),VLOOKUP($B90&$B94,Database!$F:$I,4,FALSE)),\"\"))","v":""}]
[null,null,null,{"$f":"IF(IFERROR(IFERROR(IFERROR(IFERROR(VLOOKUP($B94&$B95,Database!$F:$I,2,FALSE),VLOOKUP($B93&$B95,Database!$F:$I,2,FALSE)),VLOOKUP($B92&$B95,Database!$F:$I,2,FALSE)),VLOOKUP($B91&$B95,Database!$F:$I,2,FALSE)),\"\")=0,\"\",IFERROR(IFERROR(IFERROR(IFERROR(VLOOKUP($B94&$B95,Database!$F:$I,2,FALSE),VLOOKUP($B93&$B95,Database!$F:$I,2,FALSE)),VLOOKUP($B92&$B95,Database!$F:$I,2,FALSE)),VLOOKUP($B91&$B95,Database!$F:$I,2,FALSE)),\"\"))","v":""},{"$f":"IF(IFERROR(IFERROR(IFERROR(IFERROR(VLOOKUP($B94&$B95,Database!$F:$I,3,FALSE),VLOOKUP($B93&$B95,Database!$F:$I,3,FALSE)),VLOOKUP($B92&$B95,Database!$F:$I,3,FALSE)),VLOOKUP($B91&$B95,Database!$F:$I,3,FALSE)),\"\")=0,\"\",IFERROR(IFERROR(IFERROR(IFERROR(VLOOKUP($B94&$B95,Database!$F:$I,3,FALSE),VLOOKUP($B93&$B95,Database!$F:$I,3,FALSE)),VLOOKUP($B92&$B95,Database!$F:$I,3,FALSE)),VLOOKUP($B91&$B95,Database!$F:$I,3,FALSE)),\"\"))","v":""},{"$f":"IF(IFERROR(IFERROR(IFERROR(IFERROR(VLOOKUP($B94&$B95,Database!$F:$I,4,FALSE),VLOOKUP($B93&$B95,Database!$F:$I,4,FALSE)),VLOOKUP($B92&$B95,Database!$F:$I,4,FALSE)),VLOOKUP($B91&$B95,Database!$F:$I,4,FALSE)),\"\")=0,\"\",IFERROR(IFERROR(IFERROR(IFERROR(VLOOKUP($B94&$B95,Database!$F:$I,4,FALSE),VLOOKUP($B93&$B95,Database!$F:$I,4,FALSE)),VLOOKUP($B92&$B95,Database!$F:$I,4,FALSE)),VLOOKUP($B91&$B95,Database!$F:$I,4,FALSE)),\"\"))","v":""}]
[null,null,null,{"$f":"IF(IFERROR(IFERROR(IFERROR(IFERROR(VLOOKUP($B95&$B96,Database!$F:$I,2,FALSE),VLOOKUP($B94&$B96,Database!$F:$I,2,FALSE)),VLOOKUP($B93&$B96,Database!$F:$I,2,FALSE)),VLOOKUP($B92&$B96,Database!$F:$I,2,FALSE)),\"\")=0,\"\",IFERROR(IFERROR(IFERROR(IFERROR(VLOOKUP($B95&$B96,Database!$F:$I,2,FALSE),VLOOKUP($B94&$B96,Database!$F:$I,2,FALSE)),VLOOKUP($B93&$B96,Database!$F:$I,2,FALSE)),VLOOKUP($B92&$B96,Database!$F:$I,2,FALSE)),\"\"))","v":""},{"$f":"IF(IFERROR(IFERROR(IFERROR(IFERROR(VLOOKUP($B95&$B96,Database!$F:$I,3,FALSE),VLOOKUP($B94&$B96,Database!$F:$I,3,FALSE)),VLOOKUP($B93&$B96,Database!$F:$I,3,FALSE)),VLOOKUP($B92&$B96,Database!$F:$I,3,FALSE)),\"\")=0,\"\",IFERROR(IFERROR(IFERROR(IFERROR(VLOOKUP($B95&$B96,Database!$F:$I,3,FALSE),VLOOKUP($B94&$B96,Database!$F:$I,3,FALSE)),VLOOKUP($B93&$B96,Database!$F:$I,3,FALSE)),VLOOKUP($B92&$B96,Database!$F:$I,3,FALSE)),\"\"))","v":""},{"$f":"IF(IFERROR(IFERROR(IFERROR(IFERROR(VLOOKUP($B95&$B96,Database!$F:$I,4,FALSE),VLOOKUP($B94&$B96,Database!$F:$I,4,FALSE)),VLOOKUP($B93&$B96,Database!$F:$I,4,FALSE)),VLOOKUP($B92&$B96,Database!$F:$I,4,FALSE)),\"\")=0,\"\",IFERROR(IFERROR(IFERROR(IFERROR(VLOOKUP($B95&$B96,Database!$F:$I,4,FALSE),VLOOKUP($B94&$B96,Database!$F:$I,4,FALSE)),VLOOKUP($B93&$B96,Database!$F:$I,4,FALSE)),VLOOKUP($B92&$B96,Database!$F:$I,4,FALSE)),\"\"))","v":""}]
[null,null,null,{"$f":"IF(IFERROR(IFERROR(IFERROR(IFERROR(VLOOKUP($B96&$B97,Database!$F:$I,2,FALSE),VLOOKUP($B95&$B97,Database!$F:$I,2,FALSE)),VLOOKUP($B94&$B97,Database!$F:$I,2,FALSE)),VLOOKUP($B93&$B97,Database!$F:$I,2,FALSE)),\"\")=0,\"\",IFERROR(IFERROR(IFERROR(IFERROR(VLOOKUP($B96&$B97,Database!$F:$I,2,FALSE),VLOOKUP($B95&$B97,Database!$F:$I,2,FALSE)),VLOOKUP($B94&$B97,Database!$F:$I,2,FALSE)),VLOOKUP($B93&$B97,Database!$F:$I,2,FALSE)),\"\"))","v":""},{"$f":"IF(IFERROR(IFERROR(IFERROR(IFERROR(VLOOKUP($B96&$B97,Database!$F:$I,3,FALSE),VLOOKUP($B95&$B97,Database!$F:$I,3,FALSE)),VLOOKUP($B94&$B97,Database!$F:$I,3,FALSE)),VLOOKUP($B93&$B97,Database!$F:$I,3,FALSE)),\"\")=0,\"\",IFERROR(IFERROR(IFERROR(IFERROR(VLOOKUP($B96&$B97,Database!$F:$I,3,FALSE),VLOOKUP($B95&$B97,Database!$F:$I,3,FALSE)),VLOOKUP($B94&$B97,Database!$F:$I,3,FALSE)),VLOOKUP($B93&$B97,Database!$F:$I,3,FALSE)),\"\"))","v":""},{"$f":"IF(IFERROR(IFERROR(IFERROR(IFERROR(VLOOKUP($B96&$B97,Database!$F:$I,4,FALSE),VLOOKUP($B95&$B97,Database!$F:$I,4,FALSE)),VLOOKUP($B94&$B97,Database!$F:$I,4,FALSE)),VLOOKUP($B93&$B97,Database!$F:$I,4,FALSE)),\"\")=0,\"\",IFERROR(IFERROR(IFERROR(IFERROR(VLOOKUP($B96&$B97,Database!$F:$I,4,FALSE),VLOOKUP($B95&$B97,Database!$F:$I,4,FALSE)),VLOOKUP($B94&$B97,Database!$F:$I,4,FALSE)),VLOOKUP($B93&$B97,Database!$F:$I,4,FALSE)),\"\"))","v":""}]
[null,null,null,{"$f":"IF(IFERROR(IFERROR(IFERROR(IFERROR(VLOOKUP($B97&$B98,Database!$F:$I,2,FALSE),VLOOKUP($B96&$B98,Database!$F:$I,2,FALSE)),VLOOKUP($B95&$B98,Database!$F:$I,2,FALSE)),VLOOKUP($B94&$B98,Database!$F:$I,2,FALSE)),\"\")=0,\"\",IFERROR(IFERROR(IFERROR(IFERROR(VLOOKUP($B97&$B98,Database!$F:$I,2,FALSE),VLOOKUP($B96&$B98,Database!$F:$I,2,FALSE)),VLOOKUP($B95&$B98,Database!$F:$I,2,FALSE)),VLOOKUP($B94&$B98,Database!$F:$I,2,FALSE)),\"\"))","v":""},{"$f":"IF(IFERROR(IFERROR(IFERROR(IFERROR(VLOOKUP($B97&$B98,Database!$F:$I,3,FALSE),VLOOKUP($B96&$B98,Database!$F:$I,3,FALSE)),VLOOKUP($B95&$B98,Database!$F:$I,3,FALSE)),VLOOKUP($B94&$B98,Database!$F:$I,3,FALSE)),\"\")=0,\"\",IFERROR(IFERROR(IFERROR(IFERROR(VLOOKUP($B97&$B98,Database!$F:$I,3,FALSE),VLOOKUP($B96&$B98,Database!$F:$I,3,FALSE)),VLOOKUP($B95&$B98,Database!$F:$I,3,FALSE)),VLOOKUP($B94&$B98,Database!$F:$I,3,FALSE)),\"\"))","v":""},{"$f":"IF(IFERROR(IFERROR(IFERROR(IFERROR(VLOOKUP($B97&$B98,Database!$F:$I,4,FALSE),VLOOKUP($B96&$B98,Database!$F:$I,4,FALSE)),VLOOKUP($B95&$B98,Database!$F:$I,4,FALSE)),VLOOKUP($B94&$B98,Database!$F:$I,4,FALSE)),\"\")=0,\"\",IFERROR(IFERROR(IFERROR(IFERROR(VLOOKUP($B97&$B98,Database!$F:$I,4,FALSE),VLOOKUP($B96&$B98,Database!$F:$I,4,FALSE)),VLOOKUP($B95&$B98,Database!$F:$I,4,FALSE)),VLOOKUP($B94&$B98,Database!$F:$I,4,FALSE)),\"\"))","v":""}]
[null,null,null,{"$f":"IF(IFERROR(IFERROR(IFERROR(IFERROR(VLOOKUP($B98&$B99,Database!$F:$I,2,FALSE),VLOOKUP($B97&$B99,Database!$F:$I,2,FALSE)),VLOOKUP($B96&$B99,Database!$F:$I,2,FALSE)),VLOOKUP($B95&$B99,Database!$F:$I,2,FALSE)),\"\")=0,\"\",IFERROR(IFERROR(IFERROR(IFERROR(VLOOKUP($B98&$B99,Database!$F:$I,2,FALSE),VLOOKUP($B97&$B99,Database!$F:$I,2,FALSE)),VLOOKUP($B96&$B99,Database!$F:$I,2,FALSE)),VLOOKUP($B95&$B99,Database!$F:$I,2,FALSE)),\"\"))","v":""},{"$f":"IF(IFERROR(IFERROR(IFERROR(IFERROR(VLOOKUP($B98&$B99,Database!$F:$I,3,FALSE),VLOOKUP($B97&$B99,Database!$F:$I,3,FALSE)),VLOOKUP($B96&$B99,Database!$F:$I,3,FALSE)),VLOOKUP($B95&$B99,Database!$F:$I,3,FALSE)),\"\")=0,\"\",IFERROR(IFERROR(IFERROR(IFERROR(VLOOKUP($B98&$B99,Database!$F:$I,3,FALSE),VLOOKUP($B97&$B99,Database!$F:$I,3,FALSE)),VLOOKUP($B96&$B99,Database!$F:$I,3,FALSE)),VLOOKUP($B95&$B99,Database!$F:$I,3,FALSE)),\"\"))","v":""},{"$f":"IF(IFERROR(IFERROR(IFERROR(IFERROR(VLOOKUP($B98&$B99,Database!$F:$I,4,FALSE),VLOOKUP($B97&$B99,Database!$F:$I,4,FALSE)),VLOOKUP($B96&$B99,Database!$F:$I,4,FALSE)),VLOOKUP($B95&$B99,Database!$F:$I,4,FALSE)),\"\")=0,\"\",IFERROR(IFERROR(IFERROR(IFERROR(VLOOKUP($B98&$B99,Database!$F:$I,4,FALSE),VLOOKUP($B97&$B99,Database!$F:$I,4,FALSE)),VLOOKUP($B96&$B99,Database!$F:$I,4,FALSE)),VLOOKUP($B95&$B99,Database!$F:$I,4,FALSE)),\"\"))","v":""}]
[null,null,null,{"$f":"IF(IFERROR(IFERROR(IFERROR(IFERROR(VLOOKUP($B99&$B100,Database!$F:$I,2,FALSE),VLOOKUP($B98&$B100,Database!$F:$I,2,FALSE)),VLOOKUP($B97&$B100,Database!$F:$I,2,FALSE)),VLOOKUP($B96&$B100,Database!$F:$I,2,FALSE)),\"\")=0,\"\",IFERROR(IFERROR(IFERROR(IFERROR(VLOOKUP($B99&$B100,Database!$F:$I,2,FALSE),VLOOKUP($B98&$B100,Database!$F:$I,2,FALSE)),VLOOKUP($B97&$B100,Database!$F:$I,2,FALSE)),VLOOKUP($B96&$B100,Database!$F:$I,2,FALSE)),\"\"))","v":""},{"$f":"IF(IFERROR(IFERROR(IFERROR(IFERROR(VLOOKUP($B99&$B100,Database!$F:$I,3,FALSE),VLOOKUP($B98&$B100,Database!$F:$I,3,FALSE)),VLOOKUP($B97&$B100,Database!$F:$I,3,FALSE)),VLOOKUP($B96&$B100,Database!$F:$I,3,FALSE)),\"\")=0,\"\",IFERROR(IFERROR(IFERROR(IFERROR(VLOOKUP($B99&$B100,Database!$F:$I,3,FALSE),VLOOKUP($B98&$B100,Database!$F:$I,3,FALSE)),VLOOKUP($B97&$B100,Database!$F:$I,3,FALSE)),VLOOKUP($B96&$B100,Database!$F:$I,3,FALSE)),\"\"))","v":""},{"$f":"IF(IFERROR(IFERROR(IFERROR(IFERROR(VLOOKUP($B99&$B100,Database!$F:$I,4,FALSE),VLOOKUP($B98&$B100,Database!$F:$I,4,FALSE)),VLOOKUP($B97&$B100,Database!$F:$I,4,FALSE)),VLOOKUP($B96&$B100,Database!$F:$I,4,FALSE)),\"\")=0,\"\",IFERROR(IFERROR(IFERROR(IFERROR(VLOOKUP($B99&$B100,Database!$F:$I,4,FALSE),VLOOKUP($B98&$B100,Database!$F:$I,4,FALSE)),VLOOKUP($B97&$B100,Database!$F:$I,4,FALSE)),VLOOKUP($B96&$B100,Database!$F:$I,4,FALSE)),\"\"))","v":""}]
[null,null,null,{"$f":"IF(IFERROR(IFERROR(IFERROR(IFERROR(VLOOKUP($B100&$B101,Database!$F:$I,2,FALSE),VLOOKUP($B99&$B101,Database!$F:$I,2,FALSE)),VLOOKUP($B98&$B101,Database!$F:$I,2,FALSE)),VLOOKUP($B97&$B101,Database!$F:$I,2,FALSE)),\"\")=0,\"\",IFERROR(IFERROR(IFERROR(IFERROR(VLOOKUP($B100&$B101,Database!$F:$I,2,FALSE),VLOOKUP($B99&$B101,Database!$F:$I,2,FALSE)),VLOOKUP($B98&$B101,Database!$F:$I,2,FALSE)),VLOOKUP($B97&$B101,Database!$F:$I,2,FALSE)),\"\"))","v":""},{"$f":"IF(IFERROR(IFERROR(IFERROR(IFERROR(VLOOKUP($B100&$B101,Database!$F:$I,3,FALSE),VLOOKUP($B99&$B101,Database!$F:$I,3,FALSE)),VLOOKUP($B98&$B101,Database!$F:$I,3,FALSE)),VLOOKUP($B97&$B101,Database!$F:$I,3,FALSE)),\"\")=0,\"\",IFERROR(IFERROR(IFERROR(IFERROR(VLOOKUP($B100&$B101,Database!$F:$I,3,FALSE),VLOOKUP($B99&$B101,Database!$F:$I,3,FALSE)),VLOOKUP($B98&$B101,Database!$F:$I,3,FALSE)),VLOOKUP($B97&$B101,Database!$F:$I,3,FALSE)),\"\"))","v":""},{"$f":"IF(IFERROR(IFERROR(IFERROR(IFERROR(VLOOKUP($B100&$B101,Database!$F:$I,4,FALSE),VLOOKUP($B99&$B101,Database!$F:$I,4,FALSE)),VLOOKUP($B98&$B101,Database!$F:$I,4,FALSE)),VLOOKUP($B97&$B101,Database!$F:$I,4,FALSE)),\"\")=0,\"\",IFERROR(IFERROR(IFERROR(IFERROR(VLOOKUP($B100&$B101,Database!$F:$I,4,FALSE),VLOOKUP($B99&$B101,Database!$F:$I,4,FALSE)),VLOOKUP($B98&$B101,Database!$F:$I,4,FALSE)),VLOOKUP($B97&$B101,Database!$F:$I,4,FALSE)),\"\"))","v":""}]
[null,null,null,{"$f":"IF(IFERROR(IFERROR(IFERROR(IFERROR(VLOOKUP($B101&$B102,Database!$F:$I,2,FALSE),VLOOKUP($B100&$B102,Database!$F:$I,2,FALSE)),VLOOKUP($B99&$B102,Database!$F:$I,2,FALSE)),VLOOKUP($B98&$B102,Database!$F:$I,2,FALSE)),\"\")=0,\"\",IFERROR(IFERROR(IFERROR(IFERROR(VLOOKUP($B101&$B102,Database!$F:$I,2,FALSE),VLOOKUP($B100&$B102,Database!$F:$I,2,FALSE)),VLOOKUP($B99&$B102,Database!$F:$I,2,FALSE)),VLOOKUP($B98&$B102,Database!$F:$I,2,FALSE)),\"\"))","v":""},{"$f":"IF(IFERROR(IFERROR(IFERROR(IFERROR(VLOOKUP($B101&$B102,Database!$F:$I,3,FALSE),VLOOKUP($B100&$B102,Database!$F:$I,3,FALSE)),VLOOKUP($B99&$B102,Database!$F:$I,3,FALSE)),VLOOKUP($B98&$B102,Database!$F:$I,3,FALSE)),\"\")=0,\"\",IFERROR(IFERROR(IFERROR(IFERROR(VLOOKUP($B101&$B102,Database!$F:$I,3,FALSE),VLOOKUP($B100&$B102,Database!$F:$I,3,FALSE)),VLOOKUP($B99&$B102,Database!$F:$I,3,FALSE)),VLOOKUP($B98&$B102,Database!$F:$I,3,FALSE)),\"\"))","v":""},{"$f":"IF(IFERROR(IFERROR(IFERROR(IFERROR(VLOOKUP($B101&$B102,Database!$F:$I,4,FALSE),VLOOKUP($B100&$B102,Database!$F:$I,4,FALSE)),VLOOKUP($B99&$B102,Database!$F:$I,4,FALSE)),VLOOKUP($B98&$B102,Database!$F:$I,4,FALSE)),\"\")=0,\"\",IFERROR(IFERROR(IFERROR(IFERROR(VLOOKUP($B101&$B102,Database!$F:$I,4,FALSE),VLOOKUP($B100&$B102,Database!$F:$I,4,FALSE)),VLOOKUP($B99&$B102,Database!$F:$I,4,FALSE)),VLOOKUP($B98&$B102,Database!$F:$I,4,FALSE)),\"\"))","v":""}]
[null,null,null,{"$f":"IF(IFERROR(IFERROR(IFERROR(IFERROR(VLOOKUP($B102&$B103,Database!$F:$I,2,FALSE),VLOOKUP($B101&$B103,Database!$F:$I,2,FALSE)),VLOOKUP($B100&$B103,Database!$F:$I,2,FALSE)),VLOOKUP($B99&$B103,Database!$F:$I,2,FALSE)),\"\")=0,\"\",IFERROR(IFERROR(IFERROR(IFERROR(VLOOKUP($B102&$B103,Database!$F:$I,2,FALSE),VLOOKUP($B101&$B103,Database!$F:$I,2,FALSE)),VLOOKUP($B100&$B103,Database!$F:$I,2,FALSE)),VLOOKUP($B99&$B103,Database!$F:$I,2,FALSE)),\"\"))","v":""},{"$f":"IF(IFERROR(IFERROR(IFERROR(IFERROR(VLOOKUP($B102&$B103,Database!$F:$I,3,FALSE),VLOOKUP($B101&$B103,Database!$F:$I,3,FALSE)),VLOOKUP($B100&$B103,Database!$F:$I,3,FALSE)),VLOOKUP($B99&$B103,Database!$F:$I,3,FALSE)),\"\")=0,\"\",IFERROR(IFERROR(IFERROR(IFERROR(VLOOKUP($B102&$B103,Database!$F:$I,3,FALSE),VLOOKUP($B101&$B103,Database!$F:$I,3,FALSE)),VLOOKUP($B100&$B103,Database!$F:$I,3,FALSE)),VLOOKUP($B99&$B103,Database!$F:$I,3,FALSE)),\"\"))","v":""},{"$f":"IF(IFERROR(IFERROR(IFERROR(IFERROR(VLOOKUP($B102&$B103,Database!$F:$I,4,FALSE),VLOOKUP($B101&$B103,Database!$F:$I,4,FALSE)),VLOOKUP($B100&$B103,Database!$F:$I,4,FALSE)),VLOOKUP($B99&$B103,Database!$F:$I,4,FALSE)),\"\")=0,\"\",IFERROR(IFERROR(IFERROR(IFERROR(VLOOKUP($B102&$B103,Database!$F:$I,4,FALSE),VLOOKUP($B101&$B103,Database!$F:$I,4,FALSE)),VLOOKUP($B100&$B103,Database!$F:$I,4,FALSE)),VLOOKUP($B99&$B103,Database!$F:$I,4,FALSE)),\"\"))","v":""}]
[null,null,null,{"$f":"IF(IFERROR(IFERROR(IFERROR(IFERROR(VLOOKUP($B103&$B104,Database!$F:$I,2,FALSE),VLOOKUP($B102&$B104,Database!$F:$I,2,FALSE)),VLOOKUP($B101&$B104,Database!$F:$I,2,FALSE)),VLOOKUP($B100&$B104,Database!$F:$I,2,FALSE)),\"\")=0,\"\",IFERROR(IFERROR(IFERROR(IFERROR(VLOOKUP($B103&$B104,Database!$F:$I,2,FALSE),VLOOKUP($B102&$B104,Database!$F:$I,2,FALSE)),VLOOKUP($B101&$B104,Database!$F:$I,2,FALSE)),VLOOKUP($B100&$B104,Database!$F:$I,2,FALSE)),\"\"))","v":""},{"$f":"IF(IFERROR(IFERROR(IFERROR(IFERROR(VLOOKUP($B103&$B104,Database!$F:$I,3,FALSE),VLOOKUP($B102&$B104,Database!$F:$I,3,FALSE)),VLOOKUP($B101&$B104,Database!$F:$I,3,FALSE)),VLOOKUP($B100&$B104,Database!$F:$I,3,FALSE)),\"\")=0,\"\",IFERROR(IFERROR(IFERROR(IFERROR(VLOOKUP($B103&$B104,Database!$F:$I,3,FALSE),VLOOKUP($B102&$B104,Database!$F:$I,3,FALSE)),VLOOKUP($B101&$B104,Database!$F:$I,3,FALSE)),VLOOKUP($B100&$B104,Database!$F:$I,3,FALSE)),\"\"))","v":""},{"$f":"IF(IFERROR(IFERROR(IFERROR(IFERROR(VLOOKUP($B103&$B104,Database!$F:$I,4,FALSE),VLOOKUP($B102&$B104,Database!$F:$I,4,FALSE)),VLOOKUP($B101&$B104,Database!$F:$I,4,FALSE)),VLOOKUP($B100&$B104,Database!$F:$I,4,FALSE)),\"\")=0,\"\",IFERROR(IFERROR(IFERROR(IFERROR(VLOOKUP($B103&$B104,Database!$F:$I,4,FALSE),VLOOKUP($B102&$B104,Database!$F:$I,4,FALSE)),VLOOKUP($B101&$B104,Database!$F:$I,4,FALSE)),VLOOKUP($B100&$B104,Database!$F:$I,4,FALSE)),\"\"))","v":""}]
[null,null,null,{"$f":"IF(IFERROR(IFERROR(IFERROR(IFERROR(VLOOKUP($B104&$B105,Database!$F:$I,2,FALSE),VLOOKUP($B103&$B105,Database!$F:$I,2,FALSE)),VLOOKUP($B102&$B105,Database!$F:$I,2,FALSE)),VLOOKUP($B101&$B105,Database!$F:$I,2,FALSE)),\"\")=0,\"\",IFERROR(IFERROR(IFERROR(IFERROR(VLOOKUP($B104&$B105,Database!$F:$I,2,FALSE),VLOOKUP($B103&$B105,Database!$F:$I,2,FALSE)),VLOOKUP($B102&$B105,Database!$F:$I,2,FALSE)),VLOOKUP($B101&$B105,Database!$F:$I,2,FALSE)),\"\"))","v":""},{"$f":"IF(IFERROR(IFERROR(IFERROR(IFERROR(VLOOKUP($B104&$B105,Database!$F:$I,3,FALSE),VLOOKUP($B103&$B105,Database!$F:$I,3,FALSE)),VLOOKUP($B102&$B105,Database!$F:$I,3,FALSE)),VLOOKUP($B101&$B105,Database!$F:$I,3,FALSE)),\"\")=0,\"\",IFERROR(IFERROR(IFERROR(IFERROR(VLOOKUP($B104&$B105,Database!$F:$I,3,FALSE),VLOOKUP($B103&$B105,Database!$F:$I,3,FALSE)),VLOOKUP($B102&$B105,Database!$F:$I,3,FALSE)),VLOOKUP($B101&$B105,Database!$F:$I,3,FALSE)),\"\"))","v":""},{"$f":"IF(IFERROR(IFERROR(IFERROR(IFERROR(VLOOKUP($B104&$B105,Database!$F:$I,4,FALSE),VLOOKUP($B103&$B105,Database!$F:$I,4,FALSE)),VLOOKUP($B102&$B105,Database!$F:$I,4,FALSE)),VLOOKUP($B101&$B105,Database!$F:$I,4,FALSE)),\"\")=0,\"\",IFERROR(IFERROR(IFERROR(IFERROR(VLOOKUP($B104&$B105,Database!$F:$I,4,FALSE),VLOOKUP($B103&$B105,Database!$F:$I,4,FALSE)),VLOOKUP($B102&$B105,Database!$F:$I,4,FALSE)),VLOOKUP($B101&$B105,Database!$F:$I,4,FALSE)),\"\"))","v":""}]
[null,null,null,{"$f":"IF(IFERROR(IFERROR(IFERROR(IFERROR(VLOOKUP($B105&$B106,Database!$F:$I,2,FALSE),VLOOKUP($B104&$B106,Database!$F:$I,2,FALSE)),VLOOKUP($B103&$B106,Database!$F:$I,2,FALSE)),VLOOKUP($B102&$B106,Database!$F:$I,2,FALSE)),\"\")=0,\"\",IFERROR(IFERROR(IFERROR(IFERROR(VLOOKUP($B105&$B106,Database!$F:$I,2,FALSE),VLOOKUP($B104&$B106,Database!$F:$I,2,FALSE)),VLOOKUP($B103&$B106,Database!$F:$I,2,FALSE)),VLOOKUP($B102&$B106,Database!$F:$I,2,FALSE)),\"\"))","v":""},{"$f":"IF(IFERROR(IFERROR(IFERROR(IFERROR(VLOOKUP($B105&$B106,Database!$F:$I,3,FALSE),VLOOKUP($B104&$B106,Database!$F:$I,3,FALSE)),VLOOKUP($B103&$B106,Database!$F:$I,3,FALSE)),VLOOKUP($B102&$B106,Database!$F:$I,3,FALSE)),\"\")=0,\"\",IFERROR(IFERROR(IFERROR(IFERROR(VLOOKUP($B105&$B106,Database!$F:$I,3,FALSE),VLOOKUP($B104&$B106,Database!$F:$I,3,FALSE)),VLOOKUP($B103&$B106,Database!$F:$I,3,FALSE)),VLOOKUP($B102&$B106,Database!$F:$I,3,FALSE)),\"\"))","v":""},{"$f":"IF(IFERROR(IFERROR(IFERROR(IFERROR(VLOOKUP($B105&$B106,Database!$F:$I,4,FALSE),VLOOKUP($B104&$B106,Database!$F:$I,4,FALSE)),VLOOKUP($B103&$B106,Database!$F:$I,4,FALSE)),VLOOKUP($B102&$B106,Database!$F:$I,4,FALSE)),\"\")=0,\"\",IFERROR(IFERROR(IFERROR(IFERROR(VLOOKUP($B105&$B106,Database!$F:$I,4,FALSE),VLOOKUP($B104&$B106,Database!$F:$I,4,FALSE)),VLOOKUP($B103&$B106,Database!$F:$I,4,FALSE)),VLOOKUP($B102&$B106,Database!$F:$I,4,FALSE)),\"\"))","v":""}]
[null,null,null,{"$f":"IF(IFERROR(IFERROR(IFERROR(IFERROR(VLOOKUP($B106&$B107,Database!$F:$I,2,FALSE),VLOOKUP($B105&$B107,Database!$F:$I,2,FALSE)),VLOOKUP($B104&$B107,Database!$F:$I,2,FALSE)),VLOOKUP($B103&$B107,Database!$F:$I,2,FALSE)),\"\")=0,\"\",IFERROR(IFERROR(IFERROR(IFERROR(VLOOKUP($B106&$B107,Database!$F:$I,2,FALSE),VLOOKUP($B105&$B107,Database!$F:$I,2,FALSE)),VLOOKUP($B104&$B107,Database!$F:$I,2,FALSE)),VLOOKUP($B103&$B107,Database!$F:$I,2,FALSE)),\"\"))","v":""},{"$f":"IF(IFERROR(IFERROR(IFERROR(IFERROR(VLOOKUP($B106&$B107,Database!$F:$I,3,FALSE),VLOOKUP($B105&$B107,Database!$F:$I,3,FALSE)),VLOOKUP($B104&$B107,Database!$F:$I,3,FALSE)),VLOOKUP($B103&$B107,Database!$F:$I,3,FALSE)),\"\")=0,\"\",IFERROR(IFERROR(IFERROR(IFERROR(VLOOKUP($B106&$B107,Database!$F:$I,3,FALSE),VLOOKUP($B105&$B107,Database!$F:$I,3,FALSE)),VLOOKUP($B104&$B107,Database!$F:$I,3,FALSE)),VLOOKUP($B103&$B107,Database!$F:$I,3,FALSE)),\"\"))","v":""},{"$f":"IF(IFERROR(IFERROR(IFERROR(IFERROR(VLOOKUP($B106&$B107,Database!$F:$I,4,FALSE),VLOOKUP($B105&$B107,Database!$F:$I,4,FALSE)),VLOOKUP($B104&$B107,Database!$F:$I,4,FALSE)),VLOOKUP($B103&$B107,Database!$F:$I,4,FALSE)),\"\")=0,\"\",IFERROR(IFERROR(IFERROR(IFERROR(VLOOKUP($B106&$B107,Database!$F:$I,4,FALSE),VLOOKUP($B105&$B107,Database!$F:$I,4,FALSE)),VLOOKUP($B104&$B107,Database!$F:$I,4,FALSE)),VLOOKUP($B103&$B107,Database!$F:$I,4,FALSE)),\"\"))","v":""}]
[null,null,null,{"$f":"IF(IFERROR(IFERROR(IFERROR(IFERROR(VLOOKUP($B107&$B108,Database!$F:$I,2,FALSE),VLOOKUP($B106&$B108,Database!$F:$I,2,FALSE)),VLOOKUP($B105&$B108,Database!$F:$I,2,FALSE)),VLOOKUP($B104&$B108,Database!$F:$I,2,FALSE)),\"\")=0,\"\",IFERROR(IFERROR(IFERROR(IFERROR(VLOOKUP($B107&$B108,Database!$F:$I,2,FALSE),VLOOKUP($B106&$B108,Database!$F:$I,2,FALSE)),VLOOKUP($B105&$B108,Database!$F:$I,2,FALSE)),VLOOKUP($B104&$B108,Database!$F:$I,2,FALSE)),\"\"))","v":""},{"$f":"IF(IFERROR(IFERROR(IFERROR(IFERROR(VLOOKUP($B107&$B108,Database!$F:$I,3,FALSE),VLOOKUP($B106&$B108,Database!$F:$I,3,FALSE)),VLOOKUP($B105&$B108,Database!$F:$I,3,FALSE)),VLOOKUP($B104&$B108,Database!$F:$I,3,FALSE)),\"\")=0,\"\",IFERROR(IFERROR(IFERROR(IFERROR(VLOOKUP($B107&$B108,Database!$F:$I,3,FALSE),VLOOKUP($B106&$B108,Database!$F:$I,3,FALSE)),VLOOKUP($B105&$B108,Database!$F:$I,3,FALSE)),VLOOKUP($B104&$B108,Database!$F:$I,3,FALSE)),\"\"))","v":""},{"$f":"IF(IFERROR(IFERROR(IFERROR(IFERROR(VLOOKUP($B107&$B108,Database!$F:$I,4,FALSE),VLOOKUP($B106&$B108,Database!$F:$I,4,FALSE)),VLOOKUP($B105&$B108,Database!$F:$I,4,FALSE)),VLOOKUP($B104&$B108,Database!$F:$I,4,FALSE)),\"\")=0,\"\",IFERROR(IFERROR(IFERROR(IFERROR(VLOOKUP($B107&$B108,Database!$F:$I,4,FALSE),VLOOKUP($B106&$B108,Database!$F:$I,4,FALSE)),VLOOKUP($B105&$B108,Database!$F:$I,4,FALSE)),VLOOKUP($B104&$B108,Database!$F:$I,4,FALSE)),\"\"))","v":""}]
[null,null,null,{"$f":"IF(IFERROR(IFERROR(IFERROR(IFERROR(VLOOKUP($B108&$B109,Database!$F:$I,2,FALSE),VLOOKUP($B107&$B109,Database!$F:$I,2,FALSE)),VLOOKUP($B106&$B109,Database!$F:$I,2,FALSE)),VLOOKUP($B105&$B109,Database!$F:$I,2,FALSE)),\"\")=0,\"\",IFERROR(IFERROR(IFERROR(IFERROR(VLOOKUP($B108&$B109,Database!$F:$I,2,FALSE),VLOOKUP($B107&$B109,Database!$F:$I,2,FALSE)),VLOOKUP($B106&$B109,Database!$F:$I,2,FALSE)),VLOOKUP($B105&$B109,Database!$F:$I,2,FALSE)),\"\"))","v":""},{"$f":"IF(IFERROR(IFERROR(IFERROR(IFERROR(VLOOKUP($B108&$B109,Database!$F:$I,3,FALSE),VLOOKUP($B107&$B109,Database!$F:$I,3,FALSE)),VLOOKUP($B106&$B109,Database!$F:$I,3,FALSE)),VLOOKUP($B105&$B109,Database!$F:$I,3,FALSE)),\"\")=0,\"\",IFERROR(IFERROR(IFERROR(IFERROR(VLOOKUP($B108&$B109,Database!$F:$I,3,FALSE),VLOOKUP($B107&$B109,Database!$F:$I,3,FALSE)),VLOOKUP($B106&$B109,Database!$F:$I,3,FALSE)),VLOOKUP($B105&$B109,Database!$F:$I,3,FALSE)),\"\"))","v":""},{"$f":"IF(IFERROR(IFERROR(IFERROR(IFERROR(VLOOKUP($B108&$B109,Database!$F:$I,4,FALSE),VLOOKUP($B107&$B109,Database!$F:$I,4,FALSE)),VLOOKUP($B106&$B109,Database!$F:$I,4,FALSE)),VLOOKUP($B105&$B109,Database!$F:$I,4,FALSE)),\"\")=0,\"\",IFERROR(IFERROR(IFERROR(IFERROR(VLOOKUP($B108&$B109,Database!$F:$I,4,FALSE),VLOOKUP($B107&$B109,Database!$F:$I,4,FALSE)),VLOOKUP($B106&$B109,Database!$F:$I,4,FALSE)),VLOOKUP($B105&$B109,Database!$F:$I,4,FALSE)),\"\"))","v":""}]
[null,null,null,{"$f":"IF(IFERROR(IFERROR(IFERROR(IFERROR(VLOOKUP($B109&$B110,Database!$F:$I,2,FALSE),VLOOKUP($B108&$B110,Database!$F:$I,2,FALSE)),VLOOKUP($B107&$B110,Database!$F:$I,2,FALSE)),VLOOKUP($B106&$B110,Database!$F:$I,2,FALSE)),\"\")=0,\"\",IFERROR(IFERROR(IFERROR(IFERROR(VLOOKUP($B109&$B110,Database!$F:$I,2,FALSE),VLOOKUP($B108&$B110,Database!$F:$I,2,FALSE)),VLOOKUP($B107&$B110,Database!$F:$I,2,FALSE)),VLOOKUP($B106&$B110,Database!$F:$I,2,FALSE)),\"\"))","v":""},{"$f":"IF(IFERROR(IFERROR(IFERROR(IFERROR(VLOOKUP($B109&$B110,Database!$F:$I,3,FALSE),VLOOKUP($B108&$B110,Database!$F:$I,3,FALSE)),VLOOKUP($B107&$B110,Database!$F:$I,3,FALSE)),VLOOKUP($B106&$B110,Database!$F:$I,3,FALSE)),\"\")=0,\"\",IFERROR(IFERROR(IFERROR(IFERROR(VLOOKUP($B109&$B110,Database!$F:$I,3,FALSE),VLOOKUP($B108&$B110,Database!$F:$I,3,FALSE)),VLOOKUP($B107&$B110,Database!$F:$I,3,FALSE)),VLOOKUP($B106&$B110,Database!$F:$I,3,FALSE)),\"\"))","v":""},{"$f":"IF(IFERROR(IFERROR(IFERROR(IFERROR(VLOOKUP($B109&$B110,Database!$F:$I,4,FALSE),VLOOKUP($B108&$B110,Database!$F:$I,4,FALSE)),VLOOKUP($B107&$B110,Database!$F:$I,4,FALSE)),VLOOKUP($B106&$B110,Database!$F:$I,4,FALSE)),\"\")=0,\"\",IFERROR(IFERROR(IFERROR(IFERROR(VLOOKUP($B109&$B110,Database!$F:$I,4,FALSE),VLOOKUP($B108&$B110,Database!$F:$I,4,FALSE)),VLOOKUP($B107&$B110,Database!$F:$I,4,FALSE)),VLOOKUP($B106&$B110,Database!$F:$I,4,FALSE)),\"\"))","v":""}]
[null,null,null,{"$f":"IF(IFERROR(IFERROR(IFERROR(IFERROR(VLOOKUP($B110&$B111,Database!$F:$I,2,FALSE),VLOOKUP($B109&$B111,Database!$F:$I,2,FALSE)),VLOOKUP($B108&$B111,Database!$F:$I,2,FALSE)),VLOOKUP($B107&$B111,Database!$F:$I,2,FALSE)),\"\")=0,\"\",IFERROR(IFERROR(IFERROR(IFERROR(VLOOKUP($B110&$B111,Database!$F:$I,2,FALSE),VLOOKUP($B109&$B111,Database!$F:$I,2,FALSE)),VLOOKUP($B108&$B111,Database!$F:$I,2,FALSE)),VLOOKUP($B107&$B111,Database!$F:$I,2,FALSE)),\"\"))","v":""},{"$f":"IF(IFERROR(IFERROR(IFERROR(IFERROR(VLOOKUP($B110&$B111,Database!$F:$I,3,FALSE),VLOOKUP($B109&$B111,Database!$F:$I,3,FALSE)),VLOOKUP($B108&$B111,Database!$F:$I,3,FALSE)),VLOOKUP($B107&$B111,Database!$F:$I,3,FALSE)),\"\")=0,\"\",IFERROR(IFERROR(IFERROR(IFERROR(VLOOKUP($B110&$B111,Database!$F:$I,3,FALSE),VLOOKUP($B109&$B111,Database!$F:$I,3,FALSE)),VLOOKUP($B108&$B111,Database!$F:$I,3,FALSE)),VLOOKUP($B107&$B111,Database!$F:$I,3,FALSE)),\"\"))","v":""},{"$f":"IF(IFERROR(IFERROR(IFERROR(IFERROR(VLOOKUP($B110&$B111,Database!$F:$I,4,FALSE),VLOOKUP($B109&$B111,Database!$F:$I,4,FALSE)),VLOOKUP($B108&$B111,Database!$F:$I,4,FALSE)),VLOOKUP($B107&$B111,Database!$F:$I,4,FALSE)),\"\")=0,\"\",IFERROR(IFERROR(IFERROR(IFERROR(VLOOKUP($B110&$B111,Database!$F:$I,4,FALSE),VLOOKUP($B109&$B111,Database!$F:$I,4,FALSE)),VLOOKUP($B108&$B111,Database!$F:$I,4,FALSE)),VLOOKUP($B107&$B111,Database!$F:$I,4,FALSE)),\"\"))","v":""}]
[null,null,null,{"$f":"IF(IFERROR(IFERROR(IFERROR(IFERROR(VLOOKUP($B111&$B112,Database!$F:$I,2,FALSE),VLOOKUP($B110&$B112,Database!$F:$I,2,FALSE)),VLOOKUP($B109&$B112,Database!$F:$I,2,FALSE)),VLOOKUP($B108&$B112,Database!$F:$I,2,FALSE)),\"\")=0,\"\",IFERROR(IFERROR(IFERROR(IFERROR(VLOOKUP($B111&$B112,Database!$F:$I,2,FALSE),VLOOKUP($B110&$B112,Database!$F:$I,2,FALSE)),VLOOKUP($B109&$B112,Database!$F:$I,2,FALSE)),VLOOKUP($B108&$B112,Database!$F:$I,2,FALSE)),\"\"))","v":""},{"$f":"IF(IFERROR(IFERROR(IFERROR(IFERROR(VLOOKUP($B111&$B112,Database!$F:$I,3,FALSE),VLOOKUP($B110&$B112,Database!$F:$I,3,FALSE)),VLOOKUP($B109&$B112,Database!$F:$I,3,FALSE)),VLOOKUP($B108&$B112,Database!$F:$I,3,FALSE)),\"\")=0,\"\",IFERROR(IFERROR(IFERROR(IFERROR(VLOOKUP($B111&$B112,Database!$F:$I,3,FALSE),VLOOKUP($B110&$B112,Database!$F:$I,3,FALSE)),VLOOKUP($B109&$B112,Database!$F:$I,3,FALSE)),VLOOKUP($B108&$B112,Database!$F:$I,3,FALSE)),\"\"))","v":""},{"$f":"IF(IFERROR(IFERROR(IFERROR(IFERROR(VLOOKUP($B111&$B112,Database!$F:$I,4,FALSE),VLOOKUP($B110&$B112,Database!$F:$I,4,FALSE)),VLOOKUP($B109&$B112,Database!$F:$I,4,FALSE)),VLOOKUP($B108&$B112,Database!$F:$I,4,FALSE)),\"\")=0,\"\",IFERROR(IFERROR(IFERROR(IFERROR(VLOOKUP($B111&$B112,Database!$F:$I,4,FALSE),VLOOKUP($B110&$B112,Database!$F:$I,4,FALSE)),VLOOKUP($B109&$B112,Database!$F:$I,4,FALSE)),VLOOKUP($B108&$B112,Database!$F:$I,4,FALSE)),\"\"))","v":""}]

{"sheet":"Explanations","index":1,"n_rows":18,"n_cols":2,"rows_kept":18,"cut":false,"hidden":false,"merged":[]}
["Name of Skill","Definition"]
["Information System","Ability to use or to configure an Information System tool"]
["Human relationships","Ability to work with other collaborators or organisation partner (e.g. suppliers, customers…)"]
["Management Control","Ability to analyse figures and propose conclusions and recommandations"]
["Web IT languages","Ability to produce apps/websites/dashboards thanks web technologies"]
["Project Management","Ability to conduct projects"]
["Accounting","Ability to understand and to make financial statements"]
["Management","Knowing general management sciences and concepts"]
["Web marketing","Ability to promote a product or service on internet"]
["Languages","Ability to speak a foreign language (as English or German)"]
["Adaptation to a new culture","Ability to integrate a new culture"]
["Training","Ability to explain how work a new tool/software/solution and accompagny users in learning"]
["Seeking information","Ability to find information on a unknown subject and understand its stakes"]
["Speaking to a large audiance","Ability to speak front a large public"]
["Communication","Ability to spread information"]
["CMS","Ability to create Dashboard/app/website with a Content Management System"]
["Maths","Heavy knowledges in Maths"]
["Economic sciences","Ability to understand and analyse a complex economic situation"]

{"sheet":"Database","index":2,"n_rows":1048576,"n_cols":24,"rows_kept":4500,"cut":true,"hidden":false,"merged":[],"bounds":{"rows_first":2000,"rows_last":500,"rows_between":2000,"halvings":0},"read":"row_number_cap"}
["Beginning date","Duration (month)","Section","Organisation","Mission","Concatenation","Skill 1","Skill 2","Skill 3",null,null,null,null,null,null,null,"Number"]
["2016-05-01",2,"Work Experiences","CHRU Nancy","Audit of needs for a new BI solution",{"$f":"D2&E2","v":"CHRU NancyAudit of needs for a new BI solution"},"Information System","Human relationships","Management Control",null,null,null,null,null,null,null,"Duration"]
["2016-03-15",1.5,"Work Experiences","CHRU Nancy","Reporting tool creation","CHRU NancyReporting tool creation","Management Control","Web IT languages","Project Management"]
["2016-01-01",2.5,"Work Experiences","CHRU Nancy","Analyses ad hoc and reporting","CHRU NancyAnalyses ad hoc and reporting","Management Control","Accounting","Information System"]
["2015-09-01",4,"Education","ICN Business School","Specialization Finance/Management Control","ICN Business SchoolSpecialization Finance/Management Control","Management Control","Accounting","Management"]
["2015-04-01",9,"Work Experiences","Walliks","Running business","WalliksRunning business","Management","Web marketing","Management Control"]
["2015-03-01",1,"Work Experiences","Walliks","Administrative creation","WalliksAdministrative creation","Human relationships","Management"]
["2015-01-01",4.5,"Education","Eastern Michigan University","General management courses","Eastern Michigan UniversityGeneral management courses","Management","Languages","Adaptation to a new culture",null,null,null,null,null,null,null,"Most developped skills","Skill 1","Skill 2","Skill 3","TOTAL",null,"Most done missions"]
["2014-10-01",6,"Work Experiences","Walliks","Creating the web plateform","WalliksCreating the web plateform","Web IT languages","Project Management",null,null,null,null,null,null,null,null,"Information System",{"$f":"IFERROR(IF(COUNTIF(Resume!D:D,$Q9)=0,\"\",COUNTIF(Resume!D:D,$Q9)),\"\")","v":2},{"$f":"IFERROR(IF(COUNTIF(Resume!E:E,$Q9)=0,\"\",COUNTIF(Resume!E:E,$Q9)),\"\")","v":1},{"$f":"IFERROR(IF(COUNTIF(Resume!F:F,$Q9)=0,\"\",COUNTIF(Resume!F:F,$Q9)),\"\")","v":1},{"$f":"IF(Resume!$B$22=\"Duration\",(SUMIF(Resume!D:D,Q9,Resume!C:C)+SUMIF(Resume!E:E,Q9,Resume!C:C)+SUMIF(Resume!F:F,Q9,Resume!C:C)),SUM(R9:T9))","v":8.5},null,"Audit of needs for a new BI solution",{"$f":"IF(Resume!$B$22=\"Duration\",SUMIF(Resume!B:B,W9,Resume!C:C),COUNTIF(Resume!B:B,W9))","v":2}]
["2014-08-01",2,"Work Experiences","Walliks","Business Model creation","WalliksBusiness Model creation","Management","Human relationships",null,null,null,null,null,null,null,null,"Human relationships",{"$f":"IFERROR(IF(COUNTIF(Resume!D:D,$Q10)=0,\"\",COUNTIF(Resume!D:D,$Q10)),\"\")","v":2},{"$f":"IFERROR(IF(COUNTIF(Resume!E:E,$Q10)=0,\"\",COUNTIF(Resume!E:E,$Q10)),\"\")","v":2},{"$f":"IFERROR(IF(COUNTIF(Resume!F:F,$Q10)=0,\"\",COUNTIF(Resume!F:F,$Q10)),\"\")","v":""},{"$f":"IF(Resume!$B$22=\"Duration\",(SUMIF(Resume!D:D,Q10,Resume!C:C)+SUMIF(Resume!E:E,Q10,Resume!C:C)+SUMIF(Resume!F:F,Q10,Resume!C:C)),SUM(R10:T10))","v":8},null,"Reporting tool creation",{"$f":"IF(Resume!$B$22=\"Duration\",SUMIF(Resume!B:B,W10,Resume!C:C),COUNTIF(Resume!B:B,W10))","v":5.5}]
["2014-07-01",1,"Work Experiences","Solis-Bioone","Change Management","Solis-BiooneChange Management","Human relationships","Training","Project Management",null,null,null,null,null,null,null,"Management Control",{"$f":"IFERROR(IF(COUNTIF(Resume!D:D,$Q11)=0,\"\",COUNTIF(Resume!D:D,$Q11)),\"\")","v":5},{"$f":"IFERROR(IF(COUNTIF(Resume!E:E,$Q11)=0,\"\",COUNTIF(Resume!E:E,$Q11)),\"\")","v":""},{"$f":"IFERROR(IF(COUNTIF(Resume!F:F,$Q11)=0,\"\",COUNTIF(Resume!F:F,$Q11)),\"\")","v":3},{"$f":"IF(Resume!$B$22=\"Duration\",(SUMIF(Resume!D:D,Q11,Resume!C:C)+SUMIF(Resume!E:E,Q11,Resume!C:C)+SUMIF(Resume!F:F,Q11,Resume!C:C)),SUM(R11:T11))","v":53},null,"Analyses ad hoc and reporting",{"$f":"IF(Resume!$B$22=\"Duration\",SUMIF(Resume!B:B,W11,Resume!C:C),COUNTIF(Resume!B:B,W11))","v":11.5}]
["2014-06-01",1,"Work Experiences","Solis-Bioone","Implementing CRM","Solis-BiooneImplementing CRM","Information System","Project Management","Web IT languages",null,null,null,null,null,null,null,"Web IT languages",{"$f":"IFERROR(IF(COUNTIF(Resume!D:D,$Q12)=0,\"\",COUNTIF(Resume!D:D,$Q12)),\"\")","v":1},{"$f":"IFERROR(IF(COUNTIF(Resume!E:E,$Q12)=0,\"\",COUNTIF(Resume!E:E,$Q12)),\"\")","v":1},{"$f":"IFERROR(IF(COUNTIF(Resume!F:F,$Q12)=0,\"\",COUNTIF(Resume!F:F,$Q12)),\"\")","v":2},{"$f":"IF(Resume!$B$22=\"Duration\",(SUMIF(Resume!D:D,Q12,Resume!C:C)+SUMIF(Resume!E:E,Q12,Resume!C:C)+SUMIF(Resume!F:F,Q12,Resume!C:C)),SUM(R12:T12))","v":11.5},null,"Specialization Finance/Management Control",{"$f":"IF(Resume!$B$22=\"Duration\",SUMIF(Resume!B:B,W12,Resume!C:C),COUNTIF(Resume!B:B,W12))","v":16}]
["2014-03-01",26,"Leisure","Radio Campus Lorraine","Presenting Radio shows","Radio Campus LorrainePresenting Radio shows","Management","Seeking information","Speaking to a large audiance",null,null,null,null,null,null,null,"Project Management",{"$f":"IFERROR(IF(COUNTIF(Resume!D:D,$Q13)=0,\"\",COUNTIF(Resume!D:D,$Q13)),\"\")","v":1},{"$f":"IFERROR(IF(COUNTIF(Resume!E:E,$Q13)=0,\"\",COUNTIF(Resume!E:E,$Q13)),\"\")","v":2},{"$f":"IFERROR(IF(COUNTIF(Resume!F:F,$Q13)=0,\"\",COUNTIF(Resume!F:F,$Q13)),\"\")","v":3},{"$f":"IF(Resume!$B$22=\"Duration\",(SUMIF(Resume!D:D,Q13,Resume!C:C)+SUMIF(Resume!E:E,Q13,Resume!C:C)+SUMIF(Resume!F:F,Q13,Resume!C:C)),SUM(R13:T13))","v":15.5},null,"Running business",{"$f":"IF(Resume!$B$22=\"Duration\",SUMIF(Resume!B:B,W13,Resume!C:C),COUNTIF(Resume!B:B,W13))","v":9}]
["2013-09-01",12,"Education","ICN Business School","Specialization Finance/Management Control","ICN Business SchoolSpecialization Finance/Management Control","Management Control","Accounting","Management",null,null,null,null,null,null,null,"Accounting",{"$f":"IFERROR(IF(COUNTIF(Resume!D:D,$Q14)=0,\"\",COUNTIF(Resume!D:D,$Q14)),\"\")","v":""},{"$f":"IFERROR(IF(COUNTIF(Resume!E:E,$Q14)=0,\"\",COUNTIF(Resume!E:E,$Q14)),\"\")","v":4},{"$f":"IFERROR(IF(COUNTIF(Resume!F:F,$Q14)=0,\"\",COUNTIF(Resume!F:F,$Q14)),\"\")","v":""},{"$f":"IF(Resume!$B$22=\"Duration\",(SUMIF(Resume!D:D,Q14,Resume!C:C)+SUMIF(Resume!E:E,Q14,Resume!C:C)+SUMIF(Resume!F:F,Q14,Resume!C:C)),SUM(R14:T14))","v":39.5},null,"Administrative creation",{"$f":"IF(Resume!$B$22=\"Duration\",SUMIF(Resume!B:B,W14,Resume!C:C),COUNTIF(Resume!B:B,W14))","v":1}]
["2013-09-01",36,"Leisure","Improdisiaque","Player","ImprodisiaquePlayer","Speaking to a large audiance","Management","Communication",null,null,null,null,null,null,null,"Management",{"$f":"IFERROR(IF(COUNTIF(Resume!D:D,$Q15)=0,\"\",COUNTIF(Resume!D:D,$Q15)),\"\")","v":5},{"$f":"IFERROR(IF(COUNTIF(Resume!E:E,$Q15)=0,\"\",COUNTIF(Resume!E:E,$Q15)),\"\")","v":2},{"$f":"IFERROR(IF(COUNTIF(Resume!F:F,$Q15)=0,\"\",COUNTIF(Resume!F:F,$Q15)),\"\")","v":1},{"$f":"IF(Resume!$B$22=\"Duration\",(SUMIF(Resume!D:D,Q15,Resume!C:C)+SUMIF(Resume!E:E,Q15,Resume!C:C)+SUMIF(Resume!F:F,Q15,Resume!C:C)),SUM(R15:T15))","v":106.5},null,"General management courses",{"$f":"IF(Resume!$B$22=\"Duration\",SUMIF(Resume!B:B,W15,Resume!C:C),COUNTIF(Resume!B:B,W15))","v":16.5}]
["2013-07-01",2,"Work Experiences","Solis-Bioone","Change Management","Solis-BiooneChange Management","Human relationships","Training","Project Management",null,null,null,null,null,null,null,"Web marketing",{"$f":"IFERROR(IF(COUNTIF(Resume!D:D,$Q16)=0,\"\",COUNTIF(Resume!D:D,$Q16)),\"\")","v":""},{"$f":"IFERROR(IF(COUNTIF(Resume!E:E,$Q16)=0,\"\",COUNTIF(Resume!E:E,$Q16)),\"\")","v":1},{"$f":"IFERROR(IF(COUNTIF(Resume!F:F,$Q16)=0,\"\",COUNTIF(Resume!F:F,$Q16)),\"\")","v":""},{"$f":"IF(Resume!$B$22=\"Duration\",(SUMIF(Resume!D:D,Q16,Resume!C:C)+SUMIF(Resume!E:E,Q16,Resume!C:C)+SUMIF(Resume!F:F,Q16,Resume!C:C)),SUM(R16:T16))","v":9},null,"Creating the web plateform",{"$f":"IF(Resume!$B$22=\"Duration\",SUMIF(Resume!B:B,W16,Resume!C:C),COUNTIF(Resume!B:B,W16))","v":6}]
["2013-06-01",1,"Work Experiences","Solis-Bioone","Reporting tool creation","Solis-BiooneReporting tool creation","Management Control","CMS","Project Management",null,null,null,null,null,null,null,null,{"$f":"IFERROR(IF(COUNTIF(Resume!D:D,$Q17)=0,\"\",COUNTIF(Resume!D:D,$Q17)),\"\")","v":""},{"$f":"IFERROR(IF(COUNTIF(Resume!E:E,$Q17)=0,\"\",COUNTIF(Resume!E:E,$Q17)),\"\")","v":""},{"$f":"IFERROR(IF(COUNTIF(Resume!F:F,$Q17)=0,\"\",COUNTIF(Resume!F:F,$Q17)),\"\")","v":""},{"$f":"IF(Resume!$B$22=\"Duration\",(SUMIF(Resume!D:D,Q17,Resume!C:C)+SUMIF(Resume!E:E,Q17,Resume!C:C)+SUMIF(Resume!F:F,Q17,Resume!C:C)),SUM(R17:T17))","v":0},null,"Business Model creation",{"$f":"IF(Resume!$B$22=\"Duration\",SUMIF(Resume!B:B,W17,Resume!C:C),COUNTIF(Resume!B:B,W17))","v":2}]
["2012-09-01",12,"Education","ICN Business School","General management courses","ICN Business SchoolGeneral management courses","Management","Accounting","Management Control",null,null,null,null,null,null,null,"Languages",{"$f":"IFERROR(IF(COUNTIF(Resume!D:D,$Q18)=0,\"\",COUNTIF(Resume!D:D,$Q18)),\"\")","v":""},{"$f":"IFERROR(IF(COUNTIF(Resume!E:E,$Q18)=0,\"\",COUNTIF(Resume!E:E,$Q18)),\"\")","v":1},{"$f":"IFERROR(IF(COUNTIF(Resume!F:F,$Q18)=0,\"\",COUNTIF(Resume!F:F,$Q18)),\"\")","v":1},{"$f":"IF(Resume!$B$22=\"Duration\",(SUMIF(Resume!D:D,Q18,Resume!C:C)+SUMIF(Resume!E:E,Q18,Resume!C:C)+SUMIF(Resume!F:F,Q18,Resume!C:C)),SUM(R18:T18))","v":28.5},null,"Change Management",{"$f":"IF(Resume!$B$22=\"Duration\",SUMIF(Resume!B:B,W18,Resume!C:C),COUNTIF(Resume!B:B,W18))","v":3}]
["2010-09-01",24,"Education","Classes préparatoires ECE","General courses","Classes préparatoires ECEGeneral courses","Maths","Economic sciences","Languages",null,null,null,null,null,null,null,"Adaptation to a new culture",{"$f":"IFERROR(IF(COUNTIF(Resume!D:D,$Q19)=0,\"\",COUNTIF(Resume!D:D,$Q19)),\"\")","v":""},{"$f":"IFERROR(IF(COUNTIF(Resume!E:E,$Q19)=0,\"\",COUNTIF(Resume!E:E,$Q19)),\"\")","v":""},{"$f":"IFERROR(IF(COUNTIF(Resume!F:F,$Q19)=0,\"\",COUNTIF(Resume!F:F,$Q19)),\"\")","v":1},{"$f":"IF(Resume!$B$22=\"Duration\",(SUMIF(Resume!D:D,Q19,Resume!C:C)+SUMIF(Resume!E:E,Q19,Resume!C:C)+SUMIF(Resume!F:F,Q19,Resume!C:C)),SUM(R19:T19))","v":4.5},null,"Implementing CRM",{"$f":"IF(Resume!$B$22=\"Duration\",SUMIF(Resume!B:B,W19,Resume!C:C),COUNTIF(Resume!B:B,W19))","v":1}]
["2016-09-01",{"$f":"(4+MONTH(TODAY()))*3/4","v":9},"Work Experiences","Audition Santé","Analyses ad hoc and reporting","Audition SantéAnalyses ad hoc and reporting","Management Control","Accounting",null,null,null,null,null,null,null,null,null,{"$f":"IFERROR(IF(COUNTIF(Resume!D:D,$Q20)=0,\"\",COUNTIF(Resume!D:D,$Q20)),\"\")","v":""},{"$f":"IFERROR(IF(COUNTIF(Resume!E:E,$Q20)=0,\"\",COUNTIF(Resume!E:E,$Q20)),\"\")","v":""},{"$f":"IFERROR(IF(COUNTIF(Resume!F:F,$Q20)=0,\"\",COUNTIF(Resume!F:F,$Q20)),\"\")","v":""},{"$f":"IF(Resume!$B$22=\"Duration\",(SUMIF(Resume!D:D,Q20,Resume!C:C)+SUMIF(Resume!E:E,Q20,Resume!C:C)+SUMIF(Resume!F:F,Q20,Resume!C:C)),SUM(R20:T20))","v":0},null,"Presenting Radio shows",{"$f":"IF(Resume!$B$22=\"Duration\",SUMIF(Resume!B:B,W20,Resume!C:C),COUNTIF(Resume!B:B,W20))","v":26}]
["2016-09-01",{"$f":"(4+MONTH(TODAY()))/4","v":3},"Work Experiences","Audition Santé","Reporting tool creation","Audition SantéReporting tool creation","Project Management","Information System","Web IT languages",null,null,null,null,null,null,null,null,{"$f":"IFERROR(IF(COUNTIF(Resume!D:D,$Q21)=0,\"\",COUNTIF(Resume!D:D,$Q21)),\"\")","v":""},{"$f":"IFERROR(IF(COUNTIF(Resume!E:E,$Q21)=0,\"\",COUNTIF(Resume!E:E,$Q21)),\"\")","v":""},{"$f":"IFERROR(IF(COUNTIF(Resume!F:F,$Q21)=0,\"\",COUNTIF(Resume!F:F,$Q21)),\"\")","v":""},{"$f":"IF(Resume!$B$22=\"Duration\",(SUMIF(Resume!D:D,Q21,Resume!C:C)+SUMIF(Resume!E:E,Q21,Resume!C:C)+SUMIF(Resume!F:F,Q21,Resume!C:C)),SUM(R21:T21))","v":0},null,"Player",{"$f":"IF(Resume!$B$22=\"Duration\",SUMIF(Resume!B:B,W21,Resume!C:C),COUNTIF(Resume!B:B,W21))","v":36}]
[null,null,null,null,null,"",null,null,null,null,null,null,null,null,null,null,"Training",{"$f":"IFERROR(IF(COUNTIF(Resume!D:D,$Q22)=0,\"\",COUNTIF(Resume!D:D,$Q22)),\"\")","v":""},{"$f":"IFERROR(IF(COUNTIF(Resume!E:E,$Q22)=0,\"\",COUNTIF(Resume!E:E,$Q22)),\"\")","v":1},{"$f":"IFERROR(IF(COUNTIF(Resume!F:F,$Q22)=0,\"\",COUNTIF(Resume!F:F,$Q22)),\"\")","v":""},{"$f":"IF(Resume!$B$22=\"Duration\",(SUMIF(Resume!D:D,Q22,Resume!C:C)+SUMIF(Resume!E:E,Q22,Resume!C:C)+SUMIF(Resume!F:F,Q22,Resume!C:C)),SUM(R22:T22))","v":3},null,"General courses",{"$f":"IF(Resume!$B$22=\"Duration\",SUMIF(Resume!B:B,W22,Resume!C:C),COUNTIF(Resume!B:B,W22))","v":24}]
[null,null,null,null,null,"",null,null,null,null,null,null,null,null,null,null,"Seeking information",{"$f":"IFERROR(IF(COUNTIF(Resume!D:D,$Q23)=0,\"\",COUNTIF(Resume!D:D,$Q23)),\"\")","v":""},{"$f":"IFERROR(IF(COUNTIF(Resume!E:E,$Q23)=0,\"\",COUNTIF(Resume!E:E,$Q23)),\"\")","v":1},{"$f":"IFERROR(IF(COUNTIF(Resume!F:F,$Q23)=0,\"\",COUNTIF(Resume!F:F,$Q23)),\"\")","v":""},{"$f":"IF(Resume!$B$22=\"Duration\",(SUMIF(Resume!D:D,Q23,Resume!C:C)+SUMIF(Resume!E:E,Q23,Resume!C:C)+SUMIF(Resume!F:F,Q23,Resume!C:C)),SUM(R23:T23))","v":26},null,null,{"$f":"IF(Resume!$B$22=\"Duration\",SUMIF(Resume!B:B,W23,Resume!C:C),COUNTIF(Resume!B:B,W23))","v":0}]
[null,null,null,null,null,"",null,null,null,null,null,null,null,null,null,null,"Speaking to a large audiance",{"$f":"IFERROR(IF(COUNTIF(Resume!D:D,$Q24)=0,\"\",COUNTIF(Resume!D:D,$Q24)),\"\")","v":1},{"$f":"IFERROR(IF(COUNTIF(Resume!E:E,$Q24)=0,\"\",COUNTIF(Resume!E:E,$Q24)),\"\")","v":""},{"$f":"IFERROR(IF(COUNTIF(Resume!F:F,$Q24)=0,\"\",COUNTIF(Resume!F:F,$Q24)),\"\")","v":1},{"$f":"IF(Resume!$B$22=\"Duration\",(SUMIF(Resume!D:D,Q24,Resume!C:C)+SUMIF(Resume!E:E,Q24,Resume!C:C)+SUMIF(Resume!F:F,Q24,Resume!C:C)),SUM(R24:T24))","v":62},null,null,{"$f":"IF(Resume!$B$22=\"Duration\",SUMIF(Resume!B:B,W24,Resume!C:C),COUNTIF(Resume!B:B,W24))","v":0}]
[null,null,null,null,null,"",null,null,null,null,null,null,null,null,null,null,"Communication",{"$f":"IFERROR(IF(COUNTIF(Resume!D:D,$Q25)=0,\"\",COUNTIF(Resume!D:D,$Q25)),\"\")","v":""},{"$f":"IFERROR(IF(COUNTIF(Resume!E:E,$Q25)=0,\"\",COUNTIF(Resume!E:E,$Q25)),\"\")","v":""},{"$f":"IFERROR(IF(COUNTIF(Resume!F:F,$Q25)=0,\"\",COUNTIF(Resume!F:F,$Q25)),\"\")","v":1},{"$f":"IF(Resume!$B$22=\"Duration\",(SUMIF(Resume!D:D,Q25,Resume!C:C)+SUMIF(Resume!E:E,Q25,Resume!C:C)+SUMIF(Resume!F:F,Q25,Resume!C:C)),SUM(R25:T25))","v":36},null,null,{"$f":"IF(Resume!$B$22=\"Duration\",SUMIF(Resume!B:B,W25,Resume!C:C),COUNTIF(Resume!B:B,W25))","v":0}]
[null,null,null,null,null,"",null,null,null,null,null,null,null,null,null,null,"CMS",{"$f":"IFERROR(IF(COUNTIF(Resume!D:D,$Q26)=0,\"\",COUNTIF(Resume!D:D,$Q26)),\"\")","v":""},{"$f":"IFERROR(IF(COUNTIF(Resume!E:E,$Q26)=0,\"\",COUNTIF(Resume!E:E,$Q26)),\"\")","v":1},{"$f":"IFERROR(IF(COUNTIF(Resume!F:F,$Q26)=0,\"\",COUNTIF(Resume!F:F,$Q26)),\"\")","v":""},{"$f":"IF(Resume!$B$22=\"Duration\",(SUMIF(Resume!D:D,Q26,Resume!C:C)+SUMIF(Resume!E:E,Q26,Resume!C:C)+SUMIF(Resume!F:F,Q26,Resume!C:C)),SUM(R26:T26))","v":1},null,null,{"$f":"IF(Resume!$B$22=\"Duration\",SUMIF(Resume!B:B,W26,Resume!C:C),COUNTIF(Resume!B:B,W26))","v":0}]
[null,null,null,null,null,"",null,null,null,null,null,null,null,null,null,null,"Maths",{"$f":"IFERROR(IF(COUNTIF(Resume!D:D,$Q27)=0,\"\",COUNTIF(Resume!D:D,$Q27)),\"\")","v":1},{"$f":"IFERROR(IF(COUNTIF(Resume!E:E,$Q27)=0,\"\",COUNTIF(Resume!E:E,$Q27)),\"\")","v":""},{"$f":"IFERROR(IF(COUNTIF(Resume!F:F,$Q27)=0,\"\",COUNTIF(Resume!F:F,$Q27)),\"\")","v":""},{"$f":"IF(Resume!$B$22=\"Duration\",(SUMIF(Resume!D:D,Q27,Resume!C:C)+SUMIF(Resume!E:E,Q27,Resume!C:C)+SUMIF(Resume!F:F,Q27,Resume!C:C)),SUM(R27:T27))","v":24},null,null,{"$f":"IF(Resume!$B$22=\"Duration\",SUMIF(Resume!B:B,W27,Resume!C:C),COUNTIF(Resume!B:B,W27))","v":0}]
[null,null,null,null,null,"",null,null,null,null,null,null,null,null,null,null,"Economic sciences",{"$f":"IFERROR(IF(COUNTIF(Resume!D:D,$Q28)=0,\"\",COUNTIF(Resume!D:D,$Q28)),\"\")","v":""},{"$f":"IFERROR(IF(COUNTIF(Resume!E:E,$Q28)=0,\"\",COUNTIF(Resume!E:E,$Q28)),\"\")","v":1},{"$f":"IFERROR(IF(COUNTIF(Resume!F:F,$Q28)=0,\"\",COUNTIF(Resume!F:F,$Q28)),\"\")","v":""},{"$f":"IF(Resume!$B$22=\"Duration\",(SUMIF(Resume!D:D,Q28,Resume!C:C)+SUMIF(Resume!E:E,Q28,Resume!C:C)+SUMIF(Resume!F:F,Q28,Resume!C:C)),SUM(R28:T28))","v":24},null,null,{"$f":"IF(Resume!$B$22=\"Duration\",SUMIF(Resume!B:B,W28,Resume!C:C),COUNTIF(Resume!B:B,W28))","v":0}]
[null,null,null,null,null,"",null,null,null,null,null,null,null,null,null,null,null,{"$f":"IFERROR(IF(COUNTIF(Resume!D:D,$Q29)=0,\"\",COUNTIF(Resume!D:D,$Q29)),\"\")","v":""},{"$f":"IFERROR(IF(COUNTIF(Resume!E:E,$Q29)=0,\"\",COUNTIF(Resume!E:E,$Q29)),\"\")","v":""},{"$f":"IFERROR(IF(COUNTIF(Resume!F:F,$Q29)=0,\"\",COUNTIF(Resume!F:F,$Q29)),\"\")","v":""},{"$f":"IF(Resume!$B$22=\"Duration\",(SUMIF(Resume!D:D,Q29,Resume!C:C)+SUMIF(Resume!E:E,Q29,Resume!C:C)+SUMIF(Resume!F:F,Q29,Resume!C:C)),SUM(R29:T29))","v":0},null,null,{"$f":"IF(Resume!$B$22=\"Duration\",SUMIF(Resume!B:B,W29,Resume!C:C),COUNTIF(Resume!B:B,W29))","v":0}]
[null,null,null,null,null,"",null,null,null,null,null,null,null,null,null,null,null,{"$f":"IFERROR(IF(COUNTIF(Resume!D:D,$Q30)=0,\"\",COUNTIF(Resume!D:D,$Q30)),\"\")","v":""},{"$f":"IFERROR(IF(COUNTIF(Resume!E:E,$Q30)=0,\"\",COUNTIF(Resume!E:E,$Q30)),\"\")","v":""},{"$f":"IFERROR(IF(COUNTIF(Resume!F:F,$Q30)=0,\"\",COUNTIF(Resume!F:F,$Q30)),\"\")","v":""},{"$f":"IF(Resume!$B$22=\"Duration\",(SUMIF(Resume!D:D,Q30,Resume!C:C)+SUMIF(Resume!E:E,Q30,Resume!C:C)+SUMIF(Resume!F:F,Q30,Resume!C:C)),SUM(R30:T30))","v":0},null,null,{"$f":"IF(Resume!$B$22=\"Duration\",SUMIF(Resume!B:B,W30,Resume!C:C),COUNTIF(Resume!B:B,W30))","v":0}]
[null,null,null,null,null,"",null,null,null,null,null,null,null,null,null,null,null,{"$f":"IFERROR(IF(COUNTIF(Resume!D:D,$Q31)=0,\"\",COUNTIF(Resume!D:D,$Q31)),\"\")","v":""},{"$f":"IFERROR(IF(COUNTIF(Resume!E:E,$Q31)=0,\"\",COUNTIF(Resume!E:E,$Q31)),\"\")","v":""},{"$f":"IFERROR(IF(COUNTIF(Resume!F:F,$Q31)=0,\"\",COUNTIF(Resume!F:F,$Q31)),\"\")","v":""},{"$f":"IF(Resume!$B$22=\"Duration\",(SUMIF(Resume!D:D,Q31,Resume!C:C)+SUMIF(Resume!E:E,Q31,Resume!C:C)+SUMIF(Resume!F:F,Q31,Resume!C:C)),SUM(R31:T31))","v":0},null,null,{"$f":"IF(Resume!$B$22=\"Duration\",SUMIF(Resume!B:B,W31,Resume!C:C),COUNTIF(Resume!B:B,W31))","v":0}]
[null,null,null,null,null,"",null,null,null,null,null,null,null,null,null,null,null,{"$f":"IFERROR(IF(COUNTIF(Resume!D:D,$Q32)=0,\"\",COUNTIF(Resume!D:D,$Q32)),\"\")","v":""},{"$f":"IFERROR(IF(COUNTIF(Resume!E:E,$Q32)=0,\"\",COUNTIF(Resume!E:E,$Q32)),\"\")","v":""},{"$f":"IFERROR(IF(COUNTIF(Resume!F:F,$Q32)=0,\"\",COUNTIF(Resume!F:F,$Q32)),\"\")","v":""},{"$f":"IF(Resume!$B$22=\"Duration\",(SUMIF(Resume!D:D,Q32,Resume!C:C)+SUMIF(Resume!E:E,Q32,Resume!C:C)+SUMIF(Resume!F:F,Q32,Resume!C:C)),SUM(R32:T32))","v":0},null,null,{"$f":"IF(Resume!$B$22=\"Duration\",SUMIF(Resume!B:B,W32,Resume!C:C),COUNTIF(Resume!B:B,W32))","v":0}]
[null,null,null,null,null,"",null,null,null,null,null,null,null,null,null,null,null,{"$f":"IFERROR(IF(COUNTIF(Resume!D:D,$Q33)=0,\"\",COUNTIF(Resume!D:D,$Q33)),\"\")","v":""},{"$f":"IFERROR(IF(COUNTIF(Resume!E:E,$Q33)=0,\"\",COUNTIF(Resume!E:E,$Q33)),\"\")","v":""},{"$f":"IFERROR(IF(COUNTIF(Resume!F:F,$Q33)=0,\"\",COUNTIF(Resume!F:F,$Q33)),\"\")","v":""},{"$f":"IF(Resume!$B$22=\"Duration\",(SUMIF(Resume!D:D,Q33,Resume!C:C)+SUMIF(Resume!E:E,Q33,Resume!C:C)+SUMIF(Resume!F:F,Q33,Resume!C:C)),SUM(R33:T33))","v":0},null,null,{"$f":"IF(Resume!$B$22=\"Duration\",SUMIF(Resume!B:B,W33,Resume!C:C),COUNTIF(Resume!B:B,W33))","v":0}]
[null,null,null,null,null,"",null,null,null,null,null,null,null,null,null,null,null,{"$f":"IFERROR(IF(COUNTIF(Resume!D:D,$Q34)=0,\"\",COUNTIF(Resume!D:D,$Q34)),\"\")","v":""},{"$f":"IFERROR(IF(COUNTIF(Resume!E:E,$Q34)=0,\"\",COUNTIF(Resume!E:E,$Q34)),\"\")","v":""},{"$f":"IFERROR(IF(COUNTIF(Resume!F:F,$Q34)=0,\"\",COUNTIF(Resume!F:F,$Q34)),\"\")","v":""},{"$f":"IF(Resume!$B$22=\"Duration\",(SUMIF(Resume!D:D,Q34,Resume!C:C)+SUMIF(Resume!E:E,Q34,Resume!C:C)+SUMIF(Resume!F:F,Q34,Resume!C:C)),SUM(R34:T34))","v":0},null,null,{"$f":"IF(Resume!$B$22=\"Duration\",SUMIF(Resume!B:B,W34,Resume!C:C),COUNTIF(Resume!B:B,W34))","v":0}]
[null,null,null,null,null,"",null,null,null,null,null,null,null,null,null,null,null,{"$f":"IFERROR(IF(COUNTIF(Resume!D:D,$Q35)=0,\"\",COUNTIF(Resume!D:D,$Q35)),\"\")","v":""},{"$f":"IFERROR(IF(COUNTIF(Resume!E:E,$Q35)=0,\"\",COUNTIF(Resume!E:E,$Q35)),\"\")","v":""},{"$f":"IFERROR(IF(COUNTIF(Resume!F:F,$Q35)=0,\"\",COUNTIF(Resume!F:F,$Q35)),\"\")","v":""},{"$f":"IF(Resume!$B$22=\"Duration\",(SUMIF(Resume!D:D,Q35,Resume!C:C)+SUMIF(Resume!E:E,Q35,Resume!C:C)+SUMIF(Resume!F:F,Q35,Resume!C:C)),SUM(R35:T35))","v":0},null,null,{"$f":"IF(Resume!$B$22=\"Duration\",SUMIF(Resume!B:B,W35,Resume!C:C),COUNTIF(Resume!B:B,W35))","v":0}]
[null,null,null,null,null,"",null,null,null,null,null,null,null,null,null,null,null,{"$f":"IFERROR(IF(COUNTIF(Resume!D:D,$Q36)=0,\"\",COUNTIF(Resume!D:D,$Q36)),\"\")","v":""},{"$f":"IFERROR(IF(COUNTIF(Resume!E:E,$Q36)=0,\"\",COUNTIF(Resume!E:E,$Q36)),\"\")","v":""},{"$f":"IFERROR(IF(COUNTIF(Resume!F:F,$Q36)=0,\"\",COUNTIF(Resume!F:F,$Q36)),\"\")","v":""},{"$f":"IF(Resume!$B$22=\"Duration\",(SUMIF(Resume!D:D,Q36,Resume!C:C)+SUMIF(Resume!E:E,Q36,Resume!C:C)+SUMIF(Resume!F:F,Q36,Resume!C:C)),SUM(R36:T36))","v":0},null,null,{"$f":"IF(Resume!$B$22=\"Duration\",SUMIF(Resume!B:B,W36,Resume!C:C),COUNTIF(Resume!B:B,W36))","v":0}]
[null,null,null,null,null,"",null,null,null,null,null,null,null,null,null,null,null,{"$f":"IFERROR(IF(COUNTIF(Resume!D:D,$Q37)=0,\"\",COUNTIF(Resume!D:D,$Q37)),\"\")","v":""},{"$f":"IFERROR(IF(COUNTIF(Resume!E:E,$Q37)=0,\"\",COUNTIF(Resume!E:E,$Q37)),\"\")","v":""},{"$f":"IFERROR(IF(COUNTIF(Resume!F:F,$Q37)=0,\"\",COUNTIF(Resume!F:F,$Q37)),\"\")","v":""},{"$f":"IF(Resume!$B$22=\"Duration\",(SUMIF(Resume!D:D,Q37,Resume!C:C)+SUMIF(Resume!E:E,Q37,Resume!C:C)+SUMIF(Resume!F:F,Q37,Resume!C:C)),SUM(R37:T37))","v":0},null,null,{"$f":"IF(Resume!$B$22=\"Duration\",SUMIF(Resume!B:B,W37,Resume!C:C),COUNTIF(Resume!B:B,W37))","v":0}]
[null,null,null,null,null,"",null,null,null,null,null,null,null,null,null,null,null,{"$f":"IFERROR(IF(COUNTIF(Resume!D:D,$Q38)=0,\"\",COUNTIF(Resume!D:D,$Q38)),\"\")","v":""},{"$f":"IFERROR(IF(COUNTIF(Resume!E:E,$Q38)=0,\"\",COUNTIF(Resume!E:E,$Q38)),\"\")","v":""},{"$f":"IFERROR(IF(COUNTIF(Resume!F:F,$Q38)=0,\"\",COUNTIF(Resume!F:F,$Q38)),\"\")","v":""},{"$f":"IF(Resume!$B$22=\"Duration\",(SUMIF(Resume!D:D,Q38,Resume!C:C)+SUMIF(Resume!E:E,Q38,Resume!C:C)+SUMIF(Resume!F:F,Q38,Resume!C:C)),SUM(R38:T38))","v":0},null,null,{"$f":"IF(Resume!$B$22=\"Duration\",SUMIF(Resume!B:B,W38,Resume!C:C),COUNTIF(Resume!B:B,W38))","v":0}]
[null,null,null,null,null,"",null,null,null,null,null,null,null,null,null,null,null,{"$f":"IFERROR(IF(COUNTIF(Resume!D:D,$Q39)=0,\"\",COUNTIF(Resume!D:D,$Q39)),\"\")","v":""},{"$f":"IFERROR(IF(COUNTIF(Resume!E:E,$Q39)=0,\"\",COUNTIF(Resume!E:E,$Q39)),\"\")","v":""},{"$f":"IFERROR(IF(COUNTIF(Resume!F:F,$Q39)=0,\"\",COUNTIF(Resume!F:F,$Q39)),\"\")","v":""},{"$f":"IF(Resume!$B$22=\"Duration\",(SUMIF(Resume!D:D,Q39,Resume!C:C)+SUMIF(Resume!E:E,Q39,Resume!C:C)+SUMIF(Resume!F:F,Q39,Resume!C:C)),SUM(R39:T39))","v":0},null,null,{"$f":"IF(Resume!$B$22=\"Duration\",SUMIF(Resume!B:B,W39,Resume!C:C),COUNTIF(Resume!B:B,W39))","v":0}]
[null,null,null,null,null,"",null,null,null,null,null,null,null,null,null,null,null,{"$f":"IFERROR(IF(COUNTIF(Resume!D:D,$Q40)=0,\"\",COUNTIF(Resume!D:D,$Q40)),\"\")","v":""},{"$f":"IFERROR(IF(COUNTIF(Resume!E:E,$Q40)=0,\"\",COUNTIF(Resume!E:E,$Q40)),\"\")","v":""},{"$f":"IFERROR(IF(COUNTIF(Resume!F:F,$Q40)=0,\"\",COUNTIF(Resume!F:F,$Q40)),\"\")","v":""},{"$f":"IF(Resume!$B$22=\"Duration\",(SUMIF(Resume!D:D,Q40,Resume!C:C)+SUMIF(Resume!E:E,Q40,Resume!C:C)+SUMIF(Resume!F:F,Q40,Resume!C:C)),SUM(R40:T40))","v":0},null,null,{"$f":"IF(Resume!$B$22=\"Duration\",SUMIF(Resume!B:B,W40,Resume!C:C),COUNTIF(Resume!B:B,W40))","v":0}]
[null,null,null,null,null,"",null,null,null,null,null,null,null,null,null,null,null,{"$f":"IFERROR(IF(COUNTIF(Resume!D:D,$Q41)=0,\"\",COUNTIF(Resume!D:D,$Q41)),\"\")","v":""},{"$f":"IFERROR(IF(COUNTIF(Resume!E:E,$Q41)=0,\"\",COUNTIF(Resume!E:E,$Q41)),\"\")","v":""},{"$f":"IFERROR(IF(COUNTIF(Resume!F:F,$Q41)=0,\"\",COUNTIF(Resume!F:F,$Q41)),\"\")","v":""},{"$f":"IF(Resume!$B$22=\"Duration\",(SUMIF(Resume!D:D,Q41,Resume!C:C)+SUMIF(Resume!E:E,Q41,Resume!C:C)+SUMIF(Resume!F:F,Q41,Resume!C:C)),SUM(R41:T41))","v":0},null,null,{"$f":"IF(Resume!$B$22=\"Duration\",SUMIF(Resume!B:B,W41,Resume!C:C),COUNTIF(Resume!B:B,W41))","v":0}]
[null,null,null,null,null,"",null,null,null,null,null,null,null,null,null,null,null,{"$f":"IFERROR(IF(COUNTIF(Resume!D:D,$Q42)=0,\"\",COUNTIF(Resume!D:D,$Q42)),\"\")","v":""},{"$f":"IFERROR(IF(COUNTIF(Resume!E:E,$Q42)=0,\"\",COUNTIF(Resume!E:E,$Q42)),\"\")","v":""},{"$f":"IFERROR(IF(COUNTIF(Resume!F:F,$Q42)=0,\"\",COUNTIF(Resume!F:F,$Q42)),\"\")","v":""},{"$f":"IF(Resume!$B$22=\"Duration\",(SUMIF(Resume!D:D,Q42,Resume!C:C)+SUMIF(Resume!E:E,Q42,Resume!C:C)+SUMIF(Resume!F:F,Q42,Resume!C:C)),SUM(R42:T42))","v":0},null,null,{"$f":"IF(Resume!$B$22=\"Duration\",SUMIF(Resume!B:B,W42,Resume!C:C),COUNTIF(Resume!B:B,W42))","v":0}]
[null,null,null,null,null,"",null,null,null,null,null,null,null,null,null,null,null,{"$f":"IFERROR(IF(COUNTIF(Resume!D:D,$Q43)=0,\"\",COUNTIF(Resume!D:D,$Q43)),\"\")","v":""},{"$f":"IFERROR(IF(COUNTIF(Resume!E:E,$Q43)=0,\"\",COUNTIF(Resume!E:E,$Q43)),\"\")","v":""},{"$f":"IFERROR(IF(COUNTIF(Resume!F:F,$Q43)=0,\"\",COUNTIF(Resume!F:F,$Q43)),\"\")","v":""},{"$f":"IF(Resume!$B$22=\"Duration\",(SUMIF(Resume!D:D,Q43,Resume!C:C)+SUMIF(Resume!E:E,Q43,Resume!C:C)+SUMIF(Resume!F:F,Q43,Resume!C:C)),SUM(R43:T43))","v":0},null,null,{"$f":"IF(Resume!$B$22=\"Duration\",SUMIF(Resume!B:B,W43,Resume!C:C),COUNTIF(Resume!B:B,W43))","v":0}]
[null,null,null,null,null,"",null,null,null,null,null,null,null,null,null,null,null,{"$f":"IFERROR(IF(COUNTIF(Resume!D:D,$Q44)=0,\"\",COUNTIF(Resume!D:D,$Q44)),\"\")","v":""},{"$f":"IFERROR(IF(COUNTIF(Resume!E:E,$Q44)=0,\"\",COUNTIF(Resume!E:E,$Q44)),\"\")","v":""},{"$f":"IFERROR(IF(COUNTIF(Resume!F:F,$Q44)=0,\"\",COUNTIF(Resume!F:F,$Q44)),\"\")","v":""},{"$f":"IF(Resume!$B$22=\"Duration\",(SUMIF(Resume!D:D,Q44,Resume!C:C)+SUMIF(Resume!E:E,Q44,Resume!C:C)+SUMIF(Resume!F:F,Q44,Resume!C:C)),SUM(R44:T44))","v":0},null,null,{"$f":"IF(Resume!$B$22=\"Duration\",SUMIF(Resume!B:B,W44,Resume!C:C),COUNTIF(Resume!B:B,W44))","v":0}]
[null,null,null,null,null,"",null,null,null,null,null,null,null,null,null,null,null,{"$f":"IFERROR(IF(COUNTIF(Resume!D:D,$Q45)=0,\"\",COUNTIF(Resume!D:D,$Q45)),\"\")","v":""},{"$f":"IFERROR(IF(COUNTIF(Resume!E:E,$Q45)=0,\"\",COUNTIF(Resume!E:E,$Q45)),\"\")","v":""},{"$f":"IFERROR(IF(COUNTIF(Resume!F:F,$Q45)=0,\"\",COUNTIF(Resume!F:F,$Q45)),\"\")","v":""},{"$f":"IF(Resume!$B$22=\"Duration\",(SUMIF(Resume!D:D,Q45,Resume!C:C)+SUMIF(Resume!E:E,Q45,Resume!C:C)+SUMIF(Resume!F:F,Q45,Resume!C:C)),SUM(R45:T45))","v":0},null,null,{"$f":"IF(Resume!$B$22=\"Duration\",SUMIF(Resume!B:B,W45,Resume!C:C),COUNTIF(Resume!B:B,W45))","v":0}]
[null,null,null,null,null,"",null,null,null,null,null,null,null,null,null,null,null,{"$f":"IFERROR(IF(COUNTIF(Resume!D:D,$Q46)=0,\"\",COUNTIF(Resume!D:D,$Q46)),\"\")","v":""},{"$f":"IFERROR(IF(COUNTIF(Resume!E:E,$Q46)=0,\"\",COUNTIF(Resume!E:E,$Q46)),\"\")","v":""},{"$f":"IFERROR(IF(COUNTIF(Resume!F:F,$Q46)=0,\"\",COUNTIF(Resume!F:F,$Q46)),\"\")","v":""},{"$f":"IF(Resume!$B$22=\"Duration\",(SUMIF(Resume!D:D,Q46,Resume!C:C)+SUMIF(Resume!E:E,Q46,Resume!C:C)+SUMIF(Resume!F:F,Q46,Resume!C:C)),SUM(R46:T46))","v":0},null,null,{"$f":"IF(Resume!$B$22=\"Duration\",SUMIF(Resume!B:B,W46,Resume!C:C),COUNTIF(Resume!B:B,W46))","v":0}]
[null,null,null,null,null,"",null,null,null,null,null,null,null,null,null,null,null,{"$f":"IFERROR(IF(COUNTIF(Resume!D:D,$Q47)=0,\"\",COUNTIF(Resume!D:D,$Q47)),\"\")","v":""},{"$f":"IFERROR(IF(COUNTIF(Resume!E:E,$Q47)=0,\"\",COUNTIF(Resume!E:E,$Q47)),\"\")","v":""},{"$f":"IFERROR(IF(COUNTIF(Resume!F:F,$Q47)=0,\"\",COUNTIF(Resume!F:F,$Q47)),\"\")","v":""},{"$f":"IF(Resume!$B$22=\"Duration\",(SUMIF(Resume!D:D,Q47,Resume!C:C)+SUMIF(Resume!E:E,Q47,Resume!C:C)+SUMIF(Resume!F:F,Q47,Resume!C:C)),SUM(R47:T47))","v":0},null,null,{"$f":"IF(Resume!$B$22=\"Duration\",SUMIF(Resume!B:B,W47,Resume!C:C),COUNTIF(Resume!B:B,W47))","v":0}]
[null,null,null,null,null,"",null,null,null,null,null,null,null,null,null,null,null,{"$f":"IFERROR(IF(COUNTIF(Resume!D:D,$Q48)=0,\"\",COUNTIF(Resume!D:D,$Q48)),\"\")","v":""},{"$f":"IFERROR(IF(COUNTIF(Resume!E:E,$Q48)=0,\"\",COUNTIF(Resume!E:E,$Q48)),\"\")","v":""},{"$f":"IFERROR(IF(COUNTIF(Resume!F:F,$Q48)=0,\"\",COUNTIF(Resume!F:F,$Q48)),\"\")","v":""},{"$f":"IF(Resume!$B$22=\"Duration\",(SUMIF(Resume!D:D,Q48,Resume!C:C)+SUMIF(Resume!E:E,Q48,Resume!C:C)+SUMIF(Resume!F:F,Q48,Resume!C:C)),SUM(R48:T48))","v":0},null,null,{"$f":"IF(Resume!$B$22=\"Duration\",SUMIF(Resume!B:B,W48,Resume!C:C),COUNTIF(Resume!B:B,W48))","v":0}]
[null,null,null,null,null,"",null,null,null,null,null,null,null,null,null,null,null,{"$f":"IFERROR(IF(COUNTIF(Resume!D:D,$Q49)=0,\"\",COUNTIF(Resume!D:D,$Q49)),\"\")","v":""},{"$f":"IFERROR(IF(COUNTIF(Resume!E:E,$Q49)=0,\"\",COUNTIF(Resume!E:E,$Q49)),\"\")","v":""},{"$f":"IFERROR(IF(COUNTIF(Resume!F:F,$Q49)=0,\"\",COUNTIF(Resume!F:F,$Q49)),\"\")","v":""},{"$f":"IF(Resume!$B$22=\"Duration\",(SUMIF(Resume!D:D,Q49,Resume!C:C)+SUMIF(Resume!E:E,Q49,Resume!C:C)+SUMIF(Resume!F:F,Q49,Resume!C:C)),SUM(R49:T49))","v":0},null,null,{"$f":"IF(Resume!$B$22=\"Duration\",SUMIF(Resume!B:B,W49,Resume!C:C),COUNTIF(Resume!B:B,W49))","v":0}]
[null,null,null,null,null,"",null,null,null,null,null,null,null,null,null,null,null,{"$f":"IFERROR(IF(COUNTIF(Resume!D:D,$Q50)=0,\"\",COUNTIF(Resume!D:D,$Q50)),\"\")","v":""},{"$f":"IFERROR(IF(COUNTIF(Resume!E:E,$Q50)=0,\"\",COUNTIF(Resume!E:E,$Q50)),\"\")","v":""},{"$f":"IFERROR(IF(COUNTIF(Resume!F:F,$Q50)=0,\"\",COUNTIF(Resume!F:F,$Q50)),\"\")","v":""},{"$f":"IF(Resume!$B$22=\"Duration\",(SUMIF(Resume!D:D,Q50,Resume!C:C)+SUMIF(Resume!E:E,Q50,Resume!C:C)+SUMIF(Resume!F:F,Q50,Resume!C:C)),SUM(R50:T50))","v":0},null,null,{"$f":"IF(Resume!$B$22=\"Duration\",SUMIF(Resume!B:B,W50,Resume!C:C),COUNTIF(Resume!B:B,W50))","v":0}]
[null,null,null,null,null,"",null,null,null,null,null,null,null,null,null,null,null,{"$f":"IFERROR(IF(COUNTIF(Resume!D:D,$Q51)=0,\"\",COUNTIF(Resume!D:D,$Q51)),\"\")","v":""},{"$f":"IFERROR(IF(COUNTIF(Resume!E:E,$Q51)=0,\"\",COUNTIF(Resume!E:E,$Q51)),\"\")","v":""},{"$f":"IFERROR(IF(COUNTIF(Resume!F:F,$Q51)=0,\"\",COUNTIF(Resume!F:F,$Q51)),\"\")","v":""},{"$f":"IF(Resume!$B$22=\"Duration\",(SUMIF(Resume!D:D,Q51,Resume!C:C)+SUMIF(Resume!E:E,Q51,Resume!C:C)+SUMIF(Resume!F:F,Q51,Resume!C:C)),SUM(R51:T51))","v":0},null,null,{"$f":"IF(Resume!$B$22=\"Duration\",SUMIF(Resume!B:B,W51,Resume!C:C),COUNTIF(Resume!B:B,W51))","v":0}]
[null,null,null,null,null,"",null,null,null,null,null,null,null,null,null,null,null,{"$f":"IFERROR(IF(COUNTIF(Resume!D:D,$Q52)=0,\"\",COUNTIF(Resume!D:D,$Q52)),\"\")","v":""},{"$f":"IFERROR(IF(COUNTIF(Resume!E:E,$Q52)=0,\"\",COUNTIF(Resume!E:E,$Q52)),\"\")","v":""},{"$f":"IFERROR(IF(COUNTIF(Resume!F:F,$Q52)=0,\"\",COUNTIF(Resume!F:F,$Q52)),\"\")","v":""},{"$f":"IF(Resume!$B$22=\"Duration\",(SUMIF(Resume!D:D,Q52,Resume!C:C)+SUMIF(Resume!E:E,Q52,Resume!C:C)+SUMIF(Resume!F:F,Q52,Resume!C:C)),SUM(R52:T52))","v":0},null,null,{"$f":"IF(Resume!$B$22=\"Duration\",SUMIF(Resume!B:B,W52,Resume!C:C),COUNTIF(Resume!B:B,W52))","v":0}]
[null,null,null,null,null,"",null,null,null,null,null,null,null,null,null,null,null,{"$f":"IFERROR(IF(COUNTIF(Resume!D:D,$Q53)=0,\"\",COUNTIF(Resume!D:D,$Q53)),\"\")","v":""},{"$f":"IFERROR(IF(COUNTIF(Resume!E:E,$Q53)=0,\"\",COUNTIF(Resume!E:E,$Q53)),\"\")","v":""},{"$f":"IFERROR(IF(COUNTIF(Resume!F:F,$Q53)=0,\"\",COUNTIF(Resume!F:F,$Q53)),\"\")","v":""},{"$f":"IF(Resume!$B$22=\"Duration\",(SUMIF(Resume!D:D,Q53,Resume!C:C)+SUMIF(Resume!E:E,Q53,Resume!C:C)+SUMIF(Resume!F:F,Q53,Resume!C:C)),SUM(R53:T53))","v":0},null,null,{"$f":"IF(Resume!$B$22=\"Duration\",SUMIF(Resume!B:B,W53,Resume!C:C),COUNTIF(Resume!B:B,W53))","v":0}]
[null,null,null,null,null,"",null,null,null,null,null,null,null,null,null,null,null,{"$f":"IFERROR(IF(COUNTIF(Resume!D:D,$Q54)=0,\"\",COUNTIF(Resume!D:D,$Q54)),\"\")","v":""},{"$f":"IFERROR(IF(COUNTIF(Resume!E:E,$Q54)=0,\"\",COUNTIF(Resume!E:E,$Q54)),\"\")","v":""},{"$f":"IFERROR(IF(COUNTIF(Resume!F:F,$Q54)=0,\"\",COUNTIF(Resume!F:F,$Q54)),\"\")","v":""},{"$f":"IF(Resume!$B$22=\"Duration\",(SUMIF(Resume!D:D,Q54,Resume!C:C)+SUMIF(Resume!E:E,Q54,Resume!C:C)+SUMIF(Resume!F:F,Q54,Resume!C:C)),SUM(R54:T54))","v":0},null,null,{"$f":"IF(Resume!$B$22=\"Duration\",SUMIF(Resume!B:B,W54,Resume!C:C),COUNTIF(Resume!B:B,W54))","v":0}]
[null,null,null,null,null,"",null,null,null,null,null,null,null,null,null,null,null,{"$f":"IFERROR(IF(COUNTIF(Resume!D:D,$Q55)=0,\"\",COUNTIF(Resume!D:D,$Q55)),\"\")","v":""},{"$f":"IFERROR(IF(COUNTIF(Resume!E:E,$Q55)=0,\"\",COUNTIF(Resume!E:E,$Q55)),\"\")","v":""},{"$f":"IFERROR(IF(COUNTIF(Resume!F:F,$Q55)=0,\"\",COUNTIF(Resume!F:F,$Q55)),\"\")","v":""},{"$f":"IF(Resume!$B$22=\"Duration\",(SUMIF(Resume!D:D,Q55,Resume!C:C)+SUMIF(Resume!E:E,Q55,Resume!C:C)+SUMIF(Resume!F:F,Q55,Resume!C:C)),SUM(R55:T55))","v":0},null,null,{"$f":"IF(Resume!$B$22=\"Duration\",SUMIF(Resume!B:B,W55,Resume!C:C),COUNTIF(Resume!B:B,W55))","v":0}]
[null,null,null,null,null,"",null,null,null,null,null,null,null,null,null,null,null,{"$f":"IFERROR(IF(COUNTIF(Resume!D:D,$Q56)=0,\"\",COUNTIF(Resume!D:D,$Q56)),\"\")","v":""},{"$f":"IFERROR(IF(COUNTIF(Resume!E:E,$Q56)=0,\"\",COUNTIF(Resume!E:E,$Q56)),\"\")","v":""},{"$f":"IFERROR(IF(COUNTIF(Resume!F:F,$Q56)=0,\"\",COUNTIF(Resume!F:F,$Q56)),\"\")","v":""},{"$f":"IF(Resume!$B$22=\"Duration\",(SUMIF(Resume!D:D,Q56,Resume!C:C)+SUMIF(Resume!E:E,Q56,Resume!C:C)+SUMIF(Resume!F:F,Q56,Resume!C:C)),SUM(R56:T56))","v":0},null,null,{"$f":"IF(Resume!$B$22=\"Duration\",SUMIF(Resume!B:B,W56,Resume!C:C),COUNTIF(Resume!B:B,W56))","v":0}]
[null,null,null,null,null,"",null,null,null,null,null,null,null,null,null,null,null,{"$f":"IFERROR(IF(COUNTIF(Resume!D:D,$Q57)=0,\"\",COUNTIF(Resume!D:D,$Q57)),\"\")","v":""},{"$f":"IFERROR(IF(COUNTIF(Resume!E:E,$Q57)=0,\"\",COUNTIF(Resume!E:E,$Q57)),\"\")","v":""},{"$f":"IFERROR(IF(COUNTIF(Resume!F:F,$Q57)=0,\"\",COUNTIF(Resume!F:F,$Q57)),\"\")","v":""},{"$f":"IF(Resume!$B$22=\"Duration\",(SUMIF(Resume!D:D,Q57,Resume!C:C)+SUMIF(Resume!E:E,Q57,Resume!C:C)+SUMIF(Resume!F:F,Q57,Resume!C:C)),SUM(R57:T57))","v":0},null,null,{"$f":"IF(Resume!$B$22=\"Duration\",SUMIF(Resume!B:B,W57,Resume!C:C),COUNTIF(Resume!B:B,W57))","v":0}]
[null,null,null,null,null,"",null,null,null,null,null,null,null,null,null,null,null,{"$f":"IFERROR(IF(COUNTIF(Resume!D:D,$Q58)=0,\"\",COUNTIF(Resume!D:D,$Q58)),\"\")","v":""},{"$f":"IFERROR(IF(COUNTIF(Resume!E:E,$Q58)=0,\"\",COUNTIF(Resume!E:E,$Q58)),\"\")","v":""},{"$f":"IFERROR(IF(COUNTIF(Resume!F:F,$Q58)=0,\"\",COUNTIF(Resume!F:F,$Q58)),\"\")","v":""},{"$f":"IF(Resume!$B$22=\"Duration\",(SUMIF(Resume!D:D,Q58,Resume!C:C)+SUMIF(Resume!E:E,Q58,Resume!C:C)+SUMIF(Resume!F:F,Q58,Resume!C:C)),SUM(R58:T58))","v":0},null,null,{"$f":"IF(Resume!$B$22=\"Duration\",SUMIF(Resume!B:B,W58,Resume!C:C),COUNTIF(Resume!B:B,W58))","v":0}]
[null,null,null,null,null,"",null,null,null,null,null,null,null,null,null,null,null,{"$f":"IFERROR(IF(COUNTIF(Resume!D:D,$Q59)=0,\"\",COUNTIF(Resume!D:D,$Q59)),\"\")","v":""},{"$f":"IFERROR(IF(COUNTIF(Resume!E:E,$Q59)=0,\"\",COUNTIF(Resume!E:E,$Q59)),\"\")","v":""},{"$f":"IFERROR(IF(COUNTIF(Resume!F:F,$Q59)=0,\"\",COUNTIF(Resume!F:F,$Q59)),\"\")","v":""},{"$f":"IF(Resume!$B$22=\"Duration\",(SUMIF(Resume!D:D,Q59,Resume!C:C)+SUMIF(Resume!E:E,Q59,Resume!C:C)+SUMIF(Resume!F:F,Q59,Resume!C:C)),SUM(R59:T59))","v":0},null,null,{"$f":"IF(Resume!$B$22=\"Duration\",SUMIF(Resume!B:B,W59,Resume!C:C),COUNTIF(Resume!B:B,W59))","v":0}]
[null,null,null,null,null,"",null,null,null,null,null,null,null,null,null,null,null,{"$f":"IFERROR(IF(COUNTIF(Resume!D:D,$Q60)=0,\"\",COUNTIF(Resume!D:D,$Q60)),\"\")","v":""},{"$f":"IFERROR(IF(COUNTIF(Resume!E:E,$Q60)=0,\"\",COUNTIF(Resume!E:E,$Q60)),\"\")","v":""},{"$f":"IFERROR(IF(COUNTIF(Resume!F:F,$Q60)=0,\"\",COUNTIF(Resume!F:F,$Q60)),\"\")","v":""},{"$f":"IF(Resume!$B$22=\"Duration\",(SUMIF(Resume!D:D,Q60,Resume!C:C)+SUMIF(Resume!E:E,Q60,Resume!C:C)+SUMIF(Resume!F:F,Q60,Resume!C:C)),SUM(R60:T60))","v":0},null,null,{"$f":"IF(Resume!$B$22=\"Duration\",SUMIF(Resume!B:B,W60,Resume!C:C),COUNTIF(Resume!B:B,W60))","v":0}]
[null,null,null,null,null,"",null,null,null,null,null,null,null,null,null,null,null,{"$f":"IFERROR(IF(COUNTIF(Resume!D:D,$Q61)=0,\"\",COUNTIF(Resume!D:D,$Q61)),\"\")","v":""},{"$f":"IFERROR(IF(COUNTIF(Resume!E:E,$Q61)=0,\"\",COUNTIF(Resume!E:E,$Q61)),\"\")","v":""},{"$f":"IFERROR(IF(COUNTIF(Resume!F:F,$Q61)=0,\"\",COUNTIF(Resume!F:F,$Q61)),\"\")","v":""},{"$f":"IF(Resume!$B$22=\"Duration\",(SUMIF(Resume!D:D,Q61,Resume!C:C)+SUMIF(Resume!E:E,Q61,Resume!C:C)+SUMIF(Resume!F:F,Q61,Resume!C:C)),SUM(R61:T61))","v":0},null,null,{"$f":"IF(Resume!$B$22=\"Duration\",SUMIF(Resume!B:B,W61,Resume!C:C),COUNTIF(Resume!B:B,W61))","v":0}]
[null,null,null,null,null,"",null,null,null,null,null,null,null,null,null,null,null,{"$f":"IFERROR(IF(COUNTIF(Resume!D:D,$Q62)=0,\"\",COUNTIF(Resume!D:D,$Q62)),\"\")","v":""},{"$f":"IFERROR(IF(COUNTIF(Resume!E:E,$Q62)=0,\"\",COUNTIF(Resume!E:E,$Q62)),\"\")","v":""},{"$f":"IFERROR(IF(COUNTIF(Resume!F:F,$Q62)=0,\"\",COUNTIF(Resume!F:F,$Q62)),\"\")","v":""},{"$f":"IF(Resume!$B$22=\"Duration\",(SUMIF(Resume!D:D,Q62,Resume!C:C)+SUMIF(Resume!E:E,Q62,Resume!C:C)+SUMIF(Resume!F:F,Q62,Resume!C:C)),SUM(R62:T62))","v":0},null,null,{"$f":"IF(Resume!$B$22=\"Duration\",SUMIF(Resume!B:B,W62,Resume!C:C),COUNTIF(Resume!B:B,W62))","v":0}]
[null,null,null,null,null,"",null,null,null,null,null,null,null,null,null,null,null,{"$f":"IFERROR(IF(COUNTIF(Resume!D:D,$Q63)=0,\"\",COUNTIF(Resume!D:D,$Q63)),\"\")","v":""},{"$f":"IFERROR(IF(COUNTIF(Resume!E:E,$Q63)=0,\"\",COUNTIF(Resume!E:E,$Q63)),\"\")","v":""},{"$f":"IFERROR(IF(COUNTIF(Resume!F:F,$Q63)=0,\"\",COUNTIF(Resume!F:F,$Q63)),\"\")","v":""},{"$f":"IF(Resume!$B$22=\"Duration\",(SUMIF(Resume!D:D,Q63,Resume!C:C)+SUMIF(Resume!E:E,Q63,Resume!C:C)+SUMIF(Resume!F:F,Q63,Resume!C:C)),SUM(R63:T63))","v":0},null,null,{"$f":"IF(Resume!$B$22=\"Duration\",SUMIF(Resume!B:B,W63,Resume!C:C),COUNTIF(Resume!B:B,W63))","v":0}]
[null,null,null,null,null,"",null,null,null,null,null,null,null,null,null,null,null,{"$f":"IFERROR(IF(COUNTIF(Resume!D:D,$Q64)=0,\"\",COUNTIF(Resume!D:D,$Q64)),\"\")","v":""},{"$f":"IFERROR(IF(COUNTIF(Resume!E:E,$Q64)=0,\"\",COUNTIF(Resume!E:E,$Q64)),\"\")","v":""},{"$f":"IFERROR(IF(COUNTIF(Resume!F:F,$Q64)=0,\"\",COUNTIF(Resume!F:F,$Q64)),\"\")","v":""},{"$f":"IF(Resume!$B$22=\"Duration\",(SUMIF(Resume!D:D,Q64,Resume!C:C)+SUMIF(Resume!E:E,Q64,Resume!C:C)+SUMIF(Resume!F:F,Q64,Resume!C:C)),SUM(R64:T64))","v":0},null,null,{"$f":"IF(Resume!$B$22=\"Duration\",SUMIF(Resume!B:B,W64,Resume!C:C),COUNTIF(Resume!B:B,W64))","v":0}]
[null,null,null,null,null,"",null,null,null,null,null,null,null,null,null,null,null,{"$f":"IFERROR(IF(COUNTIF(Resume!D:D,$Q65)=0,\"\",COUNTIF(Resume!D:D,$Q65)),\"\")","v":""},{"$f":"IFERROR(IF(COUNTIF(Resume!E:E,$Q65)=0,\"\",COUNTIF(Resume!E:E,$Q65)),\"\")","v":""},{"$f":"IFERROR(IF(COUNTIF(Resume!F:F,$Q65)=0,\"\",COUNTIF(Resume!F:F,$Q65)),\"\")","v":""},{"$f":"IF(Resume!$B$22=\"Duration\",(SUMIF(Resume!D:D,Q65,Resume!C:C)+SUMIF(Resume!E:E,Q65,Resume!C:C)+SUMIF(Resume!F:F,Q65,Resume!C:C)),SUM(R65:T65))","v":0},null,null,{"$f":"IF(Resume!$B$22=\"Duration\",SUMIF(Resume!B:B,W65,Resume!C:C),COUNTIF(Resume!B:B,W65))","v":0}]
[null,null,null,null,null,{"$f":"D66&E66","v":""},null,null,null,null,null,null,null,null,null,null,null,{"$f":"IFERROR(IF(COUNTIF(Resume!D:D,$Q66)=0,\"\",COUNTIF(Resume!D:D,$Q66)),\"\")","v":""},{"$f":"IFERROR(IF(COUNTIF(Resume!E:E,$Q66)=0,\"\",COUNTIF(Resume!E:E,$Q66)),\"\")","v":""},{"$f":"IFERROR(IF(COUNTIF(Resume!F:F,$Q66)=0,\"\",COUNTIF(Resume!F:F,$Q66)),\"\")","v":""},{"$f":"IF(Resume!$B$22=\"Duration\",(SUMIF(Resume!D:D,Q66,Resume!C:C)+SUMIF(Resume!E:E,Q66,Resume!C:C)+SUMIF(Resume!F:F,Q66,Resume!C:C)),SUM(R66:T66))","v":0},null,null,{"$f":"IF(Resume!$B$22=\"Duration\",SUMIF(Resume!B:B,W66,Resume!C:C),COUNTIF(Resume!B:B,W66))","v":0}]
[null,null,null,null,null,"",null,null,null,null,null,null,null,null,null,null,null,{"$f":"IFERROR(IF(COUNTIF(Resume!D:D,$Q67)=0,\"\",COUNTIF(Resume!D:D,$Q67)),\"\")","v":""},{"$f":"IFERROR(IF(COUNTIF(Resume!E:E,$Q67)=0,\"\",COUNTIF(Resume!E:E,$Q67)),\"\")","v":""},{"$f":"IFERROR(IF(COUNTIF(Resume!F:F,$Q67)=0,\"\",COUNTIF(Resume!F:F,$Q67)),\"\")","v":""},{"$f":"IF(Resume!$B$22=\"Duration\",(SUMIF(Resume!D:D,Q67,Resume!C:C)+SUMIF(Resume!E:E,Q67,Resume!C:C)+SUMIF(Resume!F:F,Q67,Resume!C:C)),SUM(R67:T67))","v":0},null,null,{"$f":"IF(Resume!$B$22=\"Duration\",SUMIF(Resume!B:B,W67,Resume!C:C),COUNTIF(Resume!B:B,W67))","v":0}]
[null,null,null,null,null,"",null,null,null,null,null,null,null,null,null,null,null,{"$f":"IFERROR(IF(COUNTIF(Resume!D:D,$Q68)=0,\"\",COUNTIF(Resume!D:D,$Q68)),\"\")","v":""},{"$f":"IFERROR(IF(COUNTIF(Resume!E:E,$Q68)=0,\"\",COUNTIF(Resume!E:E,$Q68)),\"\")","v":""},{"$f":"IFERROR(IF(COUNTIF(Resume!F:F,$Q68)=0,\"\",COUNTIF(Resume!F:F,$Q68)),\"\")","v":""},{"$f":"IF(Resume!$B$22=\"Duration\",(SUMIF(Resume!D:D,Q68,Resume!C:C)+SUMIF(Resume!E:E,Q68,Resume!C:C)+SUMIF(Resume!F:F,Q68,Resume!C:C)),SUM(R68:T68))","v":0},null,null,{"$f":"IF(Resume!$B$22=\"Duration\",SUMIF(Resume!B:B,W68,Resume!C:C),COUNTIF(Resume!B:B,W68))","v":0}]
[null,null,null,null,null,"",null,null,null,null,null,null,null,null,null,null,null,{"$f":"IFERROR(IF(COUNTIF(Resume!D:D,$Q69)=0,\"\",COUNTIF(Resume!D:D,$Q69)),\"\")","v":""},{"$f":"IFERROR(IF(COUNTIF(Resume!E:E,$Q69)=0,\"\",COUNTIF(Resume!E:E,$Q69)),\"\")","v":""},{"$f":"IFERROR(IF(COUNTIF(Resume!F:F,$Q69)=0,\"\",COUNTIF(Resume!F:F,$Q69)),\"\")","v":""},{"$f":"IF(Resume!$B$22=\"Duration\",(SUMIF(Resume!D:D,Q69,Resume!C:C)+SUMIF(Resume!E:E,Q69,Resume!C:C)+SUMIF(Resume!F:F,Q69,Resume!C:C)),SUM(R69:T69))","v":0},null,null,{"$f":"IF(Resume!$B$22=\"Duration\",SUMIF(Resume!B:B,W69,Resume!C:C),COUNTIF(Resume!B:B,W69))","v":0}]
[null,null,null,null,null,"",null,null,null,null,null,null,null,null,null,null,null,{"$f":"IFERROR(IF(COUNTIF(Resume!D:D,$Q70)=0,\"\",COUNTIF(Resume!D:D,$Q70)),\"\")","v":""},{"$f":"IFERROR(IF(COUNTIF(Resume!E:E,$Q70)=0,\"\",COUNTIF(Resume!E:E,$Q70)),\"\")","v":""},{"$f":"IFERROR(IF(COUNTIF(Resume!F:F,$Q70)=0,\"\",COUNTIF(Resume!F:F,$Q70)),\"\")","v":""},{"$f":"IF(Resume!$B$22=\"Duration\",(SUMIF(Resume!D:D,Q70,Resume!C:C)+SUMIF(Resume!E:E,Q70,Resume!C:C)+SUMIF(Resume!F:F,Q70,Resume!C:C)),SUM(R70:T70))","v":0},null,null,{"$f":"IF(Resume!$B$22=\"Duration\",SUMIF(Resume!B:B,W70,Resume!C:C),COUNTIF(Resume!B:B,W70))","v":0}]
[null,null,null,null,null,"",null,null,null,null,null,null,null,null,null,null,null,{"$f":"IFERROR(IF(COUNTIF(Resume!D:D,$Q71)=0,\"\",COUNTIF(Resume!D:D,$Q71)),\"\")","v":""},{"$f":"IFERROR(IF(COUNTIF(Resume!E:E,$Q71)=0,\"\",COUNTIF(Resume!E:E,$Q71)),\"\")","v":""},{"$f":"IFERROR(IF(COUNTIF(Resume!F:F,$Q71)=0,\"\",COUNTIF(Resume!F:F,$Q71)),\"\")","v":""},{"$f":"IF(Resume!$B$22=\"Duration\",(SUMIF(Resume!D:D,Q71,Resume!C:C)+SUMIF(Resume!E:E,Q71,Resume!C:C)+SUMIF(Resume!F:F,Q71,Resume!C:C)),SUM(R71:T71))","v":0},null,null,{"$f":"IF(Resume!$B$22=\"Duration\",SUMIF(Resume!B:B,W71,Resume!C:C),COUNTIF(Resume!B:B,W71))","v":0}]
[null,null,null,null,null,"",null,null,null,null,null,null,null,null,null,null,null,{"$f":"IFERROR(IF(COUNTIF(Resume!D:D,$Q72)=0,\"\",COUNTIF(Resume!D:D,$Q72)),\"\")","v":""},{"$f":"IFERROR(IF(COUNTIF(Resume!E:E,$Q72)=0,\"\",COUNTIF(Resume!E:E,$Q72)),\"\")","v":""},{"$f":"IFERROR(IF(COUNTIF(Resume!F:F,$Q72)=0,\"\",COUNTIF(Resume!F:F,$Q72)),\"\")","v":""},{"$f":"IF(Resume!$B$22=\"Duration\",(SUMIF(Resume!D:D,Q72,Resume!C:C)+SUMIF(Resume!E:E,Q72,Resume!C:C)+SUMIF(Resume!F:F,Q72,Resume!C:C)),SUM(R72:T72))","v":0},null,null,{"$f":"IF(Resume!$B$22=\"Duration\",SUMIF(Resume!B:B,W72,Resume!C:C),COUNTIF(Resume!B:B,W72))","v":0}]
[null,null,null,null,null,"",null,null,null,null,null,null,null,null,null,null,null,{"$f":"IFERROR(IF(COUNTIF(Resume!D:D,$Q73)=0,\"\",COUNTIF(Resume!D:D,$Q73)),\"\")","v":""},{"$f":"IFERROR(IF(COUNTIF(Resume!E:E,$Q73)=0,\"\",COUNTIF(Resume!E:E,$Q73)),\"\")","v":""},{"$f":"IFERROR(IF(COUNTIF(Resume!F:F,$Q73)=0,\"\",COUNTIF(Resume!F:F,$Q73)),\"\")","v":""},{"$f":"IF(Resume!$B$22=\"Duration\",(SUMIF(Resume!D:D,Q73,Resume!C:C)+SUMIF(Resume!E:E,Q73,Resume!C:C)+SUMIF(Resume!F:F,Q73,Resume!C:C)),SUM(R73:T73))","v":0},null,null,{"$f":"IF(Resume!$B$22=\"Duration\",SUMIF(Resume!B:B,W73,Resume!C:C),COUNTIF(Resume!B:B,W73))","v":0}]
[null,null,null,null,null,"",null,null,null,null,null,null,null,null,null,null,null,{"$f":"IFERROR(IF(COUNTIF(Resume!D:D,$Q74)=0,\"\",COUNTIF(Resume!D:D,$Q74)),\"\")","v":""},{"$f":"IFERROR(IF(COUNTIF(Resume!E:E,$Q74)=0,\"\",COUNTIF(Resume!E:E,$Q74)),\"\")","v":""},{"$f":"IFERROR(IF(COUNTIF(Resume!F:F,$Q74)=0,\"\",COUNTIF(Resume!F:F,$Q74)),\"\")","v":""},{"$f":"IF(Resume!$B$22=\"Duration\",(SUMIF(Resume!D:D,Q74,Resume!C:C)+SUMIF(Resume!E:E,Q74,Resume!C:C)+SUMIF(Resume!F:F,Q74,Resume!C:C)),SUM(R74:T74))","v":0},null,null,{"$f":"IF(Resume!$B$22=\"Duration\",SUMIF(Resume!B:B,W74,Resume!C:C),COUNTIF(Resume!B:B,W74))","v":0}]
[null,null,null,null,null,"",null,null,null,null,null,null,null,null,null,null,null,{"$f":"IFERROR(IF(COUNTIF(Resume!D:D,$Q75)=0,\"\",COUNTIF(Resume!D:D,$Q75)),\"\")","v":""},{"$f":"IFERROR(IF(COUNTIF(Resume!E:E,$Q75)=0,\"\",COUNTIF(Resume!E:E,$Q75)),\"\")","v":""},{"$f":"IFERROR(IF(COUNTIF(Resume!F:F,$Q75)=0,\"\",COUNTIF(Resume!F:F,$Q75)),\"\")","v":""},{"$f":"IF(Resume!$B$22=\"Duration\",(SUMIF(Resume!D:D,Q75,Resume!C:C)+SUMIF(Resume!E:E,Q75,Resume!C:C)+SUMIF(Resume!F:F,Q75,Resume!C:C)),SUM(R75:T75))","v":0},null,null,{"$f":"IF(Resume!$B$22=\"Duration\",SUMIF(Resume!B:B,W75,Resume!C:C),COUNTIF(Resume!B:B,W75))","v":0}]
[null,null,null,null,null,"",null,null,null,null,null,null,null,null,null,null,null,{"$f":"IFERROR(IF(COUNTIF(Resume!D:D,$Q76)=0,\"\",COUNTIF(Resume!D:D,$Q76)),\"\")","v":""},{"$f":"IFERROR(IF(COUNTIF(Resume!E:E,$Q76)=0,\"\",COUNTIF(Resume!E:E,$Q76)),\"\")","v":""},{"$f":"IFERROR(IF(COUNTIF(Resume!F:F,$Q76)=0,\"\",COUNTIF(Resume!F:F,$Q76)),\"\")","v":""},{"$f":"IF(Resume!$B$22=\"Duration\",(SUMIF(Resume!D:D,Q76,Resume!C:C)+SUMIF(Resume!E:E,Q76,Resume!C:C)+SUMIF(Resume!F:F,Q76,Resume!C:C)),SUM(R76:T76))","v":0},null,null,{"$f":"IF(Resume!$B$22=\"Duration\",SUMIF(Resume!B:B,W76,Resume!C:C),COUNTIF(Resume!B:B,W76))","v":0}]
[null,null,null,null,null,"",null,null,null,null,null,null,null,null,null,null,null,{"$f":"IFERROR(IF(COUNTIF(Resume!D:D,$Q77)=0,\"\",COUNTIF(Resume!D:D,$Q77)),\"\")","v":""},{"$f":"IFERROR(IF(COUNTIF(Resume!E:E,$Q77)=0,\"\",COUNTIF(Resume!E:E,$Q77)),\"\")","v":""},{"$f":"IFERROR(IF(COUNTIF(Resume!F:F,$Q77)=0,\"\",COUNTIF(Resume!F:F,$Q77)),\"\")","v":""},{"$f":"IF(Resume!$B$22=\"Duration\",(SUMIF(Resume!D:D,Q77,Resume!C:C)+SUMIF(Resume!E:E,Q77,Resume!C:C)+SUMIF(Resume!F:F,Q77,Resume!C:C)),SUM(R77:T77))","v":0},null,null,{"$f":"IF(Resume!$B$22=\"Duration\",SUMIF(Resume!B:B,W77,Resume!C:C),COUNTIF(Resume!B:B,W77))","v":0}]
[null,null,null,null,null,"",null,null,null,null,null,null,null,null,null,null,null,{"$f":"IFERROR(IF(COUNTIF(Resume!D:D,$Q78)=0,\"\",COUNTIF(Resume!D:D,$Q78)),\"\")","v":""},{"$f":"IFERROR(IF(COUNTIF(Resume!E:E,$Q78)=0,\"\",COUNTIF(Resume!E:E,$Q78)),\"\")","v":""},{"$f":"IFERROR(IF(COUNTIF(Resume!F:F,$Q78)=0,\"\",COUNTIF(Resume!F:F,$Q78)),\"\")","v":""},{"$f":"IF(Resume!$B$22=\"Duration\",(SUMIF(Resume!D:D,Q78,Resume!C:C)+SUMIF(Resume!E:E,Q78,Resume!C:C)+SUMIF(Resume!F:F,Q78,Resume!C:C)),SUM(R78:T78))","v":0},null,null,{"$f":"IF(Resume!$B$22=\"Duration\",SUMIF(Resume!B:B,W78,Resume!C:C),COUNTIF(Resume!B:B,W78))","v":0}]
[null,null,null,null,null,"",null,null,null,null,null,null,null,null,null,null,null,{"$f":"IFERROR(IF(COUNTIF(Resume!D:D,$Q79)=0,\"\",COUNTIF(Resume!D:D,$Q79)),\"\")","v":""},{"$f":"IFERROR(IF(COUNTIF(Resume!E:E,$Q79)=0,\"\",COUNTIF(Resume!E:E,$Q79)),\"\")","v":""},{"$f":"IFERROR(IF(COUNTIF(Resume!F:F,$Q79)=0,\"\",COUNTIF(Resume!F:F,$Q79)),\"\")","v":""},{"$f":"IF(Resume!$B$22=\"Duration\",(SUMIF(Resume!D:D,Q79,Resume!C:C)+SUMIF(Resume!E:E,Q79,Resume!C:C)+SUMIF(Resume!F:F,Q79,Resume!C:C)),SUM(R79:T79))","v":0},null,null,{"$f":"IF(Resume!$B$22=\"Duration\",SUMIF(Resume!B:B,W79,Resume!C:C),COUNTIF(Resume!B:B,W79))","v":0}]
[null,null,null,null,null,"",null,null,null,null,null,null,null,null,null,null,null,{"$f":"IFERROR(IF(COUNTIF(Resume!D:D,$Q80)=0,\"\",COUNTIF(Resume!D:D,$Q80)),\"\")","v":""},{"$f":"IFERROR(IF(COUNTIF(Resume!E:E,$Q80)=0,\"\",COUNTIF(Resume!E:E,$Q80)),\"\")","v":""},{"$f":"IFERROR(IF(COUNTIF(Resume!F:F,$Q80)=0,\"\",COUNTIF(Resume!F:F,$Q80)),\"\")","v":""},{"$f":"IF(Resume!$B$22=\"Duration\",(SUMIF(Resume!D:D,Q80,Resume!C:C)+SUMIF(Resume!E:E,Q80,Resume!C:C)+SUMIF(Resume!F:F,Q80,Resume!C:C)),SUM(R80:T80))","v":0},null,null,{"$f":"IF(Resume!$B$22=\"Duration\",SUMIF(Resume!B:B,W80,Resume!C:C),COUNTIF(Resume!B:B,W80))","v":0}]
[null,null,null,null,null,"",null,null,null,null,null,null,null,null,null,null,null,{"$f":"IFERROR(IF(COUNTIF(Resume!D:D,$Q81)=0,\"\",COUNTIF(Resume!D:D,$Q81)),\"\")","v":""},{"$f":"IFERROR(IF(COUNTIF(Resume!E:E,$Q81)=0,\"\",COUNTIF(Resume!E:E,$Q81)),\"\")","v":""},{"$f":"IFERROR(IF(COUNTIF(Resume!F:F,$Q81)=0,\"\",COUNTIF(Resume!F:F,$Q81)),\"\")","v":""},{"$f":"IF(Resume!$B$22=\"Duration\",(SUMIF(Resume!D:D,Q81,Resume!C:C)+SUMIF(Resume!E:E,Q81,Resume!C:C)+SUMIF(Resume!F:F,Q81,Resume!C:C)),SUM(R81:T81))","v":0},null,null,{"$f":"IF(Resume!$B$22=\"Duration\",SUMIF(Resume!B:B,W81,Resume!C:C),COUNTIF(Resume!B:B,W81))","v":0}]
[null,null,null,null,null,"",null,null,null,null,null,null,null,null,null,null,null,{"$f":"IFERROR(IF(COUNTIF(Resume!D:D,$Q82)=0,\"\",COUNTIF(Resume!D:D,$Q82)),\"\")","v":""},{"$f":"IFERROR(IF(COUNTIF(Resume!E:E,$Q82)=0,\"\",COUNTIF(Resume!E:E,$Q82)),\"\")","v":""},{"$f":"IFERROR(IF(COUNTIF(Resume!F:F,$Q82)=0,\"\",COUNTIF(Resume!F:F,$Q82)),\"\")","v":""},{"$f":"IF(Resume!$B$22=\"Duration\",(SUMIF(Resume!D:D,Q82,Resume!C:C)+SUMIF(Resume!E:E,Q82,Resume!C:C)+SUMIF(Resume!F:F,Q82,Resume!C:C)),SUM(R82:T82))","v":0},null,null,{"$f":"IF(Resume!$B$22=\"Duration\",SUMIF(Resume!B:B,W82,Resume!C:C),COUNTIF(Resume!B:B,W82))","v":0}]
[null,null,null,null,null,"",null,null,null,null,null,null,null,null,null,null,null,{"$f":"IFERROR(IF(COUNTIF(Resume!D:D,$Q83)=0,\"\",COUNTIF(Resume!D:D,$Q83)),\"\")","v":""},{"$f":"IFERROR(IF(COUNTIF(Resume!E:E,$Q83)=0,\"\",COUNTIF(Resume!E:E,$Q83)),\"\")","v":""},{"$f":"IFERROR(IF(COUNTIF(Resume!F:F,$Q83)=0,\"\",COUNTIF(Resume!F:F,$Q83)),\"\")","v":""},{"$f":"IF(Resume!$B$22=\"Duration\",(SUMIF(Resume!D:D,Q83,Resume!C:C)+SUMIF(Resume!E:E,Q83,Resume!C:C)+SUMIF(Resume!F:F,Q83,Resume!C:C)),SUM(R83:T83))","v":0},null,null,{"$f":"IF(Resume!$B$22=\"Duration\",SUMIF(Resume!B:B,W83,Resume!C:C),COUNTIF(Resume!B:B,W83))","v":0}]
[null,null,null,null,null,"",null,null,null,null,null,null,null,null,null,null,null,{"$f":"IFERROR(IF(COUNTIF(Resume!D:D,$Q84)=0,\"\",COUNTIF(Resume!D:D,$Q84)),\"\")","v":""},{"$f":"IFERROR(IF(COUNTIF(Resume!E:E,$Q84)=0,\"\",COUNTIF(Resume!E:E,$Q84)),\"\")","v":""},{"$f":"IFERROR(IF(COUNTIF(Resume!F:F,$Q84)=0,\"\",COUNTIF(Resume!F:F,$Q84)),\"\")","v":""},{"$f":"IF(Resume!$B$22=\"Duration\",(SUMIF(Resume!D:D,Q84,Resume!C:C)+SUMIF(Resume!E:E,Q84,Resume!C:C)+SUMIF(Resume!F:F,Q84,Resume!C:C)),SUM(R84:T84))","v":0},null,null,{"$f":"IF(Resume!$B$22=\"Duration\",SUMIF(Resume!B:B,W84,Resume!C:C),COUNTIF(Resume!B:B,W84))","v":0}]
[null,null,null,null,null,"",null,null,null,null,null,null,null,null,null,null,null,{"$f":"IFERROR(IF(COUNTIF(Resume!D:D,$Q85)=0,\"\",COUNTIF(Resume!D:D,$Q85)),\"\")","v":""},{"$f":"IFERROR(IF(COUNTIF(Resume!E:E,$Q85)=0,\"\",COUNTIF(Resume!E:E,$Q85)),\"\")","v":""},{"$f":"IFERROR(IF(COUNTIF(Resume!F:F,$Q85)=0,\"\",COUNTIF(Resume!F:F,$Q85)),\"\")","v":""},{"$f":"IF(Resume!$B$22=\"Duration\",(SUMIF(Resume!D:D,Q85,Resume!C:C)+SUMIF(Resume!E:E,Q85,Resume!C:C)+SUMIF(Resume!F:F,Q85,Resume!C:C)),SUM(R85:T85))","v":0},null,null,{"$f":"IF(Resume!$B$22=\"Duration\",SUMIF(Resume!B:B,W85,Resume!C:C),COUNTIF(Resume!B:B,W85))","v":0}]
[null,null,null,null,null,"",null,null,null,null,null,null,null,null,null,null,null,{"$f":"IFERROR(IF(COUNTIF(Resume!D:D,$Q86)=0,\"\",COUNTIF(Resume!D:D,$Q86)),\"\")","v":""},{"$f":"IFERROR(IF(COUNTIF(Resume!E:E,$Q86)=0,\"\",COUNTIF(Resume!E:E,$Q86)),\"\")","v":""},{"$f":"IFERROR(IF(COUNTIF(Resume!F:F,$Q86)=0,\"\",COUNTIF(Resume!F:F,$Q86)),\"\")","v":""},{"$f":"IF(Resume!$B$22=\"Duration\",(SUMIF(Resume!D:D,Q86,Resume!C:C)+SUMIF(Resume!E:E,Q86,Resume!C:C)+SUMIF(Resume!F:F,Q86,Resume!C:C)),SUM(R86:T86))","v":0},null,null,{"$f":"IF(Resume!$B$22=\"Duration\",SUMIF(Resume!B:B,W86,Resume!C:C),COUNTIF(Resume!B:B,W86))","v":0}]
[null,null,null,null,null,"",null,null,null,null,null,null,null,null,null,null,null,{"$f":"IFERROR(IF(COUNTIF(Resume!D:D,$Q87)=0,\"\",COUNTIF(Resume!D:D,$Q87)),\"\")","v":""},{"$f":"IFERROR(IF(COUNTIF(Resume!E:E,$Q87)=0,\"\",COUNTIF(Resume!E:E,$Q87)),\"\")","v":""},{"$f":"IFERROR(IF(COUNTIF(Resume!F:F,$Q87)=0,\"\",COUNTIF(Resume!F:F,$Q87)),\"\")","v":""},{"$f":"IF(Resume!$B$22=\"Duration\",(SUMIF(Resume!D:D,Q87,Resume!C:C)+SUMIF(Resume!E:E,Q87,Resume!C:C)+SUMIF(Resume!F:F,Q87,Resume!C:C)),SUM(R87:T87))","v":0},null,null,{"$f":"IF(Resume!$B$22=\"Duration\",SUMIF(Resume!B:B,W87,Resume!C:C),COUNTIF(Resume!B:B,W87))","v":0}]
[null,null,null,null,null,"",null,null,null,null,null,null,null,null,null,null,null,{"$f":"IFERROR(IF(COUNTIF(Resume!D:D,$Q88)=0,\"\",COUNTIF(Resume!D:D,$Q88)),\"\")","v":""},{"$f":"IFERROR(IF(COUNTIF(Resume!E:E,$Q88)=0,\"\",COUNTIF(Resume!E:E,$Q88)),\"\")","v":""},{"$f":"IFERROR(IF(COUNTIF(Resume!F:F,$Q88)=0,\"\",COUNTIF(Resume!F:F,$Q88)),\"\")","v":""},{"$f":"IF(Resume!$B$22=\"Duration\",(SUMIF(Resume!D:D,Q88,Resume!C:C)+SUMIF(Resume!E:E,Q88,Resume!C:C)+SUMIF(Resume!F:F,Q88,Resume!C:C)),SUM(R88:T88))","v":0},null,null,{"$f":"IF(Resume!$B$22=\"Duration\",SUMIF(Resume!B:B,W88,Resume!C:C),COUNTIF(Resume!B:B,W88))","v":0}]
[null,null,null,null,null,"",null,null,null,null,null,null,null,null,null,null,null,{"$f":"IFERROR(IF(COUNTIF(Resume!D:D,$Q89)=0,\"\",COUNTIF(Resume!D:D,$Q89)),\"\")","v":""},{"$f":"IFERROR(IF(COUNTIF(Resume!E:E,$Q89)=0,\"\",COUNTIF(Resume!E:E,$Q89)),\"\")","v":""},{"$f":"IFERROR(IF(COUNTIF(Resume!F:F,$Q89)=0,\"\",COUNTIF(Resume!F:F,$Q89)),\"\")","v":""},{"$f":"IF(Resume!$B$22=\"Duration\",(SUMIF(Resume!D:D,Q89,Resume!C:C)+SUMIF(Resume!E:E,Q89,Resume!C:C)+SUMIF(Resume!F:F,Q89,Resume!C:C)),SUM(R89:T89))","v":0},null,null,{"$f":"IF(Resume!$B$22=\"Duration\",SUMIF(Resume!B:B,W89,Resume!C:C),COUNTIF(Resume!B:B,W89))","v":0}]
[null,null,null,null,null,"",null,null,null,null,null,null,null,null,null,null,null,{"$f":"IFERROR(IF(COUNTIF(Resume!D:D,$Q90)=0,\"\",COUNTIF(Resume!D:D,$Q90)),\"\")","v":""},{"$f":"IFERROR(IF(COUNTIF(Resume!E:E,$Q90)=0,\"\",COUNTIF(Resume!E:E,$Q90)),\"\")","v":""},{"$f":"IFERROR(IF(COUNTIF(Resume!F:F,$Q90)=0,\"\",COUNTIF(Resume!F:F,$Q90)),\"\")","v":""},{"$f":"IF(Resume!$B$22=\"Duration\",(SUMIF(Resume!D:D,Q90,Resume!C:C)+SUMIF(Resume!E:E,Q90,Resume!C:C)+SUMIF(Resume!F:F,Q90,Resume!C:C)),SUM(R90:T90))","v":0},null,null,{"$f":"IF(Resume!$B$22=\"Duration\",SUMIF(Resume!B:B,W90,Resume!C:C),COUNTIF(Resume!B:B,W90))","v":0}]
[null,null,null,null,null,"",null,null,null,null,null,null,null,null,null,null,null,{"$f":"IFERROR(IF(COUNTIF(Resume!D:D,$Q91)=0,\"\",COUNTIF(Resume!D:D,$Q91)),\"\")","v":""},{"$f":"IFERROR(IF(COUNTIF(Resume!E:E,$Q91)=0,\"\",COUNTIF(Resume!E:E,$Q91)),\"\")","v":""},{"$f":"IFERROR(IF(COUNTIF(Resume!F:F,$Q91)=0,\"\",COUNTIF(Resume!F:F,$Q91)),\"\")","v":""},{"$f":"IF(Resume!$B$22=\"Duration\",(SUMIF(Resume!D:D,Q91,Resume!C:C)+SUMIF(Resume!E:E,Q91,Resume!C:C)+SUMIF(Resume!F:F,Q91,Resume!C:C)),SUM(R91:T91))","v":0},null,null,{"$f":"IF(Resume!$B$22=\"Duration\",SUMIF(Resume!B:B,W91,Resume!C:C),COUNTIF(Resume!B:B,W91))","v":0}]
[null,null,null,null,null,"",null,null,null,null,null,null,null,null,null,null,null,{"$f":"IFERROR(IF(COUNTIF(Resume!D:D,$Q92)=0,\"\",COUNTIF(Resume!D:D,$Q92)),\"\")","v":""},{"$f":"IFERROR(IF(COUNTIF(Resume!E:E,$Q92)=0,\"\",COUNTIF(Resume!E:E,$Q92)),\"\")","v":""},{"$f":"IFERROR(IF(COUNTIF(Resume!F:F,$Q92)=0,\"\",COUNTIF(Resume!F:F,$Q92)),\"\")","v":""},{"$f":"IF(Resume!$B$22=\"Duration\",(SUMIF(Resume!D:D,Q92,Resume!C:C)+SUMIF(Resume!E:E,Q92,Resume!C:C)+SUMIF(Resume!F:F,Q92,Resume!C:C)),SUM(R92:T92))","v":0},null,null,{"$f":"IF(Resume!$B$22=\"Duration\",SUMIF(Resume!B:B,W92,Resume!C:C),COUNTIF(Resume!B:B,W92))","v":0}]
[null,null,null,null,null,"",null,null,null,null,null,null,null,null,null,null,null,{"$f":"IFERROR(IF(COUNTIF(Resume!D:D,$Q93)=0,\"\",COUNTIF(Resume!D:D,$Q93)),\"\")","v":""},{"$f":"IFERROR(IF(COUNTIF(Resume!E:E,$Q93)=0,\"\",COUNTIF(Resume!E:E,$Q93)),\"\")","v":""},{"$f":"IFERROR(IF(COUNTIF(Resume!F:F,$Q93)=0,\"\",COUNTIF(Resume!F:F,$Q93)),\"\")","v":""},{"$f":"IF(Resume!$B$22=\"Duration\",(SUMIF(Resume!D:D,Q93,Resume!C:C)+SUMIF(Resume!E:E,Q93,Resume!C:C)+SUMIF(Resume!F:F,Q93,Resume!C:C)),SUM(R93:T93))","v":0},null,null,{"$f":"IF(Resume!$B$22=\"Duration\",SUMIF(Resume!B:B,W93,Resume!C:C),COUNTIF(Resume!B:B,W93))","v":0}]
[null,null,null,null,null,"",null,null,null,null,null,null,null,null,null,null,null,{"$f":"IFERROR(IF(COUNTIF(Resume!D:D,$Q94)=0,\"\",COUNTIF(Resume!D:D,$Q94)),\"\")","v":""},{"$f":"IFERROR(IF(COUNTIF(Resume!E:E,$Q94)=0,\"\",COUNTIF(Resume!E:E,$Q94)),\"\")","v":""},{"$f":"IFERROR(IF(COUNTIF(Resume!F:F,$Q94)=0,\"\",COUNTIF(Resume!F:F,$Q94)),\"\")","v":""},{"$f":"IF(Resume!$B$22=\"Duration\",(SUMIF(Resume!D:D,Q94,Resume!C:C)+SUMIF(Resume!E:E,Q94,Resume!C:C)+SUMIF(Resume!F:F,Q94,Resume!C:C)),SUM(R94:T94))","v":0},null,null,{"$f":"IF(Resume!$B$22=\"Duration\",SUMIF(Resume!B:B,W94,Resume!C:C),COUNTIF(Resume!B:B,W94))","v":0}]
[null,null,null,null,null,"",null,null,null,null,null,null,null,null,null,null,null,{"$f":"IFERROR(IF(COUNTIF(Resume!D:D,$Q95)=0,\"\",COUNTIF(Resume!D:D,$Q95)),\"\")","v":""},{"$f":"IFERROR(IF(COUNTIF(Resume!E:E,$Q95)=0,\"\",COUNTIF(Resume!E:E,$Q95)),\"\")","v":""},{"$f":"IFERROR(IF(COUNTIF(Resume!F:F,$Q95)=0,\"\",COUNTIF(Resume!F:F,$Q95)),\"\")","v":""},{"$f":"IF(Resume!$B$22=\"Duration\",(SUMIF(Resume!D:D,Q95,Resume!C:C)+SUMIF(Resume!E:E,Q95,Resume!C:C)+SUMIF(Resume!F:F,Q95,Resume!C:C)),SUM(R95:T95))","v":0},null,null,{"$f":"IF(Resume!$B$22=\"Duration\",SUMIF(Resume!B:B,W95,Resume!C:C),COUNTIF(Resume!B:B,W95))","v":0}]
[null,null,null,null,null,"",null,null,null,null,null,null,null,null,null,null,null,{"$f":"IFERROR(IF(COUNTIF(Resume!D:D,$Q96)=0,\"\",COUNTIF(Resume!D:D,$Q96)),\"\")","v":""},{"$f":"IFERROR(IF(COUNTIF(Resume!E:E,$Q96)=0,\"\",COUNTIF(Resume!E:E,$Q96)),\"\")","v":""},{"$f":"IFERROR(IF(COUNTIF(Resume!F:F,$Q96)=0,\"\",COUNTIF(Resume!F:F,$Q96)),\"\")","v":""},{"$f":"IF(Resume!$B$22=\"Duration\",(SUMIF(Resume!D:D,Q96,Resume!C:C)+SUMIF(Resume!E:E,Q96,Resume!C:C)+SUMIF(Resume!F:F,Q96,Resume!C:C)),SUM(R96:T96))","v":0},null,null,{"$f":"IF(Resume!$B$22=\"Duration\",SUMIF(Resume!B:B,W96,Resume!C:C),COUNTIF(Resume!B:B,W96))","v":0}]
[null,null,null,null,null,"",null,null,null,null,null,null,null,null,null,null,null,{"$f":"IFERROR(IF(COUNTIF(Resume!D:D,$Q97)=0,\"\",COUNTIF(Resume!D:D,$Q97)),\"\")","v":""},{"$f":"IFERROR(IF(COUNTIF(Resume!E:E,$Q97)=0,\"\",COUNTIF(Resume!E:E,$Q97)),\"\")","v":""},{"$f":"IFERROR(IF(COUNTIF(Resume!F:F,$Q97)=0,\"\",COUNTIF(Resume!F:F,$Q97)),\"\")","v":""},{"$f":"IF(Resume!$B$22=\"Duration\",(SUMIF(Resume!D:D,Q97,Resume!C:C)+SUMIF(Resume!E:E,Q97,Resume!C:C)+SUMIF(Resume!F:F,Q97,Resume!C:C)),SUM(R97:T97))","v":0},null,null,{"$f":"IF(Resume!$B$22=\"Duration\",SUMIF(Resume!B:B,W97,Resume!C:C),COUNTIF(Resume!B:B,W97))","v":0}]
[null,null,null,null,null,"",null,null,null,null,null,null,null,null,null,null,null,{"$f":"IFERROR(IF(COUNTIF(Resume!D:D,$Q98)=0,\"\",COUNTIF(Resume!D:D,$Q98)),\"\")","v":""},{"$f":"IFERROR(IF(COUNTIF(Resume!E:E,$Q98)=0,\"\",COUNTIF(Resume!E:E,$Q98)),\"\")","v":""},{"$f":"IFERROR(IF(COUNTIF(Resume!F:F,$Q98)=0,\"\",COUNTIF(Resume!F:F,$Q98)),\"\")","v":""},{"$f":"IF(Resume!$B$22=\"Duration\",(SUMIF(Resume!D:D,Q98,Resume!C:C)+SUMIF(Resume!E:E,Q98,Resume!C:C)+SUMIF(Resume!F:F,Q98,Resume!C:C)),SUM(R98:T98))","v":0},null,null,{"$f":"IF(Resume!$B$22=\"Duration\",SUMIF(Resume!B:B,W98,Resume!C:C),COUNTIF(Resume!B:B,W98))","v":0}]
[null,null,null,null,null,"",null,null,null,null,null,null,null,null,null,null,null,{"$f":"IFERROR(IF(COUNTIF(Resume!D:D,$Q99)=0,\"\",COUNTIF(Resume!D:D,$Q99)),\"\")","v":""},{"$f":"IFERROR(IF(COUNTIF(Resume!E:E,$Q99)=0,\"\",COUNTIF(Resume!E:E,$Q99)),\"\")","v":""},{"$f":"IFERROR(IF(COUNTIF(Resume!F:F,$Q99)=0,\"\",COUNTIF(Resume!F:F,$Q99)),\"\")","v":""},{"$f":"IF(Resume!$B$22=\"Duration\",(SUMIF(Resume!D:D,Q99,Resume!C:C)+SUMIF(Resume!E:E,Q99,Resume!C:C)+SUMIF(Resume!F:F,Q99,Resume!C:C)),SUM(R99:T99))","v":0},null,null,{"$f":"IF(Resume!$B$22=\"Duration\",SUMIF(Resume!B:B,W99,Resume!C:C),COUNTIF(Resume!B:B,W99))","v":0}]
[null,null,null,null,null,"",null,null,null,null,null,null,null,null,null,null,null,{"$f":"IFERROR(IF(COUNTIF(Resume!D:D,$Q100)=0,\"\",COUNTIF(Resume!D:D,$Q100)),\"\")","v":""},{"$f":"IFERROR(IF(COUNTIF(Resume!E:E,$Q100)=0,\"\",COUNTIF(Resume!E:E,$Q100)),\"\")","v":""},{"$f":"IFERROR(IF(COUNTIF(Resume!F:F,$Q100)=0,\"\",COUNTIF(Resume!F:F,$Q100)),\"\")","v":""},{"$f":"IF(Resume!$B$22=\"Duration\",(SUMIF(Resume!D:D,Q100,Resume!C:C)+SUMIF(Resume!E:E,Q100,Resume!C:C)+SUMIF(Resume!F:F,Q100,Resume!C:C)),SUM(R100:T100))","v":0},null,null,{"$f":"IF(Resume!$B$22=\"Duration\",SUMIF(Resume!B:B,W100,Resume!C:C),COUNTIF(Resume!B:B,W100))","v":0}]
[null,null,null,null,null,"",null,null,null,null,null,null,null,null,null,null,null,{"$f":"IFERROR(IF(COUNTIF(Resume!D:D,$Q101)=0,\"\",COUNTIF(Resume!D:D,$Q101)),\"\")","v":""},{"$f":"IFERROR(IF(COUNTIF(Resume!E:E,$Q101)=0,\"\",COUNTIF(Resume!E:E,$Q101)),\"\")","v":""},{"$f":"IFERROR(IF(COUNTIF(Resume!F:F,$Q101)=0,\"\",COUNTIF(Resume!F:F,$Q101)),\"\")","v":""},{"$f":"IF(Resume!$B$22=\"Duration\",(SUMIF(Resume!D:D,Q101,Resume!C:C)+SUMIF(Resume!E:E,Q101,Resume!C:C)+SUMIF(Resume!F:F,Q101,Resume!C:C)),SUM(R101:T101))","v":0},null,null,{"$f":"IF(Resume!$B$22=\"Duration\",SUMIF(Resume!B:B,W101,Resume!C:C),COUNTIF(Resume!B:B,W101))","v":0}]
[null,null,null,null,null,"",null,null,null,null,null,null,null,null,null,null,null,{"$f":"IFERROR(IF(COUNTIF(Resume!D:D,$Q102)=0,\"\",COUNTIF(Resume!D:D,$Q102)),\"\")","v":""},{"$f":"IFERROR(IF(COUNTIF(Resume!E:E,$Q102)=0,\"\",COUNTIF(Resume!E:E,$Q102)),\"\")","v":""},{"$f":"IFERROR(IF(COUNTIF(Resume!F:F,$Q102)=0,\"\",COUNTIF(Resume!F:F,$Q102)),\"\")","v":""},{"$f":"IF(Resume!$B$22=\"Duration\",(SUMIF(Resume!D:D,Q102,Resume!C:C)+SUMIF(Resume!E:E,Q102,Resume!C:C)+SUMIF(Resume!F:F,Q102,Resume!C:C)),SUM(R102:T102))","v":0},null,null,{"$f":"IF(Resume!$B$22=\"Duration\",SUMIF(Resume!B:B,W102,Resume!C:C),COUNTIF(Resume!B:B,W102))","v":0}]
[null,null,null,null,null,"",null,null,null,null,null,null,null,null,null,null,null,{"$f":"IFERROR(IF(COUNTIF(Resume!D:D,$Q103)=0,\"\",COUNTIF(Resume!D:D,$Q103)),\"\")","v":""},{"$f":"IFERROR(IF(COUNTIF(Resume!E:E,$Q103)=0,\"\",COUNTIF(Resume!E:E,$Q103)),\"\")","v":""},{"$f":"IFERROR(IF(COUNTIF(Resume!F:F,$Q103)=0,\"\",COUNTIF(Resume!F:F,$Q103)),\"\")","v":""},{"$f":"IF(Resume!$B$22=\"Duration\",(SUMIF(Resume!D:D,Q103,Resume!C:C)+SUMIF(Resume!E:E,Q103,Resume!C:C)+SUMIF(Resume!F:F,Q103,Resume!C:C)),SUM(R103:T103))","v":0},null,null,{"$f":"IF(Resume!$B$22=\"Duration\",SUMIF(Resume!B:B,W103,Resume!C:C),COUNTIF(Resume!B:B,W103))","v":0}]
[null,null,null,null,null,"",null,null,null,null,null,null,null,null,null,null,null,{"$f":"IFERROR(IF(COUNTIF(Resume!D:D,$Q104)=0,\"\",COUNTIF(Resume!D:D,$Q104)),\"\")","v":""},{"$f":"IFERROR(IF(COUNTIF(Resume!E:E,$Q104)=0,\"\",COUNTIF(Resume!E:E,$Q104)),\"\")","v":""},{"$f":"IFERROR(IF(COUNTIF(Resume!F:F,$Q104)=0,\"\",COUNTIF(Resume!F:F,$Q104)),\"\")","v":""},{"$f":"IF(Resume!$B$22=\"Duration\",(SUMIF(Resume!D:D,Q104,Resume!C:C)+SUMIF(Resume!E:E,Q104,Resume!C:C)+SUMIF(Resume!F:F,Q104,Resume!C:C)),SUM(R104:T104))","v":0},null,null,{"$f":"IF(Resume!$B$22=\"Duration\",SUMIF(Resume!B:B,W104,Resume!C:C),COUNTIF(Resume!B:B,W104))","v":0}]
[null,null,null,null,null,"",null,null,null,null,null,null,null,null,null,null,null,{"$f":"IFERROR(IF(COUNTIF(Resume!D:D,$Q105)=0,\"\",COUNTIF(Resume!D:D,$Q105)),\"\")","v":""},{"$f":"IFERROR(IF(COUNTIF(Resume!E:E,$Q105)=0,\"\",COUNTIF(Resume!E:E,$Q105)),\"\")","v":""},{"$f":"IFERROR(IF(COUNTIF(Resume!F:F,$Q105)=0,\"\",COUNTIF(Resume!F:F,$Q105)),\"\")","v":""},{"$f":"IF(Resume!$B$22=\"Duration\",(SUMIF(Resume!D:D,Q105,Resume!C:C)+SUMIF(Resume!E:E,Q105,Resume!C:C)+SUMIF(Resume!F:F,Q105,Resume!C:C)),SUM(R105:T105))","v":0},null,null,{"$f":"IF(Resume!$B$22=\"Duration\",SUMIF(Resume!B:B,W105,Resume!C:C),COUNTIF(Resume!B:B,W105))","v":0}]
[null,null,null,null,null,"",null,null,null,null,null,null,null,null,null,null,null,{"$f":"IFERROR(IF(COUNTIF(Resume!D:D,$Q106)=0,\"\",COUNTIF(Resume!D:D,$Q106)),\"\")","v":""},{"$f":"IFERROR(IF(COUNTIF(Resume!E:E,$Q106)=0,\"\",COUNTIF(Resume!E:E,$Q106)),\"\")","v":""},{"$f":"IFERROR(IF(COUNTIF(Resume!F:F,$Q106)=0,\"\",COUNTIF(Resume!F:F,$Q106)),\"\")","v":""},{"$f":"IF(Resume!$B$22=\"Duration\",(SUMIF(Resume!D:D,Q106,Resume!C:C)+SUMIF(Resume!E:E,Q106,Resume!C:C)+SUMIF(Resume!F:F,Q106,Resume!C:C)),SUM(R106:T106))","v":0},null,null,{"$f":"IF(Resume!$B$22=\"Duration\",SUMIF(Resume!B:B,W106,Resume!C:C),COUNTIF(Resume!B:B,W106))","v":0}]
[null,null,null,null,null,"",null,null,null,null,null,null,null,null,null,null,null,{"$f":"IFERROR(IF(COUNTIF(Resume!D:D,$Q107)=0,\"\",COUNTIF(Resume!D:D,$Q107)),\"\")","v":""},{"$f":"IFERROR(IF(COUNTIF(Resume!E:E,$Q107)=0,\"\",COUNTIF(Resume!E:E,$Q107)),\"\")","v":""},{"$f":"IFERROR(IF(COUNTIF(Resume!F:F,$Q107)=0,\"\",COUNTIF(Resume!F:F,$Q107)),\"\")","v":""},{"$f":"IF(Resume!$B$22=\"Duration\",(SUMIF(Resume!D:D,Q107,Resume!C:C)+SUMIF(Resume!E:E,Q107,Resume!C:C)+SUMIF(Resume!F:F,Q107,Resume!C:C)),SUM(R107:T107))","v":0},null,null,{"$f":"IF(Resume!$B$22=\"Duration\",SUMIF(Resume!B:B,W107,Resume!C:C),COUNTIF(Resume!B:B,W107))","v":0}]
[null,null,null,null,null,"",null,null,null,null,null,null,null,null,null,null,null,{"$f":"IFERROR(IF(COUNTIF(Resume!D:D,$Q108)=0,\"\",COUNTIF(Resume!D:D,$Q108)),\"\")","v":""},{"$f":"IFERROR(IF(COUNTIF(Resume!E:E,$Q108)=0,\"\",COUNTIF(Resume!E:E,$Q108)),\"\")","v":""},{"$f":"IFERROR(IF(COUNTIF(Resume!F:F,$Q108)=0,\"\",COUNTIF(Resume!F:F,$Q108)),\"\")","v":""},{"$f":"IF(Resume!$B$22=\"Duration\",(SUMIF(Resume!D:D,Q108,Resume!C:C)+SUMIF(Resume!E:E,Q108,Resume!C:C)+SUMIF(Resume!F:F,Q108,Resume!C:C)),SUM(R108:T108))","v":0},null,null,{"$f":"IF(Resume!$B$22=\"Duration\",SUMIF(Resume!B:B,W108,Resume!C:C),COUNTIF(Resume!B:B,W108))","v":0}]
[null,null,null,null,null,"",null,null,null,null,null,null,null,null,null,null,null,{"$f":"IFERROR(IF(COUNTIF(Resume!D:D,$Q109)=0,\"\",COUNTIF(Resume!D:D,$Q109)),\"\")","v":""},{"$f":"IFERROR(IF(COUNTIF(Resume!E:E,$Q109)=0,\"\",COUNTIF(Resume!E:E,$Q109)),\"\")","v":""},{"$f":"IFERROR(IF(COUNTIF(Resume!F:F,$Q109)=0,\"\",COUNTIF(Resume!F:F,$Q109)),\"\")","v":""},{"$f":"IF(Resume!$B$22=\"Duration\",(SUMIF(Resume!D:D,Q109,Resume!C:C)+SUMIF(Resume!E:E,Q109,Resume!C:C)+SUMIF(Resume!F:F,Q109,Resume!C:C)),SUM(R109:T109))","v":0},null,null,{"$f":"IF(Resume!$B$22=\"Duration\",SUMIF(Resume!B:B,W109,Resume!C:C),COUNTIF(Resume!B:B,W109))","v":0}]
[null,null,null,null,null,"",null,null,null,null,null,null,null,null,null,null,null,null,null,null,null,null,null,{"$f":"IF(Resume!$B$22=\"Duration\",SUMIF(Resume!B:B,W110,Resume!C:C),COUNTIF(Resume!B:B,W110))","v":0}]
[null,null,null,null,null,"",null,null,null,null,null,null,null,null,null,null,null,null,null,null,null,null,null,{"$f":"IF(Resume!$B$22=\"Duration\",SUMIF(Resume!B:B,W111,Resume!C:C),COUNTIF(Resume!B:B,W111))","v":0}]
[null,null,null,null,null,"",null,null,null,null,null,null,null,null,null,null,null,null,null,null,null,null,null,{"$f":"IF(Resume!$B$22=\"Duration\",SUMIF(Resume!B:B,W112,Resume!C:C),COUNTIF(Resume!B:B,W112))","v":0}]
[null,null,null,null,null,"",null,null,null,null,null,null,null,null,null,null,null,null,null,null,null,null,null,{"$f":"IF(Resume!$B$22=\"Duration\",SUMIF(Resume!B:B,W113,Resume!C:C),COUNTIF(Resume!B:B,W113))","v":0}]
[null,null,null,null,null,"",null,null,null,null,null,null,null,null,null,null,null,null,null,null,null,null,null,{"$f":"IF(Resume!$B$22=\"Duration\",SUMIF(Resume!B:B,W114,Resume!C:C),COUNTIF(Resume!B:B,W114))","v":0}]
[null,null,null,null,null,"",null,null,null,null,null,null,null,null,null,null,null,null,null,null,null,null,null,{"$f":"IF(Resume!$B$22=\"Duration\",SUMIF(Resume!B:B,W115,Resume!C:C),COUNTIF(Resume!B:B,W115))","v":0}]
[null,null,null,null,null,"",null,null,null,null,null,null,null,null,null,null,null,null,null,null,null,null,null,{"$f":"IF(Resume!$B$22=\"Duration\",SUMIF(Resume!B:B,W116,Resume!C:C),COUNTIF(Resume!B:B,W116))","v":0}]
[null,null,null,null,null,"",null,null,null,null,null,null,null,null,null,null,null,null,null,null,null,null,null,{"$f":"IF(Resume!$B$22=\"Duration\",SUMIF(Resume!B:B,W117,Resume!C:C),COUNTIF(Resume!B:B,W117))","v":0}]
[null,null,null,null,null,"",null,null,null,null,null,null,null,null,null,null,null,null,null,null,null,null,null,{"$f":"IF(Resume!$B$22=\"Duration\",SUMIF(Resume!B:B,W118,Resume!C:C),COUNTIF(Resume!B:B,W118))","v":0}]
[null,null,null,null,null,"",null,null,null,null,null,null,null,null,null,null,null,null,null,null,null,null,null,{"$f":"IF(Resume!$B$22=\"Duration\",SUMIF(Resume!B:B,W119,Resume!C:C),COUNTIF(Resume!B:B,W119))","v":0}]
[null,null,null,null,null,"",null,null,null,null,null,null,null,null,null,null,null,null,null,null,null,null,null,{"$f":"IF(Resume!$B$22=\"Duration\",SUMIF(Resume!B:B,W120,Resume!C:C),COUNTIF(Resume!B:B,W120))","v":0}]
[null,null,null,null,null,"",null,null,null,null,null,null,null,null,null,null,null,null,null,null,null,null,null,{"$f":"IF(Resume!$B$22=\"Duration\",SUMIF(Resume!B:B,W121,Resume!C:C),COUNTIF(Resume!B:B,W121))","v":0}]
[null,null,null,null,null,"",null,null,null,null,null,null,null,null,null,null,null,null,null,null,null,null,null,{"$f":"IF(Resume!$B$22=\"Duration\",SUMIF(Resume!B:B,W122,Resume!C:C),COUNTIF(Resume!B:B,W122))","v":0}]
[null,null,null,null,null,"",null,null,null,null,null,null,null,null,null,null,null,null,null,null,null,null,null,{"$f":"IF(Resume!$B$22=\"Duration\",SUMIF(Resume!B:B,W123,Resume!C:C),COUNTIF(Resume!B:B,W123))","v":0}]
[null,null,null,null,null,"",null,null,null,null,null,null,null,null,null,null,null,null,null,null,null,null,null,{"$f":"IF(Resume!$B$22=\"Duration\",SUMIF(Resume!B:B,W124,Resume!C:C),COUNTIF(Resume!B:B,W124))","v":0}]
[null,null,null,null,null,"",null,null,null,null,null,null,null,null,null,null,null,null,null,null,null,null,null,{"$f":"IF(Resume!$B$22=\"Duration\",SUMIF(Resume!B:B,W125,Resume!C:C),COUNTIF(Resume!B:B,W125))","v":0}]
[null,null,null,null,null,"",null,null,null,null,null,null,null,null,null,null,null,null,null,null,null,null,null,{"$f":"IF(Resume!$B$22=\"Duration\",SUMIF(Resume!B:B,W126,Resume!C:C),COUNTIF(Resume!B:B,W126))","v":0}]
[null,null,null,null,null,"",null,null,null,null,null,null,null,null,null,null,null,null,null,null,null,null,null,{"$f":"IF(Resume!$B$22=\"Duration\",SUMIF(Resume!B:B,W127,Resume!C:C),COUNTIF(Resume!B:B,W127))","v":0}]
[null,null,null,null,null,"",null,null,null,null,null,null,null,null,null,null,null,null,null,null,null,null,null,{"$f":"IF(Resume!$B$22=\"Duration\",SUMIF(Resume!B:B,W128,Resume!C:C),COUNTIF(Resume!B:B,W128))","v":0}]
[null,null,null,null,null,"",null,null,null,null,null,null,null,null,null,null,null,null,null,null,null,null,null,{"$f":"IF(Resume!$B$22=\"Duration\",SUMIF(Resume!B:B,W129,Resume!C:C),COUNTIF(Resume!B:B,W129))","v":0}]
[null,null,null,null,null,{"$f":"D130&E130","v":""},null,null,null,null,null,null,null,null,null,null,null,null,null,null,null,null,null,{"$f":"IF(Resume!$B$22=\"Duration\",SUMIF(Resume!B:B,W130,Resume!C:C),COUNTIF(Resume!B:B,W130))","v":0}]
[null,null,null,null,null,"",null,null,null,null,null,null,null,null,null,null,null,null,null,null,null,null,null,{"$f":"IF(Resume!$B$22=\"Duration\",SUMIF(Resume!B:B,W131,Resume!C:C),COUNTIF(Resume!B:B,W131))","v":0}]
[null,null,null,null,null,"",null,null,null,null,null,null,null,null,null,null,null,null,null,null,null,null,null,{"$f":"IF(Resume!$B$22=\"Duration\",SUMIF(Resume!B:B,W132,Resume!C:C),COUNTIF(Resume!B:B,W132))","v":0}]
[null,null,null,null,null,"",null,null,null,null,null,null,null,null,null,null,null,null,null,null,null,null,null,{"$f":"IF(Resume!$B$22=\"Duration\",SUMIF(Resume!B:B,W133,Resume!C:C),COUNTIF(Resume!B:B,W133))","v":0}]
[null,null,null,null,null,"",null,null,null,null,null,null,null,null,null,null,null,null,null,null,null,null,null,{"$f":"IF(Resume!$B$22=\"Duration\",SUMIF(Resume!B:B,W134,Resume!C:C),COUNTIF(Resume!B:B,W134))","v":0}]
[null,null,null,null,null,"",null,null,null,null,null,null,null,null,null,null,null,null,null,null,null,null,null,{"$f":"IF(Resume!$B$22=\"Duration\",SUMIF(Resume!B:B,W135,Resume!C:C),COUNTIF(Resume!B:B,W135))","v":0}]
[null,null,null,null,null,"",null,null,null,null,null,null,null,null,null,null,null,null,null,null,null,null,null,{"$f":"IF(Resume!$B$22=\"Duration\",SUMIF(Resume!B:B,W136,Resume!C:C),COUNTIF(Resume!B:B,W136))","v":0}]
[null,null,null,null,null,"",null,null,null,null,null,null,null,null,null,null,null,null,null,null,null,null,null,{"$f":"IF(Resume!$B$22=\"Duration\",SUMIF(Resume!B:B,W137,Resume!C:C),COUNTIF(Resume!B:B,W137))","v":0}]
[null,null,null,null,null,"",null,null,null,null,null,null,null,null,null,null,null,null,null,null,null,null,null,{"$f":"IF(Resume!$B$22=\"Duration\",SUMIF(Resume!B:B,W138,Resume!C:C),COUNTIF(Resume!B:B,W138))","v":0}]
[null,null,null,null,null,"",null,null,null,null,null,null,null,null,null,null,null,null,null,null,null,null,null,{"$f":"IF(Resume!$B$22=\"Duration\",SUMIF(Resume!B:B,W139,Resume!C:C),COUNTIF(Resume!B:B,W139))","v":0}]
[null,null,null,null,null,"",null,null,null,null,null,null,null,null,null,null,null,null,null,null,null,null,null,{"$f":"IF(Resume!$B$22=\"Duration\",SUMIF(Resume!B:B,W140,Resume!C:C),COUNTIF(Resume!B:B,W140))","v":0}]
[null,null,null,null,null,"",null,null,null,null,null,null,null,null,null,null,null,null,null,null,null,null,null,{"$f":"IF(Resume!$B$22=\"Duration\",SUMIF(Resume!B:B,W141,Resume!C:C),COUNTIF(Resume!B:B,W141))","v":0}]
[null,null,null,null,null,"",null,null,null,null,null,null,null,null,null,null,null,null,null,null,null,null,null,{"$f":"IF(Resume!$B$22=\"Duration\",SUMIF(Resume!B:B,W142,Resume!C:C),COUNTIF(Resume!B:B,W142))","v":0}]
[null,null,null,null,null,"",null,null,null,null,null,null,null,null,null,null,null,null,null,null,null,null,null,{"$f":"IF(Resume!$B$22=\"Duration\",SUMIF(Resume!B:B,W143,Resume!C:C),COUNTIF(Resume!B:B,W143))","v":0}]
[null,null,null,null,null,"",null,null,null,null,null,null,null,null,null,null,null,null,null,null,null,null,null,{"$f":"IF(Resume!$B$22=\"Duration\",SUMIF(Resume!B:B,W144,Resume!C:C),COUNTIF(Resume!B:B,W144))","v":0}]
[null,null,null,null,null,"",null,null,null,null,null,null,null,null,null,null,null,null,null,null,null,null,null,{"$f":"IF(Resume!$B$22=\"Duration\",SUMIF(Resume!B:B,W145,Resume!C:C),COUNTIF(Resume!B:B,W145))","v":0}]
[null,null,null,null,null,"",null,null,null,null,null,null,null,null,null,null,null,null,null,null,null,null,null,{"$f":"IF(Resume!$B$22=\"Duration\",SUMIF(Resume!B:B,W146,Resume!C:C),COUNTIF(Resume!B:B,W146))","v":0}]
[null,null,null,null,null,""]
[null,null,null,null,null,""]
[null,null,null,null,null,""]
[null,null,null,null,null,""]
[null,null,null,null,null,""]
[null,null,null,null,null,""]
[null,null,null,null,null,""]
[null,null,null,null,null,""]
[null,null,null,null,null,""]
[null,null,null,null,null,""]
[null,null,null,null,null,""]
[null,null,null,null,null,""]
[null,null,null,null,null,""]
[null,null,null,null,null,""]
[null,null,null,null,null,""]
[null,null,null,null,null,""]
[null,null,null,null,null,""]
[null,null,null,null,null,""]
[null,null,null,null,null,""]
[null,null,null,null,null,""]
[null,null,null,null,null,""]
[null,null,null,null,null,""]
[null,null,null,null,null,""]
[null,null,null,null,null,""]
[null,null,null,null,null,""]
[null,null,null,null,null,""]
[null,null,null,null,null,""]
[null,null,null,null,null,""]
[null,null,null,null,null,""]
[null,null,null,null,null,""]
[null,null,null,null,null,""]
[null,null,null,null,null,""]
[null,null,null,null,null,""]
[null,null,null,null,null,""]
[null,null,null,null,null,""]
[null,null,null,null,null,""]
[null,null,null,null,null,""]
[null,null,null,null,null,""]
[null,null,null,null,null,""]
[null,null,null,null,null,""]
[null,null,null,null,null,""]
[null,null,null,null,null,""]
[null,null,null,null,null,""]
[null,null,null,null,null,""]
[null,null,null,null,null,""]
[null,null,null,null,null,""]
[null,null,null,null,null,""]
[null,null,null,null,null,{"$f":"D194&E194","v":""}]
[null,null,null,null,null,""]
[null,null,null,null,null,""]
[null,null,null,null,null,""]
[null,null,null,null,null,""]
[null,null,null,null,null,""]
[null,null,null,null,null,""]
[null,null,null,null,null,""]
[null,null,null,null,null,""]
[null,null,null,null,null,""]
[null,null,null,null,null,""]
[null,null,null,null,null,""]
[null,null,null,null,null,""]
[null,null,null,null,null,""]
[null,null,null,null,null,""]
[null,null,null,null,null,""]
[null,null,null,null,null,""]
[null,null,null,null,null,""]
[null,null,null,null,null,""]
[null,null,null,null,null,""]
[null,null,null,null,null,""]
[null,null,null,null,null,""]
[null,null,null,null,null,""]
[null,null,null,null,null,""]
[null,null,null,null,null,""]
[null,null,null,null,null,""]
[null,null,null,null,null,""]
[null,null,null,null,null,""]
[null,null,null,null,null,""]
[null,null,null,null,null,""]
[null,null,null,null,null,""]
[null,null,null,null,null,""]
[null,null,null,null,null,""]
[null,null,null,null,null,""]
[null,null,null,null,null,""]
[null,null,null,null,null,""]
[null,null,null,null,null,""]
[null,null,null,null,null,""]
[null,null,null,null,null,""]
[null,null,null,null,null,""]
[null,null,null,null,null,""]
[null,null,null,null,null,""]
[null,null,null,null,null,""]
[null,null,null,null,null,""]
[null,null,null,null,null,""]
[null,null,null,null,null,""]
[null,null,null,null,null,""]
[null,null,null,null,null,""]
[null,null,null,null,null,""]
[null,null,null,null,null,""]
[null,null,null,null,null,""]
[null,null,null,null,null,""]
[null,null,null,null,null,""]
[null,null,null,null,null,""]
[null,null,null,null,null,""]
[null,null,null,null,null,""]
[null,null,null,null,null,""]
[null,null,null,null,null,""]
[null,null,null,null,null,""]
[null,null,null,null,null,""]
[null,null,null,null,null,""]
[null,null,null,null,null,""]
[null,null,null,null,null,""]
[null,null,null,null,null,""]
[null,null,null,null,null,{"$f":"D258&E258","v":""}]
[null,null,null,null,null,""]
[null,null,null,null,null,""]
[null,null,null,null,null,""]
[null,null,null,null,null,""]
[null,null,null,null,null,""]
[null,null,null,null,null,""]
[null,null,null,null,null,""]
[null,null,null,null,null,""]
[null,null,null,null,null,""]
[null,null,null,null,null,""]
[null,null,null,null,null,""]
[null,null,null,null,null,""]
[null,null,null,null,null,""]
[null,null,null,null,null,""]
[null,null,null,null,null,""]
[null,null,null,null,null,""]
[null,null,null,null,null,""]
[null,null,null,null,null,""]
[null,null,null,null,null,""]
[null,null,null,null,null,""]
[null,null,null,null,null,""]
[null,null,null,null,null,""]
[null,null,null,null,null,""]
[null,null,null,null,null,""]
[null,null,null,null,null,""]
[null,null,null,null,null,""]
[null,null,null,null,null,""]
[null,null,null,null,null,""]
[null,null,null,null,null,""]
[null,null,null,null,null,""]
[null,null,null,null,null,""]
[null,null,null,null,null,""]
[null,null,null,null,null,""]
[null,null,null,null,null,""]
[null,null,null,null,null,""]
[null,null,null,null,null,""]
[null,null,null,null,null,""]
[null,null,null,null,null,""]
[null,null,null,null,null,""]
[null,null,null,null,null,""]
[null,null,null,null,null,""]
[null,null,null,null,null,""]
[null,null,null,null,null,""]
[null,null,null,null,null,""]
[null,null,null,null,null,""]
[null,null,null,null,null,""]
[null,null,null,null,null,""]
[null,null,null,null,null,""]
[null,null,null,null,null,""]
[null,null,null,null,null,""]
[null,null,null,null,null,""]
[null,null,null,null,null,""]
[null,null,null,null,null,""]
[null,null,null,null,null,""]
[null,null,null,null,null,""]
[null,null,null,null,null,""]
[null,null,null,null,null,""]
[null,null,null,null,null,""]
[null,null,null,null,null,""]
[null,null,null,null,null,""]
[null,null,null,null,null,""]
[null,null,null,null,null,""]
[null,null,null,null,null,""]
[null,null,null,null,null,{"$f":"D322&E322","v":""}]
[null,null,null,null,null,""]
[null,null,null,null,null,""]
[null,null,null,null,null,""]
[null,null,null,null,null,""]
[null,null,null,null,null,""]
[null,null,null,null,null,""]
[null,null,null,null,null,""]
[null,null,null,null,null,""]
[null,null,null,null,null,""]
[null,null,null,null,null,""]
[null,null,null,null,null,""]
[null,null,null,null,null,""]
[null,null,null,null,null,""]
[null,null,null,null,null,""]
[null,null,null,null,null,""]
[null,null,null,null,null,""]
[null,null,null,null,null,""]
[null,null,null,null,null,""]
[null,null,null,null,null,""]
[null,null,null,null,null,""]
[null,null,null,null,null,""]
[null,null,null,null,null,""]
[null,null,null,null,null,""]
[null,null,null,null,null,""]
[null,null,null,null,null,""]
[null,null,null,null,null,""]
[null,null,null,null,null,""]
[null,null,null,null,null,""]
[null,null,null,null,null,""]
[null,null,null,null,null,""]
[null,null,null,null,null,""]
[null,null,null,null,null,""]
[null,null,null,null,null,""]
[null,null,null,null,null,""]
[null,null,null,null,null,""]
[null,null,null,null,null,""]
[null,null,null,null,null,""]
[null,null,null,null,null,""]
[null,null,null,null,null,""]
[null,null,null,null,null,""]
[null,null,null,null,null,""]
[null,null,null,null,null,""]
[null,null,null,null,null,""]
[null,null,null,null,null,""]
[null,null,null,null,null,""]
[null,null,null,null,null,""]
[null,null,null,null,null,""]
[null,null,null,null,null,""]
[null,null,null,null,null,""]
[null,null,null,null,null,""]
[null,null,null,null,null,""]
[null,null,null,null,null,""]
[null,null,null,null,null,""]
[null,null,null,null,null,""]
[null,null,null,null,null,""]
[null,null,null,null,null,""]
[null,null,null,null,null,""]
[null,null,null,null,null,""]
[null,null,null,null,null,""]
[null,null,null,null,null,""]
[null,null,null,null,null,""]
[null,null,null,null,null,""]
[null,null,null,null,null,""]
[null,null,null,null,null,{"$f":"D386&E386","v":""}]
[null,null,null,null,null,""]
[null,null,null,null,null,""]
[null,null,null,null,null,""]
[null,null,null,null,null,""]
[null,null,null,null,null,""]
[null,null,null,null,null,""]
[null,null,null,null,null,""]
[null,null,null,null,null,""]
[null,null,null,null,null,""]
[null,null,null,null,null,""]
[null,null,null,null,null,""]
[null,null,null,null,null,""]
[null,null,null,null,null,""]
[null,null,null,null,null,""]
[null,null,null,null,null,""]
[null,null,null,null,null,""]
[null,null,null,null,null,""]
[null,null,null,null,null,""]
[null,null,null,null,null,""]
[null,null,null,null,null,""]
[null,null,null,null,null,""]
[null,null,null,null,null,""]
[null,null,null,null,null,""]
[null,null,null,null,null,""]
[null,null,null,null,null,""]
[null,null,null,null,null,""]
[null,null,null,null,null,""]
[null,null,null,null,null,""]
[null,null,null,null,null,""]
[null,null,null,null,null,""]
[null,null,null,null,null,""]
[null,null,null,null,null,""]
[null,null,null,null,null,""]
[null,null,null,null,null,""]
[null,null,null,null,null,""]
[null,null,null,null,null,""]
[null,null,null,null,null,""]
[null,null,null,null,null,""]
[null,null,null,null,null,""]
[null,null,null,null,null,""]
[null,null,null,null,null,""]
[null,null,null,null,null,""]
[null,null,null,null,null,""]
[null,null,null,null,null,""]
[null,null,null,null,null,""]
[null,null,null,null,null,""]
[null,null,null,null,null,""]
[null,null,null,null,null,""]
[null,null,null,null,null,""]
[null,null,null,null,null,""]
[null,null,null,null,null,""]
[null,null,null,null,null,""]
[null,null,null,null,null,""]
[null,null,null,null,null,""]
[null,null,null,null,null,""]
[null,null,null,null,null,""]
[null,null,null,null,null,""]
[null,null,null,null,null,""]
[null,null,null,null,null,""]
[null,null,null,null,null,""]
[null,null,null,null,null,""]
[null,null,null,null,null,""]
[null,null,null,null,null,""]
[null,null,null,null,null,{"$f":"D450&E450","v":""}]
[null,null,null,null,null,""]
[null,null,null,null,null,""]
[null,null,null,null,null,""]
[null,null,null,null,null,""]
[null,null,null,null,null,""]
[null,null,null,null,null,""]
[null,null,null,null,null,""]
[null,null,null,null,null,""]
[null,null,null,null,null,""]
[null,null,null,null,null,""]
[null,null,null,null,null,""]
[null,null,null,null,null,""]
[null,null,null,null,null,""]
[null,null,null,null,null,""]
[null,null,null,null,null,""]
[null,null,null,null,null,""]
[null,null,null,null,null,""]
[null,null,null,null,null,""]
[null,null,null,null,null,""]
[null,null,null,null,null,""]
[null,null,null,null,null,""]
[null,null,null,null,null,""]
[null,null,null,null,null,""]
[null,null,null,null,null,""]
[null,null,null,null,null,""]
[null,null,null,null,null,""]
[null,null,null,null,null,""]
[null,null,null,null,null,""]
[null,null,null,null,null,""]
[null,null,null,null,null,""]
[null,null,null,null,null,""]
[null,null,null,null,null,""]
[null,null,null,null,null,""]
[null,null,null,null,null,""]
[null,null,null,null,null,""]
[null,null,null,null,null,""]
[null,null,null,null,null,""]
[null,null,null,null,null,""]
[null,null,null,null,null,""]
[null,null,null,null,null,""]
[null,null,null,null,null,""]
[null,null,null,null,null,""]
[null,null,null,null,null,""]
[null,null,null,null,null,""]
[null,null,null,null,null,""]
[null,null,null,null,null,""]
[null,null,null,null,null,""]
[null,null,null,null,null,""]
[null,null,null,null,null,""]
[null,null,null,null,null,""]
[null,null,null,null,null,""]
[null,null,null,null,null,""]
[null,null,null,null,null,""]
[null,null,null,null,null,""]
[null,null,null,null,null,""]
[null,null,null,null,null,""]
[null,null,null,null,null,""]
[null,null,null,null,null,""]
[null,null,null,null,null,""]
[null,null,null,null,null,""]
[null,null,null,null,null,""]
[null,null,null,null,null,""]
[null,null,null,null,null,""]
[null,null,null,null,null,{"$f":"D514&E514","v":""}]
[null,null,null,null,null,""]
[null,null,null,null,null,""]
[null,null,null,null,null,""]
[null,null,null,null,null,""]
[null,null,null,null,null,""]
[null,null,null,null,null,""]
[null,null,null,null,null,""]
[null,null,null,null,null,""]
[null,null,null,null,null,""]
[null,null,null,null,null,""]
[null,null,null,null,null,""]
[null,null,null,null,null,""]
[null,null,null,null,null,""]
[null,null,null,null,null,""]
[null,null,null,null,null,""]
[null,null,null,null,null,""]
[null,null,null,null,null,""]
[null,null,null,null,null,""]
[null,null,null,null,null,""]
[null,null,null,null,null,""]
[null,null,null,null,null,""]
[null,null,null,null,null,""]
[null,null,null,null,null,""]
[null,null,null,null,null,""]
[null,null,null,null,null,""]
[null,null,null,null,null,""]
[null,null,null,null,null,""]
[null,null,null,null,null,""]
[null,null,null,null,null,""]
[null,null,null,null,null,""]
[null,null,null,null,null,""]
[null,null,null,null,null,""]
[null,null,null,null,null,""]
[null,null,null,null,null,""]
[null,null,null,null,null,""]
[null,null,null,null,null,""]
[null,null,null,null,null,""]
[null,null,null,null,null,""]
[null,null,null,null,null,""]
[null,null,null,null,null,""]
[null,null,null,null,null,""]
[null,null,null,null,null,""]
[null,null,null,null,null,""]
[null,null,null,null,null,""]
[null,null,null,null,null,""]
[null,null,null,null,null,""]
[null,null,null,null,null,""]
[null,null,null,null,null,""]
[null,null,null,null,null,""]
[null,null,null,null,null,""]
[null,null,null,null,null,""]
[null,null,null,null,null,""]
[null,null,null,null,null,""]
[null,null,null,null,null,""]
[null,null,null,null,null,""]
[null,null,null,null,null,""]
[null,null,null,null,null,""]
[null,null,null,null,null,""]
[null,null,null,null,null,""]
[null,null,null,null,null,""]
[null,null,null,null,null,""]
[null,null,null,null,null,""]
[null,null,null,null,null,""]
[null,null,null,null,null,{"$f":"D578&E578","v":""}]
[null,null,null,null,null,""]
[null,null,null,null,null,""]
[null,null,null,null,null,""]
[null,null,null,null,null,""]
[null,null,null,null,null,""]
[null,null,null,null,null,""]
[null,null,null,null,null,""]
[null,null,null,null,null,""]
[null,null,null,null,null,""]
[null,null,null,null,null,""]
[null,null,null,null,null,""]
[null,null,null,null,null,""]
[null,null,null,null,null,""]
[null,null,null,null,null,""]
[null,null,null,null,null,""]
[null,null,null,null,null,""]
[null,null,null,null,null,""]
[null,null,null,null,null,""]
[null,null,null,null,null,""]
[null,null,null,null,null,""]
[null,null,null,null,null,""]
[null,null,null,null,null,""]
[null,null,null,null,null,""]
[null,null,null,null,null,""]
[null,null,null,null,null,""]
[null,null,null,null,null,""]
[null,null,null,null,null,""]
[null,null,null,null,null,""]
[null,null,null,null,null,""]
[null,null,null,null,null,""]
[null,null,null,null,null,""]
[null,null,null,null,null,""]
[null,null,null,null,null,""]
[null,null,null,null,null,""]
[null,null,null,null,null,""]
[null,null,null,null,null,""]
[null,null,null,null,null,""]
[null,null,null,null,null,""]
[null,null,null,null,null,""]
[null,null,null,null,null,""]
[null,null,null,null,null,""]
[null,null,null,null,null,""]
[null,null,null,null,null,""]
[null,null,null,null,null,""]
[null,null,null,null,null,""]
[null,null,null,null,null,""]
[null,null,null,null,null,""]
[null,null,null,null,null,""]
[null,null,null,null,null,""]
[null,null,null,null,null,""]
[null,null,null,null,null,""]
[null,null,null,null,null,""]
[null,null,null,null,null,""]
[null,null,null,null,null,""]
[null,null,null,null,null,""]
[null,null,null,null,null,""]
[null,null,null,null,null,""]
[null,null,null,null,null,""]
[null,null,null,null,null,""]
[null,null,null,null,null,""]
[null,null,null,null,null,""]
[null,null,null,null,null,""]
[null,null,null,null,null,""]
[null,null,null,null,null,{"$f":"D642&E642","v":""}]
[null,null,null,null,null,""]
[null,null,null,null,null,""]
[null,null,null,null,null,""]
[null,null,null,null,null,""]
[null,null,null,null,null,""]
[null,null,null,null,null,""]
[null,null,null,null,null,""]
[null,null,null,null,null,""]
[null,null,null,null,null,""]
[null,null,null,null,null,""]
[null,null,null,null,null,""]
[null,null,null,null,null,""]
[null,null,null,null,null,""]
[null,null,null,null,null,""]
[null,null,null,null,null,""]
[null,null,null,null,null,""]
[null,null,null,null,null,""]
[null,null,null,null,null,""]
[null,null,null,null,null,""]
[null,null,null,null,null,""]
[null,null,null,null,null,""]
[null,null,null,null,null,""]
[null,null,null,null,null,""]
[null,null,null,null,null,""]
[null,null,null,null,null,""]
[null,null,null,null,null,""]
[null,null,null,null,null,""]
[null,null,null,null,null,""]
[null,null,null,null,null,""]
[null,null,null,null,null,""]
[null,null,null,null,null,""]
[null,null,null,null,null,""]
[null,null,null,null,null,""]
[null,null,null,null,null,""]
[null,null,null,null,null,""]
[null,null,null,null,null,""]
[null,null,null,null,null,""]
[null,null,null,null,null,""]
[null,null,null,null,null,""]
[null,null,null,null,null,""]
[null,null,null,null,null,""]
[null,null,null,null,null,""]
[null,null,null,null,null,""]
[null,null,null,null,null,""]
[null,null,null,null,null,""]
[null,null,null,null,null,""]
[null,null,null,null,null,""]
[null,null,null,null,null,""]
[null,null,null,null,null,""]
[null,null,null,null,null,""]
[null,null,null,null,null,""]
[null,null,null,null,null,""]
[null,null,null,null,null,""]
[null,null,null,null,null,""]
[null,null,null,null,null,""]
[null,null,null,null,null,""]
[null,null,null,null,null,""]
[null,null,null,null,null,""]
[null,null,null,null,null,""]
[null,null,null,null,null,""]
[null,null,null,null,null,""]
[null,null,null,null,null,""]
[null,null,null,null,null,""]
[null,null,null,null,null,{"$f":"D706&E706","v":""}]
[null,null,null,null,null,""]
[null,null,null,null,null,""]
[null,null,null,null,null,""]
[null,null,null,null,null,""]
[null,null,null,null,null,""]
[null,null,null,null,null,""]
[null,null,null,null,null,""]
[null,null,null,null,null,""]
[null,null,null,null,null,""]
[null,null,null,null,null,""]
[null,null,null,null,null,""]
[null,null,null,null,null,""]
[null,null,null,null,null,""]
[null,null,null,null,null,""]
[null,null,null,null,null,""]
[null,null,null,null,null,""]
[null,null,null,null,null,""]
[null,null,null,null,null,""]
[null,null,null,null,null,""]
[null,null,null,null,null,""]
[null,null,null,null,null,""]
[null,null,null,null,null,""]
[null,null,null,null,null,""]
[null,null,null,null,null,""]
[null,null,null,null,null,""]
[null,null,null,null,null,""]
[null,null,null,null,null,""]
[null,null,null,null,null,""]
[null,null,null,null,null,""]
[null,null,null,null,null,""]
[null,null,null,null,null,""]
[null,null,null,null,null,""]
[null,null,null,null,null,""]
[null,null,null,null,null,""]
[null,null,null,null,null,""]
[null,null,null,null,null,""]
[null,null,null,null,null,""]
[null,null,null,null,null,""]
[null,null,null,null,null,""]
[null,null,null,null,null,""]
[null,null,null,null,null,""]
[null,null,null,null,null,""]
[null,null,null,null,null,""]
[null,null,null,null,null,""]
[null,null,null,null,null,""]
[null,null,null,null,null,""]
[null,null,null,null,null,""]
[null,null,null,null,null,""]
[null,null,null,null,null,""]
[null,null,null,null,null,""]
[null,null,null,null,null,""]
[null,null,null,null,null,""]
[null,null,null,null,null,""]
[null,null,null,null,null,""]
[null,null,null,null,null,""]
[null,null,null,null,null,""]
[null,null,null,null,null,""]
[null,null,null,null,null,""]
[null,null,null,null,null,""]
[null,null,null,null,null,""]
[null,null,null,null,null,""]
[null,null,null,null,null,""]
[null,null,null,null,null,""]
[null,null,null,null,null,{"$f":"D770&E770","v":""}]
[null,null,null,null,null,""]
[null,null,null,null,null,""]
[null,null,null,null,null,""]
[null,null,null,null,null,""]
[null,null,null,null,null,""]
[null,null,null,null,null,""]
[null,null,null,null,null,""]
[null,null,null,null,null,""]
[null,null,null,null,null,""]
[null,null,null,null,null,""]
[null,null,null,null,null,""]
[null,null,null,null,null,""]
[null,null,null,null,null,""]
[null,null,null,null,null,""]
[null,null,null,null,null,""]
[null,null,null,null,null,""]
[null,null,null,null,null,""]
[null,null,null,null,null,""]
[null,null,null,null,null,""]
[null,null,null,null,null,""]
[null,null,null,null,null,""]
[null,null,null,null,null,""]
[null,null,null,null,null,""]
[null,null,null,null,null,""]
[null,null,null,null,null,""]
[null,null,null,null,null,""]
[null,null,null,null,null,""]
[null,null,null,null,null,""]
[null,null,null,null,null,""]
[null,null,null,null,null,""]
[null,null,null,null,null,""]
[null,null,null,null,null,""]
[null,null,null,null,null,""]
[null,null,null,null,null,""]
[null,null,null,null,null,""]
[null,null,null,null,null,""]
[null,null,null,null,null,""]
[null,null,null,null,null,""]
[null,null,null,null,null,""]
[null,null,null,null,null,""]
[null,null,null,null,null,""]
[null,null,null,null,null,""]
[null,null,null,null,null,""]
[null,null,null,null,null,""]
[null,null,null,null,null,""]
[null,null,null,null,null,""]
[null,null,null,null,null,""]
[null,null,null,null,null,""]
[null,null,null,null,null,""]
[null,null,null,null,null,""]
[null,null,null,null,null,""]
[null,null,null,null,null,""]
[null,null,null,null,null,""]
[null,null,null,null,null,""]
[null,null,null,null,null,""]
[null,null,null,null,null,""]
[null,null,null,null,null,""]
[null,null,null,null,null,""]
[null,null,null,null,null,""]
[null,null,null,null,null,""]
[null,null,null,null,null,""]
[null,null,null,null,null,""]
[null,null,null,null,null,""]
[null,null,null,null,null,{"$f":"D834&E834","v":""}]
[null,null,null,null,null,""]
[null,null,null,null,null,""]
[null,null,null,null,null,""]
[null,null,null,null,null,""]
[null,null,null,null,null,""]
[null,null,null,null,null,""]
[null,null,null,null,null,""]
[null,null,null,null,null,""]
[null,null,null,null,null,""]
[null,null,null,null,null,""]
[null,null,null,null,null,""]
[null,null,null,null,null,""]
[null,null,null,null,null,""]
[null,null,null,null,null,""]
[null,null,null,null,null,""]
[null,null,null,null,null,""]
[null,null,null,null,null,""]
[null,null,null,null,null,""]
[null,null,null,null,null,""]
[null,null,null,null,null,""]
[null,null,null,null,null,""]
[null,null,null,null,null,""]
[null,null,null,null,null,""]
[null,null,null,null,null,""]
[null,null,null,null,null,""]
[null,null,null,null,null,""]
[null,null,null,null,null,""]
[null,null,null,null,null,""]
[null,null,null,null,null,""]
[null,null,null,null,null,""]
[null,null,null,null,null,""]
[null,null,null,null,null,""]
[null,null,null,null,null,""]
[null,null,null,null,null,""]
[null,null,null,null,null,""]
[null,null,null,null,null,""]
[null,null,null,null,null,""]
[null,null,null,null,null,""]
[null,null,null,null,null,""]
[null,null,null,null,null,""]
[null,null,null,null,null,""]
[null,null,null,null,null,""]
[null,null,null,null,null,""]
[null,null,null,null,null,""]
[null,null,null,null,null,""]
[null,null,null,null,null,""]
[null,null,null,null,null,""]
[null,null,null,null,null,""]
[null,null,null,null,null,""]
[null,null,null,null,null,""]
[null,null,null,null,null,""]
[null,null,null,null,null,""]
[null,null,null,null,null,""]
[null,null,null,null,null,""]
[null,null,null,null,null,""]
[null,null,null,null,null,""]
[null,null,null,null,null,""]
[null,null,null,null,null,""]
[null,null,null,null,null,""]
[null,null,null,null,null,""]
[null,null,null,null,null,""]
[null,null,null,null,null,""]
[null,null,null,null,null,""]
[null,null,null,null,null,{"$f":"D898&E898","v":""}]
[null,null,null,null,null,""]
[null,null,null,null,null,""]
[null,null,null,null,null,""]
[null,null,null,null,null,""]
[null,null,null,null,null,""]
[null,null,null,null,null,""]
[null,null,null,null,null,""]
[null,null,null,null,null,""]
[null,null,null,null,null,""]
[null,null,null,null,null,""]
[null,null,null,null,null,""]
[null,null,null,null,null,""]
[null,null,null,null,null,""]
[null,null,null,null,null,""]
[null,null,null,null,null,""]
[null,null,null,null,null,""]
[null,null,null,null,null,""]
[null,null,null,null,null,""]
[null,null,null,null,null,""]
[null,null,null,null,null,""]
[null,null,null,null,null,""]
[null,null,null,null,null,""]
[null,null,null,null,null,""]
[null,null,null,null,null,""]
[null,null,null,null,null,""]
[null,null,null,null,null,""]
[null,null,null,null,null,""]
[null,null,null,null,null,""]
[null,null,null,null,null,""]
[null,null,null,null,null,""]
[null,null,null,null,null,""]
[null,null,null,null,null,""]
[null,null,null,null,null,""]
[null,null,null,null,null,""]
[null,null,null,null,null,""]
[null,null,null,null,null,""]
[null,null,null,null,null,""]
[null,null,null,null,null,""]
[null,null,null,null,null,""]
[null,null,null,null,null,""]
[null,null,null,null,null,""]
[null,null,null,null,null,""]
[null,null,null,null,null,""]
[null,null,null,null,null,""]
[null,null,null,null,null,""]
[null,null,null,null,null,""]
[null,null,null,null,null,""]
[null,null,null,null,null,""]
[null,null,null,null,null,""]
[null,null,null,null,null,""]
[null,null,null,null,null,""]
[null,null,null,null,null,""]
[null,null,null,null,null,""]
[null,null,null,null,null,""]
[null,null,null,null,null,""]
[null,null,null,null,null,""]
[null,null,null,null,null,""]
[null,null,null,null,null,""]
[null,null,null,null,null,""]
[null,null,null,null,null,""]
[null,null,null,null,null,""]
[null,null,null,null,null,""]
[null,null,null,null,null,""]
[null,null,null,null,null,{"$f":"D962&E962","v":""}]
[null,null,null,null,null,""]
[null,null,null,null,null,""]
[null,null,null,null,null,""]
[null,null,null,null,null,""]
[null,null,null,null,null,""]
[null,null,null,null,null,""]
[null,null,null,null,null,""]
[null,null,null,null,null,""]
[null,null,null,null,null,""]
[null,null,null,null,null,""]
[null,null,null,null,null,""]
[null,null,null,null,null,""]
[null,null,null,null,null,""]
[null,null,null,null,null,""]
[null,null,null,null,null,""]
[null,null,null,null,null,""]
[null,null,null,null,null,""]
[null,null,null,null,null,""]
[null,null,null,null,null,""]
[null,null,null,null,null,""]
[null,null,null,null,null,""]
[null,null,null,null,null,""]
[null,null,null,null,null,""]
[null,null,null,null,null,""]
[null,null,null,null,null,""]
[null,null,null,null,null,""]
[null,null,null,null,null,""]
[null,null,null,null,null,""]
[null,null,null,null,null,""]
[null,null,null,null,null,""]
[null,null,null,null,null,""]
[null,null,null,null,null,""]
[null,null,null,null,null,""]
[null,null,null,null,null,""]
[null,null,null,null,null,""]
[null,null,null,null,null,""]
[null,null,null,null,null,""]
[null,null,null,null,null,""]
[null,null,null,null,null,""]
[null,null,null,null,null,""]
[null,null,null,null,null,""]
[null,null,null,null,null,""]
[null,null,null,null,null,""]
[null,null,null,null,null,""]
[null,null,null,null,null,""]
[null,null,null,null,null,""]
[null,null,null,null,null,""]
[null,null,null,null,null,""]
[null,null,null,null,null,""]
[null,null,null,null,null,""]
[null,null,null,null,null,""]
[null,null,null,null,null,""]
[null,null,null,null,null,""]
[null,null,null,null,null,""]
[null,null,null,null,null,""]
[null,null,null,null,null,""]
[null,null,null,null,null,""]
[null,null,null,null,null,""]
[null,null,null,null,null,""]
[null,null,null,null,null,""]
[null,null,null,null,null,""]
[null,null,null,null,null,""]
[null,null,null,null,null,""]
[null,null,null,null,null,{"$f":"D1026&E1026","v":""}]
[null,null,null,null,null,""]
[null,null,null,null,null,""]
[null,null,null,null,null,""]
[null,null,null,null,null,""]
[null,null,null,null,null,""]
[null,null,null,null,null,""]
[null,null,null,null,null,""]
[null,null,null,null,null,""]
[null,null,null,null,null,""]
[null,null,null,null,null,""]
[null,null,null,null,null,""]
[null,null,null,null,null,""]
[null,null,null,null,null,""]
[null,null,null,null,null,""]
[null,null,null,null,null,""]
[null,null,null,null,null,""]
[null,null,null,null,null,""]
[null,null,null,null,null,""]
[null,null,null,null,null,""]
[null,null,null,null,null,""]
[null,null,null,null,null,""]
[null,null,null,null,null,""]
[null,null,null,null,null,""]
[null,null,null,null,null,""]
[null,null,null,null,null,""]
[null,null,null,null,null,""]
[null,null,null,null,null,""]
[null,null,null,null,null,""]
[null,null,null,null,null,""]
[null,null,null,null,null,""]
[null,null,null,null,null,""]
[null,null,null,null,null,""]
[null,null,null,null,null,""]
[null,null,null,null,null,""]
[null,null,null,null,null,""]
[null,null,null,null,null,""]
[null,null,null,null,null,""]
[null,null,null,null,null,""]
[null,null,null,null,null,""]
[null,null,null,null,null,""]
[null,null,null,null,null,""]
[null,null,null,null,null,""]
[null,null,null,null,null,""]
[null,null,null,null,null,""]
[null,null,null,null,null,""]
[null,null,null,null,null,""]
[null,null,null,null,null,""]
[null,null,null,null,null,""]
[null,null,null,null,null,""]
[null,null,null,null,null,""]
[null,null,null,null,null,""]
[null,null,null,null,null,""]
[null,null,null,null,null,""]
[null,null,null,null,null,""]
[null,null,null,null,null,""]
[null,null,null,null,null,""]
[null,null,null,null,null,""]
[null,null,null,null,null,""]
[null,null,null,null,null,""]
[null,null,null,null,null,""]
[null,null,null,null,null,""]
[null,null,null,null,null,""]
[null,null,null,null,null,""]
[null,null,null,null,null,{"$f":"D1090&E1090","v":""}]
[null,null,null,null,null,""]
[null,null,null,null,null,""]
[null,null,null,null,null,""]
[null,null,null,null,null,""]
[null,null,null,null,null,""]
[null,null,null,null,null,""]
[null,null,null,null,null,""]
[null,null,null,null,null,""]
[null,null,null,null,null,""]
[null,null,null,null,null,""]
[null,null,null,null,null,""]
[null,null,null,null,null,""]
[null,null,null,null,null,""]
[null,null,null,null,null,""]
[null,null,null,null,null,""]
[null,null,null,null,null,""]
[null,null,null,null,null,""]
[null,null,null,null,null,""]
[null,null,null,null,null,""]
[null,null,null,null,null,""]
[null,null,null,null,null,""]
[null,null,null,null,null,""]
[null,null,null,null,null,""]
[null,null,null,null,null,""]
[null,null,null,null,null,""]
[null,null,null,null,null,""]
[null,null,null,null,null,""]
[null,null,null,null,null,""]
[null,null,null,null,null,""]
[null,null,null,null,null,""]
[null,null,null,null,null,""]
[null,null,null,null,null,""]
[null,null,null,null,null,""]
[null,null,null,null,null,""]
[null,null,null,null,null,""]
[null,null,null,null,null,""]
[null,null,null,null,null,""]
[null,null,null,null,null,""]
[null,null,null,null,null,""]
[null,null,null,null,null,""]
[null,null,null,null,null,""]
[null,null,null,null,null,""]
[null,null,null,null,null,""]
[null,null,null,null,null,""]
[null,null,null,null,null,""]
[null,null,null,null,null,""]
[null,null,null,null,null,""]
[null,null,null,null,null,""]
[null,null,null,null,null,""]
[null,null,null,null,null,""]
[null,null,null,null,null,""]
[null,null,null,null,null,""]
[null,null,null,null,null,""]
[null,null,null,null,null,""]
[null,null,null,null,null,""]
[null,null,null,null,null,""]
[null,null,null,null,null,""]
[null,null,null,null,null,""]
[null,null,null,null,null,""]
[null,null,null,null,null,""]
[null,null,null,null,null,""]
[null,null,null,null,null,""]
[null,null,null,null,null,""]
[null,null,null,null,null,{"$f":"D1154&E1154","v":""}]
[null,null,null,null,null,""]
[null,null,null,null,null,""]
[null,null,null,null,null,""]
[null,null,null,null,null,""]
[null,null,null,null,null,""]
[null,null,null,null,null,""]
[null,null,null,null,null,""]
[null,null,null,null,null,""]
[null,null,null,null,null,""]
[null,null,null,null,null,""]
[null,null,null,null,null,""]
[null,null,null,null,null,""]
[null,null,null,null,null,""]
[null,null,null,null,null,""]
[null,null,null,null,null,""]
[null,null,null,null,null,""]
[null,null,null,null,null,""]
[null,null,null,null,null,""]
[null,null,null,null,null,""]
[null,null,null,null,null,""]
[null,null,null,null,null,""]
[null,null,null,null,null,""]
[null,null,null,null,null,""]
[null,null,null,null,null,""]
[null,null,null,null,null,""]
[null,null,null,null,null,""]
[null,null,null,null,null,""]
[null,null,null,null,null,""]
[null,null,null,null,null,""]
[null,null,null,null,null,""]
[null,null,null,null,null,""]
[null,null,null,null,null,""]
[null,null,null,null,null,""]
[null,null,null,null,null,""]
[null,null,null,null,null,""]
[null,null,null,null,null,""]
[null,null,null,null,null,""]
[null,null,null,null,null,""]
[null,null,null,null,null,""]
[null,null,null,null,null,""]
[null,null,null,null,null,""]
[null,null,null,null,null,""]
[null,null,null,null,null,""]
[null,null,null,null,null,""]
[null,null,null,null,null,""]
[null,null,null,null,null,""]
[null,null,null,null,null,""]
[null,null,null,null,null,""]
[null,null,null,null,null,""]
[null,null,null,null,null,""]
[null,null,null,null,null,""]
[null,null,null,null,null,""]
[null,null,null,null,null,""]
[null,null,null,null,null,""]
[null,null,null,null,null,""]
[null,null,null,null,null,""]
[null,null,null,null,null,""]
[null,null,null,null,null,""]
[null,null,null,null,null,""]
[null,null,null,null,null,""]
[null,null,null,null,null,""]
[null,null,null,null,null,""]
[null,null,null,null,null,""]
[null,null,null,null,null,{"$f":"D1218&E1218","v":""}]
[null,null,null,null,null,""]
[null,null,null,null,null,""]
[null,null,null,null,null,""]
[null,null,null,null,null,""]
[null,null,null,null,null,""]
[null,null,null,null,null,""]
[null,null,null,null,null,""]
[null,null,null,null,null,""]
[null,null,null,null,null,""]
[null,null,null,null,null,""]
[null,null,null,null,null,""]
[null,null,null,null,null,""]
[null,null,null,null,null,""]
[null,null,null,null,null,""]
[null,null,null,null,null,""]
[null,null,null,null,null,""]
[null,null,null,null,null,""]
[null,null,null,null,null,""]
[null,null,null,null,null,""]
[null,null,null,null,null,""]
[null,null,null,null,null,""]
[null,null,null,null,null,""]
[null,null,null,null,null,""]
[null,null,null,null,null,""]
[null,null,null,null,null,""]
[null,null,null,null,null,""]
[null,null,null,null,null,""]
[null,null,null,null,null,""]
[null,null,null,null,null,""]
[null,null,null,null,null,""]
[null,null,null,null,null,""]
[null,null,null,null,null,""]
[null,null,null,null,null,""]
[null,null,null,null,null,""]
[null,null,null,null,null,""]
[null,null,null,null,null,""]
[null,null,null,null,null,""]
[null,null,null,null,null,""]
[null,null,null,null,null,""]
[null,null,null,null,null,""]
[null,null,null,null,null,""]
[null,null,null,null,null,""]
[null,null,null,null,null,""]
[null,null,null,null,null,""]
[null,null,null,null,null,""]
[null,null,null,null,null,""]
[null,null,null,null,null,""]
[null,null,null,null,null,""]
[null,null,null,null,null,""]
[null,null,null,null,null,""]
[null,null,null,null,null,""]
[null,null,null,null,null,""]
[null,null,null,null,null,""]
[null,null,null,null,null,""]
[null,null,null,null,null,""]
[null,null,null,null,null,""]
[null,null,null,null,null,""]
[null,null,null,null,null,""]
[null,null,null,null,null,""]
[null,null,null,null,null,""]
[null,null,null,null,null,""]
[null,null,null,null,null,""]
[null,null,null,null,null,""]
[null,null,null,null,null,{"$f":"D1282&E1282","v":""}]
[null,null,null,null,null,""]
[null,null,null,null,null,""]
[null,null,null,null,null,""]
[null,null,null,null,null,""]
[null,null,null,null,null,""]
[null,null,null,null,null,""]
[null,null,null,null,null,""]
[null,null,null,null,null,""]
[null,null,null,null,null,""]
[null,null,null,null,null,""]
[null,null,null,null,null,""]
[null,null,null,null,null,""]
[null,null,null,null,null,""]
[null,null,null,null,null,""]
[null,null,null,null,null,""]
[null,null,null,null,null,""]
[null,null,null,null,null,""]
[null,null,null,null,null,""]
[null,null,null,null,null,""]
[null,null,null,null,null,""]
[null,null,null,null,null,""]
[null,null,null,null,null,""]
[null,null,null,null,null,""]
[null,null,null,null,null,""]
[null,null,null,null,null,""]
[null,null,null,null,null,""]
[null,null,null,null,null,""]
[null,null,null,null,null,""]
[null,null,null,null,null,""]
[null,null,null,null,null,""]
[null,null,null,null,null,""]
[null,null,null,null,null,""]
[null,null,null,null,null,""]
[null,null,null,null,null,""]
[null,null,null,null,null,""]
[null,null,null,null,null,""]
[null,null,null,null,null,""]
[null,null,null,null,null,""]
[null,null,null,null,null,""]
[null,null,null,null,null,""]
[null,null,null,null,null,""]
[null,null,null,null,null,""]
[null,null,null,null,null,""]
[null,null,null,null,null,""]
[null,null,null,null,null,""]
[null,null,null,null,null,""]
[null,null,null,null,null,""]
[null,null,null,null,null,""]
[null,null,null,null,null,""]
[null,null,null,null,null,""]
[null,null,null,null,null,""]
[null,null,null,null,null,""]
[null,null,null,null,null,""]
[null,null,null,null,null,""]
[null,null,null,null,null,""]
[null,null,null,null,null,""]
[null,null,null,null,null,""]
[null,null,null,null,null,""]
[null,null,null,null,null,""]
[null,null,null,null,null,""]
[null,null,null,null,null,""]
[null,null,null,null,null,""]
[null,null,null,null,null,""]
[null,null,null,null,null,{"$f":"D1346&E1346","v":""}]
[null,null,null,null,null,""]
[null,null,null,null,null,""]
[null,null,null,null,null,""]
[null,null,null,null,null,""]
[null,null,null,null,null,""]
[null,null,null,null,null,""]
[null,null,null,null,null,""]
[null,null,null,null,null,""]
[null,null,null,null,null,""]
[null,null,null,null,null,""]
[null,null,null,null,null,""]
[null,null,null,null,null,""]
[null,null,null,null,null,""]
[null,null,null,null,null,""]
[null,null,null,null,null,""]
[null,null,null,null,null,""]
[null,null,null,null,null,""]
[null,null,null,null,null,""]
[null,null,null,null,null,""]
[null,null,null,null,null,""]
[null,null,null,null,null,""]
[null,null,null,null,null,""]
[null,null,null,null,null,""]
[null,null,null,null,null,""]
[null,null,null,null,null,""]
[null,null,null,null,null,""]
[null,null,null,null,null,""]
[null,null,null,null,null,""]
[null,null,null,null,null,""]
[null,null,null,null,null,""]
[null,null,null,null,null,""]
[null,null,null,null,null,""]
[null,null,null,null,null,""]
[null,null,null,null,null,""]
[null,null,null,null,null,""]
[null,null,null,null,null,""]
[null,null,null,null,null,""]
[null,null,null,null,null,""]
[null,null,null,null,null,""]
[null,null,null,null,null,""]
[null,null,null,null,null,""]
[null,null,null,null,null,""]
[null,null,null,null,null,""]
[null,null,null,null,null,""]
[null,null,null,null,null,""]
[null,null,null,null,null,""]
[null,null,null,null,null,""]
[null,null,null,null,null,""]
[null,null,null,null,null,""]
[null,null,null,null,null,""]
[null,null,null,null,null,""]
[null,null,null,null,null,""]
[null,null,null,null,null,""]
[null,null,null,null,null,""]
[null,null,null,null,null,""]
[null,null,null,null,null,""]
[null,null,null,null,null,""]
[null,null,null,null,null,""]
[null,null,null,null,null,""]
[null,null,null,null,null,""]
[null,null,null,null,null,""]
[null,null,null,null,null,""]
[null,null,null,null,null,""]
[null,null,null,null,null,{"$f":"D1410&E1410","v":""}]
[null,null,null,null,null,""]
[null,null,null,null,null,""]
[null,null,null,null,null,""]
[null,null,null,null,null,""]
[null,null,null,null,null,""]
[null,null,null,null,null,""]
[null,null,null,null,null,""]
[null,null,null,null,null,""]
[null,null,null,null,null,""]
[null,null,null,null,null,""]
[null,null,null,null,null,""]
[null,null,null,null,null,""]
[null,null,null,null,null,""]
[null,null,null,null,null,""]
[null,null,null,null,null,""]
[null,null,null,null,null,""]
[null,null,null,null,null,""]
[null,null,null,null,null,""]
[null,null,null,null,null,""]
[null,null,null,null,null,""]
[null,null,null,null,null,""]
[null,null,null,null,null,""]
[null,null,null,null,null,""]
[null,null,null,null,null,""]
[null,null,null,null,null,""]
[null,null,null,null,null,""]
[null,null,null,null,null,""]
[null,null,null,null,null,""]
[null,null,null,null,null,""]
[null,null,null,null,null,""]
[null,null,null,null,null,""]
[null,null,null,null,null,""]
[null,null,null,null,null,""]
[null,null,null,null,null,""]
[null,null,null,null,null,""]
[null,null,null,null,null,""]
[null,null,null,null,null,""]
[null,null,null,null,null,""]
[null,null,null,null,null,""]
[null,null,null,null,null,""]
[null,null,null,null,null,""]
[null,null,null,null,null,""]
[null,null,null,null,null,""]
[null,null,null,null,null,""]
[null,null,null,null,null,""]
[null,null,null,null,null,""]
[null,null,null,null,null,""]
[null,null,null,null,null,""]
[null,null,null,null,null,""]
[null,null,null,null,null,""]
[null,null,null,null,null,""]
[null,null,null,null,null,""]
[null,null,null,null,null,""]
[null,null,null,null,null,""]
[null,null,null,null,null,""]
[null,null,null,null,null,""]
[null,null,null,null,null,""]
[null,null,null,null,null,""]
[null,null,null,null,null,""]
[null,null,null,null,null,""]
[null,null,null,null,null,""]
[null,null,null,null,null,""]
[null,null,null,null,null,""]
[null,null,null,null,null,{"$f":"D1474&E1474","v":""}]
[null,null,null,null,null,""]
[null,null,null,null,null,""]
[null,null,null,null,null,""]
[null,null,null,null,null,""]
[null,null,null,null,null,""]
[null,null,null,null,null,""]
[null,null,null,null,null,""]
[null,null,null,null,null,""]
[null,null,null,null,null,""]
[null,null,null,null,null,""]
[null,null,null,null,null,""]
[null,null,null,null,null,""]
[null,null,null,null,null,""]
[null,null,null,null,null,""]
[null,null,null,null,null,""]
[null,null,null,null,null,""]
[null,null,null,null,null,""]
[null,null,null,null,null,""]
[null,null,null,null,null,""]
[null,null,null,null,null,""]
[null,null,null,null,null,""]
[null,null,null,null,null,""]
[null,null,null,null,null,""]
[null,null,null,null,null,""]
[null,null,null,null,null,""]
[null,null,null,null,null,""]
[null,null,null,null,null,""]
[null,null,null,null,null,""]
[null,null,null,null,null,""]
[null,null,null,null,null,""]
[null,null,null,null,null,""]
[null,null,null,null,null,""]
[null,null,null,null,null,""]
[null,null,null,null,null,""]
[null,null,null,null,null,""]
[null,null,null,null,null,""]
[null,null,null,null,null,""]
[null,null,null,null,null,""]
[null,null,null,null,null,""]
[null,null,null,null,null,""]
[null,null,null,null,null,""]
[null,null,null,null,null,""]
[null,null,null,null,null,""]
[null,null,null,null,null,""]
[null,null,null,null,null,""]
[null,null,null,null,null,""]
[null,null,null,null,null,""]
[null,null,null,null,null,""]
[null,null,null,null,null,""]
[null,null,null,null,null,""]
[null,null,null,null,null,""]
[null,null,null,null,null,""]
[null,null,null,null,null,""]
[null,null,null,null,null,""]
[null,null,null,null,null,""]
[null,null,null,null,null,""]
[null,null,null,null,null,""]
[null,null,null,null,null,""]
[null,null,null,null,null,""]
[null,null,null,null,null,""]
[null,null,null,null,null,""]
[null,null,null,null,null,""]
[null,null,null,null,null,""]
[null,null,null,null,null,{"$f":"D1538&E1538","v":""}]
[null,null,null,null,null,""]
[null,null,null,null,null,""]
[null,null,null,null,null,""]
[null,null,null,null,null,""]
[null,null,null,null,null,""]
[null,null,null,null,null,""]
[null,null,null,null,null,""]
[null,null,null,null,null,""]
[null,null,null,null,null,""]
[null,null,null,null,null,""]
[null,null,null,null,null,""]
[null,null,null,null,null,""]
[null,null,null,null,null,""]
[null,null,null,null,null,""]
[null,null,null,null,null,""]
[null,null,null,null,null,""]
[null,null,null,null,null,""]
[null,null,null,null,null,""]
[null,null,null,null,null,""]
[null,null,null,null,null,""]
[null,null,null,null,null,""]
[null,null,null,null,null,""]
[null,null,null,null,null,""]
[null,null,null,null,null,""]
[null,null,null,null,null,""]
[null,null,null,null,null,""]
[null,null,null,null,null,""]
[null,null,null,null,null,""]
[null,null,null,null,null,""]
[null,null,null,null,null,""]
[null,null,null,null,null,""]
[null,null,null,null,null,""]
[null,null,null,null,null,""]
[null,null,null,null,null,""]
[null,null,null,null,null,""]
[null,null,null,null,null,""]
[null,null,null,null,null,""]
[null,null,null,null,null,""]
[null,null,null,null,null,""]
[null,null,null,null,null,""]
[null,null,null,null,null,""]
[null,null,null,null,null,""]
[null,null,null,null,null,""]
[null,null,null,null,null,""]
[null,null,null,null,null,""]
[null,null,null,null,null,""]
[null,null,null,null,null,""]
[null,null,null,null,null,""]
[null,null,null,null,null,""]
[null,null,null,null,null,""]
[null,null,null,null,null,""]
[null,null,null,null,null,""]
[null,null,null,null,null,""]
[null,null,null,null,null,""]
[null,null,null,null,null,""]
[null,null,null,null,null,""]
[null,null,null,null,null,""]
[null,null,null,null,null,""]
[null,null,null,null,null,""]
[null,null,null,null,null,""]
[null,null,null,null,null,""]
[null,null,null,null,null,""]
[null,null,null,null,null,""]
[null,null,null,null,null,{"$f":"D1602&E1602","v":""}]
[null,null,null,null,null,""]
[null,null,null,null,null,""]
[null,null,null,null,null,""]
[null,null,null,null,null,""]
[null,null,null,null,null,""]
[null,null,null,null,null,""]
[null,null,null,null,null,""]
[null,null,null,null,null,""]
[null,null,null,null,null,""]
[null,null,null,null,null,""]
[null,null,null,null,null,""]
[null,null,null,null,null,""]
[null,null,null,null,null,""]
[null,null,null,null,null,""]
[null,null,null,null,null,""]
[null,null,null,null,null,""]
[null,null,null,null,null,""]
[null,null,null,null,null,""]
[null,null,null,null,null,""]
[null,null,null,null,null,""]
[null,null,null,null,null,""]
[null,null,null,null,null,""]
[null,null,null,null,null,""]
[null,null,null,null,null,""]
[null,null,null,null,null,""]
[null,null,null,null,null,""]
[null,null,null,null,null,""]
[null,null,null,null,null,""]
[null,null,null,null,null,""]
[null,null,null,null,null,""]
[null,null,null,null,null,""]
[null,null,null,null,null,""]
[null,null,null,null,null,""]
[null,null,null,null,null,""]
[null,null,null,null,null,""]
[null,null,null,null,null,""]
[null,null,null,null,null,""]
[null,null,null,null,null,""]
[null,null,null,null,null,""]
[null,null,null,null,null,""]
[null,null,null,null,null,""]
[null,null,null,null,null,""]
[null,null,null,null,null,""]
[null,null,null,null,null,""]
[null,null,null,null,null,""]
[null,null,null,null,null,""]
[null,null,null,null,null,""]
[null,null,null,null,null,""]
[null,null,null,null,null,""]
[null,null,null,null,null,""]
[null,null,null,null,null,""]
[null,null,null,null,null,""]
[null,null,null,null,null,""]
[null,null,null,null,null,""]
[null,null,null,null,null,""]
[null,null,null,null,null,""]
[null,null,null,null,null,""]
[null,null,null,null,null,""]
[null,null,null,null,null,""]
[null,null,null,null,null,""]
[null,null,null,null,null,""]
[null,null,null,null,null,""]
[null,null,null,null,null,""]
[null,null,null,null,null,{"$f":"D1666&E1666","v":""}]
[null,null,null,null,null,""]
[null,null,null,null,null,""]
[null,null,null,null,null,""]
[null,null,null,null,null,""]
[null,null,null,null,null,""]
[null,null,null,null,null,""]
[null,null,null,null,null,""]
[null,null,null,null,null,""]
[null,null,null,null,null,""]
[null,null,null,null,null,""]
[null,null,null,null,null,""]
[null,null,null,null,null,""]
[null,null,null,null,null,""]
[null,null,null,null,null,""]
[null,null,null,null,null,""]
[null,null,null,null,null,""]
[null,null,null,null,null,""]
[null,null,null,null,null,""]
[null,null,null,null,null,""]
[null,null,null,null,null,""]
[null,null,null,null,null,""]
[null,null,null,null,null,""]
[null,null,null,null,null,""]
[null,null,null,null,null,""]
[null,null,null,null,null,""]
[null,null,null,null,null,""]
[null,null,null,null,null,""]
[null,null,null,null,null,""]
[null,null,null,null,null,""]
[null,null,null,null,null,""]
[null,null,null,null,null,""]
[null,null,null,null,null,""]
[null,null,null,null,null,""]
[null,null,null,null,null,""]
[null,null,null,null,null,""]
[null,null,null,null,null,""]
[null,null,null,null,null,""]
[null,null,null,null,null,""]
[null,null,null,null,null,""]
[null,null,null,null,null,""]
[null,null,null,null,null,""]
[null,null,null,null,null,""]
[null,null,null,null,null,""]
[null,null,null,null,null,""]
[null,null,null,null,null,""]
[null,null,null,null,null,""]
[null,null,null,null,null,""]
[null,null,null,null,null,""]
[null,null,null,null,null,""]
[null,null,null,null,null,""]
[null,null,null,null,null,""]
[null,null,null,null,null,""]
[null,null,null,null,null,""]
[null,null,null,null,null,""]
[null,null,null,null,null,""]
[null,null,null,null,null,""]
[null,null,null,null,null,""]
[null,null,null,null,null,""]
[null,null,null,null,null,""]
[null,null,null,null,null,""]
[null,null,null,null,null,""]
[null,null,null,null,null,""]
[null,null,null,null,null,""]
[null,null,null,null,null,{"$f":"D1730&E1730","v":""}]
[null,null,null,null,null,""]
[null,null,null,null,null,""]
[null,null,null,null,null,""]
[null,null,null,null,null,""]
[null,null,null,null,null,""]
[null,null,null,null,null,""]
[null,null,null,null,null,""]
[null,null,null,null,null,""]
[null,null,null,null,null,""]
[null,null,null,null,null,""]
[null,null,null,null,null,""]
[null,null,null,null,null,""]
[null,null,null,null,null,""]
[null,null,null,null,null,""]
[null,null,null,null,null,""]
[null,null,null,null,null,""]
[null,null,null,null,null,""]
[null,null,null,null,null,""]
[null,null,null,null,null,""]
[null,null,null,null,null,""]
[null,null,null,null,null,""]
[null,null,null,null,null,""]
[null,null,null,null,null,""]
[null,null,null,null,null,""]
[null,null,null,null,null,""]
[null,null,null,null,null,""]
[null,null,null,null,null,""]
[null,null,null,null,null,""]
[null,null,null,null,null,""]
[null,null,null,null,null,""]
[null,null,null,null,null,""]
[null,null,null,null,null,""]
[null,null,null,null,null,""]
[null,null,null,null,null,""]
[null,null,null,null,null,""]
[null,null,null,null,null,""]
[null,null,null,null,null,""]
[null,null,null,null,null,""]
[null,null,null,null,null,""]
[null,null,null,null,null,""]
[null,null,null,null,null,""]
[null,null,null,null,null,""]
[null,null,null,null,null,""]
[null,null,null,null,null,""]
[null,null,null,null,null,""]
[null,null,null,null,null,""]
[null,null,null,null,null,""]
[null,null,null,null,null,""]
[null,null,null,null,null,""]
[null,null,null,null,null,""]
[null,null,null,null,null,""]
[null,null,null,null,null,""]
[null,null,null,null,null,""]
[null,null,null,null,null,""]
[null,null,null,null,null,""]
[null,null,null,null,null,""]
[null,null,null,null,null,""]
[null,null,null,null,null,""]
[null,null,null,null,null,""]
[null,null,null,null,null,""]
[null,null,null,null,null,""]
[null,null,null,null,null,""]
[null,null,null,null,null,""]
[null,null,null,null,null,{"$f":"D1794&E1794","v":""}]
[null,null,null,null,null,""]
[null,null,null,null,null,""]
[null,null,null,null,null,""]
[null,null,null,null,null,""]
[null,null,null,null,null,""]
[null,null,null,null,null,""]
[null,null,null,null,null,""]
[null,null,null,null,null,""]
[null,null,null,null,null,""]
[null,null,null,null,null,""]
[null,null,null,null,null,""]
[null,null,null,null,null,""]
[null,null,null,null,null,""]
[null,null,null,null,null,""]
[null,null,null,null,null,""]
[null,null,null,null,null,""]
[null,null,null,null,null,""]
[null,null,null,null,null,""]
[null,null,null,null,null,""]
[null,null,null,null,null,""]
[null,null,null,null,null,""]
[null,null,null,null,null,""]
[null,null,null,null,null,""]
[null,null,null,null,null,""]
[null,null,null,null,null,""]
[null,null,null,null,null,""]
[null,null,null,null,null,""]
[null,null,null,null,null,""]
[null,null,null,null,null,""]
[null,null,null,null,null,""]
[null,null,null,null,null,""]
[null,null,null,null,null,""]
[null,null,null,null,null,""]
[null,null,null,null,null,""]
[null,null,null,null,null,""]
[null,null,null,null,null,""]
[null,null,null,null,null,""]
[null,null,null,null,null,""]
[null,null,null,null,null,""]
[null,null,null,null,null,""]
[null,null,null,null,null,""]
[null,null,null,null,null,""]
[null,null,null,null,null,""]
[null,null,null,null,null,""]
[null,null,null,null,null,""]
[null,null,null,null,null,""]
[null,null,null,null,null,""]
[null,null,null,null,null,""]
[null,null,null,null,null,""]
[null,null,null,null,null,""]
[null,null,null,null,null,""]
[null,null,null,null,null,""]
[null,null,null,null,null,""]
[null,null,null,null,null,""]
[null,null,null,null,null,""]
[null,null,null,null,null,""]
[null,null,null,null,null,""]
[null,null,null,null,null,""]
[null,null,null,null,null,""]
[null,null,null,null,null,""]
[null,null,null,null,null,""]
[null,null,null,null,null,""]
[null,null,null,null,null,""]
[null,null,null,null,null,{"$f":"D1858&E1858","v":""}]
[null,null,null,null,null,""]
[null,null,null,null,null,""]
[null,null,null,null,null,""]
[null,null,null,null,null,""]
[null,null,null,null,null,""]
[null,null,null,null,null,""]
[null,null,null,null,null,""]
[null,null,null,null,null,""]
[null,null,null,null,null,""]
[null,null,null,null,null,""]
[null,null,null,null,null,""]
[null,null,null,null,null,""]
[null,null,null,null,null,""]
[null,null,null,null,null,""]
[null,null,null,null,null,""]
[null,null,null,null,null,""]
[null,null,null,null,null,""]
[null,null,null,null,null,""]
[null,null,null,null,null,""]
[null,null,null,null,null,""]
[null,null,null,null,null,""]
[null,null,null,null,null,""]
[null,null,null,null,null,""]
[null,null,null,null,null,""]
[null,null,null,null,null,""]
[null,null,null,null,null,""]
[null,null,null,null,null,""]
[null,null,null,null,null,""]
[null,null,null,null,null,""]
[null,null,null,null,null,""]
[null,null,null,null,null,""]
[null,null,null,null,null,""]
[null,null,null,null,null,""]
[null,null,null,null,null,""]
[null,null,null,null,null,""]
[null,null,null,null,null,""]
[null,null,null,null,null,""]
[null,null,null,null,null,""]
[null,null,null,null,null,""]
[null,null,null,null,null,""]
[null,null,null,null,null,""]
[null,null,null,null,null,""]
[null,null,null,null,null,""]
[null,null,null,null,null,""]
[null,null,null,null,null,""]
[null,null,null,null,null,""]
[null,null,null,null,null,""]
[null,null,null,null,null,""]
[null,null,null,null,null,""]
[null,null,null,null,null,""]
[null,null,null,null,null,""]
[null,null,null,null,null,""]
[null,null,null,null,null,""]
[null,null,null,null,null,""]
[null,null,null,null,null,""]
[null,null,null,null,null,""]
[null,null,null,null,null,""]
[null,null,null,null,null,""]
[null,null,null,null,null,""]
[null,null,null,null,null,""]
[null,null,null,null,null,""]
[null,null,null,null,null,""]
[null,null,null,null,null,""]
[null,null,null,null,null,{"$f":"D1922&E1922","v":""}]
[null,null,null,null,null,""]
[null,null,null,null,null,""]
[null,null,null,null,null,""]
[null,null,null,null,null,""]
[null,null,null,null,null,""]
[null,null,null,null,null,""]
[null,null,null,null,null,""]
[null,null,null,null,null,""]
[null,null,null,null,null,""]
[null,null,null,null,null,""]
[null,null,null,null,null,""]
[null,null,null,null,null,""]
[null,null,null,null,null,""]
[null,null,null,null,null,""]
[null,null,null,null,null,""]
[null,null,null,null,null,""]
[null,null,null,null,null,""]
[null,null,null,null,null,""]
[null,null,null,null,null,""]
[null,null,null,null,null,""]
[null,null,null,null,null,""]
[null,null,null,null,null,""]
[null,null,null,null,null,""]
[null,null,null,null,null,""]
[null,null,null,null,null,""]
[null,null,null,null,null,""]
[null,null,null,null,null,""]
[null,null,null,null,null,""]
[null,null,null,null,null,""]
[null,null,null,null,null,""]
[null,null,null,null,null,""]
[null,null,null,null,null,""]
[null,null,null,null,null,""]
[null,null,null,null,null,""]
[null,null,null,null,null,""]
[null,null,null,null,null,""]
[null,null,null,null,null,""]
[null,null,null,null,null,""]
[null,null,null,null,null,""]
[null,null,null,null,null,""]
[null,null,null,null,null,""]
[null,null,null,null,null,""]
[null,null,null,null,null,""]
[null,null,null,null,null,""]
[null,null,null,null,null,""]
[null,null,null,null,null,""]
[null,null,null,null,null,""]
[null,null,null,null,null,""]
[null,null,null,null,null,""]
[null,null,null,null,null,""]
[null,null,null,null,null,""]
[null,null,null,null,null,""]
[null,null,null,null,null,""]
[null,null,null,null,null,""]
[null,null,null,null,null,""]
[null,null,null,null,null,""]
[null,null,null,null,null,""]
[null,null,null,null,null,""]
[null,null,null,null,null,""]
[null,null,null,null,null,""]
[null,null,null,null,null,""]
[null,null,null,null,null,""]
[null,null,null,null,null,""]
[null,null,null,null,null,{"$f":"D1986&E1986","v":""}]
[null,null,null,null,null,""]
[null,null,null,null,null,""]
[null,null,null,null,null,""]
[null,null,null,null,null,""]
[null,null,null,null,null,""]
[null,null,null,null,null,""]
[null,null,null,null,null,""]
[null,null,null,null,null,""]
[null,null,null,null,null,""]
[null,null,null,null,null,""]
[null,null,null,null,null,""]
[null,null,null,null,null,""]
[null,null,null,null,null,""]
[null,null,null,null,null,""]
[null,null,null,null,null,""]
[null,null,null,null,null,""]
[null,null,null,null,null,""]
[null,null,null,null,null,""]
[null,null,null,null,null,""]
[null,null,null,null,null,""]
[null,null,null,null,null,""]
[null,null,null,null,null,""]
[null,null,null,null,null,""]
[null,null,null,null,null,""]
[null,null,null,null,null,""]
[null,null,null,null,null,""]
[null,null,null,null,null,""]
[null,null,null,null,null,""]
[null,null,null,null,null,""]
[null,null,null,null,null,""]
[null,null,null,null,null,""]
[null,null,null,null,null,""]
[null,null,null,null,null,""]
[null,null,null,null,null,""]
[null,null,null,null,null,""]
[null,null,null,null,null,""]
[null,null,null,null,null,""]
[null,null,null,null,null,""]
[null,null,null,null,null,""]
[null,null,null,null,null,""]
[null,null,null,null,null,""]
[null,null,null,null,null,""]
[null,null,null,null,null,""]
[null,null,null,null,null,""]
[null,null,null,null,null,""]
[null,null,null,null,null,""]
[null,null,null,null,null,""]
[null,null,null,null,null,""]
[null,null,null,null,null,""]
[null,null,null,null,null,""]
[null,null,null,null,null,""]
[null,null,null,null,null,""]
[null,null,null,null,null,""]
[null,null,null,null,null,""]
[null,null,null,null,null,""]
[null,null,null,null,null,""]
[null,null,null,null,null,""]
[null,null,null,null,null,""]
[null,null,null,null,null,""]
[null,null,null,null,null,""]
[null,null,null,null,null,""]
[null,null,null,null,null,""]
[null,null,null,null,null,""]
[null,null,null,null,null,""]
[null,null,null,null,null,""]
[null,null,null,null,null,""]
[null,null,null,null,null,""]
[null,null,null,null,null,""]
[null,null,null,null,null,""]
[null,null,null,null,null,""]
[null,null,null,null,null,""]
[null,null,null,null,null,""]
[null,null,null,null,null,""]
[null,null,null,null,null,""]
[null,null,null,null,null,""]
[null,null,null,null,null,""]
[null,null,null,null,null,""]
[null,null,null,null,null,""]
[null,null,null,null,null,{"$f":"D35842&E35842","v":""}]
[null,null,null,null,null,""]
[null,null,null,null,null,""]
[null,null,null,null,null,""]
[null,null,null,null,null,""]
[null,null,null,null,null,""]
[null,null,null,null,null,""]
[null,null,null,null,null,""]
[null,null,null,null,null,""]
[null,null,null,null,null,""]
[null,null,null,null,null,""]
[null,null,null,null,null,""]
[null,null,null,null,null,""]
[null,null,null,null,null,""]
[null,null,null,null,null,""]
[null,null,null,null,null,""]
[null,null,null,null,null,""]
[null,null,null,null,null,""]
[null,null,null,null,null,""]
[null,null,null,null,null,""]
[null,null,null,null,null,""]
[null,null,null,null,null,""]
[null,null,null,null,null,""]
[null,null,null,null,null,""]
[null,null,null,null,null,""]
[null,null,null,null,null,""]
[null,null,null,null,null,""]
[null,null,null,null,null,""]
[null,null,null,null,null,""]
[null,null,null,null,null,""]
[null,null,null,null,null,""]
[null,null,null,null,null,""]
[null,null,null,null,null,""]
[null,null,null,null,null,""]
[null,null,null,null,null,""]
[null,null,null,null,null,""]
[null,null,null,null,null,""]
[null,null,null,null,null,""]
[null,null,null,null,null,""]
[null,null,null,null,null,{"$f":"D56194&E56194","v":""}]
[null,null,null,null,null,""]
[null,null,null,null,null,""]
[null,null,null,null,null,""]
[null,null,null,null,null,""]
[null,null,null,null,null,""]
[null,null,null,null,null,""]
[null,null,null,null,null,""]
[null,null,null,null,null,""]
[null,null,null,null,null,""]
[null,null,null,null,null,""]
[null,null,null,null,null,""]
[null,null,null,null,null,""]
[null,null,null,null,null,""]
[null,null,null,null,null,""]
[null,null,null,null,null,""]
[null,null,null,null,null,""]
[null,null,null,null,null,""]
[null,null,null,null,null,""]
[null,null,null,null,null,""]
[null,null,null,null,null,""]
[null,null,null,null,null,""]
[null,null,null,null,null,""]
[null,null,null,null,null,""]
[null,null,null,null,null,""]
[null,null,null,null,null,""]
[null,null,null,null,null,""]
[null,null,null,null,null,""]
[null,null,null,null,null,""]
[null,null,null,null,null,""]
[null,null,null,null,null,""]
[null,null,null,null,null,""]
[null,null,null,null,null,""]
[null,null,null,null,null,""]
[null,null,null,null,null,""]
[null,null,null,null,null,""]
[null,null,null,null,null,""]
[null,null,null,null,null,""]
[null,null,null,null,null,""]
[null,null,null,null,null,""]
[null,null,null,null,null,""]
[null,null,null,null,null,""]
[null,null,null,null,null,""]
[null,null,null,null,null,""]
[null,null,null,null,null,""]
[null,null,null,null,null,""]
[null,null,null,null,null,""]
[null,null,null,null,null,""]
[null,null,null,null,null,""]
[null,null,null,null,null,""]
[null,null,null,null,null,""]
[null,null,null,null,null,""]
[null,null,null,null,null,""]
[null,null,null,null,null,""]
[null,null,null,null,null,""]
[null,null,null,null,null,""]
[null,null,null,null,null,""]
[null,null,null,null,null,""]
[null,null,null,null,null,{"$f":"D86466&E86466","v":""}]
[null,null,null,null,null,""]
[null,null,null,null,null,""]
[null,null,null,null,null,""]
[null,null,null,null,null,""]
[null,null,null,null,null,""]
[null,null,null,null,null,""]
[null,null,null,null,null,""]
[null,null,null,null,null,""]
[null,null,null,null,null,""]
[null,null,null,null,null,""]
[null,null,null,null,null,""]
[null,null,null,null,null,""]
[null,null,null,null,null,""]
[null,null,null,null,null,""]
[null,null,null,null,null,""]
[null,null,null,null,null,""]
[null,null,null,null,null,""]
[null,null,null,null,null,""]
[null,null,null,null,null,""]
[null,null,null,null,null,""]
[null,null,null,null,null,""]
[null,null,null,null,null,""]
[null,null,null,null,null,""]
[null,null,null,null,null,""]
[null,null,null,null,null,""]
[null,null,null,null,null,""]
[null,null,null,null,null,""]
[null,null,null,null,null,""]
[null,null,null,null,null,""]
[null,null,null,null,null,""]
[null,null,null,null,null,""]
[null,null,null,null,null,""]
[null,null,null,null,null,""]
[null,null,null,null,null,""]
[null,null,null,null,null,""]
[null,null,null,null,null,""]
[null,null,null,null,null,""]
[null,null,null,null,null,""]
[null,null,null,null,null,{"$f":"D106818&E106818","v":""}]
[null,null,null,null,null,""]
[null,null,null,null,null,""]
[null,null,null,null,null,""]
[null,null,null,null,null,""]
[null,null,null,null,null,""]
[null,null,null,null,null,""]
[null,null,null,null,null,""]
[null,null,null,null,null,""]
[null,null,null,null,null,""]
[null,null,null,null,null,""]
[null,null,null,null,null,""]
[null,null,null,null,null,""]
[null,null,null,null,null,""]
[null,null,null,null,null,""]
[null,null,null,null,null,""]
[null,null,null,null,null,""]
[null,null,null,null,null,""]
[null,null,null,null,null,""]
[null,null,null,null,null,""]
[null,null,null,null,null,""]
[null,null,null,null,null,""]
[null,null,null,null,null,""]
[null,null,null,null,null,""]
[null,null,null,null,null,""]
[null,null,null,null,null,""]
[null,null,null,null,null,""]
[null,null,null,null,null,""]
[null,null,null,null,null,""]
[null,null,null,null,null,""]
[null,null,null,null,null,""]
[null,null,null,null,null,""]
[null,null,null,null,null,""]
[null,null,null,null,null,""]
[null,null,null,null,null,""]
[null,null,null,null,null,""]
[null,null,null,null,null,""]
[null,null,null,null,null,""]
[null,null,null,null,null,""]
[null,null,null,null,null,""]
[null,null,null,null,null,""]
[null,null,null,null,null,""]
[null,null,null,null,null,""]
[null,null,null,null,null,""]
[null,null,null,null,null,""]
[null,null,null,null,null,""]
[null,null,null,null,null,""]
[null,null,null,null,null,""]
[null,null,null,null,null,""]
[null,null,null,null,null,""]
[null,null,null,null,null,""]
[null,null,null,null,null,""]
[null,null,null,null,null,""]
[null,null,null,null,null,""]
[null,null,null,null,null,""]
[null,null,null,null,null,""]
[null,null,null,null,null,""]
[null,null,null,null,null,""]
[null,null,null,null,null,""]
[null,null,null,null,null,""]
[null,null,null,null,null,""]
[null,null,null,null,null,""]
[null,null,null,null,null,""]
[null,null,null,null,null,""]
[null,null,null,null,null,""]
[null,null,null,null,null,""]
[null,null,null,null,null,""]
[null,null,null,null,null,""]
[null,null,null,null,null,""]
[null,null,null,null,null,""]
[null,null,null,null,null,""]
[null,null,null,null,null,""]
[null,null,null,null,null,""]
[null,null,null,null,null,""]
[null,null,null,null,null,""]
[null,null,null,null,null,""]
[null,null,null,null,null,""]
[null,null,null,null,null,""]
[null,null,null,null,null,""]
[null,null,null,null,null,""]
[null,null,null,null,null,""]
[null,null,null,null,null,""]
[null,null,null,null,null,""]
[null,null,null,null,null,""]
[null,null,null,null,null,""]
[null,null,null,null,null,""]
[null,null,null,null,null,""]
[null,null,null,null,null,""]
[null,null,null,null,null,""]
[null,null,null,null,null,""]
[null,null,null,null,null,""]
[null,null,null,null,null,""]
[null,null,null,null,null,""]
[null,null,null,null,null,""]
[null,null,null,null,null,""]
[null,null,null,null,null,""]
[null,null,null,null,null,""]
[null,null,null,null,null,{"$f":"D157442&E157442","v":""}]
[null,null,null,null,null,""]
[null,null,null,null,null,""]
[null,null,null,null,null,""]
[null,null,null,null,null,""]
[null,null,null,null,null,""]
[null,null,null,null,null,""]
[null,null,null,null,null,""]
[null,null,null,null,null,""]
[null,null,null,null,null,""]
[null,null,null,null,null,""]
[null,null,null,null,null,""]
[null,null,null,null,null,""]
[null,null,null,null,null,""]
[null,null,null,null,null,""]
[null,null,null,null,null,""]
[null,null,null,null,null,""]
[null,null,null,null,null,""]
[null,null,null,null,null,""]
[null,null,null,null,null,""]
[null,null,null,null,null,""]
[null,null,null,null,null,""]
[null,null,null,null,null,""]
[null,null,null,null,null,""]
[null,null,null,null,null,""]
[null,null,null,null,null,""]
[null,null,null,null,null,""]
[null,null,null,null,null,""]
[null,null,null,null,null,""]
[null,null,null,null,null,""]
[null,null,null,null,null,""]
[null,null,null,null,null,""]
[null,null,null,null,null,""]
[null,null,null,null,null,""]
[null,null,null,null,null,""]
[null,null,null,null,null,""]
[null,null,null,null,null,""]
[null,null,null,null,null,""]
[null,null,null,null,null,""]
[null,null,null,null,null,{"$f":"D177794&E177794","v":""}]
[null,null,null,null,null,""]
[null,null,null,null,null,""]
[null,null,null,null,null,""]
[null,null,null,null,null,""]
[null,null,null,null,null,""]
[null,null,null,null,null,""]
[null,null,null,null,null,""]
[null,null,null,null,null,""]
[null,null,null,null,null,""]
[null,null,null,null,null,""]
[null,null,null,null,null,""]
[null,null,null,null,null,""]
[null,null,null,null,null,""]
[null,null,null,null,null,""]
[null,null,null,null,null,""]
[null,null,null,null,null,""]
[null,null,null,null,null,""]
[null,null,null,null,null,""]
[null,null,null,null,null,""]
[null,null,null,null,null,""]
[null,null,null,null,null,""]
[null,null,null,null,null,""]
[null,null,null,null,null,""]
[null,null,null,null,null,""]
[null,null,null,null,null,""]
[null,null,null,null,null,""]
[null,null,null,null,null,""]
[null,null,null,null,null,""]
[null,null,null,null,null,""]
[null,null,null,null,null,""]
[null,null,null,null,null,""]
[null,null,null,null,null,""]
[null,null,null,null,null,""]
[null,null,null,null,null,""]
[null,null,null,null,null,""]
[null,null,null,null,null,""]
[null,null,null,null,null,""]
[null,null,null,null,null,""]
[null,null,null,null,null,""]
[null,null,null,null,null,""]
[null,null,null,null,null,""]
[null,null,null,null,null,""]
[null,null,null,null,null,""]
[null,null,null,null,null,""]
[null,null,null,null,null,""]
[null,null,null,null,null,""]
[null,null,null,null,null,""]
[null,null,null,null,null,""]
[null,null,null,null,null,""]
[null,null,null,null,null,""]
[null,null,null,null,null,""]
[null,null,null,null,null,""]
[null,null,null,null,null,""]
[null,null,null,null,null,""]
[null,null,null,null,null,""]
[null,null,null,null,null,""]
[null,null,null,null,null,""]
[null,null,null,null,null,""]
[null,null,null,null,null,""]
[null,null,null,null,null,""]
[null,null,null,null,null,""]
[null,null,null,null,null,""]
[null,null,null,null,null,""]
[null,null,null,null,null,""]
[null,null,null,null,null,""]
[null,null,null,null,null,""]
[null,null,null,null,null,""]
[null,null,null,null,null,""]
[null,null,null,null,null,""]
[null,null,null,null,null,""]
[null,null,null,null,null,""]
[null,null,null,null,null,""]
[null,null,null,null,null,""]
[null,null,null,null,null,""]
[null,null,null,null,null,""]
[null,null,null,null,null,""]
[null,null,null,null,null,""]
[null,null,null,null,null,""]
[null,null,null,null,null,""]
[null,null,null,null,null,""]
[null,null,null,null,null,""]
[null,null,null,null,null,""]
[null,null,null,null,null,""]
[null,null,null,null,null,""]
[null,null,null,null,null,""]
[null,null,null,null,null,""]
[null,null,null,null,null,""]
[null,null,null,null,null,""]
[null,null,null,null,null,""]
[null,null,null,null,null,""]
[null,null,null,null,null,""]
[null,null,null,null,null,""]
[null,null,null,null,null,""]
[null,null,null,null,null,""]
[null,null,null,null,null,""]
[null,null,null,null,null,""]
[null,null,null,null,null,""]
[null,null,null,null,null,""]
[null,null,null,null,null,""]
[null,null,null,null,null,""]
[null,null,null,null,null,""]
[null,null,null,null,null,""]
[null,null,null,null,null,""]
[null,null,null,null,null,""]
[null,null,null,null,null,""]
[null,null,null,null,null,""]
[null,null,null,null,null,""]
[null,null,null,null,null,""]
[null,null,null,null,null,""]
[null,null,null,null,null,""]
[null,null,null,null,null,""]
[null,null,null,null,null,""]
[null,null,null,null,null,""]
[null,null,null,null,null,""]
[null,null,null,null,null,""]
[null,null,null,null,null,""]
[null,null,null,null,null,""]
[null,null,null,null,null,""]
[null,null,null,null,null,""]
[null,null,null,null,null,""]
[null,null,null,null,null,""]
[null,null,null,null,null,""]
[null,null,null,null,null,""]
[null,null,null,null,null,""]
[null,null,null,null,null,""]
[null,null,null,null,null,""]
[null,null,null,null,null,""]
[null,null,null,null,null,""]
[null,null,null,null,null,""]
[null,null,null,null,null,""]
[null,null,null,null,null,""]
[null,null,null,null,null,{"$f":"D247298&E247298","v":""}]
[null,null,null,null,null,""]
[null,null,null,null,null,""]
[null,null,null,null,null,""]
[null,null,null,null,null,""]
[null,null,null,null,null,""]
[null,null,null,null,null,""]
[null,null,null,null,null,""]
[null,null,null,null,null,""]
[null,null,null,null,null,""]
[null,null,null,null,null,""]
[null,null,null,null,null,""]
[null,null,null,null,null,""]
[null,null,null,null,null,""]
[null,null,null,null,null,""]
[null,null,null,null,null,""]
[null,null,null,null,null,""]
[null,null,null,null,null,""]
[null,null,null,null,null,""]
[null,null,null,null,null,""]
[null,null,null,null,null,""]
[null,null,null,null,null,""]
[null,null,null,null,null,""]
[null,null,null,null,null,""]
[null,null,null,null,null,""]
[null,null,null,null,null,""]
[null,null,null,null,null,""]
[null,null,null,null,null,""]
[null,null,null,null,null,""]
[null,null,null,null,null,""]
[null,null,null,null,null,""]
[null,null,null,null,null,""]
[null,null,null,null,null,""]
[null,null,null,null,null,""]
[null,null,null,null,null,""]
[null,null,null,null,null,""]
[null,null,null,null,null,""]
[null,null,null,null,null,""]
[null,null,null,null,null,""]
[null,null,null,null,null,""]
[null,null,null,null,null,""]
[null,null,null,null,null,""]
[null,null,null,null,null,""]
[null,null,null,null,null,""]
[null,null,null,null,null,""]
[null,null,null,null,null,""]
[null,null,null,null,null,""]
[null,null,null,null,null,""]
[null,null,null,null,null,""]
[null,null,null,null,null,""]
[null,null,null,null,null,""]
[null,null,null,null,null,""]
[null,null,null,null,null,""]
[null,null,null,null,null,""]
[null,null,null,null,null,""]
[null,null,null,null,null,""]
[null,null,null,null,null,""]
[null,null,null,null,null,""]
[null,null,null,null,null,""]
[null,null,null,null,null,""]
[null,null,null,null,null,""]
[null,null,null,null,null,""]
[null,null,null,null,null,""]
[null,null,null,null,null,""]
[null,null,null,null,null,""]
[null,null,null,null,null,""]
[null,null,null,null,null,""]
[null,null,null,null,null,""]
[null,null,null,null,null,""]
[null,null,null,null,null,""]
[null,null,null,null,null,""]
[null,null,null,null,null,""]
[null,null,null,null,null,""]
[null,null,null,null,null,""]
[null,null,null,null,null,""]
[null,null,null,null,null,""]
[null,null,null,null,null,""]
[null,null,null,null,null,""]
[null,null,null,null,null,""]
[null,null,null,null,null,""]
[null,null,null,null,null,""]
[null,null,null,null,null,""]
[null,null,null,null,null,""]
[null,null,null,null,null,""]
[null,null,null,null,null,""]
[null,null,null,null,null,""]
[null,null,null,null,null,""]
[null,null,null,null,null,""]
[null,null,null,null,null,""]
[null,null,null,null,null,""]
[null,null,null,null,null,""]
[null,null,null,null,null,""]
[null,null,null,null,null,""]
[null,null,null,null,null,""]
[null,null,null,null,null,""]
[null,null,null,null,null,""]
[null,null,null,null,null,""]
[null,null,null,null,null,{"$f":"D297922&E297922","v":""}]
[null,null,null,null,null,""]
[null,null,null,null,null,""]
[null,null,null,null,null,""]
[null,null,null,null,null,""]
[null,null,null,null,null,""]
[null,null,null,null,null,""]
[null,null,null,null,null,""]
[null,null,null,null,null,""]
[null,null,null,null,null,""]
[null,null,null,null,null,""]
[null,null,null,null,null,""]
[null,null,null,null,null,""]
[null,null,null,null,null,""]
[null,null,null,null,null,""]
[null,null,null,null,null,""]
[null,null,null,null,null,""]
[null,null,null,null,null,""]
[null,null,null,null,null,""]
[null,null,null,null,null,""]
[null,null,null,null,null,""]
[null,null,null,null,null,""]
[null,null,null,null,null,""]
[null,null,null,null,null,""]
[null,null,null,null,null,""]
[null,null,null,null,null,""]
[null,null,null,null,null,""]
[null,null,null,null,null,""]
[null,null,null,null,null,""]
[null,null,null,null,null,""]
[null,null,null,null,null,""]
[null,null,null,null,null,""]
[null,null,null,null,null,""]
[null,null,null,null,null,""]
[null,null,null,null,null,""]
[null,null,null,null,null,""]
[null,null,null,null,null,""]
[null,null,null,null,null,""]
[null,null,null,null,null,""]
[null,null,null,null,null,{"$f":"D318274&E318274","v":""}]
[null,null,null,null,null,""]
[null,null,null,null,null,""]
[null,null,null,null,null,""]
[null,null,null,null,null,""]
[null,null,null,null,null,""]
[null,null,null,null,null,""]
[null,null,null,null,null,""]
[null,null,null,null,null,""]
[null,null,null,null,null,""]
[null,null,null,null,null,""]
[null,null,null,null,null,""]
[null,null,null,null,null,""]
[null,null,null,null,null,""]
[null,null,null,null,null,""]
[null,null,null,null,null,""]
[null,null,null,null,null,""]
[null,null,null,null,null,""]
[null,null,null,null,null,""]
[null,null,null,null,null,""]
[null,null,null,null,null,""]
[null,null,null,null,null,""]
[null,null,null,null,null,""]
[null,null,null,null,null,""]
[null,null,null,null,null,""]
[null,null,null,null,null,""]
[null,null,null,null,null,""]
[null,null,null,null,null,""]
[null,null,null,null,null,""]
[null,null,null,null,null,""]
[null,null,null,null,null,""]
[null,null,null,null,null,""]
[null,null,null,null,null,""]
[null,null,null,null,null,""]
[null,null,null,null,null,""]
[null,null,null,null,null,""]
[null,null,null,null,null,""]
[null,null,null,null,null,""]
[null,null,null,null,null,""]
[null,null,null,null,null,""]
[null,null,null,null,null,""]
[null,null,null,null,null,""]
[null,null,null,null,null,""]
[null,null,null,null,null,""]
[null,null,null,null,null,""]
[null,null,null,null,null,""]
[null,null,null,null,null,""]
[null,null,null,null,null,""]
[null,null,null,null,null,""]
[null,null,null,null,null,""]
[null,null,null,null,null,""]
[null,null,null,null,null,""]
[null,null,null,null,null,""]
[null,null,null,null,null,""]
[null,null,null,null,null,""]
[null,null,null,null,null,""]
[null,null,null,null,null,""]
[null,null,null,null,null,""]
[null,null,null,null,null,{"$f":"D348546&E348546","v":""}]
[null,null,null,null,null,""]
[null,null,null,null,null,""]
[null,null,null,null,null,""]
[null,null,null,null,null,""]
[null,null,null,null,null,""]
[null,null,null,null,null,""]
[null,null,null,null,null,""]
[null,null,null,null,null,""]
[null,null,null,null,null,""]
[null,null,null,null,null,""]
[null,null,null,null,null,""]
[null,null,null,null,null,""]
[null,null,null,null,null,""]
[null,null,null,null,null,""]
[null,null,null,null,null,""]
[null,null,null,null,null,""]
[null,null,null,null,null,""]
[null,null,null,null,null,""]
[null,null,null,null,null,""]
[null,null,null,null,null,""]
[null,null,null,null,null,""]
[null,null,null,null,null,""]
[null,null,null,null,null,""]
[null,null,null,null,null,""]
[null,null,null,null,null,""]
[null,null,null,null,null,""]
[null,null,null,null,null,""]
[null,null,null,null,null,""]
[null,null,null,null,null,""]
[null,null,null,null,null,""]
[null,null,null,null,null,""]
[null,null,null,null,null,""]
[null,null,null,null,null,""]
[null,null,null,null,null,""]
[null,null,null,null,null,""]
[null,null,null,null,null,""]
[null,null,null,null,null,""]
[null,null,null,null,null,""]
[null,null,null,null,null,{"$f":"D368898&E368898","v":""}]
[null,null,null,null,null,""]
[null,null,null,null,null,""]
[null,null,null,null,null,""]
[null,null,null,null,null,""]
[null,null,null,null,null,""]
[null,null,null,null,null,""]
[null,null,null,null,null,""]
[null,null,null,null,null,""]
[null,null,null,null,null,""]
[null,null,null,null,null,""]
[null,null,null,null,null,""]
[null,null,null,null,null,""]
[null,null,null,null,null,""]
[null,null,null,null,null,""]
[null,null,null,null,null,""]
[null,null,null,null,null,""]
[null,null,null,null,null,""]
[null,null,null,null,null,""]
[null,null,null,null,null,""]
[null,null,null,null,null,""]
[null,null,null,null,null,""]
[null,null,null,null,null,""]
[null,null,null,null,null,""]
[null,null,null,null,null,""]
[null,null,null,null,null,""]
[null,null,null,null,null,""]
[null,null,null,null,null,""]
[null,null,null,null,null,""]
[null,null,null,null,null,""]
[null,null,null,null,null,""]
[null,null,null,null,null,""]
[null,null,null,null,null,""]
[null,null,null,null,null,""]
[null,null,null,null,null,""]
[null,null,null,null,null,""]
[null,null,null,null,null,""]
[null,null,null,null,null,""]
[null,null,null,null,null,""]
[null,null,null,null,null,""]
[null,null,null,null,null,""]
[null,null,null,null,null,""]
[null,null,null,null,null,""]
[null,null,null,null,null,""]
[null,null,null,null,null,""]
[null,null,null,null,null,""]
[null,null,null,null,null,""]
[null,null,null,null,null,""]
[null,null,null,null,null,""]
[null,null,null,null,null,""]
[null,null,null,null,null,""]
[null,null,null,null,null,""]
[null,null,null,null,null,""]
[null,null,null,null,null,""]
[null,null,null,null,null,""]
[null,null,null,null,null,""]
[null,null,null,null,null,""]
[null,null,null,null,null,""]
[null,null,null,null,null,""]
[null,null,null,null,null,""]
[null,null,null,null,null,""]
[null,null,null,null,null,""]
[null,null,null,null,null,""]
[null,null,null,null,null,""]
[null,null,null,null,null,""]
[null,null,null,null,null,""]
[null,null,null,null,null,""]
[null,null,null,null,null,""]
[null,null,null,null,null,""]
[null,null,null,null,null,""]
[null,null,null,null,null,""]
[null,null,null,null,null,""]
[null,null,null,null,null,""]
[null,null,null,null,null,""]
[null,null,null,null,null,""]
[null,null,null,null,null,""]
[null,null,null,null,null,""]
[null,null,null,null,null,""]
[null,null,null,null,null,""]
[null,null,null,null,null,""]
[null,null,null,null,null,""]
[null,null,null,null,null,""]
[null,null,null,null,null,""]
[null,null,null,null,null,""]
[null,null,null,null,null,""]
[null,null,null,null,null,""]
[null,null,null,null,null,""]
[null,null,null,null,null,""]
[null,null,null,null,null,""]
[null,null,null,null,null,""]
[null,null,null,null,null,""]
[null,null,null,null,null,""]
[null,null,null,null,null,""]
[null,null,null,null,null,""]
[null,null,null,null,null,""]
[null,null,null,null,null,""]
[null,null,null,null,null,""]
[null,null,null,null,null,{"$f":"D419522&E419522","v":""}]
[null,null,null,null,null,""]
[null,null,null,null,null,""]
[null,null,null,null,null,""]
[null,null,null,null,null,""]
[null,null,null,null,null,""]
[null,null,null,null,null,""]
[null,null,null,null,null,""]
[null,null,null,null,null,""]
[null,null,null,null,null,""]
[null,null,null,null,null,""]
[null,null,null,null,null,""]
[null,null,null,null,null,""]
[null,null,null,null,null,""]
[null,null,null,null,null,""]
[null,null,null,null,null,""]
[null,null,null,null,null,""]
[null,null,null,null,null,""]
[null,null,null,null,null,""]
[null,null,null,null,null,""]
[null,null,null,null,null,""]
[null,null,null,null,null,""]
[null,null,null,null,null,""]
[null,null,null,null,null,""]
[null,null,null,null,null,""]
[null,null,null,null,null,""]
[null,null,null,null,null,""]
[null,null,null,null,null,""]
[null,null,null,null,null,""]
[null,null,null,null,null,""]
[null,null,null,null,null,""]
[null,null,null,null,null,""]
[null,null,null,null,null,""]
[null,null,null,null,null,""]
[null,null,null,null,null,""]
[null,null,null,null,null,""]
[null,null,null,null,null,""]
[null,null,null,null,null,""]
[null,null,null,null,null,""]
[null,null,null,null,null,{"$f":"D439874&E439874","v":""}]
[null,null,null,null,null,""]
[null,null,null,null,null,""]
[null,null,null,null,null,""]
[null,null,null,null,null,""]
[null,null,null,null,null,""]
[null,null,null,null,null,""]
[null,null,null,null,null,""]
[null,null,null,null,null,""]
[null,null,null,null,null,""]
[null,null,null,null,null,""]
[null,null,null,null,null,""]
[null,null,null,null,null,""]
[null,null,null,null,null,""]
[null,null,null,null,null,""]
[null,null,null,null,null,""]
[null,null,null,null,null,""]
[null,null,null,null,null,""]
[null,null,null,null,null,""]
[null,null,null,null,null,""]
[null,null,null,null,null,""]
[null,null,null,null,null,""]
[null,null,null,null,null,""]
[null,null,null,null,null,""]
[null,null,null,null,null,""]
[null,null,null,null,null,""]
[null,null,null,null,null,""]
[null,null,null,null,null,""]
[null,null,null,null,null,""]
[null,null,null,null,null,""]
[null,null,null,null,null,""]
[null,null,null,null,null,""]
[null,null,null,null,null,""]
[null,null,null,null,null,""]
[null,null,null,null,null,""]
[null,null,null,null,null,""]
[null,null,null,null,null,""]
[null,null,null,null,null,""]
[null,null,null,null,null,""]
[null,null,null,null,null,""]
[null,null,null,null,null,""]
[null,null,null,null,null,""]
[null,null,null,null,null,""]
[null,null,null,null,null,""]
[null,null,null,null,null,""]
[null,null,null,null,null,""]
[null,null,null,null,null,""]
[null,null,null,null,null,""]
[null,null,null,null,null,""]
[null,null,null,null,null,""]
[null,null,null,null,null,""]
[null,null,null,null,null,""]
[null,null,null,null,null,""]
[null,null,null,null,null,""]
[null,null,null,null,null,""]
[null,null,null,null,null,""]
[null,null,null,null,null,""]
[null,null,null,null,null,""]
[null,null,null,null,null,{"$f":"D470146&E470146","v":""}]
[null,null,null,null,null,""]
[null,null,null,null,null,""]
[null,null,null,null,null,""]
[null,null,null,null,null,""]
[null,null,null,null,null,""]
[null,null,null,null,null,""]
[null,null,null,null,null,""]
[null,null,null,null,null,""]
[null,null,null,null,null,""]
[null,null,null,null,null,""]
[null,null,null,null,null,""]
[null,null,null,null,null,""]
[null,null,null,null,null,""]
[null,null,null,null,null,""]
[null,null,null,null,null,""]
[null,null,null,null,null,""]
[null,null,null,null,null,""]
[null,null,null,null,null,""]
[null,null,null,null,null,""]
[null,null,null,null,null,""]
[null,null,null,null,null,""]
[null,null,null,null,null,""]
[null,null,null,null,null,""]
[null,null,null,null,null,""]
[null,null,null,null,null,""]
[null,null,null,null,null,""]
[null,null,null,null,null,""]
[null,null,null,null,null,""]
[null,null,null,null,null,""]
[null,null,null,null,null,""]
[null,null,null,null,null,""]
[null,null,null,null,null,""]
[null,null,null,null,null,""]
[null,null,null,null,null,""]
[null,null,null,null,null,""]
[null,null,null,null,null,""]
[null,null,null,null,null,""]
[null,null,null,null,null,""]
[null,null,null,null,null,""]
[null,null,null,null,null,""]
[null,null,null,null,null,""]
[null,null,null,null,null,""]
[null,null,null,null,null,""]
[null,null,null,null,null,""]
[null,null,null,null,null,""]
[null,null,null,null,null,""]
[null,null,null,null,null,""]
[null,null,null,null,null,""]
[null,null,null,null,null,""]
[null,null,null,null,null,""]
[null,null,null,null,null,""]
[null,null,null,null,null,""]
[null,null,null,null,null,""]
[null,null,null,null,null,""]
[null,null,null,null,null,""]
[null,null,null,null,null,""]
[null,null,null,null,null,""]
[null,null,null,null,null,""]
[null,null,null,null,null,""]
[null,null,null,null,null,""]
[null,null,null,null,null,""]
[null,null,null,null,null,""]
[null,null,null,null,null,""]
[null,null,null,null,null,""]
[null,null,null,null,null,""]
[null,null,null,null,null,""]
[null,null,null,null,null,""]
[null,null,null,null,null,""]
[null,null,null,null,null,""]
[null,null,null,null,null,""]
[null,null,null,null,null,""]
[null,null,null,null,null,""]
[null,null,null,null,null,""]
[null,null,null,null,null,""]
[null,null,null,null,null,""]
[null,null,null,null,null,""]
[null,null,null,null,null,""]
[null,null,null,null,null,""]
[null,null,null,null,null,""]
[null,null,null,null,null,""]
[null,null,null,null,null,""]
[null,null,null,null,null,""]
[null,null,null,null,null,""]
[null,null,null,null,null,""]
[null,null,null,null,null,""]
[null,null,null,null,null,""]
[null,null,null,null,null,""]
[null,null,null,null,null,""]
[null,null,null,null,null,""]
[null,null,null,null,null,""]
[null,null,null,null,null,""]
[null,null,null,null,null,""]
[null,null,null,null,null,""]
[null,null,null,null,null,""]
[null,null,null,null,null,""]
[null,null,null,null,null,""]
[null,null,null,null,null,""]
[null,null,null,null,null,""]
[null,null,null,null,null,""]
[null,null,null,null,null,""]
[null,null,null,null,null,""]
[null,null,null,null,null,""]
[null,null,null,null,null,""]
[null,null,null,null,null,""]
[null,null,null,null,null,""]
[null,null,null,null,null,""]
[null,null,null,null,null,""]
[null,null,null,null,null,""]
[null,null,null,null,null,""]
[null,null,null,null,null,""]
[null,null,null,null,null,""]
[null,null,null,null,null,""]
[null,null,null,null,null,""]
[null,null,null,null,null,""]
[null,null,null,null,null,""]
[null,null,null,null,null,""]
[null,null,null,null,null,""]
[null,null,null,null,null,""]
[null,null,null,null,null,""]
[null,null,null,null,null,""]
[null,null,null,null,null,""]
[null,null,null,null,null,""]
[null,null,null,null,null,""]
[null,null,null,null,null,""]
[null,null,null,null,null,""]
[null,null,null,null,null,""]
[null,null,null,null,null,""]
[null,null,null,null,null,""]
[null,null,null,null,null,""]
[null,null,null,null,null,""]
[null,null,null,null,null,""]
[null,null,null,null,null,""]
[null,null,null,null,null,""]
[null,null,null,null,null,""]
[null,null,null,null,null,""]
[null,null,null,null,null,""]
[null,null,null,null,null,""]
[null,null,null,null,null,""]
[null,null,null,null,null,""]
[null,null,null,null,null,""]
[null,null,null,null,null,""]
[null,null,null,null,null,""]
[null,null,null,null,null,""]
[null,null,null,null,null,""]
[null,null,null,null,null,""]
[null,null,null,null,null,""]
[null,null,null,null,null,""]
[null,null,null,null,null,""]
[null,null,null,null,null,""]
[null,null,null,null,null,""]
[null,null,null,null,null,""]
[null,null,null,null,null,""]
[null,null,null,null,null,""]
[null,null,null,null,null,""]
[null,null,null,null,null,""]
[null,null,null,null,null,""]
[null,null,null,null,null,""]
[null,null,null,null,null,""]
[null,null,null,null,null,""]
[null,null,null,null,null,""]
[null,null,null,null,null,{"$f":"D554818&E554818","v":""}]
[null,null,null,null,null,""]
[null,null,null,null,null,""]
[null,null,null,null,null,""]
[null,null,null,null,null,""]
[null,null,null,null,null,""]
[null,null,null,null,null,""]
[null,null,null,null,null,""]
[null,null,null,null,null,""]
[null,null,null,null,null,""]
[null,null,null,null,null,""]
[null,null,null,null,null,""]
[null,null,null,null,null,""]
[null,null,null,null,null,""]
[null,null,null,null,null,""]
[null,null,null,null,null,""]
[null,null,null,null,null,""]
[null,null,null,null,null,""]
[null,null,null,null,null,""]
[null,null,null,null,null,""]
[null,null,null,null,null,""]
[null,null,null,null,null,""]
[null,null,null,null,null,""]
[null,null,null,null,null,""]
[null,null,null,null,null,""]
[null,null,null,null,null,""]
[null,null,null,null,null,""]
[null,null,null,null,null,""]
[null,null,null,null,null,""]
[null,null,null,null,null,""]
[null,null,null,null,null,""]
[null,null,null,null,null,""]
[null,null,null,null,null,""]
[null,null,null,null,null,""]
[null,null,null,null,null,""]
[null,null,null,null,null,""]
[null,null,null,null,null,""]
[null,null,null,null,null,""]
[null,null,null,null,null,""]
[null,null,null,null,null,{"$f":"D575170&E575170","v":""}]
[null,null,null,null,null,""]
[null,null,null,null,null,""]
[null,null,null,null,null,""]
[null,null,null,null,null,""]
[null,null,null,null,null,""]
[null,null,null,null,null,""]
[null,null,null,null,null,""]
[null,null,null,null,null,""]
[null,null,null,null,null,""]
[null,null,null,null,null,""]
[null,null,null,null,null,""]
[null,null,null,null,null,""]
[null,null,null,null,null,""]
[null,null,null,null,null,""]
[null,null,null,null,null,""]
[null,null,null,null,null,""]
[null,null,null,null,null,""]
[null,null,null,null,null,""]
[null,null,null,null,null,""]
[null,null,null,null,null,""]
[null,null,null,null,null,""]
[null,null,null,null,null,""]
[null,null,null,null,null,""]
[null,null,null,null,null,""]
[null,null,null,null,null,""]
[null,null,null,null,null,""]
[null,null,null,null,null,""]
[null,null,null,null,null,""]
[null,null,null,null,null,""]
[null,null,null,null,null,""]
[null,null,null,null,null,""]
[null,null,null,null,null,""]
[null,null,null,null,null,""]
[null,null,null,null,null,""]
[null,null,null,null,null,""]
[null,null,null,null,null,""]
[null,null,null,null,null,""]
[null,null,null,null,null,""]
[null,null,null,null,null,""]
[null,null,null,null,null,""]
[null,null,null,null,null,""]
[null,null,null,null,null,""]
[null,null,null,null,null,""]
[null,null,null,null,null,""]
[null,null,null,null,null,""]
[null,null,null,null,null,""]
[null,null,null,null,null,""]
[null,null,null,null,null,""]
[null,null,null,null,null,""]
[null,null,null,null,null,""]
[null,null,null,null,null,""]
[null,null,null,null,null,""]
[null,null,null,null,null,""]
[null,null,null,null,null,""]
[null,null,null,null,null,""]
[null,null,null,null,null,""]
[null,null,null,null,null,""]
[null,null,null,null,null,""]
[null,null,null,null,null,""]
[null,null,null,null,null,""]
[null,null,null,null,null,""]
[null,null,null,null,null,""]
[null,null,null,null,null,""]
[null,null,null,null,null,""]
[null,null,null,null,null,""]
[null,null,null,null,null,""]
[null,null,null,null,null,""]
[null,null,null,null,null,""]
[null,null,null,null,null,""]
[null,null,null,null,null,""]
[null,null,null,null,null,""]
[null,null,null,null,null,""]
[null,null,null,null,null,""]
[null,null,null,null,null,""]
[null,null,null,null,null,""]
[null,null,null,null,null,""]
[null,null,null,null,null,""]
[null,null,null,null,null,""]
[null,null,null,null,null,""]
[null,null,null,null,null,""]
[null,null,null,null,null,""]
[null,null,null,null,null,""]
[null,null,null,null,null,""]
[null,null,null,null,null,""]
[null,null,null,null,null,""]
[null,null,null,null,null,""]
[null,null,null,null,null,""]
[null,null,null,null,null,""]
[null,null,null,null,null,""]
[null,null,null,null,null,""]
[null,null,null,null,null,""]
[null,null,null,null,null,""]
[null,null,null,null,null,""]
[null,null,null,null,null,""]
[null,null,null,null,null,""]
[null,null,null,null,null,""]
[null,null,null,null,null,{"$f":"D625794&E625794","v":""}]
[null,null,null,null,null,""]
[null,null,null,null,null,""]
[null,null,null,null,null,""]
[null,null,null,null,null,""]
[null,null,null,null,null,""]
[null,null,null,null,null,""]
[null,null,null,null,null,""]
[null,null,null,null,null,""]
[null,null,null,null,null,""]
[null,null,null,null,null,""]
[null,null,null,null,null,""]
[null,null,null,null,null,""]
[null,null,null,null,null,""]
[null,null,null,null,null,""]
[null,null,null,null,null,""]
[null,null,null,null,null,""]
[null,null,null,null,null,""]
[null,null,null,null,null,""]
[null,null,null,null,null,""]
[null,null,null,null,null,""]
[null,null,null,null,null,""]
[null,null,null,null,null,""]
[null,null,null,null,null,""]
[null,null,null,null,null,""]
[null,null,null,null,null,""]
[null,null,null,null,null,""]
[null,null,null,null,null,""]
[null,null,null,null,null,""]
[null,null,null,null,null,""]
[null,null,null,null,null,""]
[null,null,null,null,null,""]
[null,null,null,null,null,""]
[null,null,null,null,null,""]
[null,null,null,null,null,""]
[null,null,null,null,null,""]
[null,null,null,null,null,""]
[null,null,null,null,null,""]
[null,null,null,null,null,""]
[null,null,null,null,null,{"$f":"D646146&E646146","v":""}]
[null,null,null,null,null,""]
[null,null,null,null,null,""]
[null,null,null,null,null,""]
[null,null,null,null,null,""]
[null,null,null,null,null,""]
[null,null,null,null,null,""]
[null,null,null,null,null,""]
[null,null,null,null,null,""]
[null,null,null,null,null,""]
[null,null,null,null,null,""]
[null,null,null,null,null,""]
[null,null,null,null,null,""]
[null,null,null,null,null,""]
[null,null,null,null,null,""]
[null,null,null,null,null,""]
[null,null,null,null,null,""]
[null,null,null,null,null,""]
[null,null,null,null,null,""]
[null,null,null,null,null,""]
[null,null,null,null,null,""]
[null,null,null,null,null,""]
[null,null,null,null,null,""]
[null,null,null,null,null,""]
[null,null,null,null,null,""]
[null,null,null,null,null,""]
[null,null,null,null,null,""]
[null,null,null,null,null,""]
[null,null,null,null,null,""]
[null,null,null,null,null,""]
[null,null,null,null,null,""]
[null,null,null,null,null,""]
[null,null,null,null,null,""]
[null,null,null,null,null,""]
[null,null,null,null,null,""]
[null,null,null,null,null,""]
[null,null,null,null,null,""]
[null,null,null,null,null,""]
[null,null,null,null,null,""]
[null,null,null,null,null,""]
[null,null,null,null,null,""]
[null,null,null,null,null,""]
[null,null,null,null,null,""]
[null,null,null,null,null,""]
[null,null,null,null,null,""]
[null,null,null,null,null,""]
[null,null,null,null,null,""]
[null,null,null,null,null,""]
[null,null,null,null,null,""]
[null,null,null,null,null,""]
[null,null,null,null,null,""]
[null,null,null,null,null,""]
[null,null,null,null,null,""]
[null,null,null,null,null,""]
[null,null,null,null,null,""]
[null,null,null,null,null,""]
[null,null,null,null,null,""]
[null,null,null,null,null,""]
[null,null,null,null,null,""]
[null,null,null,null,null,""]
[null,null,null,null,null,""]
[null,null,null,null,null,""]
[null,null,null,null,null,""]
[null,null,null,null,null,""]
[null,null,null,null,null,""]
[null,null,null,null,null,""]
[null,null,null,null,null,""]
[null,null,null,null,null,""]
[null,null,null,null,null,""]
[null,null,null,null,null,""]
[null,null,null,null,null,""]
[null,null,null,null,null,""]
[null,null,null,null,null,""]
[null,null,null,null,null,""]
[null,null,null,null,null,""]
[null,null,null,null,null,""]
[null,null,null,null,null,""]
[null,null,null,null,null,""]
[null,null,null,null,null,""]
[null,null,null,null,null,""]
[null,null,null,null,null,""]
[null,null,null,null,null,""]
[null,null,null,null,null,""]
[null,null,null,null,null,""]
[null,null,null,null,null,""]
[null,null,null,null,null,""]
[null,null,null,null,null,""]
[null,null,null,null,null,""]
[null,null,null,null,null,""]
[null,null,null,null,null,""]
[null,null,null,null,null,""]
[null,null,null,null,null,""]
[null,null,null,null,null,""]
[null,null,null,null,null,""]
[null,null,null,null,null,""]
[null,null,null,null,null,""]
[null,null,null,null,null,""]
[null,null,null,null,null,{"$f":"D696770&E696770","v":""}]
[null,null,null,null,null,""]
[null,null,null,null,null,""]
[null,null,null,null,null,""]
[null,null,null,null,null,""]
[null,null,null,null,null,""]
[null,null,null,null,null,""]
[null,null,null,null,null,""]
[null,null,null,null,null,""]
[null,null,null,null,null,""]
[null,null,null,null,null,""]
[null,null,null,null,null,""]
[null,null,null,null,null,""]
[null,null,null,null,null,""]
[null,null,null,null,null,""]
[null,null,null,null,null,""]
[null,null,null,null,null,""]
[null,null,null,null,null,""]
[null,null,null,null,null,""]
[null,null,null,null,null,""]
[null,null,null,null,null,""]
[null,null,null,null,null,""]
[null,null,null,null,null,""]
[null,null,null,null,null,""]
[null,null,null,null,null,""]
[null,null,null,null,null,""]
[null,null,null,null,null,""]
[null,null,null,null,null,""]
[null,null,null,null,null,""]
[null,null,null,null,null,""]
[null,null,null,null,null,""]
[null,null,null,null,null,""]
[null,null,null,null,null,""]
[null,null,null,null,null,""]
[null,null,null,null,null,""]
[null,null,null,null,null,""]
[null,null,null,null,null,""]
[null,null,null,null,null,""]
[null,null,null,null,null,""]
[null,null,null,null,null,{"$f":"D717122&E717122","v":""}]
[null,null,null,null,null,""]
[null,null,null,null,null,""]
[null,null,null,null,null,""]
[null,null,null,null,null,""]
[null,null,null,null,null,""]
[null,null,null,null,null,""]
[null,null,null,null,null,""]
[null,null,null,null,null,""]
[null,null,null,null,null,""]
[null,null,null,null,null,""]
[null,null,null,null,null,""]
[null,null,null,null,null,""]
[null,null,null,null,null,""]
[null,null,null,null,null,""]
[null,null,null,null,null,""]
[null,null,null,null,null,""]
[null,null,null,null,null,""]
[null,null,null,null,null,""]
[null,null,null,null,null,""]
[null,null,null,null,null,""]
[null,null,null,null,null,""]
[null,null,null,null,null,""]
[null,null,null,null,null,""]
[null,null,null,null,null,""]
[null,null,null,null,null,""]
[null,null,null,null,null,""]
[null,null,null,null,null,""]
[null,null,null,null,null,""]
[null,null,null,null,null,""]
[null,null,null,null,null,""]
[null,null,null,null,null,""]
[null,null,null,null,null,""]
[null,null,null,null,null,""]
[null,null,null,null,null,""]
[null,null,null,null,null,""]
[null,null,null,null,null,""]
[null,null,null,null,null,""]
[null,null,null,null,null,""]
[null,null,null,null,null,""]
[null,null,null,null,null,""]
[null,null,null,null,null,""]
[null,null,null,null,null,""]
[null,null,null,null,null,""]
[null,null,null,null,null,""]
[null,null,null,null,null,""]
[null,null,null,null,null,""]
[null,null,null,null,null,""]
[null,null,null,null,null,""]
[null,null,null,null,null,""]
[null,null,null,null,null,""]
[null,null,null,null,null,""]
[null,null,null,null,null,""]
[null,null,null,null,null,""]
[null,null,null,null,null,""]
[null,null,null,null,null,""]
[null,null,null,null,null,""]
[null,null,null,null,null,""]
[null,null,null,null,null,{"$f":"D747394&E747394","v":""}]
[null,null,null,null,null,""]
[null,null,null,null,null,""]
[null,null,null,null,null,""]
[null,null,null,null,null,""]
[null,null,null,null,null,""]
[null,null,null,null,null,""]
[null,null,null,null,null,""]
[null,null,null,null,null,""]
[null,null,null,null,null,""]
[null,null,null,null,null,""]
[null,null,null,null,null,""]
[null,null,null,null,null,""]
[null,null,null,null,null,""]
[null,null,null,null,null,""]
[null,null,null,null,null,""]
[null,null,null,null,null,""]
[null,null,null,null,null,""]
[null,null,null,null,null,""]
[null,null,null,null,null,""]
[null,null,null,null,null,""]
[null,null,null,null,null,""]
[null,null,null,null,null,""]
[null,null,null,null,null,""]
[null,null,null,null,null,""]
[null,null,null,null,null,""]
[null,null,null,null,null,""]
[null,null,null,null,null,""]
[null,null,null,null,null,""]
[null,null,null,null,null,""]
[null,null,null,null,null,""]
[null,null,null,null,null,""]
[null,null,null,null,null,""]
[null,null,null,null,null,""]
[null,null,null,null,null,""]
[null,null,null,null,null,""]
[null,null,null,null,null,""]
[null,null,null,null,null,""]
[null,null,null,null,null,""]
[null,null,null,null,null,{"$f":"D767746&E767746","v":""}]
[null,null,null,null,null,""]
[null,null,null,null,null,""]
[null,null,null,null,null,""]
[null,null,null,null,null,""]
[null,null,null,null,null,""]
[null,null,null,null,null,""]
[null,null,null,null,null,""]
[null,null,null,null,null,""]
[null,null,null,null,null,""]
[null,null,null,null,null,""]
[null,null,null,null,null,""]
[null,null,null,null,null,""]
[null,null,null,null,null,""]
[null,null,null,null,null,""]
[null,null,null,null,null,""]
[null,null,null,null,null,""]
[null,null,null,null,null,""]
[null,null,null,null,null,""]
[null,null,null,null,null,""]
[null,null,null,null,null,""]
[null,null,null,null,null,""]
[null,null,null,null,null,""]
[null,null,null,null,null,""]
[null,null,null,null,null,""]
[null,null,null,null,null,""]
[null,null,null,null,null,""]
[null,null,null,null,null,""]
[null,null,null,null,null,""]
[null,null,null,null,null,""]
[null,null,null,null,null,""]
[null,null,null,null,null,""]
[null,null,null,null,null,""]
[null,null,null,null,null,""]
[null,null,null,null,null,""]
[null,null,null,null,null,""]
[null,null,null,null,null,""]
[null,null,null,null,null,""]
[null,null,null,null,null,""]
[null,null,null,null,null,""]
[null,null,null,null,null,""]
[null,null,null,null,null,""]
[null,null,null,null,null,""]
[null,null,null,null,null,""]
[null,null,null,null,null,""]
[null,null,null,null,null,""]
[null,null,null,null,null,""]
[null,null,null,null,null,""]
[null,null,null,null,null,""]
[null,null,null,null,null,""]
[null,null,null,null,null,""]
[null,null,null,null,null,""]
[null,null,null,null,null,""]
[null,null,null,null,null,""]
[null,null,null,null,null,""]
[null,null,null,null,null,""]
[null,null,null,null,null,""]
[null,null,null,null,null,""]
[null,null,null,null,null,""]
[null,null,null,null,null,""]
[null,null,null,null,null,""]
[null,null,null,null,null,""]
[null,null,null,null,null,""]
[null,null,null,null,null,""]
[null,null,null,null,null,""]
[null,null,null,null,null,""]
[null,null,null,null,null,""]
[null,null,null,null,null,""]
[null,null,null,null,null,""]
[null,null,null,null,null,""]
[null,null,null,null,null,""]
[null,null,null,null,null,""]
[null,null,null,null,null,""]
[null,null,null,null,null,""]
[null,null,null,null,null,""]
[null,null,null,null,null,""]
[null,null,null,null,null,""]
[null,null,null,null,null,""]
[null,null,null,null,null,""]
[null,null,null,null,null,""]
[null,null,null,null,null,""]
[null,null,null,null,null,""]
[null,null,null,null,null,""]
[null,null,null,null,null,""]
[null,null,null,null,null,""]
[null,null,null,null,null,""]
[null,null,null,null,null,""]
[null,null,null,null,null,""]
[null,null,null,null,null,""]
[null,null,null,null,null,""]
[null,null,null,null,null,""]
[null,null,null,null,null,""]
[null,null,null,null,null,""]
[null,null,null,null,null,""]
[null,null,null,null,null,""]
[null,null,null,null,null,""]
[null,null,null,null,null,""]
[null,null,null,null,null,""]
[null,null,null,null,null,""]
[null,null,null,null,null,""]
[null,null,null,null,null,""]
[null,null,null,null,null,""]
[null,null,null,null,null,""]
[null,null,null,null,null,""]
[null,null,null,null,null,""]
[null,null,null,null,null,""]
[null,null,null,null,null,""]
[null,null,null,null,null,""]
[null,null,null,null,null,""]
[null,null,null,null,null,""]
[null,null,null,null,null,""]
[null,null,null,null,null,""]
[null,null,null,null,null,""]
[null,null,null,null,null,""]
[null,null,null,null,null,""]
[null,null,null,null,null,""]
[null,null,null,null,null,""]
[null,null,null,null,null,""]
[null,null,null,null,null,""]
[null,null,null,null,null,""]
[null,null,null,null,null,""]
[null,null,null,null,null,""]
[null,null,null,null,null,""]
[null,null,null,null,null,""]
[null,null,null,null,null,""]
[null,null,null,null,null,""]
[null,null,null,null,null,""]
[null,null,null,null,null,""]
[null,null,null,null,null,""]
[null,null,null,null,null,""]
[null,null,null,null,null,""]
[null,null,null,null,null,""]
[null,null,null,null,null,{"$f":"D837250&E837250","v":""}]
[null,null,null,null,null,""]
[null,null,null,null,null,""]
[null,null,null,null,null,""]
[null,null,null,null,null,""]
[null,null,null,null,null,""]
[null,null,null,null,null,""]
[null,null,null,null,null,""]
[null,null,null,null,null,""]
[null,null,null,null,null,""]
[null,null,null,null,null,""]
[null,null,null,null,null,""]
[null,null,null,null,null,""]
[null,null,null,null,null,""]
[null,null,null,null,null,""]
[null,null,null,null,null,""]
[null,null,null,null,null,""]
[null,null,null,null,null,""]
[null,null,null,null,null,""]
[null,null,null,null,null,""]
[null,null,null,null,null,""]
[null,null,null,null,null,""]
[null,null,null,null,null,""]
[null,null,null,null,null,""]
[null,null,null,null,null,""]
[null,null,null,null,null,""]
[null,null,null,null,null,""]
[null,null,null,null,null,""]
[null,null,null,null,null,""]
[null,null,null,null,null,""]
[null,null,null,null,null,""]
[null,null,null,null,null,""]
[null,null,null,null,null,""]
[null,null,null,null,null,""]
[null,null,null,null,null,""]
[null,null,null,null,null,""]
[null,null,null,null,null,""]
[null,null,null,null,null,""]
[null,null,null,null,null,""]
[null,null,null,null,null,""]
[null,null,null,null,null,""]
[null,null,null,null,null,""]
[null,null,null,null,null,""]
[null,null,null,null,null,""]
[null,null,null,null,null,""]
[null,null,null,null,null,""]
[null,null,null,null,null,""]
[null,null,null,null,null,""]
[null,null,null,null,null,""]
[null,null,null,null,null,""]
[null,null,null,null,null,""]
[null,null,null,null,null,""]
[null,null,null,null,null,""]
[null,null,null,null,null,""]
[null,null,null,null,null,""]
[null,null,null,null,null,""]
[null,null,null,null,null,""]
[null,null,null,null,null,""]
[null,null,null,null,null,""]
[null,null,null,null,null,""]
[null,null,null,null,null,""]
[null,null,null,null,null,""]
[null,null,null,null,null,""]
[null,null,null,null,null,""]
[null,null,null,null,null,""]
[null,null,null,null,null,""]
[null,null,null,null,null,""]
[null,null,null,null,null,""]
[null,null,null,null,null,""]
[null,null,null,null,null,""]
[null,null,null,null,null,""]
[null,null,null,null,null,""]
[null,null,null,null,null,""]
[null,null,null,null,null,""]
[null,null,null,null,null,""]
[null,null,null,null,null,""]
[null,null,null,null,null,""]
[null,null,null,null,null,""]
[null,null,null,null,null,""]
[null,null,null,null,null,""]
[null,null,null,null,null,""]
[null,null,null,null,null,""]
[null,null,null,null,null,""]
[null,null,null,null,null,""]
[null,null,null,null,null,""]
[null,null,null,null,null,""]
[null,null,null,null,null,""]
[null,null,null,null,null,""]
[null,null,null,null,null,""]
[null,null,null,null,null,""]
[null,null,null,null,null,""]
[null,null,null,null,null,""]
[null,null,null,null,null,""]
[null,null,null,null,null,""]
[null,null,null,null,null,""]
[null,null,null,null,null,""]
[null,null,null,null,null,""]
[null,null,null,null,null,{"$f":"D887874&E887874","v":""}]
[null,null,null,null,null,""]
[null,null,null,null,null,""]
[null,null,null,null,null,""]
[null,null,null,null,null,""]
[null,null,null,null,null,""]
[null,null,null,null,null,""]
[null,null,null,null,null,""]
[null,null,null,null,null,""]
[null,null,null,null,null,""]
[null,null,null,null,null,""]
[null,null,null,null,null,""]
[null,null,null,null,null,""]
[null,null,null,null,null,""]
[null,null,null,null,null,""]
[null,null,null,null,null,""]
[null,null,null,null,null,""]
[null,null,null,null,null,""]
[null,null,null,null,null,""]
[null,null,null,null,null,""]
[null,null,null,null,null,""]
[null,null,null,null,null,""]
[null,null,null,null,null,""]
[null,null,null,null,null,""]
[null,null,null,null,null,""]
[null,null,null,null,null,""]
[null,null,null,null,null,""]
[null,null,null,null,null,""]
[null,null,null,null,null,""]
[null,null,null,null,null,""]
[null,null,null,null,null,""]
[null,null,null,null,null,""]
[null,null,null,null,null,""]
[null,null,null,null,null,""]
[null,null,null,null,null,""]
[null,null,null,null,null,""]
[null,null,null,null,null,""]
[null,null,null,null,null,""]
[null,null,null,null,null,""]
[null,null,null,null,null,{"$f":"D908226&E908226","v":""}]
[null,null,null,null,null,""]
[null,null,null,null,null,""]
[null,null,null,null,null,""]
[null,null,null,null,null,""]
[null,null,null,null,null,""]
[null,null,null,null,null,""]
[null,null,null,null,null,""]
[null,null,null,null,null,""]
[null,null,null,null,null,""]
[null,null,null,null,null,""]
[null,null,null,null,null,""]
[null,null,null,null,null,""]
[null,null,null,null,null,""]
[null,null,null,null,null,""]
[null,null,null,null,null,""]
[null,null,null,null,null,""]
[null,null,null,null,null,""]
[null,null,null,null,null,""]
[null,null,null,null,null,""]
[null,null,null,null,null,""]
[null,null,null,null,null,""]
[null,null,null,null,null,""]
[null,null,null,null,null,""]
[null,null,null,null,null,""]
[null,null,null,null,null,""]
[null,null,null,null,null,""]
[null,null,null,null,null,""]
[null,null,null,null,null,""]
[null,null,null,null,null,""]
[null,null,null,null,null,""]
[null,null,null,null,null,""]
[null,null,null,null,null,""]
[null,null,null,null,null,""]
[null,null,null,null,null,""]
[null,null,null,null,null,""]
[null,null,null,null,null,""]
[null,null,null,null,null,""]
[null,null,null,null,null,""]
[null,null,null,null,null,""]
[null,null,null,null,null,""]
[null,null,null,null,null,""]
[null,null,null,null,null,""]
[null,null,null,null,null,""]
[null,null,null,null,null,""]
[null,null,null,null,null,""]
[null,null,null,null,null,""]
[null,null,null,null,null,""]
[null,null,null,null,null,""]
[null,null,null,null,null,""]
[null,null,null,null,null,""]
[null,null,null,null,null,""]
[null,null,null,null,null,""]
[null,null,null,null,null,""]
[null,null,null,null,null,""]
[null,null,null,null,null,""]
[null,null,null,null,null,""]
[null,null,null,null,null,""]
[null,null,null,null,null,{"$f":"D938498&E938498","v":""}]
[null,null,null,null,null,""]
[null,null,null,null,null,""]
[null,null,null,null,null,""]
[null,null,null,null,null,""]
[null,null,null,null,null,""]
[null,null,null,null,null,""]
[null,null,null,null,null,""]
[null,null,null,null,null,""]
[null,null,null,null,null,""]
[null,null,null,null,null,""]
[null,null,null,null,null,""]
[null,null,null,null,null,""]
[null,null,null,null,null,""]
[null,null,null,null,null,""]
[null,null,null,null,null,""]
[null,null,null,null,null,""]
[null,null,null,null,null,""]
[null,null,null,null,null,""]
[null,null,null,null,null,""]
[null,null,null,null,null,""]
[null,null,null,null,null,""]
[null,null,null,null,null,""]
[null,null,null,null,null,""]
[null,null,null,null,null,""]
[null,null,null,null,null,""]
[null,null,null,null,null,""]
[null,null,null,null,null,""]
[null,null,null,null,null,""]
[null,null,null,null,null,""]
[null,null,null,null,null,""]
[null,null,null,null,null,""]
[null,null,null,null,null,""]
[null,null,null,null,null,""]
[null,null,null,null,null,""]
[null,null,null,null,null,""]
[null,null,null,null,null,""]
[null,null,null,null,null,""]
[null,null,null,null,null,""]
[null,null,null,null,null,{"$f":"D958850&E958850","v":""}]
[null,null,null,null,null,""]
[null,null,null,null,null,""]
[null,null,null,null,null,""]
[null,null,null,null,null,""]
[null,null,null,null,null,""]
[null,null,null,null,null,""]
[null,null,null,null,null,""]
[null,null,null,null,null,""]
[null,null,null,null,null,""]
[null,null,null,null,null,""]
[null,null,null,null,null,""]
[null,null,null,null,null,""]
[null,null,null,null,null,""]
[null,null,null,null,null,""]
[null,null,null,null,null,""]
[null,null,null,null,null,""]
[null,null,null,null,null,""]
[null,null,null,null,null,""]
[null,null,null,null,null,""]
[null,null,null,null,null,""]
[null,null,null,null,null,""]
[null,null,null,null,null,""]
[null,null,null,null,null,""]
[null,null,null,null,null,""]
[null,null,null,null,null,""]
[null,null,null,null,null,""]
[null,null,null,null,null,""]
[null,null,null,null,null,""]
[null,null,null,null,null,""]
[null,null,null,null,null,""]
[null,null,null,null,null,""]
[null,null,null,null,null,""]
[null,null,null,null,null,""]
[null,null,null,null,null,""]
[null,null,null,null,null,""]
[null,null,null,null,null,""]
[null,null,null,null,null,""]
[null,null,null,null,null,""]
[null,null,null,null,null,""]
[null,null,null,null,null,""]
[null,null,null,null,null,""]
[null,null,null,null,null,""]
[null,null,null,null,null,""]
[null,null,null,null,null,""]
[null,null,null,null,null,""]
[null,null,null,null,null,""]
[null,null,null,null,null,""]
[null,null,null,null,null,""]
[null,null,null,null,null,""]
[null,null,null,null,null,""]
[null,null,null,null,null,""]
[null,null,null,null,null,""]
[null,null,null,null,null,""]
[null,null,null,null,null,""]
[null,null,null,null,null,""]
[null,null,null,null,null,""]
[null,null,null,null,null,""]
[null,null,null,null,null,""]
[null,null,null,null,null,""]
[null,null,null,null,null,""]
[null,null,null,null,null,""]
[null,null,null,null,null,""]
[null,null,null,null,null,""]
[null,null,null,null,null,""]
[null,null,null,null,null,""]
[null,null,null,null,null,""]
[null,null,null,null,null,""]
[null,null,null,null,null,""]
[null,null,null,null,null,""]
[null,null,null,null,null,""]
[null,null,null,null,null,""]
[null,null,null,null,null,""]
[null,null,null,null,null,""]
[null,null,null,null,null,""]
[null,null,null,null,null,""]
[null,null,null,null,null,""]
[null,null,null,null,null,""]
[null,null,null,null,null,""]
[null,null,null,null,null,""]
[null,null,null,null,null,""]
[null,null,null,null,null,""]
[null,null,null,null,null,""]
[null,null,null,null,null,""]
[null,null,null,null,null,""]
[null,null,null,null,null,""]
[null,null,null,null,null,""]
[null,null,null,null,null,""]
[null,null,null,null,null,""]
[null,null,null,null,null,""]
[null,null,null,null,null,""]
[null,null,null,null,null,""]
[null,null,null,null,null,""]
[null,null,null,null,null,""]
[null,null,null,null,null,""]
[null,null,null,null,null,""]
[null,null,null,null,null,""]
[null,null,null,null,null,{"$f":"D1009474&E1009474","v":""}]
[null,null,null,null,null,""]
[null,null,null,null,null,""]
[null,null,null,null,null,""]
[null,null,null,null,null,""]
[null,null,null,null,null,""]
[null,null,null,null,null,""]
[null,null,null,null,null,""]
[null,null,null,null,null,""]
[null,null,null,null,null,""]
[null,null,null,null,null,""]
[null,null,null,null,null,""]
[null,null,null,null,null,""]
[null,null,null,null,null,""]
[null,null,null,null,null,""]
[null,null,null,null,null,""]
[null,null,null,null,null,""]
[null,null,null,null,null,""]
[null,null,null,null,null,""]
[null,null,null,null,null,""]
[null,null,null,null,null,""]
[null,null,null,null,null,""]
[null,null,null,null,null,""]
[null,null,null,null,null,""]
[null,null,null,null,null,""]
[null,null,null,null,null,""]
[null,null,null,null,null,""]
[null,null,null,null,null,""]
[null,null,null,null,null,""]
[null,null,null,null,null,""]
[null,null,null,null,null,""]
[null,null,null,null,null,""]
[null,null,null,null,null,""]
[null,null,null,null,null,""]
[null,null,null,null,null,""]
[null,null,null,null,null,""]
[null,null,null,null,null,""]
[null,null,null,null,null,""]
[null,null,null,null,null,""]
[null,null,null,null,null,{"$f":"D1029826&E1029826","v":""}]
[null,null,null,null,null,""]
[null,null,null,null,null,""]
[null,null,null,null,null,""]
[null,null,null,null,null,""]
[null,null,null,null,null,""]
[null,null,null,null,null,""]
[null,null,null,null,null,""]
[null,null,null,null,null,""]
[null,null,null,null,null,""]
[null,null,null,null,null,""]
[null,null,null,null,null,""]
[null,null,null,null,null,""]
[null,null,null,null,null,""]
[null,null,null,null,null,""]
[null,null,null,null,null,""]
[null,null,null,null,null,""]
[null,null,null,null,null,""]
[null,null,null,null,null,""]
[null,null,null,null,null,""]
[null,null,null,null,null,""]
[null,null,null,null,null,""]
[null,null,null,null,null,""]
[null,null,null,null,null,""]
[null,null,null,null,null,""]
[null,null,null,null,null,""]
[null,null,null,null,null,""]
[null,null,null,null,null,""]
[null,null,null,null,null,""]
[null,null,null,null,null,""]
[null,null,null,null,null,""]
[null,null,null,null,null,""]
[null,null,null,null,null,""]
[null,null,null,null,null,""]
[null,null,null,null,null,""]
[null,null,null,null,null,""]
[null,null,null,null,null,""]
[null,null,null,null,null,""]
[null,null,null,null,null,""]
[null,null,null,null,null,""]
[null,null,null,null,null,""]
[null,null,null,null,null,""]
[null,null,null,null,null,""]
[null,null,null,null,null,""]
[null,null,null,null,null,""]
[null,null,null,null,null,""]
[null,null,null,null,null,""]
[null,null,null,null,null,""]
[null,null,null,null,null,""]
[null,null,null,null,null,""]
[null,null,null,null,null,""]
[null,null,null,null,null,""]
[null,null,null,null,null,""]
[null,null,null,null,null,""]
[null,null,null,null,null,""]
[null,null,null,null,null,""]
[null,null,null,null,null,""]
[null,null,null,null,null,""]
[null,null,null,null,null,""]
[null,null,null,null,null,""]
[null,null,null,null,null,""]
[null,null,null,null,null,""]
[null,null,null,null,null,""]
[null,null,null,null,null,""]
[null,null,null,null,null,""]
[null,null,null,null,null,""]
[null,null,null,null,null,""]
[null,null,null,null,null,""]
[null,null,null,null,null,""]
[null,null,null,null,null,""]
[null,null,null,null,null,""]
[null,null,null,null,null,""]
[null,null,null,null,null,""]
[null,null,null,null,null,""]
[null,null,null,null,null,""]
[null,null,null,null,null,""]
[null,null,null,null,null,""]
[null,null,null,null,null,""]
[null,null,null,null,null,""]
[null,null,null,null,null,""]
[null,null,null,null,null,""]
[null,null,null,null,null,""]
[null,null,null,null,null,""]
[null,null,null,null,null,""]
[null,null,null,null,null,""]
[null,null,null,null,null,""]
[null,null,null,null,null,""]
[null,null,null,null,null,""]
[null,null,null,null,null,{"$f":"D1048130&E1048130","v":""}]
[null,null,null,null,null,""]
[null,null,null,null,null,""]
[null,null,null,null,null,""]
[null,null,null,null,null,""]
[null,null,null,null,null,""]
[null,null,null,null,null,""]
[null,null,null,null,null,""]
[null,null,null,null,null,""]
[null,null,null,null,null,""]
[null,null,null,null,null,""]
[null,null,null,null,null,""]
[null,null,null,null,null,""]
[null,null,null,null,null,""]
[null,null,null,null,null,""]
[null,null,null,null,null,""]
[null,null,null,null,null,""]
[null,null,null,null,null,""]
[null,null,null,null,null,""]
[null,null,null,null,null,""]
[null,null,null,null,null,""]
[null,null,null,null,null,""]
[null,null,null,null,null,""]
[null,null,null,null,null,""]
[null,null,null,null,null,""]
[null,null,null,null,null,""]
[null,null,null,null,null,""]
[null,null,null,null,null,""]
[null,null,null,null,null,""]
[null,null,null,null,null,""]
[null,null,null,null,null,""]
[null,null,null,null,null,""]
[null,null,null,null,null,""]
[null,null,null,null,null,""]
[null,null,null,null,null,""]
[null,null,null,null,null,""]
[null,null,null,null,null,""]
[null,null,null,null,null,""]
[null,null,null,null,null,""]
[null,null,null,null,null,""]
[null,null,null,null,null,""]
[null,null,null,null,null,""]
[null,null,null,null,null,""]
[null,null,null,null,null,""]
[null,null,null,null,null,""]
[null,null,null,null,null,""]
[null,null,null,null,null,""]
[null,null,null,null,null,""]
[null,null,null,null,null,""]
[null,null,null,null,null,""]
[null,null,null,null,null,""]
[null,null,null,null,null,""]
[null,null,null,null,null,""]
[null,null,null,null,null,""]
[null,null,null,null,null,""]
[null,null,null,null,null,""]
[null,null,null,null,null,""]
[null,null,null,null,null,""]
[null,null,null,null,null,""]
[null,null,null,null,null,""]
[null,null,null,null,null,""]
[null,null,null,null,null,""]
[null,null,null,null,null,""]
[null,null,null,null,null,""]
[null,null,null,null,null,{"$f":"D1048194&E1048194","v":""}]
[null,null,null,null,null,""]
[null,null,null,null,null,""]
[null,null,null,null,null,""]
[null,null,null,null,null,""]
[null,null,null,null,null,""]
[null,null,null,null,null,""]
[null,null,null,null,null,""]
[null,null,null,null,null,""]
[null,null,null,null,null,""]
[null,null,null,null,null,""]
[null,null,null,null,null,""]
[null,null,null,null,null,""]
[null,null,null,null,null,""]
[null,null,null,null,null,""]
[null,null,null,null,null,""]
[null,null,null,null,null,""]
[null,null,null,null,null,""]
[null,null,null,null,null,""]
[null,null,null,null,null,""]
[null,null,null,null,null,""]
[null,null,null,null,null,""]
[null,null,null,null,null,""]
[null,null,null,null,null,""]
[null,null,null,null,null,""]
[null,null,null,null,null,""]
[null,null,null,null,null,""]
[null,null,null,null,null,""]
[null,null,null,null,null,""]
[null,null,null,null,null,""]
[null,null,null,null,null,""]
[null,null,null,null,null,""]
[null,null,null,null,null,""]
[null,null,null,null,null,""]
[null,null,null,null,null,""]
[null,null,null,null,null,""]
[null,null,null,null,null,""]
[null,null,null,null,null,""]
[null,null,null,null,null,""]
[null,null,null,null,null,""]
[null,null,null,null,null,""]
[null,null,null,null,null,""]
[null,null,null,null,null,""]
[null,null,null,null,null,""]
[null,null,null,null,null,""]
[null,null,null,null,null,""]
[null,null,null,null,null,""]
[null,null,null,null,null,""]
[null,null,null,null,null,""]
[null,null,null,null,null,""]
[null,null,null,null,null,""]
[null,null,null,null,null,""]
[null,null,null,null,null,""]
[null,null,null,null,null,""]
[null,null,null,null,null,""]
[null,null,null,null,null,""]
[null,null,null,null,null,""]
[null,null,null,null,null,""]
[null,null,null,null,null,""]
[null,null,null,null,null,""]
[null,null,null,null,null,""]
[null,null,null,null,null,""]
[null,null,null,null,null,""]
[null,null,null,null,null,""]
[null,null,null,null,null,{"$f":"D1048258&E1048258","v":""}]
[null,null,null,null,null,""]
[null,null,null,null,null,""]
[null,null,null,null,null,""]
[null,null,null,null,null,""]
[null,null,null,null,null,""]
[null,null,null,null,null,""]
[null,null,null,null,null,""]
[null,null,null,null,null,""]
[null,null,null,null,null,""]
[null,null,null,null,null,""]
[null,null,null,null,null,""]
[null,null,null,null,null,""]
[null,null,null,null,null,""]
[null,null,null,null,null,""]
[null,null,null,null,null,""]
[null,null,null,null,null,""]
[null,null,null,null,null,""]
[null,null,null,null,null,""]
[null,null,null,null,null,""]
[null,null,null,null,null,""]
[null,null,null,null,null,""]
[null,null,null,null,null,""]
[null,null,null,null,null,""]
[null,null,null,null,null,""]
[null,null,null,null,null,""]
[null,null,null,null,null,""]
[null,null,null,null,null,""]
[null,null,null,null,null,""]
[null,null,null,null,null,""]
[null,null,null,null,null,""]
[null,null,null,null,null,""]
[null,null,null,null,null,""]
[null,null,null,null,null,""]
[null,null,null,null,null,""]
[null,null,null,null,null,""]
[null,null,null,null,null,""]
[null,null,null,null,null,""]
[null,null,null,null,null,""]
[null,null,null,null,null,""]
[null,null,null,null,null,""]
[null,null,null,null,null,""]
[null,null,null,null,null,""]
[null,null,null,null,null,""]
[null,null,null,null,null,""]
[null,null,null,null,null,""]
[null,null,null,null,null,""]
[null,null,null,null,null,""]
[null,null,null,null,null,""]
[null,null,null,null,null,""]
[null,null,null,null,null,""]
[null,null,null,null,null,""]
[null,null,null,null,null,""]
[null,null,null,null,null,""]
[null,null,null,null,null,""]
[null,null,null,null,null,""]
[null,null,null,null,null,""]
[null,null,null,null,null,""]
[null,null,null,null,null,""]
[null,null,null,null,null,""]
[null,null,null,null,null,""]
[null,null,null,null,null,""]
[null,null,null,null,null,""]
[null,null,null,null,null,""]
[null,null,null,null,null,{"$f":"D1048322&E1048322","v":""}]
[null,null,null,null,null,""]
[null,null,null,null,null,""]
[null,null,null,null,null,""]
[null,null,null,null,null,""]
[null,null,null,null,null,""]
[null,null,null,null,null,""]
[null,null,null,null,null,""]
[null,null,null,null,null,""]
[null,null,null,null,null,""]
[null,null,null,null,null,""]
[null,null,null,null,null,""]
[null,null,null,null,null,""]
[null,null,null,null,null,""]
[null,null,null,null,null,""]
[null,null,null,null,null,""]
[null,null,null,null,null,""]
[null,null,null,null,null,""]
[null,null,null,null,null,""]
[null,null,null,null,null,""]
[null,null,null,null,null,""]
[null,null,null,null,null,""]
[null,null,null,null,null,""]
[null,null,null,null,null,""]
[null,null,null,null,null,""]
[null,null,null,null,null,""]
[null,null,null,null,null,""]
[null,null,null,null,null,""]
[null,null,null,null,null,""]
[null,null,null,null,null,""]
[null,null,null,null,null,""]
[null,null,null,null,null,""]
[null,null,null,null,null,""]
[null,null,null,null,null,""]
[null,null,null,null,null,""]
[null,null,null,null,null,""]
[null,null,null,null,null,""]
[null,null,null,null,null,""]
[null,null,null,null,null,""]
[null,null,null,null,null,""]
[null,null,null,null,null,""]
[null,null,null,null,null,""]
[null,null,null,null,null,""]
[null,null,null,null,null,""]
[null,null,null,null,null,""]
[null,null,null,null,null,""]
[null,null,null,null,null,""]
[null,null,null,null,null,""]
[null,null,null,null,null,""]
[null,null,null,null,null,""]
[null,null,null,null,null,""]
[null,null,null,null,null,""]
[null,null,null,null,null,""]
[null,null,null,null,null,""]
[null,null,null,null,null,""]
[null,null,null,null,null,""]
[null,null,null,null,null,""]
[null,null,null,null,null,""]
[null,null,null,null,null,""]
[null,null,null,null,null,""]
[null,null,null,null,null,""]
[null,null,null,null,null,""]
[null,null,null,null,null,""]
[null,null,null,null,null,""]
[null,null,null,null,null,{"$f":"D1048386&E1048386","v":""}]
[null,null,null,null,null,""]
[null,null,null,null,null,""]
[null,null,null,null,null,""]
[null,null,null,null,null,""]
[null,null,null,null,null,""]
[null,null,null,null,null,""]
[null,null,null,null,null,""]
[null,null,null,null,null,""]
[null,null,null,null,null,""]
[null,null,null,null,null,""]
[null,null,null,null,null,""]
[null,null,null,null,null,""]
[null,null,null,null,null,""]
[null,null,null,null,null,""]
[null,null,null,null,null,""]
[null,null,null,null,null,""]
[null,null,null,null,null,""]
[null,null,null,null,null,""]
[null,null,null,null,null,""]
[null,null,null,null,null,""]
[null,null,null,null,null,""]
[null,null,null,null,null,""]
[null,null,null,null,null,""]
[null,null,null,null,null,""]
[null,null,null,null,null,""]
[null,null,null,null,null,""]
[null,null,null,null,null,""]
[null,null,null,null,null,""]
[null,null,null,null,null,""]
[null,null,null,null,null,""]
[null,null,null,null,null,""]
[null,null,null,null,null,""]
[null,null,null,null,null,""]
[null,null,null,null,null,""]
[null,null,null,null,null,""]
[null,null,null,null,null,""]
[null,null,null,null,null,""]
[null,null,null,null,null,""]
[null,null,null,null,null,""]
[null,null,null,null,null,""]
[null,null,null,null,null,""]
[null,null,null,null,null,""]
[null,null,null,null,null,""]
[null,null,null,null,null,""]
[null,null,null,null,null,""]
[null,null,null,null,null,""]
[null,null,null,null,null,""]
[null,null,null,null,null,""]
[null,null,null,null,null,""]
[null,null,null,null,null,""]
[null,null,null,null,null,""]
[null,null,null,null,null,""]
[null,null,null,null,null,""]
[null,null,null,null,null,""]
[null,null,null,null,null,""]
[null,null,null,null,null,""]
[null,null,null,null,null,""]
[null,null,null,null,null,""]
[null,null,null,null,null,""]
[null,null,null,null,null,""]
[null,null,null,null,null,""]
[null,null,null,null,null,""]
[null,null,null,null,null,""]
[null,null,null,null,null,{"$f":"D1048450&E1048450","v":""}]
[null,null,null,null,null,""]
[null,null,null,null,null,""]
[null,null,null,null,null,""]
[null,null,null,null,null,""]
[null,null,null,null,null,""]
[null,null,null,null,null,""]
[null,null,null,null,null,""]
[null,null,null,null,null,""]
[null,null,null,null,null,""]
[null,null,null,null,null,""]
[null,null,null,null,null,""]
[null,null,null,null,null,""]
[null,null,null,null,null,""]
[null,null,null,null,null,""]
[null,null,null,null,null,""]
[null,null,null,null,null,""]
[null,null,null,null,null,""]
[null,null,null,null,null,""]
[null,null,null,null,null,""]
[null,null,null,null,null,""]
[null,null,null,null,null,""]
[null,null,null,null,null,""]
[null,null,null,null,null,""]
[null,null,null,null,null,""]
[null,null,null,null,null,""]
[null,null,null,null,null,""]
[null,null,null,null,null,""]
[null,null,null,null,null,""]
[null,null,null,null,null,""]
[null,null,null,null,null,""]
[null,null,null,null,null,""]
[null,null,null,null,null,""]
[null,null,null,null,null,""]
[null,null,null,null,null,""]
[null,null,null,null,null,""]
[null,null,null,null,null,""]
[null,null,null,null,null,""]
[null,null,null,null,null,""]
[null,null,null,null,null,""]
[null,null,null,null,null,""]
[null,null,null,null,null,""]
[null,null,null,null,null,""]
[null,null,null,null,null,""]
[null,null,null,null,null,""]
[null,null,null,null,null,""]
[null,null,null,null,null,""]
[null,null,null,null,null,""]
[null,null,null,null,null,""]
[null,null,null,null,null,""]
[null,null,null,null,null,""]
[null,null,null,null,null,""]
[null,null,null,null,null,""]
[null,null,null,null,null,""]
[null,null,null,null,null,""]
[null,null,null,null,null,""]
[null,null,null,null,null,""]
[null,null,null,null,null,""]
[null,null,null,null,null,""]
[null,null,null,null,null,""]
[null,null,null,null,null,""]
[null,null,null,null,null,""]
[null,null,null,null,null,""]
[null,null,null,null,null,""]
[null,null,null,null,null,{"$f":"D1048514&E1048514","v":""}]
[null,null,null,null,null,""]
[null,null,null,null,null,""]
[null,null,null,null,null,""]
[null,null,null,null,null,""]
[null,null,null,null,null,""]
[null,null,null,null,null,""]
[null,null,null,null,null,""]
[null,null,null,null,null,""]
[null,null,null,null,null,""]
[null,null,null,null,null,""]
[null,null,null,null,null,""]
[null,null,null,null,null,""]
[null,null,null,null,null,""]
[null,null,null,null,null,""]
[null,null,null,null,null,""]
[null,null,null,null,null,""]
[null,null,null,null,null,""]
[null,null,null,null,null,""]
[null,null,null,null,null,""]
[null,null,null,null,null,""]
[null,null,null,null,null,""]
[null,null,null,null,null,""]
[null,null,null,null,null,""]
[null,null,null,null,null,""]
[null,null,null,null,null,""]
[null,null,null,null,null,""]
[null,null,null,null,null,""]
[null,null,null,null,null,""]
[null,null,null,null,null,""]
[null,null,null,null,null,""]
[null,null,null,null,null,""]
[null,null,null,null,null,""]
[null,null,null,null,null,""]
[null,null,null,null,null,""]
[null,null,null,null,null,""]
[null,null,null,null,null,""]
[null,null,null,null,null,""]
[null,null,null,null,null,""]
[null,null,null,null,null,""]
[null,null,null,null,null,""]
[null,null,null,null,null,""]
[null,null,null,null,null,""]
[null,null,null,null,null,""]
[null,null,null,null,null,""]
[null,null,null,null,null,""]
[null,null,null,null,null,""]
[null,null,null,null,null,""]
[null,null,null,null,null,""]
[null,null,null,null,null,""]
[null,null,null,null,null,""]
[null,null,null,null,null,""]
[null,null,null,null,null,""]
[null,null,null,null,null,""]
[null,null,null,null,null,""]
[null,null,null,null,null,""]
[null,null,null,null,null,""]
[null,null,null,null,null,""]
[null,null,null,null,null,""]
[null,null,null,null,null,""]
[null,null,null,null,null,""]
[null,null,null,null,null,""]
[null,null,null,null,null,""]